Workbook

Sheet Examples (hidden)
B2: IPART colour codes for models, spreadsheets and information requests
B3: NB ALWAYS DESCRIBE THE COLOUR CODE USED IN YOUR MODEL
B4: Note: If you use the formats for the inputs provided in this template, input cells will always be unprotected even when you protect the worksheet
H5: use this column cell to "paint" input cells for numbers (NOT for percentages)
I6: use this column cell to "paint" input cells for percentages (NOT numbers)
B7: Models and spreadsheets
G8: numbers | H8: %
B9: Inputs | G9: 4232 | H9: 0.08
B10: Inputs with default values, default values are shown in italics next to or below | G10: 34345 | H10: 0.08
B11: Hard-coded values used that should not be changed, eg credit ratings or '1' at the start of an index series.
B12: Key outputs
B13: Links from other files (green)
B14: Error check (check =0)
B15: Error warnings, messages and unusual calculation assumptions
B16: Indicate change in formula across row with a double red line
B17: Note: You can combine options for inputs, eg: | E17: Inputs can be links to other files
E18: You can drawn attention to unusual inputs
H20: use this column cell to "paint" input cells for numbers (NOT for percentages)
B21: Information Requests | I21: use this column cell to "paint" input cells for percentages (NOT numbers)
G22: numbers | H22: %
B23: Inputs for historical years (actual values) | G23: 234 | H23: 0.24
B24: Forecast inputs | G24: 6667 | H24: 0.05
B25: Error warnings and messages
B26: Error check (check =0)
B28: QA notes - annotation or documenation by QA staff
A31: User Instructions - IPART CHARTS
B33: Blue | C33: Mid Grey | D33: Pale Blue | E33: Green | F33: Charcoal | G33: Orange | H33: Purple | I33: Pink | L33: Blue | M33: Mid Grey | N33: Pale Blue | O33: Green | P33: Charcoal | Q33: Orange | S33: X value | T33: 1st Y value | U33: 2nd Y value | X33: Black | Y33: Red 100% | Z33: Red 70% | AA33: Grey 40%
A34: 1975-76 | B34: 36.19 | C34: 36.88 | D34: 21.56 | E34: 5.36 | F34: 3.01 | G34: 10 | H34: 3.01 | I34: 10 | K34: 1975-76 | L34: 33.19 | M34: 36.88 | N34: 21.56 | O34: 5.36 | P34: 3.01 | Q34: 10 | S34: 1.8 | T34: 10 | U34: 17 | W34: 1975-76 | X34: 33.19 | Y34: 36.88 | Z34: 21.56 | AA34: 5.36
A35: 1983-84 | B35: 39.39 | C35: 32.02 | D35: 21.6 | E35: 7.01 | F35: 3.36 | G35: 12 | H35: 3.36 | I35: 12 | K35: 1983-84 | L35: 39.39 | M35: 32.02 | N35: 21.6 | O35: 7.01 | P35: 3.36 | Q35: 12 | S35: 2.3 | T35: 12 | U35: 9 | W35: 1983-84 | X35: 39.39 | Y35: 32.02 | Z35: 21.6 | AA35: 7.01
A36: 1988-89 | B36: 42.78 | C36: 29.91 | D36: 18.35 | E36: 6.33 | F36: 2.63 | G36: 14 | H36: 2.63 | I36: 14 | K36: 1988-89 | L36: 42.78 | M36: 29.91 | N36: 18.35 | O36: 6.33 | P36: 2.63 | Q36: 14 | S36: 3.7 | T36: 16 | U36: 14 | W36: 1988-89 | X36: 42.78 | Y36: 29.91 | Z36: 18.35 | AA36: 6.33
A37: 1993-94 | B37: 42.13 | C37: 26.53 | D37: 21.6 | E37: 7.01 | F37: 2.72 | G37: 16 | H37: 2.72 | I37: 16 | K37: 1993-94 | L37: 42.13 | M37: 26.53 | N37: 21.6 | O37: 7.01 | P37: 2.72 | Q37: 16 | S37: 4.1 | T37: 8 | U37: 23 | W37: 1993-94 | X37: 42.13 | Y37: 26.53 | Z37: 21.6 | AA37: 7.01
A38: 1996-97 | B38: 41.69 | C38: 24.76 | D38: 23.98 | E38: 7 | F38: 2.57 | G38: 18 | H38: 2.57 | I38: 18 | K38: 1996-97 | L38: 41.69 | M38: 24.76 | N38: 23.98 | O38: 7 | P38: 2.57 | Q38: 18 | S38: 5.5 | T38: 14 | U38: 27 | W38: 1996-97 | X38: 41.69 | Y38: 24.76 | Z38: 23.98 | AA38: 7
A39: 1997-98 | B39: 39.39 | C39: 32.02 | D39: 21.6 | E39: 7.01 | F39: 3.36 | G39: 12 | H39: 3.36 | I39: 12 | K39: 1997-98 | L39: 39.39 | M39: 32.02 | N39: 21.6 | O39: 7.01 | P39: 3.36 | Q39: 12 | W39: 1997-98 | X39: 39.39 | Y39: 32.02 | Z39: 21.6 | AA39: 7.01
A40: 1998-99 | B40: 42.13 | C40: 26.53 | D40: 21.6 | E40: 7.01 | F40: 2.72 | G40: 16 | H40: 2.72 | I40: 16 | K40: 1998-99 | L40: 42.13 | M40: 26.53 | N40: 21.6 | O40: 7.01 | P40: 2.72 | Q40: 16 | W40: 1998-99 | X40: 42.13 | Y40: 26.53 | Z40: 21.6 | AA40: 7.01
A41: 1999-00 | B41: 45 | C41: 22 | D41: 26 | E41: 8 | F41: 2 | G41: 20 | H41: 2 | I41: 20 | K41: 1999-00 | L41: 45 | M41: 22 | N41: 26 | O41: 8 | P41: 2 | Q41: 20 | W41: 1999-00 | X41: 45 | Y41: 22 | Z41: 26 | AA41: 8
A42: – en rule for when needed

Sheet WK0 - Input data (hidden)
B2: This worksheet is for IPART Analyst use only.
B5: Instructions:
B6: ="1. Enter the required information in the blue input cells in Section "&B23 -> 1. Enter the required information in the blue input cells in Section 1. Inputs
B7: ="2. Check the list of council names and update if necessary in Section "&B67 -> 2. Check the list of council names and update if necessary in Section 2. Council Name
B10: Contents | J10: row
B11: =B23 -> 1. Inputs | J11: =ROW(B23) -> 23
B12: =B26 -> Table 1 - Analyst and TSO details | J12: =ROW(B26) -> 26
B13: =B42 -> Table 2 - SV year and rate peg | J13: =ROW(B42) -> 42
B14: =B52 -> Table 3 - SV year, rate peg and units in display format | J14: =ROW(B52) -> 52
B15: =B67 -> 2. Council Name | J15: =ROW(B67) -> 67
B16: =B225 -> 3. Lists for expiring special variations and other questions | J16: =ROW(B225) -> 225
B17: =B227 -> 2. Is the council applying for a one-year increase (s508(2)) or a multi-year increase (s508A)? | J17: =ROW(B227) -> 227
B18: =B231 -> 3. For s508A applications: for how many years is the council requesting % increases as part of this application? | J18: =ROW(B231) -> 231
B19: =B242 -> 4. For s508A & s508(2) applications: is the special variation permanent or temporary? | J19: =ROW(B242) -> 242
B20: =B250 -> 6. Does the council have an expiring variation? If yes, please specify when. | J20: =ROW(B250) -> 250
B23: 1. Inputs | C23: Enter the required information in the blue input cells
B26: Table 1 - Analyst and TSO details
B28: Who is the Analyst in charge?
B29: First Name | D29: Scott
B30: Last Name | D30: Chapman
B31: Email | D31: scott_chapman@ipart.nsw.gov.au
B32: Phone | D32: (02) 9290 8449
B34: Who is the TSO supporting the Analyst?
B35: First Name | D35: Arsh
B36: Last Name | D36: Suri
B37: Email | D37: arsh_suri@ipart.nsw.gov.au
B38: Phone | D38: (02) 9113 7730
B42: Table 2 - SV year and rate peg
B44: SV for period commencing 1 July | C44: year | D44: 2019
B45: Financial year | D45: =D44&"-"&RIGHT(D44+1,2) -> 2019-20
B46: Rate pegs
B47: Rate peg for Year 1 | C47: % | D47: 0.027
B48: Rate peg for Year 2 - 7 | C48: % | D48: 0.025
B52: Table 3 - SV year, rate peg and units in display format
B53: Years
B54: Year number | C54: =D54+1 -> 3 | D54: 2 | E54: =F54+1 -> 1 | F54: 0 | G54: =F54+1 -> 1 | H54: 2 | I54: 3 | J54: 4 | K54: 5 | L54: 6 | M54: 7 | N54: 8 | O54: 9 | P54: 10
B55: Year name | C55: ="Hist yr "&C54 -> Hist yr 3 | D55: Hist yr 2 | E55: ="Hist yr "&E54 -> Hist yr 1 | F55: ="Year "&F54 -> Year 0 | G55: ="Year "&G54 -> Year 1 | H55: Year 2 | I55: Year 3 | J55: Year 4 | K55: Year 5 | L55: Year 6 | M55: Year 7 | N55: Year 8 | O55: Year 9 | P55: Year 10
B57: Year commencing 1 July | C57: =D57-1 -> 2015 | D57: =E57-1 -> 2016 | E57: =F57-1 -> 2017 | F57: =D44-1 -> 2018 | G57: =D44 -> 2019 | H57: =G57+1 -> 2020 | I57: 2021 | J57: 2022 | K57: 2023 | L57: 2024 | M57: 2025 | N57: 2026 | O57: 2027 | P57: 2028
B58: Financial year | C58: =C57&"-"&RIGHT(C57+1,2) -> 2015-16 | D58: =D57&"-"&RIGHT(D57+1,2) -> 2016-17 | E58: 2017-18 | F58: 2018-19 | G58: 2019-20 | H58: 2020-21 | I58: 2021-22 | J58: 2022-23 | K58: 2023-24 | L58: 2024-25 | M58: 2025-26 | N58: 2026-27 | O58: 2027-28 | P58: 2028-29
B60: Rate peg | G60: =$D$47 -> 0.027 | H60: =$D$48 -> 0.025 | I60: 0.025 | J60: 0.025 | K60: 0.025 | L60: 0.025 | M60: 0.025 | N60: 0.025 | O60: 0.025 | P60: 0.025
B62: Units for labels | C62: $ nominal
C63: =C62&" per year" -> $ nominal per year
B67: 2. Council Name | C67: Check and update the list as necessary
B68: 1 | C68: Albury City Council
B69: =B68+1 -> 2 | C69: Armidale Dumaresq Council
B70: 3 | C70: Ballina Shire Council
B71: 4 | C71: Balranald Shire Council
B72: 5 | C72: Bathurst Regional Council
B73: 6 | C73: Bayside Council
B74: 7 | C74: Bega Valley Shire Council
B75: 8 | C75: Bellingen Shire Council
B76: 9 | C76: Berrigan Shire Council
B77: 10 | C77: Blacktown City Council
B78: 11 | C78: Bland Shire Council
B79: 12 | C79: Blayney Shire Council
B80: 13 | C80: Blue Mountains City Council
B81: 14 | C81: Bogan Shire Council
B82: 15 | C82: Bourke Shire Council
B83: 16 | C83: Brewarrina Shire Council
B84: 17 | C84: Broken Hill City Council
B85: 18 | C85: Burwood Council
B86: 19 | C86: Byron Shire Council
B87: 20 | C87: Cabonne Council
B88: 21 | C88: Camden Council
B89: 22 | C89: Campbelltown City Council
B90: 23 | C90: Canterbury-Bankstown Council
B91: 24 | C91: Carrathool Shire Council
B92: 25 | C92: Central Coast Council
B93: 26 | C93: Central Darling Shire Council
B94: 27 | C94: Cessnock City Council
B95: 28 | C95: City of Canada Bay Council
B96: 29 | C96: City of Parramatta Council
B97: 30 | C97: City of Ryde Council
B98: 31 | C98: City of Sydney Council
B99: 32 | C99: Clarence Valley Council
B100: 33 | C100: Cobar Shire Council
B101: =B100+1 -> 34 | C101: Coffs Harbour City Council
B102: 35 | C102: Coolamon Shire Council
B103: 36 | C103: Coonamble Shire Council
B104: 37 | C104: Cootamundra-Gundagai Council
B105: 38 | C105: Corowa Shire Council
B106: 39 | C106: Cowra Shire Council
B107: 40 | C107: Cumberland Council
B108: 41 | C108: Dubbo Regional Council
B109: 42 | C109: Dungog Shire Council
B110: 43 | C110: Edward River Council
B111: 44 | C111: Eurobodalla Shire Council
B112: 45 | C112: Fairfield City Council
B113: 46 | C113: Federation Council
B114: 47 | C114: Forbes Shire Council
B115: 48 | C115: Georges River Council
B116: 49 | C116: Gilgandra Shire Council
B117: 50 | C117: Glen Innes Severn Shire Council
B118: 51 | C118: Goulburn Mulwaree Council
B119: 52 | C119: Greater Hume Shire Council
B120: 53 | C120: Griffith City Council
B121: 54 | C121: Gunnedah Shire Council
B122: 55 | C122: Gwydir Shire Council
B123: 56 | C123: Hawkesbury City Council
B124: 57 | C124: Hay Shire Council
B125: 58 | C125: Hills Shire Council, The
B126: 59 | C126: Hilltops Council
B127: 60 | C127: Holroyd City Council
B128: 61 | C128: Hornsby, The Council of the Shire of
B129: 62 | C129: Hunters Hill, The Council of the Municipality of
B130: 63 | C130: Inner West Council
B131: 64 | C131: Inverell Shire Council
B132: 65 | C132: Junee Shire Council
B133: =B132+1 -> 66 | C133: Kempsey Shire Council
B134: 67 | C134: Kiama, The Council of the Municipality of
B135: 68 | C135: Ku-ring-gai Municipal Council
B136: 69 | C136: Kyogle Council
B137: 70 | C137: Lachlan Shire Council
B138: 71 | C138: Lake Macquarie City Council
B139: 72 | C139: Lane Cove Council
B140: 73 | C140: Leeton Shire Council
B141: 74 | C141: Lismore City Council
B142: 75 | C142: Lithgow Council, City of
B143: 76 | C143: Liverpool City Council
B144: 77 | C144: Liverpool Plains Shire Council
B145: 78 | C145: Lockhart Shire Council
B146: 79 | C146: Maitland City Council
B147: 80 | C147: MidCoast Council
B148: 81 | C148: Mid-Western Regional Council
B149: 82 | C149: Moree Plains Shire Council
B150: 83 | C150: Mosman Municipal Council
B151: 84 | C151: Murray River Council
B152: 85 | C152: Murrumbidgee Shire Council
B153: 86 | C153: Muswellbrook Shire Council
B154: 87 | C154: Nambucca Shire Council
B155: 88 | C155: Narrabri Shire Council
B156: 89 | C156: Narrandera Shire Council
B157: 90 | C157: Narromine Shire Council
B158: 91 | C158: Newcastle City Council
B159: 92 | C159: Northern Beaches Council
B160: 93 | C160: North Sydney Council
B161: 94 | C161: Oberon Council
B162: 95 | C162: Orange City Council
B163: 96 | C163: Parkes Shire Council
B164: 97 | C164: Penrith City Council
B165: =B164+1 -> 98 | C165: Pittwater Council
B166: 99 | C166: Port Macquarie-Hastings Council
B167: 100 | C167: Port Stephens Council
B168: 101 | C168: Queanbeyan-Palerang Regional Council
B169: 102 | C169: Randwick City Council
B170: 103 | C170: Richmond Valley Council
B171: 104 | C171: Rockdale City Council
B172: 105 | C172: Ryde City Council
B173: 106 | C173: Shellharbour City Council
B174: 107 | C174: Shoalhaven City Council
B175: 108 | C175: Singleton Shire Council
B176: 109 | C176: Snowy Monaro Regional Council
B177: 110 | C177: Snowy Valleys Council
B178: 111 | C178: Strathfield Municipal Council
B179: 112 | C179: Sutherland Shire Council
B180: 113 | C180: Tamworth Regional Council
B181: 114 | C181: Temora Shire Council
B182: 115 | C182: Tenterfield Shire Council
B183: 116 | C183: Tweed Shire Council
B184: 117 | C184: Upper Hunter Shire Council
B185: 118 | C185: Upper Lachlan Shire Council
B186: 119 | C186: Uralla Shire Council
B187: 120 | C187: Wagga Wagga City Council
B188: 121 | C188: Walcha Council
B189: 122 | C189: Walgett Shire Council
B190: 123 | C190: Warren Shire Council
B191: 124 | C191: Warrumbungle Shire Council
B192: 125 | C192: Waverley Council
B193: 126 | C193: Weddin Shire Council
B194: 127 | C194: Wellington Council
B195: 128 | C195: Wentworth Shire Council
B196: 129 | C196: Willoughby City Council
B197: =B196+1 -> 130 | C197: Wingecarribee Shire Council
B198: 131 | C198: Wollondilly Shire Council
B199: 132 | C199: Wollongong City Council
B200: 133 | C200: Woollahra Municipal Council
B201: 134 | C201: Yass Valley Council
B202: 135
B203: 136
B204: 137
B205: 138
B206: 139
B207: 140
B208: 141
B209: 142
B210: 143
B211: 144
B212: 145
B213: 146
B214: 147
B215: 148
B216: 149
B217: 150
B218: 151
B219: 152
B220: 153
B221: 154
B222: 155 | F222: add rows above this one if you need more
B225: 3. Lists for expiring special variations and other questions
B227: ='WK1 - Identification'!C28 -> 2. Is the council applying for a one-year increase (s508(2)) or a multi-year increase (s508A)?
... 35 more rows

Sheet Journal
B2: Journal of changes made to Application form Part A - Special Variation 2019-20
B4: Changes since 22 November 2018
B6: Description of changes: | C6: Worksheet: | D6: Made by: | E6: Date | F6: Notes
B7: CORRECTIONS
B8: Corrected formula for 'Total Notional General Income' | C8: WK3 - Notional GI Yr1 YIELD'!M161 | D8: Scott | E8: 2018-11-30 | F8: Formula now includes Ordinary rates, Special rates and Annual charges
B9: Corrected column headings (years) from column S | C9: WK5a - Impact on Rates'!S23 & | D9: Bee | E9: 2018-12-02 | F9: Headings now correctly refer to Year 1 to Year 7
C10: WK5b - Impact on Rates'!R24
B11: Corrected cell references for Scenario 3 (income - 'additional items') | C11: WK8 - Long Term Financial Plan'!F117:P118 | D11: Bee | E11: 2018-12-02 | F11: Corrects Scenario 3 income, operating results and operating performance ratio.
B13: COSMETIC CHANGES
B14: Enter valuation objection as a positive whole number on WK3, consistent with WK1. Changed formula for net total and instructions accordingly | C14: WK3 - Notional GI Yr1 YIELD'!M164 and M166 | D14: Bee | E14: 2018-12-02 | F14: Previously entered as a negative number
B15: Terminology changed for some historical information | C15: WK7 - Historical financials'!C42:C45 | D15: Bee | E15: 2018-12-02 | F15: Made more consistent with long term financial plan terminology
B16: Minor formatting and wording improvements | C16: various | D16: Bee | E16: 2018-12-02

Sheet Instructions
H6: THE INDEPENDENT PRICING AND REGULATORY TRIBUNAL OF NSW
H8: APPLICATION FOR A SPECIAL VARIATION
H9: TO GENERAL INCOME
H10: under Section 508A and 508(2) of the Local Government Act 1993
H13: SECTION 508A & 508(2) APPLICATION FORM
H14: ="PART A "&'WK0 - Input data'!$D$45 -> PART A 2019-20
H16: Before completing this form, you MUST read the Office of Local Government's
H17: Guidelines for the preparation of an application for a special variation to general income
H19: All dollars in nominal terms
D21: The Guidelines are available on the Office’s website at www.olg.nsw.gov.au.
D23: NOTE: | E23: This part of the application must be completed in conjunction with Part B
E24: ="(Special Variation Application Form "&'WK0 - Input data'!$D$45&"- Part B)." -> (Special Variation Application Form 2019-20- Part B).
H26: Overview
C29: A Section 508A special variation allows a council to increase general income by a percentage that is greater than the rate peg
C30: each year, up to a maximum of 7 years.
C32: Section 508(2) allows a council to increase general income by a percentage that is greater than the rate peg in a single year.
C34: You must identify the percentage increase requested for each year inclusive of the rate peg.
C36: You must also identify percentage increases in minimum rates for each year, if the increases result in a minimum rate
C37: which exceeds the statutory limit.
C39: Note: IPART can approve a percentage increase to minimum rates above the statutory limit that differs from the
C40: proposed special variation percentage increase as long as you have justified and properly consulted on that percentage.
C41: See Attachment 4 of the Guidelines for further details.
C43: Both Part A and Part B of the application should be submitted to IPART (us) via the Council Portal on our
C44: website at www.ipart.nsw.gov.au.
C46: Part A consists of 9 worksheets:
C47: ► | D47: Worksheet 1 (Identification): Identifies your council and a council contact officer, collects information
E48: about your proposed special variation and any existing special variations (SVs).
E49: It also collects information about Crown Land adjustments, catch-ups or excess adjustments
E50: and valuation objections.
C51: ► | D51: Worksheet 2 (current year Notional General Income): Calculates the council's Notional General Income
E52: ="for the current year (Year 0 in the application, "&'WK0 - Input data'!$F$58&"). " -> for the current year (Year 0 in the application, 2018-19).
C53: ► | D53: Worksheet 3 (first year Notional General Income): Calculates the council's proposed Notional General
E54: ="Income for next year (Year 1 in the application, "&'WK0 - Input data'!$G$58&")." -> Income for next year (Year 1 in the application, 2019-20).
C55: ► | D55: Worksheet 4 (PGI): Summarises the council's Permissible General Income based on the 1st year's percentage
E56: for the proposed SV and Crown Land adjustments, plus other income adjustments. It also shows the
E57: the council's PGI over the proposed SV period and the annual and cumulative impacts of the proposed SV.
C58: ► | D58: Worksheet 5a (Impact on Rates 1): Calculates the average annual and cumulative increases in rates
E59: for each category/sub-category for each year of the proposed SV, with and without the proposed SV.
C60: ► | D60: Worksheet 5b (Impact on Rates 2): Collects the assessment numbers in the residential, business and farmland
E61: ordinary rate categories for different land values in year 1 and the rates across this
E62: distribution (ie, midpoints of each land value range) for each year of the proposed SV.
C63: ► | D63: Worksheet 6 (Additional SV Income and Expenditure): Collects data on how the council intends to use the
E64: additional funds (above the rate peg) from the proposed SV.
C65: ► | D65: Worksheet 7 (Historical financial information): Collects historical information from your financial statements.
C66: ► | D66: Worksheet 8 (Long Term Financial Plan): Collects information on your Long Term Financial Plan
E67: including scenarios with and without the proposed special variation.
C68: ► | D68: Worksheet 9 (Financial ratios): Captures financial ratios, some of which are calculated while others
E69: are entered as inputs.
D72: Enquiries regarding the completion of this application should be directed to:
E74: ='WK0 - Input data'!$D$29&" "&'WK0 - Input data'!$D$30 -> Scott Chapman | H74: ='WK0 - Input data'!D32 -> (02) 9290 8449
H75: ='WK0 - Input data'!D31 -> scott_chapman@ipart.nsw.gov.au
E77: ='WK0 - Input data'!$D$35&" "&'WK0 - Input data'!$D$36&" (who in "&'WK0 - Input data'!D29&"'s absence, will direct you to the appropriate IPART officer)" -> Arsh Suri (who in Scott's absence, will direct you to the appropriate IPART officer)
H78: ='WK0 - Input data'!D38 -> (02) 9113 7730
H79: ='WK0 - Input data'!D37 -> arsh_suri@ipart.nsw.gov.au
C85: Colour code
C87: Enter data in the blue input cells
C88: Hard-coded values that should not be changed
C89: Key outputs
C90: Special instructions
C91: Error checks
C92: Double red line indicates a change in formula
I96: Step-by-step instructions on completing the worksheets
C100: Worksheet 1 - Identification
C102: > | D102: Select council name from the drop down list and enter contact details.
C103: > | D103: Indicate whether you have any existing SVs by selecting 'yes' or 'no' from the drop down box, where the existing SV
D104: means you have an existing increase(s) above the rate peg for any year from Year 1 onwards.
C105: =$C$102 -> > | D105: Select (or enter) the type and duration of the proposed special variation.
C106: =$C$102 -> > | D106: Enter the additional percentage being sought above the rate peg (excluding other adjustments).
C107: =$C$102 -> > | D107: Answer the questions about expiring SVs.
D108: * | E108: If the council does not have any SVs due to expire in the period of the proposed SV, leave the
E109: field blank or select 'na'.
D110: =$D$108 -> * | E110: ="Enter the $ value of expiring SVs in Table 1 (row "&ROW('WK1 - Identification'!C71)&")" -> Enter the $ value of expiring SVs in Table 1 (row 71)
D111: =$D$108 -> * | E111: Any amounts entered need to be verified by the OLG before the application is submitted to us.
C113: =$C$102 -> > | D113: Answer the questions about Crown land adjustments, catch ups and valuation objections.
D114: =$D$108 -> * | E114: If the council does not have any adjustments, leave the fields in this section blank
D115: =$D$108 -> * | E115: Note that applications for Crown land adjustments still need to be separately made to OLG.
C116: =$C$102 -> > | D116: Enter the requested percentage increases in general income (including the rate peg) from year 2 (Table 1).
D117: =$D$108 -> * | E117: The annual and cumulative increases in the white cells are automatically calculated once the requested
E118: percentage increases have been entered.
D119: =$D$108 -> * | E119: The worksheet automatically assumes a rate peg of 2.5% for each of the forward years (Year 2 and thereafter).
E120: If the rate peg turns out to be different from that assumed, the total % increase in general income with an
E121: approved SV does not change.
C123: ="Worksheet 2 - Notional General Income "&'WK0 - Input data'!$F$58 -> Worksheet 2 - Notional General Income 2018-19
C125: This worksheet calculates the Notional General Income for the current year (Year 0), by applying the
C126: rating structure used in the previous year to land values, adjusted by supplementary valuations
C127: received during that year.
C129: Any inclusion in WK2 as a “supplementary valuation” must agree with section 4 of the Valuation of Land Act 1916.
C131: ="Worksheet 3 - Notional General Income "&'WK0 - Input data'!$G$58 -> Worksheet 3 - Notional General Income 2019-20
C133: This worksheet calculates the proposed Notional General Income (Year 1). It should apply the proposed rating structure,
C134: including the proposed SV increase, to land values adjusted by any supplementary valuations.
C136: The rating structure entered here must be checked by OLG.
C138: Worksheet 4 - Calculation
C140: This worksheet calculates Permissible General Income and the value of the proposed SV after taking into
C141: account various adjustments. Income adjustments and expiring SV amounts are to be verified
C142: by OLG before the application is submitted to us. | M142: Example of PGI calculation for Year 1
C144: NO INPUTS ARE REQUIRED | K144: XYZ Council
M145: WORKSHEET 4
C146: Expiring SV
C147: ="If the council has a SV due to expire on 30 June "&'WK0 - Input data'!$G$57&", " -> If the council has a SV due to expire on 30 June 2019, | M147: PERMISSIBLE GENERAL INCOME SUMMARY FOR 2018-19
C148: Notional General Income must be reduced before | M148: All dollars in nominal terms
C149: ="calculating Permissable General Income in "&'WK0 - Input data'!$G$58&"." -> calculating Permissable General Income in 2019-20. | M149: Please check all income adjustments and expiring variation amounts with OLG
M150: before submitting the application.
C151: Additional percentage increase | K151: Prior year Notional General Income | Q151: 20000000
C152: This is the additional percentage increase being sought | K152: Less: | L152: Expiry of a prior special variation | Q152: 10000
C153: above the rate peg, excluding any other income
C154: adjustments. | K154: Adjusted first year Notional General Income | P154: $ | Q154: =Q151-Q152 -> 19990000
C156: Crown Land Adjustment | K156: Plus: | L156: Rate peg increase - first year | O156: 0.023 | Q156: =ROUND(Q154*O156,9) -> 459770
C157: Crown land claims will increase Permissible General | K157: Plus: | L157: Additional increase - first year | O157: 0.037 | Q157: =ROUND(Q154*O157,9) -> 739630
C158: Income. The $ amount of any Crown land adjustment is | K158: Plus: | L158: Crown Land adjustment - first year | O158: 0.000638253745 | Q158: 10000
C159: converted into a % amount to be included in the final
C160: special variation for consideration by IPART. | L160: Total special variation - first year | O160: =SUM(O156:O158) -> 0.06063825375 | P160: $ | Q160: =SUM(Q156:Q158) -> 1209400
C162: Other adjustments | K162: Other First Year Adjustments:
C163: There are two other possible adjustments that are not included | K163: Plus/Minus: | L163: Prior year Catch-up/(Excess) | Q163: -5000
C164: in the proposed SV % but will affect Permissible General Income: | K164: Minus: | L164: Valuation Objections claimed in prior year | Q164: -30
C165: 1. Prior year result. This is the catch up or excess amount
C166: from the previous year, as advised by OLG. | O166: Total Adjustments | Q166: =SUM(Q163:Q164) -> -5030
C167: 2. Valuation objections: if you successfully claimed valuation
C168: objections in the previous year, PGI must be reduced to | L168: First year Permissible General Income | P168: $ | Q168: =Q154+Q160+Q166 -> 21194370
C169: remove the extra income claimed from the revenue base.
C172: Worksheet 5a - Impact on Ratepayers (part 1)
C174: The aim of this sheet is to show the minimum rate increase (if applicable), the average rate increase per sub-category
C175: (inclusive of all relevant rates) and the proposed annual charges in each year of the proposed special variation.
C176: It also aims to compare average rates with and without the proposed special variation.
C177: Enter the required data in the blue input cells. The values in the white cells will calculated automatically.
C179: Minimum rates
C180: Enter in the minimum rates per category/sub-category as if the SV were approved for each year as requested
C181: These figures are intended to illustrate the impact of the proposed SV on any specific minimum rate.
C183: Ordinary and Special Average Rates
C184: Enter in the average rates per sub-category as if the proposed SV were approved for each year as requested
C185: AND the average rates as if the proposed SV were not approved (only the rate peg would then apply).
C187: These figures should include the impact of changes in minimum rates and are calculated as per below.
C189: Annual Charges
C190: Enter any proposed annual charges for each year of the proposed variation.
C192: Note:
C193: * | D193: An average rate equals total income in a category or sub-category divided by the number
D194: of assessments in that same category or sub-category (i.e. including assessments on the minimum rate).
C195: =C193 -> * | D195: These figures should reflect the reduction from any expiring SVs so that the net change in rates is measured.
C197: Worksheet 5b - Impact on Ratepayers (part 2)
C199: This worksheet shows the distribution of ordinary rates across different land values and how
C200: ratepayers will be affected by the proposed SV, depending on the value of their land.
C202: Enter the number of assessments in the ordinary rating categories (residential, business and farmland)
C203: ="across various land value ranges in "&'WK0 - Input data'!$F$58&", and the rate levels across different land values in each year" -> across various land value ranges in 2018-19, and the rate levels across different land values in each year
C204: of the application, with and without the proposed SV.
C206: If you have had a general revaluation of land during the prior year this spreadsheet will not accurately
C207: reflect the impact on ratepayers in year 1. We will take this into account when using this worksheet.
C208: ="Please complete the tables using the number of assessments from the first year of the proposed SV ("&'WK0 - Input data'!$D$45&")." -> Please complete the tables using the number of assessments from the first year of the proposed SV (2019-20).
C210: Worksheet 6 - Proposed Additional SRV Income and Expenditure
C212: This worksheet is designed to show how the council proposes to use the additional funding
C213: above the rate peg generated from the proposed SV.
C215: The worksheet automatically calculates additional SRV income for Years 1 to 10.
C217: Councils must enter each category of expenditure, and if applicable, individual program/project names,
C218: in column C under one of the headings provided.
C220: The spreadsheet will calculate the difference between the additional income from the proposed special variation
C221: and what it is spent on. A positive difference means that the additional income is not all spent on opex or capex.
C223: * Part B of the application provides councils with the opportunity to explain their expenditure plans
C224: and the impacts on their financial position.
C226: Worksheet 7 - Historical financial information
C227: This sheet captures the council's historical financial information as reported in its financial statements.
C229: Worksheet 8 - Long Term Financial Plan
C231: This worksheet is designed to show how the council's Long Term Financial Plan varies
C232: with and without the proposed special variation
C233: Councils must complete the information from the Long Term Financial Plan for both the Special Variation Scenario
C234: and the Base Case Scenario (without proposed special variation).
C236: Councils must enter each category of income and expenditure under the headings provided
C237: This worksheet automatically calculates total amounts for each column
C239: Worksheet 9 - Financial ratios
C240: This worksheet captures financial ratios for three historical years as well as the current and forecast years (0 to 10).
C241: All the historical ratios and two of the forecast ratios are calculated from information provided in Worksheet 7 and Worksheet 8.
C242: Enter forecast values for the two compulsory ratios (Infrastructure Renewals Ratio and Infrastructure Backlog Ratio).
C243: Enter forecasts for the optional ratios only if they are relevant to your council's application.

Sheet Export (hidden)
A1: Hide sheet before publishing
B3: EXPORT SHEET
B5: ='WK1 - Identification'!$F$5 -> WORKSHEET 1
B6: ='WK1 - Identification'!C13 -> Council Name: | D6: ='WK2 - Notional General Income'!$C$3 -> Dungog Shire Council
B7: Type of application | D7: ='WK1 - Identification'!K28 -> s508A
B8: Has existing SV? | D8: ='WK1 - Identification'!K24 -> no
B9: Yrs SV applies | D9: ='WK1 - Identification'!R31 -> 7
B10: Permanent or temporary? | D10: ='WK1 - Identification'!K30 -> Permanent
B11: No yrs if temporary | D11: ='WK1 - Identification'!K31 -> 0
B16: ='WK1 - Identification'!$F$5 -> WORKSHEET 1
B17: ='WK1 - Identification'!C50 -> E. Requested annual percentage increases and expiring SV amounts
H18: ='WK1 - Identification'!F56 -> Year 0 | I18: ='WK1 - Identification'!G56 -> Year 1 | J18: ='WK1 - Identification'!H56 -> Year 2 | K18: ='WK1 - Identification'!I56 -> Year 3 | L18: ='WK1 - Identification'!J56 -> Year 4 | M18: ='WK1 - Identification'!K56 -> Year 5 | N18: ='WK1 - Identification'!L56 -> Year 6 | O18: ='WK1 - Identification'!M56 -> Year 7
B19: ='WK1 - Identification'!C57 -> Financial year | H19: ='WK1 - Identification'!F57 -> 2018-19 | I19: ='WK1 - Identification'!G57 -> 2019-20 | J19: ='WK1 - Identification'!H57 -> 2020-21 | K19: ='WK1 - Identification'!I57 -> 2021-22 | L19: ='WK1 - Identification'!J57 -> 2022-23 | M19: ='WK1 - Identification'!K57 -> 2023-24 | N19: ='WK1 - Identification'!L57 -> 2024-25 | O19: ='WK1 - Identification'!M57 -> 2025-26
B20: ='WK1 - Identification'!C58 -> 1= included in SV period | I20: ='WK1 - Identification'!G58 -> 1 | J20: ='WK1 - Identification'!H58 -> 1 | K20: ='WK1 - Identification'!I58 -> 1 | L20: ='WK1 - Identification'!J58 -> 1 | M20: ='WK1 - Identification'!K58 -> 1 | N20: ='WK1 - Identification'!L58 -> 1 | O20: ='WK1 - Identification'!M58 -> 1
B21: ='WK1 - Identification'!C59 -> Annual % increases
B22: ='WK1 - Identification'!C60 -> na - leave blank | I22: ='WK1 - Identification'!G60 -> 0 | J22: ='WK1 - Identification'!H60 -> 0 | K22: ='WK1 - Identification'!I60 -> 0 | L22: ='WK1 - Identification'!J60 -> 0 | M22: ='WK1 - Identification'!K60 -> 0 | N22: ='WK1 - Identification'!L60 -> 0 | O22: ='WK1 - Identification'!M60 -> 0
B23: ='WK1 - Identification'!C61 -> Rate peg only | I23: ='WK1 - Identification'!G61 -> 0.027 | J23: ='WK1 - Identification'!H61 -> 0.025 | K23: ='WK1 - Identification'!I61 -> 0.025 | L23: ='WK1 - Identification'!J61 -> 0.025 | M23: ='WK1 - Identification'!K61 -> 0.025 | N23: ='WK1 - Identification'!L61 -> 0.025 | O23: ='WK1 - Identification'!M61 -> 0.025
B24: ='WK1 - Identification'!C62 -> plus | C24: ='WK1 - Identification'!D62 -> percentage above the rate peg | I24: ='WK1 - Identification'!G62 -> 0.123 | J24: ='WK1 - Identification'!H62 -> 0.125 | K24: ='WK1 - Identification'!I62 -> 0.075 | L24: ='WK1 - Identification'!J62 -> 0.075 | M24: ='WK1 - Identification'!K62 -> 0.075 | N24: ='WK1 - Identification'!L62 -> 0.035 | O24: ='WK1 - Identification'!M62 -> 0.035
B25: ='WK1 - Identification'!C63 -> plus | C25: ='WK1 - Identification'!D63 -> Crown Land adjustment | I25: ='WK1 - Identification'!G63 -> 0 | J25: ='WK1 - Identification'!H63 -> 0 | K25: ='WK1 - Identification'!I63 -> 0 | L25: ='WK1 - Identification'!J63 -> 0 | M25: ='WK1 - Identification'!K63 -> 0 | N25: ='WK1 - Identification'!L63 -> 0 | O25: ='WK1 - Identification'!M63 -> 0
B26: ='WK1 - Identification'!C64 -> Proposed SV | I26: ='WK1 - Identification'!G64 -> 0.15 | J26: ='WK1 - Identification'!H64 -> 0.15 | K26: ='WK1 - Identification'!I64 -> 0.1 | L26: ='WK1 - Identification'!J64 -> 0.1 | M26: ='WK1 - Identification'!K64 -> 0.1 | N26: ='WK1 - Identification'!L64 -> 0.06 | O26: ='WK1 - Identification'!M64 -> 0.06
B27: ='WK1 - Identification'!C65 -> Cumulative % increase
B28: ='WK1 - Identification'!C66 -> Rate peg only | I28: ='WK1 - Identification'!G66 -> 0.027 | J28: ='WK1 - Identification'!H66 -> 0.052675 | K28: ='WK1 - Identification'!I66 -> 0.078991875 | L28: ='WK1 - Identification'!J66 -> 0.1059666719 | M28: ='WK1 - Identification'!K66 -> 0.1336158387 | N28: ='WK1 - Identification'!L66 -> 0.1619562346 | O28: ='WK1 - Identification'!M66 -> 0.1910051405
B29: ='WK1 - Identification'!C67 -> Percentage above the rate peg | I29: ='WK1 - Identification'!G67 -> 0.123 | J29: ='WK1 - Identification'!H67 -> 0.269825 | K29: ='WK1 - Identification'!I67 -> 0.375758125 | L29: ='WK1 - Identification'!J67 -> 0.4942583281 | M29: ='WK1 - Identification'!K67 -> 0.6266316613 | N29: ='WK1 - Identification'!L67 -> 0.7039061154 | O29: ='WK1 - Identification'!M67 -> 0.7868089505
B30: ='WK1 - Identification'!C68 -> Proposed SV | I30: ='WK1 - Identification'!G68 -> 0.15 | J30: ='WK1 - Identification'!H68 -> 0.3225 | K30: ='WK1 - Identification'!I68 -> 0.45475 | L30: ='WK1 - Identification'!J68 -> 0.600225 | M30: ='WK1 - Identification'!K68 -> 0.7602475 | N30: ='WK1 - Identification'!L68 -> 0.86586235 | O30: ='WK1 - Identification'!M68 -> 0.977814091
B32: ='WK1 - Identification'!C70 -> Expiring special variations
B33: ='WK1 - Identification'!C71 -> $ value of expiring special | I33: ='WK1 - Identification'!G71 -> 0 | J33: ='WK1 - Identification'!H71 -> 0 | K33: ='WK1 - Identification'!I71 -> 0 | L33: ='WK1 - Identification'!J71 -> 0 | M33: ='WK1 - Identification'!K71 -> 0 | N33: ='WK1 - Identification'!L71 -> 0 | O33: ='WK1 - Identification'!M71 -> 0
B34: ='WK1 - Identification'!C72 -> variations (ESV) | I34: ='WK1 - Identification'!G72 -> 0 | J34: ='WK1 - Identification'!H72 -> 0 | K34: ='WK1 - Identification'!I72 -> 0 | L34: ='WK1 - Identification'!J72 -> 0 | M34: ='WK1 - Identification'!K72 -> 0 | N34: ='WK1 - Identification'!L72 -> 0 | O34: ='WK1 - Identification'!M72 -> 0
B39: ='WK4 - PGI summary'!$E$5 -> WORKSHEET 4
B40: ='WK4 - PGI summary'!B36 -> PERMISSABLE GENERAL INCOME (PGI) OVER PROPOSED SV PERIOD ($ nominal)
B41: ='WK0 - Input data'!B$54 -> Year number | E41: ='WK0 - Input data'!C$55 -> Hist yr 3 | F41: ='WK0 - Input data'!D$55 -> Hist yr 2 | G41: ='WK0 - Input data'!E$55 -> Hist yr 1 | H41: ='WK0 - Input data'!F$55 -> Year 0 | I41: ='WK0 - Input data'!G$55 -> Year 1 | J41: ='WK0 - Input data'!H$55 -> Year 2 | K41: ='WK0 - Input data'!I$55 -> Year 3 | L41: ='WK0 - Input data'!J$55 -> Year 4 | M41: ='WK0 - Input data'!K$55 -> Year 5 | N41: ='WK0 - Input data'!L$55 -> Year 6 | O41: ='WK0 - Input data'!M$55 -> Year 7 | P41: ='WK0 - Input data'!N$55 -> Year 8 | Q41: ='WK0 - Input data'!O$55 -> Year 9 | R41: ='WK0 - Input data'!P$55 -> Year 10 | S41: ='WK4 - PGI summary'!N37 -> Total | T41: ='WK4 - PGI summary'!O37 -> increase
B42: ='WK0 - Input data'!B$58 -> Financial year | E42: ='WK0 - Input data'!C$58 -> 2015-16 | F42: ='WK0 - Input data'!D$58 -> 2016-17 | G42: ='WK0 - Input data'!E$58 -> 2017-18 | H42: ='WK0 - Input data'!F$58 -> 2018-19 | I42: ='WK0 - Input data'!G$58 -> 2019-20 | J42: ='WK0 - Input data'!H$58 -> 2020-21 | K42: ='WK0 - Input data'!I$58 -> 2021-22 | L42: ='WK0 - Input data'!J$58 -> 2022-23 | M42: ='WK0 - Input data'!K$58 -> 2023-24 | N42: ='WK0 - Input data'!L$58 -> 2024-25 | O42: ='WK0 - Input data'!M$58 -> 2025-26 | P42: ='WK0 - Input data'!N$58 -> 2026-27 | Q42: ='WK0 - Input data'!O$58 -> 2027-28 | R42: ='WK0 - Input data'!P$58 -> 2028-29 | S42: ='WK4 - PGI summary'!N38 -> $ nominal | T42: ='WK4 - PGI summary'!O38 -> %
B44: ='WK4 - PGI summary'!C40 -> Permissible General Income (PGI) with proposed SV
B45: ='WK4 - PGI summary'!C41 -> Prior year Notional General Income (NGI) | I45: ='WK4 - PGI summary'!G41 -> 5694176.019 | J45: ='WK4 - PGI summary'!H41 -> 6547689.422 | K45: ='WK4 - PGI summary'!I41 -> 7529842.835 | L45: ='WK4 - PGI summary'!J41 -> 8282827.118 | M45: ='WK4 - PGI summary'!K41 -> 9111109.83 | N45: ='WK4 - PGI summary'!L41 -> 10022220.81 | O45: ='WK4 - PGI summary'!M41 -> 10623554.06
B46: ='WK4 - PGI summary'!C42 -> less | C46: ='WK4 - PGI summary'!D42 -> expiry of a prior special variation | I46: ='WK4 - PGI summary'!G42 -> 0 | J46: ='WK4 - PGI summary'!H42 -> 0 | K46: ='WK4 - PGI summary'!I42 -> 0 | L46: ='WK4 - PGI summary'!J42 -> 0 | M46: ='WK4 - PGI summary'!K42 -> 0 | N46: ='WK4 - PGI summary'!L42 -> 0 | O46: ='WK4 - PGI summary'!M42 -> 0
B47: ='WK4 - PGI summary'!C43 -> Adjusted Notional General income | I47: ='WK4 - PGI summary'!G43 -> 5694176.019 | J47: ='WK4 - PGI summary'!H43 -> 6547689.422 | K47: ='WK4 - PGI summary'!I43 -> 7529842.835 | L47: ='WK4 - PGI summary'!J43 -> 8282827.118 | M47: ='WK4 - PGI summary'!K43 -> 9111109.83 | N47: ='WK4 - PGI summary'!L43 -> 10022220.81 | O47: ='WK4 - PGI summary'!M43 -> 10623554.06
B49: ='WK4 - PGI summary'!C45 -> plus | C49: ='WK4 - PGI summary'!D45 -> rate peg increase | I49: ='WK4 - PGI summary'!G45 -> 153742.7525 | J49: ='WK4 - PGI summary'!H45 -> 163692.2355 | K49: ='WK4 - PGI summary'!I45 -> 188246.0709 | L49: ='WK4 - PGI summary'!J45 -> 207070.678 | M49: ='WK4 - PGI summary'!K45 -> 227777.7458 | N49: ='WK4 - PGI summary'!L45 -> 250555.5203 | O49: ='WK4 - PGI summary'!M45 -> 265588.8516
B50: ='WK4 - PGI summary'!C46 -> plus | C50: ='WK4 - PGI summary'!D46 -> additional increase | I50: ='WK4 - PGI summary'!G46 -> 700383.6503 | J50: ='WK4 - PGI summary'!H46 -> 818461.1777 | K50: ='WK4 - PGI summary'!I46 -> 564738.2126 | L50: ='WK4 - PGI summary'!J46 -> 621212.0339 | M50: ='WK4 - PGI summary'!K46 -> 683333.2373 | N50: ='WK4 - PGI summary'!L46 -> 350777.7285 | O50: ='WK4 - PGI summary'!M46 -> 371824.3922
B51: ='WK4 - PGI summary'!C47 -> plus | C51: ='WK4 - PGI summary'!D47 -> Crown Land adjustment | I51: ='WK4 - PGI summary'!G47 -> 0 | J51: ='WK4 - PGI summary'!H47 -> 0 | K51: ='WK4 - PGI summary'!I47 -> 0 | L51: ='WK4 - PGI summary'!J47 -> 0 | M51: ='WK4 - PGI summary'!K47 -> 0 | N51: ='WK4 - PGI summary'!L47 -> 0 | O51: ='WK4 - PGI summary'!M47 -> 0
B52: ='WK4 - PGI summary'!C48 -> Total proposed SV | I52: ='WK4 - PGI summary'!G48 -> 854126.4028 | J52: ='WK4 - PGI summary'!H48 -> 982153.4133 | K52: ='WK4 - PGI summary'!I48 -> 752984.2835 | L52: ='WK4 - PGI summary'!J48 -> 828282.7118 | M52: ='WK4 - PGI summary'!K48 -> 911110.983 | N52: ='WK4 - PGI summary'!L48 -> 601333.2488 | O52: ='WK4 - PGI summary'!M48 -> 637413.2437
B54: ='WK4 - PGI summary'!C50 -> Notional General Income after SV applied | I54: ='WK4 - PGI summary'!G50 -> 6548302.422 | J54: ='WK4 - PGI summary'!H50 -> 7529842.835 | K54: ='WK4 - PGI summary'!I50 -> 8282827.118 | L54: ='WK4 - PGI summary'!J50 -> 9111109.83 | M54: ='WK4 - PGI summary'!K50 -> 10022220.81 | N54: ='WK4 - PGI summary'!L50 -> 10623554.06 | O54: ='WK4 - PGI summary'!M50 -> 11260967.31
B55: ='WK4 - PGI summary'!C51 -> plus | C55: ='WK4 - PGI summary'!D51 -> other 1st-year adjustments | I55: ='WK4 - PGI summary'!G51 -> -613 | J55: ='WK4 - PGI summary'!H51 -> 0 | K55: ='WK4 - PGI summary'!I51 -> 0 | L55: ='WK4 - PGI summary'!J51 -> 0 | M55: ='WK4 - PGI summary'!K51 -> 0 | N55: ='WK4 - PGI summary'!L51 -> 0 | O55: ='WK4 - PGI summary'!M51 -> 0
B56: ='WK4 - PGI summary'!C52 -> PGI with proposed SV | H56: ='WK4 - PGI summary'!F52 -> 5694176.019 | I56: ='WK4 - PGI summary'!G52 -> 6547689.422 | J56: ='WK4 - PGI summary'!H52 -> 7529842.835 | K56: ='WK4 - PGI summary'!I52 -> 8282827.118 | L56: ='WK4 - PGI summary'!J52 -> 9111109.83 | M56: ='WK4 - PGI summary'!K52 -> 10022220.81 | N56: ='WK4 - PGI summary'!L52 -> 10623554.06 | O56: ='WK4 - PGI summary'!M52 -> 11260967.31 | S56: ='WK4 - PGI summary'!N52 -> 5566791.287 | T56: ='WK4 - PGI summary'!O52 -> 0.9776289438
B57: check = 0 | I57: =IF(I56=".",".",I45-I46+I49+I50+I51+I55-I56) -> -9.313225746e-10 | J57: =IF(J56=".",".",J45-J46+J49+J50+J51+J55-J56) -> 0 | K57: 0 | L57: =IF(L56=".",".",L45-L46+L49+L50+L51+L55-L56) -> 0 | M57: =IF(M56=".",".",M45-M46+M49+M50+M51+M55-M56) -> 1.862645149e-09 | N57: =IF(N56=".",".",N45-N46+N49+N50+N51+N55-N56) -> 0 | O57: =IF(O56=".",".",O45-O46+O49+O50+O51+O55-O56) -> 0 | S57: =INDEX(H56:O56,1,$D$9+1)-H56-S56 -> 0
B58: ='WK4 - PGI summary'!C54 -> Permissible General Income if only the rate peg applied
B59: ='WK4 - PGI summary'!C55 -> Prior year Notional General Income (NGI) | I59: ='WK4 - PGI summary'!G55 -> 5694176.019 | J59: ='WK4 - PGI summary'!H55 -> 5847305.771 | K59: ='WK4 - PGI summary'!I55 -> 5993488.416 | L59: ='WK4 - PGI summary'!J55 -> 6143325.626 | M59: ='WK4 - PGI summary'!K55 -> 6296908.767 | N59: ='WK4 - PGI summary'!L55 -> 6454331.486 | O59: ='WK4 - PGI summary'!M55 -> 6615689.773
B60: ='WK4 - PGI summary'!C56 -> less | C60: ='WK4 - PGI summary'!D56 -> expiry of a prior special variation | I60: ='WK4 - PGI summary'!G56 -> 0 | J60: ='WK4 - PGI summary'!H56 -> 0 | K60: ='WK4 - PGI summary'!I56 -> 0 | L60: ='WK4 - PGI summary'!J56 -> 0 | M60: ='WK4 - PGI summary'!K56 -> 0 | N60: ='WK4 - PGI summary'!L56 -> 0 | O60: ='WK4 - PGI summary'!M56 -> 0
B61: ='WK4 - PGI summary'!C57 -> Adjusted Notional General income | I61: ='WK4 - PGI summary'!G57 -> 5694176.019 | J61: ='WK4 - PGI summary'!H57 -> 5847305.771 | K61: ='WK4 - PGI summary'!I57 -> 5993488.416 | L61: ='WK4 - PGI summary'!J57 -> 6143325.626 | M61: ='WK4 - PGI summary'!K57 -> 6296908.767 | N61: ='WK4 - PGI summary'!L57 -> 6454331.486 | O61: ='WK4 - PGI summary'!M57 -> 6615689.773
B63: ='WK4 - PGI summary'!C59 -> plus | C63: ='WK4 - PGI summary'!D59 -> rate peg increase | I63: ='WK4 - PGI summary'!G59 -> 153742.7525 | J63: ='WK4 - PGI summary'!H59 -> 146182.6443 | K63: ='WK4 - PGI summary'!I59 -> 149837.2104 | L63: ='WK4 - PGI summary'!J59 -> 153583.1407 | M63: ='WK4 - PGI summary'!K59 -> 157422.7192 | N63: ='WK4 - PGI summary'!L59 -> 161358.2871 | O63: ='WK4 - PGI summary'!M59 -> 165392.2443
B64: ='WK4 - PGI summary'!C60 -> plus | C64: ='WK4 - PGI summary'!D60 -> other 1st-year adjustments | I64: ='WK4 - PGI summary'!G60 -> -613 | J64: ='WK4 - PGI summary'!H60 -> 0 | K64: ='WK4 - PGI summary'!I60 -> 0 | L64: ='WK4 - PGI summary'!J60 -> 0 | M64: ='WK4 - PGI summary'!K60 -> 0 | N64: ='WK4 - PGI summary'!L60 -> 0 | O64: ='WK4 - PGI summary'!M60 -> 0
B65: ='WK4 - PGI summary'!C61 -> PGI if only the rate peg applied | H65: ='WK4 - PGI summary'!F61 -> 5694176.019 | I65: ='WK4 - PGI summary'!G61 -> 5847305.771 | J65: ='WK4 - PGI summary'!H61 -> 5993488.416 | K65: ='WK4 - PGI summary'!I61 -> 6143325.626 | L65: ='WK4 - PGI summary'!J61 -> 6296908.767 | M65: ='WK4 - PGI summary'!K61 -> 6454331.486 | N65: ='WK4 - PGI summary'!L61 -> 6615689.773 | O65: ='WK4 - PGI summary'!M61 -> 6781082.017 | S65: ='WK4 - PGI summary'!N61 -> 1086905.998 | T65: ='WK4 - PGI summary'!O61 -> 0.190880295
B66: check = 0 | I66: =IF(I65=".",".",I59-I60+I63+I64-I65) -> 0 | J66: =IF(J65=".",".",J59-J60+J63+J64-J65) -> 0 | K66: 0 | L66: 0 | M66: 0 | N66: 0 | O66: 0 | S66: =INDEX(H65:O65,1,$D$9+1)-H65-S65 -> 0
B67: ='WK4 - PGI summary'!C63 -> PGI if expiring SV renewed and rate peg applied
B68: ='WK4 - PGI summary'!C64 -> Prior year Notional General Income (NGI) | I68: ='WK4 - PGI summary'!G64 -> 5694176.019 | J68: ='WK4 - PGI summary'!H64 -> 5847305.771 | K68: ='WK4 - PGI summary'!I64 -> 5993488.416 | L68: ='WK4 - PGI summary'!J64 -> 6143325.626 | M68: ='WK4 - PGI summary'!K64 -> 6296908.767 | N68: ='WK4 - PGI summary'!L64 -> 6454331.486 | O68: ='WK4 - PGI summary'!M64 -> 6615689.773
B69: ='WK4 - PGI summary'!C65 -> plus | C69: ='WK4 - PGI summary'!D65 -> rate peg increase | I69: ='WK4 - PGI summary'!G65 -> 153742.7525 | J69: ='WK4 - PGI summary'!H65 -> 146182.6443 | K69: ='WK4 - PGI summary'!I65 -> 149837.2104 | L69: ='WK4 - PGI summary'!J65 -> 153583.1407 | M69: ='WK4 - PGI summary'!K65 -> 157422.7192 | N69: ='WK4 - PGI summary'!L65 -> 161358.2871 | O69: ='WK4 - PGI summary'!M65 -> 165392.2443
B70: ='WK4 - PGI summary'!C66 -> plus | C70: ='WK4 - PGI summary'!D66 -> other 1st-year adjustments | I70: ='WK4 - PGI summary'!G66 -> -613 | J70: ='WK4 - PGI summary'!H66 -> 0 | K70: ='WK4 - PGI summary'!I66 -> 0 | L70: ='WK4 - PGI summary'!J66 -> 0 | M70: ='WK4 - PGI summary'!K66 -> 0 | N70: ='WK4 - PGI summary'!L66 -> 0 | O70: ='WK4 - PGI summary'!M66 -> 0
B71: ='WK4 - PGI summary'!C67 -> PGI if expiring SV renewed and rate peg applied | H71: ='WK4 - PGI summary'!F67 -> 5694176.019 | I71: ='WK4 - PGI summary'!G67 -> 5847305.771 | J71: ='WK4 - PGI summary'!H67 -> 5993488.416 | K71: ='WK4 - PGI summary'!I67 -> 6143325.626 | L71: ='WK4 - PGI summary'!J67 -> 6296908.767 | M71: ='WK4 - PGI summary'!K67 -> 6454331.486 | N71: ='WK4 - PGI summary'!L67 -> 6615689.773 | O71: ='WK4 - PGI summary'!M67 -> 6781082.017 | S71: ='WK4 - PGI summary'!N67 -> 1086905.998 | T71: ='WK4 - PGI summary'!O67 -> 0.190880295
B72: check = 0 | I72: =IF(I71=".",".",I68+I69+I70-I71) -> 0 | J72: =IF(J71=".",".",J68+J69+J70-J71) -> 0 | K72: 0 | L72: 0 | M72: 0 | N72: 0 | O72: 0 | S72: =INDEX(H71:O71,1,$D$9+1)-H71-S71 -> 0
B76: ='WK4 - PGI summary'!$E$5 -> WORKSHEET 4
B77: ='WK4 - PGI summary'!B72 -> INCREASES IN PERMISSABLE GENERAL INCOME (PGI) OVER PROPOSED SV PERIOD (nominal)
B78: =B$41 -> Year number | E78: =E$41 -> Hist yr 3 | F78: Hist yr 2 | G78: Hist yr 1 | H78: Year 0 | I78: Year 1 | J78: Year 2 | K78: Year 3 | L78: Year 4 | M78: Year 5 | N78: Year 6 | O78: Year 7 | P78: Year 8 | Q78: Year 9 | R78: Year 10 | S78: ='WK4 - PGI summary'!N73 -> Total | T78: ='WK4 - PGI summary'!O73 -> increase
B79: =B$42 -> Financial year | E79: =E$42 -> 2015-16 | F79: 2016-17 | G79: 2017-18 | H79: 2018-19 | I79: 2019-20 | J79: 2020-21 | K79: 2021-22 | L79: 2022-23 | M79: 2023-24 | N79: 2024-25 | O79: 2025-26 | P79: 2026-27 | Q79: 2027-28 | R79: 2028-29 | S79: ='WK4 - PGI summary'!N74 -> $ nominal | T79: ='WK4 - PGI summary'!O74 -> %
B81: ='WK4 - PGI summary'!C76 -> Annual % increase in PGI
B82: ='WK4 - PGI summary'!C77 -> PGI with proposed SV | D82: ='WK4 - PGI summary'!E77 -> % | I82: ='WK4 - PGI summary'!G77 -> 0.1498923461 | J82: ='WK4 - PGI summary'!H77 -> 0.15 | K82: ='WK4 - PGI summary'!I77 -> 0.1 | L82: ='WK4 - PGI summary'!J77 -> 0.1 | M82: ='WK4 - PGI summary'!K77 -> 0.1 | N82: ='WK4 - PGI summary'!L77 -> 0.06 | O82: ='WK4 - PGI summary'!M77 -> 0.06 | T82: ='WK4 - PGI summary'!O77 -> 0.9776289438
B83: ='WK4 - PGI summary'!C78 -> PGI if only the rate peg applied | D83: ='WK4 - PGI summary'!E78 -> % | I83: ='WK4 - PGI summary'!G78 -> 0.02689234614 | J83: ='WK4 - PGI summary'!H78 -> 0.025 | K83: ='WK4 - PGI summary'!I78 -> 0.025 | L83: ='WK4 - PGI summary'!J78 -> 0.025 | M83: ='WK4 - PGI summary'!K78 -> 0.025 | N83: ='WK4 - PGI summary'!L78 -> 0.025 | O83: ='WK4 - PGI summary'!M78 -> 0.025 | T83: ='WK4 - PGI summary'!O78 -> 0.190880295
B84: ='WK4 - PGI summary'!C79 -> PGI if expiring SV renewed and rate peg applied | D84: ='WK4 - PGI summary'!E79 -> % | I84: ='WK4 - PGI summary'!G79 -> 0.02689234614 | J84: ='WK4 - PGI summary'!H79 -> 0.025 | K84: ='WK4 - PGI summary'!I79 -> 0.025 | L84: ='WK4 - PGI summary'!J79 -> 0.025 | M84: ='WK4 - PGI summary'!K79 -> 0.025 | N84: ='WK4 - PGI summary'!L79 -> 0.025 | O84: ='WK4 - PGI summary'!M79 -> 0.025 | T84: ='WK4 - PGI summary'!O79 -> 0.190880295
B86: ='WK4 - PGI summary'!C81 -> Annual and cumulative $ increase in PGI
B87: ='WK4 - PGI summary'!C82 -> PGI with proposed SV | D87: ='WK4 - PGI summary'!E82 -> $ nominal | I87: ='WK4 - PGI summary'!G82 -> 853513.4028 | J87: ='WK4 - PGI summary'!H82 -> 982153.4133 | K87: ='WK4 - PGI summary'!I82 -> 752984.2835 | L87: ='WK4 - PGI summary'!J82 -> 828282.7118 | M87: ='WK4 - PGI summary'!K82 -> 911110.983 | N87: ='WK4 - PGI summary'!L82 -> 601333.2488 | O87: ='WK4 - PGI summary'!M82 -> 637413.2437 | S87: ='WK4 - PGI summary'!N82 -> 5566791.287 | T87: ='WK4 - PGI summary'!O82 -> 0.9776289438
B88: ='WK4 - PGI summary'!C83 -> PGI if only the rate peg applied | D88: ='WK4 - PGI summary'!E83 -> $ nominal | I88: ='WK4 - PGI summary'!G83 -> 153129.7525 | J88: ='WK4 - PGI summary'!H83 -> 146182.6443 | K88: ='WK4 - PGI summary'!I83 -> 149837.2104 | L88: ='WK4 - PGI summary'!J83 -> 153583.1407 | M88: ='WK4 - PGI summary'!K83 -> 157422.7192 | N88: ='WK4 - PGI summary'!L83 -> 161358.2871 | O88: ='WK4 - PGI summary'!M83 -> 165392.2443 | S88: ='WK4 - PGI summary'!N83 -> 1086905.998 | T88: ='WK4 - PGI summary'!O83 -> 0.190880295
B89: ='WK4 - PGI summary'!C84 -> PGI if expiring SV renewed and rate peg applied | D89: ='WK4 - PGI summary'!E84 -> $ nominal | I89: ='WK4 - PGI summary'!G84 -> 153129.7525 | J89: ='WK4 - PGI summary'!H84 -> 146182.6443 | K89: ='WK4 - PGI summary'!I84 -> 149837.2104 | L89: ='WK4 - PGI summary'!J84 -> 153583.1407 | M89: ='WK4 - PGI summary'!K84 -> 157422.7192 | N89: ='WK4 - PGI summary'!L84 -> 161358.2871 | O89: ='WK4 - PGI summary'!M84 -> 165392.2443 | S89: ='WK4 - PGI summary'!N84 -> 1086905.998 | T89: ='WK4 - PGI summary'!O84 -> 0.190880295
B91: ='WK4 - PGI summary'!C86 -> Annual $ increase in PGI with proposed SV more than
B92: ='WK4 - PGI summary'!C87 -> PGI if only the rate peg applied | D92: ='WK4 - PGI summary'!E87 -> $ nominal | I92: ='WK4 - PGI summary'!G87 -> 700383.6503 | J92: ='WK4 - PGI summary'!H87 -> 835970.769 | K92: ='WK4 - PGI summary'!I87 -> 603147.0731 | L92: ='WK4 - PGI summary'!J87 -> 674699.5712 | M92: ='WK4 - PGI summary'!K87 -> 753688.2639 | N92: ='WK4 - PGI summary'!L87 -> 439974.9617 | O92: ='WK4 - PGI summary'!M87 -> 472020.9994 | S92: ='WK4 - PGI summary'!N87 -> 4479885.288 | T92: ='WK4 - PGI summary'!O87 -> 0.7867486487
B93: ='WK4 - PGI summary'!C88 -> PGI if expiring SV renewed and rate peg applied | D93: ='WK4 - PGI summary'!E88 -> $ nominal | I93: ='WK4 - PGI summary'!G88 -> 700383.6503 | J93: ='WK4 - PGI summary'!H88 -> 835970.769 | K93: ='WK4 - PGI summary'!I88 -> 603147.0731 | L93: ='WK4 - PGI summary'!J88 -> 674699.5712 | M93: ='WK4 - PGI summary'!K88 -> 753688.2639 | N93: ='WK4 - PGI summary'!L88 -> 439974.9617 | O93: ='WK4 - PGI summary'!M88 -> 472020.9994 | S93: ='WK4 - PGI summary'!N88 -> 4479885.288 | T93: ='WK4 - PGI summary'!O88 -> 0.7867486487
B95: ='WK4 - PGI summary'!C90 -> Cumulative PGI | I95: ='WK4 - PGI summary'!G90 -> 0 | J95: ='WK4 - PGI summary'!H90 -> 0 | K95: ='WK4 - PGI summary'!I90 -> 0 | L95: ='WK4 - PGI summary'!J90 -> 0 | M95: ='WK4 - PGI summary'!K90 -> 0 | N95: ='WK4 - PGI summary'!L90 -> 0 | O95: ='WK4 - PGI summary'!M90 -> 0 | S95: ='WK4 - PGI summary'!N90 -> 0 | T95: ='WK4 - PGI summary'!O90 -> 0
B96: ='WK4 - PGI summary'!C91 -> PGI with proposed SV | D96: ='WK4 - PGI summary'!E91 -> $ nominal | I96: ='WK4 - PGI summary'!G91 -> 6547689.422 | J96: ='WK4 - PGI summary'!H91 -> 14077532.26 | K96: ='WK4 - PGI summary'!I91 -> 22360359.38 | L96: ='WK4 - PGI summary'!J91 -> 31471469.21 | M96: ='WK4 - PGI summary'!K91 -> 41493690.02 | N96: ='WK4 - PGI summary'!L91 -> 52117244.08 | O96: ='WK4 - PGI summary'!M91 -> 63378211.39 | S96: ='WK4 - PGI summary'!N91 -> 63378211.39 | T96: ='WK4 - PGI summary'!O91 -> 0
B97: ='WK4 - PGI summary'!C92 -> PGI if only the rate peg applied | D97: ='WK4 - PGI summary'!E92 -> $ nominal | I97: ='WK4 - PGI summary'!G92 -> 5847305.771 | J97: ='WK4 - PGI summary'!H92 -> 11840794.19 | K97: ='WK4 - PGI summary'!I92 -> 17984119.81 | L97: ='WK4 - PGI summary'!J92 -> 24281028.58 | M97: ='WK4 - PGI summary'!K92 -> 30735360.07 | N97: ='WK4 - PGI summary'!L92 -> 37351049.84 | O97: ='WK4 - PGI summary'!M92 -> 44132131.86 | S97: ='WK4 - PGI summary'!N92 -> 44132131.86 | T97: ='WK4 - PGI summary'!O92 -> 0
B102: ='WK5a - Impact on Rates'!$F$5 -> WORKSHEET 5a
B103: IMPACT ON AVERAGE RATES
B104: =B$41 -> Year number | E104: =E$41 -> Hist yr 3 | F104: Hist yr 2 | G104: Hist yr 1 | H104: Year 0 | I104: Year 1 | J104: Year 2 | K104: Year 3 | L104: Year 4 | M104: Year 5 | N104: Year 6 | O104: Year 7 | P104: Year 8 | Q104: Year 9 | R104: Year 10
B105: =B$42 -> Financial year | E105: =E$42 -> 2015-16 | F105: 2016-17 | G105: 2017-18 | H105: 2018-19 | I105: 2019-20 | J105: 2020-21 | K105: 2021-22 | L105: 2022-23 | M105: 2023-24 | N105: 2024-25 | O105: 2025-26 | P105: 2026-27 | Q105: 2027-28 | R105: 2028-29
B107: ='WK5a - Impact on Rates'!C57 -> Average Ordinary and Special Rates - with proposed special variation
B108: ='WK5a - Impact on Rates'!C60 -> Residential | H108: ='WK5a - Impact on Rates'!E90 -> 902.1427619 | I108: ='WK5a - Impact on Rates'!F90 -> 1037.46416 | J108: ='WK5a - Impact on Rates'!G90 -> 1193.083784 | K108: ='WK5a - Impact on Rates'!H90 -> 1312.392162 | L108: ='WK5a - Impact on Rates'!I90 -> 1443.631378 | M108: ='WK5a - Impact on Rates'!J90 -> 1587.994516 | N108: ='WK5a - Impact on Rates'!K90 -> 1683.274187 | O108: ='WK5a - Impact on Rates'!L90 -> 1784.270638
B109: ='WK5a - Impact on Rates'!C91 -> Business | H109: ='WK5a - Impact on Rates'!E136 -> 902.9327705 | I109: ='WK5a - Impact on Rates'!F136 -> 1038.369711 | J109: ='WK5a - Impact on Rates'!G136 -> 1194.125168 | K109: ='WK5a - Impact on Rates'!H136 -> 1313.537685 | L109: ='WK5a - Impact on Rates'!I136 -> 1444.891453 | M109: ='WK5a - Impact on Rates'!J136 -> 1589.380599 | N109: ='WK5a - Impact on Rates'!K136 -> 1684.743435 | O109: ='WK5a - Impact on Rates'!L136 -> 1785.828041
B110: ='WK5a - Impact on Rates'!C137 -> Farmland | H110: ='WK5a - Impact on Rates'!E157 -> 2228.473824 | I110: ='WK5a - Impact on Rates'!F157 -> 2562.844423 | J110: ='WK5a - Impact on Rates'!G157 -> 2947.271086 | K110: ='WK5a - Impact on Rates'!H157 -> 3241.998195 | L110: ='WK5a - Impact on Rates'!I157 -> 3566.198014 | M110: ='WK5a - Impact on Rates'!J157 -> 3922.817816 | N110: ='WK5a - Impact on Rates'!K157 -> 4158.186884 | O110: ='WK5a - Impact on Rates'!L157 -> 4407.678098
B111: ='WK5a - Impact on Rates'!C158 -> Mining | H111: ='WK5a - Impact on Rates'!E178 ->  | I111: ='WK5a - Impact on Rates'!F178 -> . | J111: ='WK5a - Impact on Rates'!G178 -> . | K111: ='WK5a - Impact on Rates'!H178 -> . | L111: ='WK5a - Impact on Rates'!I178 -> . | M111: ='WK5a - Impact on Rates'!J178 -> . | N111: ='WK5a - Impact on Rates'!K178 -> . | O111: ='WK5a - Impact on Rates'!L178 -> .
B113: ='WK5a - Impact on Rates'!C182 -> Average Ordinary and Special Rates - without proposed special variation (assumed rate peg only)
B114: ='WK5a - Impact on Rates'!C185 -> Residential | H114: ='WK5a - Impact on Rates'!E215 -> 902.1427619 | I114: ='WK5a - Impact on Rates'!F215 -> 926.5006164 | J114: ='WK5a - Impact on Rates'!G215 -> 949.6631318 | K114: ='WK5a - Impact on Rates'!H215 -> 973.4047101 | L114: ='WK5a - Impact on Rates'!I215 -> 997.7398279 | M114: ='WK5a - Impact on Rates'!J215 -> 1022.683324 | N114: ='WK5a - Impact on Rates'!K215 -> 1048.250407 | O114: ='WK5a - Impact on Rates'!L215 -> 1074.456667
B115: ='WK5a - Impact on Rates'!C216 -> Business | H115: ='WK5a - Impact on Rates'!E261 -> 902.9327705 | I115: ='WK5a - Impact on Rates'!F261 -> 927.3119553 | J115: ='WK5a - Impact on Rates'!G261 -> 950.4947542 | K115: ='WK5a - Impact on Rates'!H261 -> 974.257123 | L115: ='WK5a - Impact on Rates'!I261 -> 998.6135511 | M115: ='WK5a - Impact on Rates'!J261 -> 1023.57889 | N115: ='WK5a - Impact on Rates'!K261 -> 1049.168362 | O115: ='WK5a - Impact on Rates'!L261 -> 1075.397571
B116: ='WK5a - Impact on Rates'!C262 -> Farmland | H116: ='WK5a - Impact on Rates'!E282 -> 2228.473824 | I116: ='WK5a - Impact on Rates'!F282 -> 2288.642617 | J116: ='WK5a - Impact on Rates'!G282 -> 2345.858682 | K116: ='WK5a - Impact on Rates'!H282 -> 2404.505149 | L116: ='WK5a - Impact on Rates'!I282 -> 2464.617778 | M116: ='WK5a - Impact on Rates'!J282 -> 2526.233223 | N116: ='WK5a - Impact on Rates'!K282 -> 2589.389053 | O116: ='WK5a - Impact on Rates'!L282 -> 2654.123779
B117: ='WK5a - Impact on Rates'!C283 -> Mining | H117: ='WK5a - Impact on Rates'!E303 ->  | I117: ='WK5a - Impact on Rates'!F303 -> . | J117: ='WK5a - Impact on Rates'!G303 -> . | K117: ='WK5a - Impact on Rates'!H303 -> . | L117: ='WK5a - Impact on Rates'!I303 -> . | M117: ='WK5a - Impact on Rates'!J303 -> . | N117: ='WK5a - Impact on Rates'!K303 -> . | O117: ='WK5a - Impact on Rates'!L303 -> .
B122: ='WK6 - Expenditure Program'!$J$5 -> WORKSHEET 6
B123: ='WK6 - Expenditure Program'!J7 -> PROPOSED ADDITIONAL SPECIAL VARIATION INCOME AND EXPENDITURE | H123: ='WK6 - Expenditure Program'!G26 -> $ nominal per year
B124: =B$41 -> Year number | E124: =E$41 -> Hist yr 3 | F124: Hist yr 2 | G124: Hist yr 1 | H124: Year 0 | I124: Year 1 | J124: Year 2 | K124: Year 3 | L124: Year 4 | M124: Year 5 | N124: Year 6 | O124: Year 7 | P124: Year 8 | Q124: Year 9 | R124: Year 10 | S124: ='WK6 - Expenditure Program'!Q24 -> Sum of 10 years
B125: =B$42 -> Financial year | E125: =E$42 -> 2015-16 | F125: 2016-17 | G125: 2017-18 | H125: 2018-19 | I125: 2019-20 | J125: 2020-21 | K125: 2021-22 | L125: 2022-23 | M125: 2023-24 | N125: 2024-25 | O125: 2025-26 | P125: 2026-27 | Q125: 2027-28 | R125: 2028-29
B128: ='WK6 - Expenditure Program'!C27 -> Proposed SV income above rate peg | I128: ='WK6 - Expenditure Program'!G27 -> 700383.6503 | J128: ='WK6 - Expenditure Program'!H27 -> 1536354.419 | K128: ='WK6 - Expenditure Program'!I27 -> 2139501.492 | L128: ='WK6 - Expenditure Program'!J27 -> 2814201.064 | M128: ='WK6 - Expenditure Program'!K27 -> 3567889.327 | N128: ='WK6 - Expenditure Program'!L27 -> 4007864.289 | O128: ='WK6 - Expenditure Program'!M27 -> 4479885.288 | P128: ='WK6 - Expenditure Program'!N27 -> 4591882.421 | Q128: ='WK6 - Expenditure Program'!O27 -> 4706679.481 | R128: ='WK6 - Expenditure Program'!P27 -> 4824346.468 | S128: ='WK6 - Expenditure Program'!Q27 -> 33368987.9
B129: ='WK6 - Expenditure Program'!C30 -> Change in Operating Balance due to proposed SV | I129: ='WK6 - Expenditure Program'!G30 -> 101610.9455 | J129: ='WK6 - Expenditure Program'!H30 -> 859351.197 | K129: ='WK6 - Expenditure Program'!I30 -> 1424169.365 | L129: ='WK6 - Expenditure Program'!J30 -> 2059460.707 | M129: ='WK6 - Expenditure Program'!K30 -> 2769169.113 | N129: ='WK6 - Expenditure Program'!L30 -> 3165199.028 | O129: ='WK6 - Expenditure Program'!M30 -> 3588603.808 | P129: ='WK6 - Expenditure Program'!N30 -> 3650060.671 | Q129: ='WK6 - Expenditure Program'!O30 -> 3720116.413 | R129: ='WK6 - Expenditure Program'!P30 -> 3807210.224 | S129: ='WK6 - Expenditure Program'!Q30 -> 25144951.47
B131: ='WK6 - Expenditure Program'!C32 -> Operating expenses (including loan interest costs)
B132: ='WK6 - Expenditure Program'!C33 -> Fund existing service levels (eg, libraries) | I132: =SUM('WK6 - Expenditure Program'!G34:G48) -> 598772.7048 | J132: =SUM('WK6 - Expenditure Program'!H34:H48) -> 677003.2223 | K132: =SUM('WK6 - Expenditure Program'!I34:I48) -> 715332.1278 | L132: =SUM('WK6 - Expenditure Program'!J34:J48) -> 754740.3569 | M132: =SUM('WK6 - Expenditure Program'!K34:K48) -> 798720.2142 | N132: =SUM('WK6 - Expenditure Program'!L34:L48) -> 842665.2608 | O132: =SUM('WK6 - Expenditure Program'!M34:M48) -> 891281.4801 | P132: =SUM('WK6 - Expenditure Program'!N34:N48) -> 941821.7501 | Q132: =SUM('WK6 - Expenditure Program'!O34:O48) -> 986563.0679 | R132: =SUM('WK6 - Expenditure Program'!P34:P48) -> 1017136.245 | S132: =SUM('WK6 - Expenditure Program'!Q34:Q48) -> 8224036.43
B133: ='WK6 - Expenditure Program'!C49 -> Fund new/enhanced service levels (eg, sustainability program) | I133: =SUM('WK6 - Expenditure Program'!G50:G64) -> 0 | J133: =SUM('WK6 - Expenditure Program'!H50:H64) -> 0 | K133: =SUM('WK6 - Expenditure Program'!I50:I64) -> 0 | L133: =SUM('WK6 - Expenditure Program'!J50:J64) -> 0 | M133: =SUM('WK6 - Expenditure Program'!K50:K64) -> 0 | N133: =SUM('WK6 - Expenditure Program'!L50:L64) -> 0 | O133: =SUM('WK6 - Expenditure Program'!M50:M64) -> 0 | P133: =SUM('WK6 - Expenditure Program'!N50:N64) -> 0 | Q133: =SUM('WK6 - Expenditure Program'!O50:O64) -> 0 | R133: =SUM('WK6 - Expenditure Program'!P50:P64) -> 0 | S133: =SUM('WK6 - Expenditure Program'!Q50:Q64) -> 0
B134: ='WK6 - Expenditure Program'!C65 -> Annual total | I134: ='WK6 - Expenditure Program'!G65 -> 598772.7048 | J134: ='WK6 - Expenditure Program'!H65 -> 677003.2223 | K134: ='WK6 - Expenditure Program'!I65 -> 715332.1278 | L134: ='WK6 - Expenditure Program'!J65 -> 754740.3569 | M134: ='WK6 - Expenditure Program'!K65 -> 798720.2142 | N134: ='WK6 - Expenditure Program'!L65 -> 842665.2608 | O134: ='WK6 - Expenditure Program'!M65 -> 891281.4801 | P134: ='WK6 - Expenditure Program'!N65 -> 941821.7501 | Q134: ='WK6 - Expenditure Program'!O65 -> 986563.0679 | R134: ='WK6 - Expenditure Program'!P65 -> 1017136.245 | S134: ='WK6 - Expenditure Program'!Q65 -> 8224036.43
B135: ='WK6 - Expenditure Program'!C66 -> Cumulative totals by year | I135: ='WK6 - Expenditure Program'!G66 -> 598772.7048 | J135: ='WK6 - Expenditure Program'!H66 -> 1275775.927 | K135: ='WK6 - Expenditure Program'!I66 -> 1991108.055 | L135: ='WK6 - Expenditure Program'!J66 -> 2745848.412 | M135: ='WK6 - Expenditure Program'!K66 -> 3544568.626 | N135: ='WK6 - Expenditure Program'!L66 -> 4387233.887 | O135: ='WK6 - Expenditure Program'!M66 -> 5278515.367 | P135: ='WK6 - Expenditure Program'!N66 -> 6220337.117 | Q135: ='WK6 - Expenditure Program'!O66 -> 7206900.185 | R135: ='WK6 - Expenditure Program'!P66 -> 8224036.43
B136: check = 0 | I136: =SUM($I132:I133)-I135 -> 0 | J136: =SUM($I132:J133)-J135 -> 0 | K136: =SUM($I132:K133)-K135 -> 0 | L136: =SUM($I132:L133)-L135 -> 0 | M136: =SUM($I132:M133)-M135 -> 0 | N136: =SUM($I132:N133)-N135 -> 0 | O136: =SUM($I132:O133)-O135 -> 0 | P136: =SUM($I132:P133)-P135 -> 0 | Q136: =SUM($I132:Q133)-Q135 -> 0 | R136: =SUM($I132:R133)-R135 -> 0 | S136: =R135-S134 -> 0
B138: ='WK6 - Expenditure Program'!C68 -> Capital expenditure
B139: ='WK6 - Expenditure Program'!C70 -> Renewals: | I139: =SUM('WK6 - Expenditure Program'!G71:G82) -> 101610.9455 | J139: =SUM('WK6 - Expenditure Program'!H71:H82) -> 859351.197 | K139: =SUM('WK6 - Expenditure Program'!I71:I82) -> 1424169.365 | L139: =SUM('WK6 - Expenditure Program'!J71:J82) -> 2059460.707 | M139: =SUM('WK6 - Expenditure Program'!K71:K82) -> 2769169.113 | N139: =SUM('WK6 - Expenditure Program'!L71:L82) -> 3165199.028 | O139: =SUM('WK6 - Expenditure Program'!M71:M82) -> 3588603.808 | P139: =SUM('WK6 - Expenditure Program'!N71:N82) -> 3650060.671 | Q139: =SUM('WK6 - Expenditure Program'!O71:O82) -> 3720116.413 | R139: =SUM('WK6 - Expenditure Program'!P71:P82) -> 3807210.224 | S139: =SUM('WK6 - Expenditure Program'!Q71:Q82) -> 25144951.47
B140: ='WK6 - Expenditure Program'!C83 -> New assets | I140: =SUM('WK6 - Expenditure Program'!G84:G94) -> 0 | J140: =SUM('WK6 - Expenditure Program'!H84:H94) -> 0 | K140: =SUM('WK6 - Expenditure Program'!I84:I94) -> 0 | L140: =SUM('WK6 - Expenditure Program'!J84:J94) -> 0 | M140: =SUM('WK6 - Expenditure Program'!K84:K94) -> 0 | N140: =SUM('WK6 - Expenditure Program'!L84:L94) -> 0 | O140: =SUM('WK6 - Expenditure Program'!M84:M94) -> 0 | P140: =SUM('WK6 - Expenditure Program'!N84:N94) -> 0 | Q140: =SUM('WK6 - Expenditure Program'!O84:O94) -> 0 | R140: =SUM('WK6 - Expenditure Program'!P84:P94) -> 0 | S140: =SUM('WK6 - Expenditure Program'!Q84:Q94) -> 0
B141: ='WK6 - Expenditure Program'!C95 -> Annual total | I141: ='WK6 - Expenditure Program'!G95 -> 101610.9455 | J141: ='WK6 - Expenditure Program'!H95 -> 859351.197 | K141: ='WK6 - Expenditure Program'!I95 -> 1424169.365 | L141: ='WK6 - Expenditure Program'!J95 -> 2059460.707 | M141: ='WK6 - Expenditure Program'!K95 -> 2769169.113 | N141: ='WK6 - Expenditure Program'!L95 -> 3165199.028 | O141: ='WK6 - Expenditure Program'!M95 -> 3588603.808 | P141: ='WK6 - Expenditure Program'!N95 -> 3650060.671 | Q141: ='WK6 - Expenditure Program'!O95 -> 3720116.413 | R141: ='WK6 - Expenditure Program'!P95 -> 3807210.224 | S141: ='WK6 - Expenditure Program'!Q95 -> 25144951.47
B142: ='WK6 - Expenditure Program'!C96 -> Cumulative totals by year | I142: ='WK6 - Expenditure Program'!G96 -> 101610.9455 | J142: ='WK6 - Expenditure Program'!H96 -> 960962.1425 | K142: ='WK6 - Expenditure Program'!I96 -> 2385131.507 | L142: ='WK6 - Expenditure Program'!J96 -> 4444592.214 | M142: ='WK6 - Expenditure Program'!K96 -> 7213761.327 | N142: ='WK6 - Expenditure Program'!L96 -> 10378960.36 | O142: ='WK6 - Expenditure Program'!M96 -> 13967564.16 | P142: ='WK6 - Expenditure Program'!N96 -> 17617624.83 | Q142: ='WK6 - Expenditure Program'!O96 -> 21337741.25 | R142: ='WK6 - Expenditure Program'!P96 -> 25144951.47
B143: check = 0 | I143: =SUM($I139:I140)-I142 -> 0 | J143: =SUM($I139:J140)-J142 -> 0 | K143: =SUM($I139:K140)-K142 -> 0 | L143: =SUM($I139:L140)-L142 -> 0 | M143: =SUM($I139:M140)-M142 -> 0 | N143: =SUM($I139:N140)-N142 -> 0 | O143: =SUM($I139:O140)-O142 -> 0 | P143: =SUM($I139:P140)-P142 -> 0 | Q143: =SUM($I139:Q140)-Q142 -> 0 | R143: =SUM($I139:R140)-R142 -> 0 | S143: =R142-S141 -> 0
B145: ='WK6 - Expenditure Program'!C98 -> Other uses of proposed SV income (eg, loan principal repayments, transfers to reserves)
B146: ='WK6 - Expenditure Program'!C110 -> Annual total | I146: ='WK6 - Expenditure Program'!G110 -> 0 | J146: ='WK6 - Expenditure Program'!H110 -> 0 | K146: ='WK6 - Expenditure Program'!I110 -> 0 | L146: ='WK6 - Expenditure Program'!J110 -> 0 | M146: ='WK6 - Expenditure Program'!K110 -> 0 | N146: ='WK6 - Expenditure Program'!L110 -> 0 | O146: ='WK6 - Expenditure Program'!M110 -> 0 | P146: ='WK6 - Expenditure Program'!N110 -> 0 | Q146: ='WK6 - Expenditure Program'!O110 -> 0 | R146: ='WK6 - Expenditure Program'!P110 -> 0 | S146: ='WK6 - Expenditure Program'!Q110 -> 0
B147: ='WK6 - Expenditure Program'!C111 -> Cumulative totals by year | I147: ='WK6 - Expenditure Program'!G111 -> 0 | J147: ='WK6 - Expenditure Program'!H111 -> 0 | K147: ='WK6 - Expenditure Program'!I111 -> 0 | L147: ='WK6 - Expenditure Program'!J111 -> 0 | M147: ='WK6 - Expenditure Program'!K111 -> 0 | N147: ='WK6 - Expenditure Program'!L111 -> 0 | O147: ='WK6 - Expenditure Program'!M111 -> 0 | P147: ='WK6 - Expenditure Program'!N111 -> 0 | Q147: ='WK6 - Expenditure Program'!O111 -> 0 | R147: ='WK6 - Expenditure Program'!P111 -> 0
B148: check = 0 | S148: =R147-S146 -> 0
B150: ='WK6 - Expenditure Program'!C113 -> Total
B151: ='WK6 - Expenditure Program'!C114 -> Total use of proposed SV income | I151: ='WK6 - Expenditure Program'!G114 -> 700383.6503 | J151: ='WK6 - Expenditure Program'!H114 -> 1536354.419 | K151: ='WK6 - Expenditure Program'!I114 -> 2139501.492 | L151: ='WK6 - Expenditure Program'!J114 -> 2814201.064 | M151: ='WK6 - Expenditure Program'!K114 -> 3567889.327 | N151: ='WK6 - Expenditure Program'!L114 -> 4007864.289 | O151: ='WK6 - Expenditure Program'!M114 -> 4479885.288 | P151: ='WK6 - Expenditure Program'!N114 -> 4591882.421 | Q151: ='WK6 - Expenditure Program'!O114 -> 4706679.481 | R151: ='WK6 - Expenditure Program'!P114 -> 4824346.468 | S151: ='WK6 - Expenditure Program'!Q114 -> 33368987.9
B152: ='WK6 - Expenditure Program'!C115 -> Difference between additional SRV income and its uses | I152: ='WK6 - Expenditure Program'!G115 -> 1.164153218e-10 | J152: ='WK6 - Expenditure Program'!H115 -> 0 | K152: ='WK6 - Expenditure Program'!I115 -> 0 | L152: ='WK6 - Expenditure Program'!J115 -> 0 | M152: ='WK6 - Expenditure Program'!K115 -> 4.656612873e-10 | N152: ='WK6 - Expenditure Program'!L115 -> 0 | O152: ='WK6 - Expenditure Program'!M115 -> 0 | P152: ='WK6 - Expenditure Program'!N115 -> 0 | Q152: ='WK6 - Expenditure Program'!O115 -> 0 | R152: ='WK6 - Expenditure Program'!P115 -> 0 | S152: ='WK6 - Expenditure Program'!Q115 -> 5.820766091e-10
B153: check = 0
B154: check = 0 | I154: =I151-I146-I141-I134 -> 0 | J154: =J151-J146-J141-J134 -> 0 | K154: 0 | L154: 0 | M154: 0 | N154: 0 | O154: 0 | P154: 0 | Q154: 0 | R154: 0 | S154: =S151-S146-S141-S134 -> 0
I155: =I128-I151-I152 -> 0 | J155: =J128-J151-J152 -> 0 | K155: 0 | L155: 0 | M155: 0 | N155: 0 | O155: 0 | P155: 0 | Q155: 0 | R155: 0 | S155: 3.143213689e-09
B160: ='WK7 - Historical financials'!F5 -> WORKSHEET 7
B161: ='WK7 - Historical financials'!F7 -> HISTORICAL FINANCIAL INFORMATION | E161: ='WK7 - Historical financials'!I71 -> $'000 nominal
B162: =B$41 -> Year number | E162: =E$41 -> Hist yr 3 | F162: Hist yr 2 | G162: Hist yr 1 | H162: Year 0 | I162: Year 1 | J162: Year 2 | K162: Year 3 | L162: Year 4 | M162: Year 5 | N162: Year 6 | O162: Year 7 | P162: Year 8 | Q162: Year 9 | R162: Year 10
B163: =B$42 -> Financial year | E163: =E$42 -> 2015-16 | F163: 2016-17 | G163: 2017-18 | H163: 2018-19 | I163: 2019-20 | J163: 2020-21 | K163: 2021-22 | L163: 2022-23 | M163: 2023-24 | N163: 2024-25 | O163: 2025-26 | P163: 2026-27 | Q163: 2027-28 | R163: 2028-29
B166: ='WK7 - Historical financials'!C71 -> Cash and investments
B167: ='WK7 - Historical financials'!C72 -> Source: | C167: ='WK7 - Historical financials'!D72 -> Note 6a, 6b, 6c
B169: ='WK7 - Historical financials'!C75 -> 6a - Cash and cash equivalents
B170: ='WK7 - Historical financials'!C76 -> Cash on hand and at bank | G170: ='WK7 - Historical financials'!I76 -> 665
B171: ='WK7 - Historical financials'!C77 -> Cash-equivalent assets | G171: ='WK7 - Historical financials'!I77 -> 503
B172: ='WK7 - Historical financials'!C78 -> Total | G172: ='WK7 - Historical financials'!I78 -> 1168
B174: ='WK7 - Historical financials'!C80 -> 6b - Investments
B175: ='WK7 - Historical financials'!C81 -> Current | G175: ='WK7 - Historical financials'!I81 -> 9000
B176: ='WK7 - Historical financials'!C82 -> Non-current | G176: ='WK7 - Historical financials'!I82 -> 7761
B177: ='WK7 - Historical financials'!C83 -> Total | G177: ='WK7 - Historical financials'!I83 -> 16761
B179: ='WK7 - Historical financials'!C85 -> Total cash, cash equivalents, and investments | G179: ='WK7 - Historical financials'!I85 -> 17929
B180: check = 0 | G180: =G179-SUM(G170:G171,G175:G176) -> 0
B181: ='WK7 - Historical financials'!C87 -> 6c Restricted cash, cash equivalents, and investments
B182: ='WK7 - Historical financials'!C88 -> External restrictions | G182: ='WK7 - Historical financials'!I88 -> 9072
B183: ='WK7 - Historical financials'!C89 -> Internal restrictions | G183: ='WK7 - Historical financials'!I89 -> 8226
B184: ='WK7 - Historical financials'!C90 -> Unrestricted | G184: ='WK7 - Historical financials'!I90 -> 631
B185: ='WK7 - Historical financials'!C91 -> Total | G185: ='WK7 - Historical financials'!I91 -> 17929
G186: =G185-G179 -> 0
B188: ='WK7 - Historical financials'!C97 -> Balance sheet extract (General fund)
B189: ='WK7 - Historical financials'!C98 -> Source: | C189: ='WK7 - Historical financials'!D98 -> Notes to financial statements
B191: ='WK7 - Historical financials'!C101 -> Assets
B192: ='WK7 - Historical financials'!C102 -> Cash and cash equivalents | G192: ='WK7 - Historical financials'!I102 -> 1168
B193: ='WK7 - Historical financials'!C103 -> Receivables - current | G193: ='WK7 - Historical financials'!I103 -> 797
B194: ='WK7 - Historical financials'!C104 -> Receivables - non current | G194: ='WK7 - Historical financials'!I104 -> 53
B195: ='WK7 - Historical financials'!C105 -> Total | G195: ='WK7 - Historical financials'!I105 -> 2018
B196: check = 0 | G196: =G195-SUM(G192:G194) -> 0
B197: ='WK7 - Historical financials'!C107 -> Liabilities
B198: ='WK7 - Historical financials'!C108 -> Payables - current | G198: ='WK7 - Historical financials'!I108 -> 886
B199: ='WK7 - Historical financials'!C109 -> Payables - non current | G199: ='WK7 - Historical financials'!I109 -> 0
B200: ='WK7 - Historical financials'!C110 -> Borrowings - current | G200: ='WK7 - Historical financials'!I110 -> 144
B201: ='WK7 - Historical financials'!C111 -> Borrowings - non current | G201: ='WK7 - Historical financials'!I111 -> 1102
B202: ='WK7 - Historical financials'!C112 -> Total | G202: ='WK7 - Historical financials'!I112 -> 2132
B203: check = 0 | G203: =G202-SUM(G198:G201) -> 0
B208: ='WK8 - Long Term Financial Plan'!I5 -> WORKSHEET 8
B209: ='WK8 - Long Term Financial Plan'!I7 -> LONG TERM FINANCIAL PLAN - SV SCENARIO AND BASE CASE
B210: =B$41 -> Year number | E210: =E$41 -> Hist yr 3 | F210: Hist yr 2 | G210: Hist yr 1 | H210: Year 0 | I210: Year 1 | J210: Year 2 | K210: Year 3 | L210: Year 4 | M210: Year 5 | N210: Year 6 | O210: Year 7 | P210: Year 8 | Q210: Year 9 | R210: Year 10 | S210: ='WK8 - Long Term Financial Plan'!Q17 -> Sum of 10 years | U210: ='WK8 - Long Term Financial Plan'!S17 -> Change over 10 years | W210: check = 0
B211: =B$42 -> Financial year | E211: =E$42 -> 2015-16 | F211: 2016-17 | G211: 2017-18 | H211: 2018-19 | I211: 2019-20 | J211: 2020-21 | K211: 2021-22 | L211: 2022-23 | M211: 2023-24 | N211: 2024-25 | O211: 2025-26 | P211: 2026-27 | Q211: 2027-28 | R211: 2028-29 | U211: ='WK8 - Long Term Financial Plan'!S18 -> $ | V211: ='WK8 - Long Term Financial Plan'!T18 -> %
B213: ='WK8 - Long Term Financial Plan'!C16 -> SCENARIO 1: Proposed additional SV income and expenditure
B214: ='WK8 - Long Term Financial Plan'!C32 -> Total Income Continuing Operations | H214: ='WK8 - Long Term Financial Plan'!F32 -> 21675452.98 | I214: ='WK8 - Long Term Financial Plan'!G32 -> 22907992.85 | J214: ='WK8 - Long Term Financial Plan'!H32 -> 22488867.55 | K214: ='WK8 - Long Term Financial Plan'!I32 -> 23639910.29 | L214: ='WK8 - Long Term Financial Plan'!J32 -> 24937021.13 | M214: ='WK8 - Long Term Financial Plan'!K32 -> 26286513.4 | N214: ='WK8 - Long Term Financial Plan'!L32 -> 27412028.59 | O214: ='WK8 - Long Term Financial Plan'!M32 -> 28532807.85 | P214: ='WK8 - Long Term Financial Plan'!N32 -> 29308976.84 | Q214: ='WK8 - Long Term Financial Plan'!O32 -> 30082490.05 | R214: ='WK8 - Long Term Financial Plan'!P32 -> 30964671.71 | S214: ='WK8 - Long Term Financial Plan'!Q32 -> 266561280.3 | U214: ='WK8 - Long Term Financial Plan'!S32 -> 9289218.731 | V214: ='WK8 - Long Term Financial Plan'!T32 -> 0.4285593819 | W214: =R214-H214-U214 -> 0
B215: ='WK8 - Long Term Financial Plan'!C34 -> Income excluding capital grants and contributions | H215: ='WK8 - Long Term Financial Plan'!F34 -> 15647612.98 | I215: ='WK8 - Long Term Financial Plan'!G34 -> 16819874.45 | J215: ='WK8 - Long Term Financial Plan'!H34 -> 18166303.48 | K215: ='WK8 - Long Term Financial Plan'!I34 -> 19252507.77 | L215: ='WK8 - Long Term Financial Plan'!J34 -> 20483807.56 | M215: ='WK8 - Long Term Financial Plan'!K34 -> 21766501.64 | N215: ='WK8 - Long Term Financial Plan'!L34 -> 22801616.59 | O215: ='WK8 - Long Term Financial Plan'!M34 -> 23830187.61 | P215: ='WK8 - Long Term Financial Plan'!N34 -> 24512304.19 | Q215: ='WK8 - Long Term Financial Plan'!O34 -> 25189883.95 | R215: ='WK8 - Long Term Financial Plan'!P34 -> 25974213.49 | S215: ='WK8 - Long Term Financial Plan'!Q34 -> 218797200.7 | U215: ='WK8 - Long Term Financial Plan'!S34 -> 10326600.51 | V215: ='WK8 - Long Term Financial Plan'!T34 -> 0.6599473367 | W215: =R215-H215-U215 -> 0
B216: ='WK8 - Long Term Financial Plan'!C47 -> Total expenses continuing operations | H216: ='WK8 - Long Term Financial Plan'!F47 -> 18728936.4 | I216: ='WK8 - Long Term Financial Plan'!G47 -> 19102031.46 | J216: ='WK8 - Long Term Financial Plan'!H47 -> 19528305.96 | K216: ='WK8 - Long Term Financial Plan'!I47 -> 19950901.58 | L216: ='WK8 - Long Term Financial Plan'!J47 -> 20396924.74 | M216: ='WK8 - Long Term Financial Plan'!K47 -> 20842953.35 | N216: ='WK8 - Long Term Financial Plan'!L47 -> 21319984.16 | O216: ='WK8 - Long Term Financial Plan'!M47 -> 21810176.44 | P216: ='WK8 - Long Term Financial Plan'!N47 -> 22322558.73 | Q216: ='WK8 - Long Term Financial Plan'!O47 -> 22825632.44 | R216: ='WK8 - Long Term Financial Plan'!P47 -> 23285867.74 | S216: ='WK8 - Long Term Financial Plan'!Q47 -> 211385336.6 | U216: ='WK8 - Long Term Financial Plan'!S47 -> 4556931.343 | V216: ='WK8 - Long Term Financial Plan'!T47 -> 0.2433096705 | W216: =R216-H216-U216 -> 0
B217: ='WK8 - Long Term Financial Plan'!C51 -> Operating result from continuing operations | H217: ='WK8 - Long Term Financial Plan'!F51 -> 2946516.58 | I217: ='WK8 - Long Term Financial Plan'!G51 -> 3805961.383 | J217: ='WK8 - Long Term Financial Plan'!H51 -> 2960561.585 | K217: ='WK8 - Long Term Financial Plan'!I51 -> 3689008.707 | L217: ='WK8 - Long Term Financial Plan'!J51 -> 4540096.385 | M217: ='WK8 - Long Term Financial Plan'!K51 -> 5443560.056 | N217: ='WK8 - Long Term Financial Plan'!L51 -> 6092044.433 | O217: ='WK8 - Long Term Financial Plan'!M51 -> 6722631.408 | P217: ='WK8 - Long Term Financial Plan'!N51 -> 6986418.11 | Q217: ='WK8 - Long Term Financial Plan'!O51 -> 7256857.604 | R217: ='WK8 - Long Term Financial Plan'!P51 -> 7678803.968 | S217: ='WK8 - Long Term Financial Plan'!Q51 -> 55175943.64 | U217: ='WK8 - Long Term Financial Plan'!S51 -> 4732287.388 | V217: ='WK8 - Long Term Financial Plan'!T51 -> 1.606061686 | W217: =R217-H217-U217 -> 0
B218: ='WK8 - Long Term Financial Plan'!C52 -> Net operating result before capital grants and contributions | H218: ='WK8 - Long Term Financial Plan'!F52 -> -3081323.42 | I218: ='WK8 - Long Term Financial Plan'!G52 -> -2282157.017 | J218: ='WK8 - Long Term Financial Plan'!H52 -> -1362002.479 | K218: ='WK8 - Long Term Financial Plan'!I52 -> -698393.8182 | L218: ='WK8 - Long Term Financial Plan'!J52 -> 86882.82259 | M218: ='WK8 - Long Term Financial Plan'!K52 -> 923548.29 | N218: ='WK8 - Long Term Financial Plan'!L52 -> 1481632.432 | O218: ='WK8 - Long Term Financial Plan'!M52 -> 2020011.166 | P218: ='WK8 - Long Term Financial Plan'!N52 -> 2189745.464 | Q218: ='WK8 - Long Term Financial Plan'!O52 -> 2364251.505 | R218: ='WK8 - Long Term Financial Plan'!P52 -> 2688345.747 | S218: ='WK8 - Long Term Financial Plan'!Q52 -> 7411864.113 | U218: ='WK8 - Long Term Financial Plan'!S52 -> 5769669.167 | V218: ='WK8 - Long Term Financial Plan'!T52 -> -1.872464646 | W218: =R218-H218-U218 -> 0
B219: check = 0 | H219: =H215-H216-H218 -> 0 | I219: =I215-I216-I218 -> 0 | J219: 0 | K219: 0 | L219: 0 | M219: 0 | N219: 0 | O219: 0 | P219: 0 | Q219: 0 | R219: 0 | S219: 4.470348358e-08 | U219: =R218-H218-U218 -> 0 | V219: =R218/H218-1-V218 -> 0
B221: ='WK8 - Long Term Financial Plan'!C61 -> SCENARIO 2: Base case - no SV income or expenditure
B222: ='WK8 - Long Term Financial Plan'!C77 -> Total Income Continuing Operations | H222: ='WK8 - Long Term Financial Plan'!F77 -> 21675452.98 | I222: ='WK8 - Long Term Financial Plan'!G77 -> 20268039.51 | J222: ='WK8 - Long Term Financial Plan'!H77 -> 20774608.38 | K222: ='WK8 - Long Term Financial Plan'!I77 -> 21323986.61 | L222: ='WK8 - Long Term Financial Plan'!J77 -> 21914396.2 | M222: ='WK8 - Long Term Financial Plan'!K77 -> 22494556.8 | N222: ='WK8 - Long Term Financial Plan'!L77 -> 23144960.16 | O222: ='WK8 - Long Term Financial Plan'!M77 -> 23803658.44 | P222: ='WK8 - Long Term Financial Plan'!N77 -> 24498571.65 | Q222: ='WK8 - Long Term Financial Plan'!O77 -> 25174115.07 | R222: ='WK8 - Long Term Financial Plan'!P77 -> 25903671.85 | S222: ='WK8 - Long Term Financial Plan'!Q77 -> 229300564.7 | U222: ='WK8 - Long Term Financial Plan'!S77 -> 4228218.872 | V222: ='WK8 - Long Term Financial Plan'!T77 -> 0.1950694583 | W222: =R222-H222-U222 -> 0
B223: ='WK8 - Long Term Financial Plan'!C79 -> Income excluding capital grants and contributions | H223: ='WK8 - Long Term Financial Plan'!F79 -> 15647612.98 | I223: ='WK8 - Long Term Financial Plan'!G79 -> 15997900.91 | J223: ='WK8 - Long Term Financial Plan'!H79 -> 16461768.39 | K223: ='WK8 - Long Term Financial Plan'!I79 -> 16946454.02 | L223: ='WK8 - Long Term Financial Plan'!J79 -> 17471200.63 | M223: ='WK8 - Long Term Financial Plan'!K79 -> 17984713.29 | N223: ='WK8 - Long Term Financial Plan'!L79 -> 18544919.78 | O223: ='WK8 - Long Term Financial Plan'!M79 -> 19111617.25 | P223: ='WK8 - Long Term Financial Plan'!N79 -> 19712689.65 | Q223: ='WK8 - Long Term Financial Plan'!O79 -> 20292515.42 | R223: ='WK8 - Long Term Financial Plan'!P79 -> 20924440.21 | S223: ='WK8 - Long Term Financial Plan'!Q79 -> 183448219.6 | U223: ='WK8 - Long Term Financial Plan'!S79 -> 5276827.229 | V223: ='WK8 - Long Term Financial Plan'!T79 -> 0.3372288947 | W223: 0
B224: ='WK8 - Long Term Financial Plan'!C92 -> Total expenses continuing operations | H224: ='WK8 - Long Term Financial Plan'!F92 -> 18728936.4 | I224: ='WK8 - Long Term Financial Plan'!G92 -> 18503000.82 | J224: ='WK8 - Long Term Financial Plan'!H92 -> 18850639.93 | K224: ='WK8 - Long Term Financial Plan'!I92 -> 19234105.47 | L224: ='WK8 - Long Term Financial Plan'!J92 -> 19639943.85 | M224: ='WK8 - Long Term Financial Plan'!K92 -> 20040538.66 | N224: ='WK8 - Long Term Financial Plan'!L92 -> 20472156.22 | O224: ='WK8 - Long Term Financial Plan'!M92 -> 20911366.83 | P224: ='WK8 - Long Term Financial Plan'!N92 -> 21374145.48 | Q224: ='WK8 - Long Term Financial Plan'!O92 -> 21846445.91 | R224: ='WK8 - Long Term Financial Plan'!P92 -> 22331182.96 | S224: ='WK8 - Long Term Financial Plan'!Q92 -> 203203526.1 | U224: ='WK8 - Long Term Financial Plan'!S92 -> 3602246.561 | V224: ='WK8 - Long Term Financial Plan'!T92 -> 0.1923358852 | W224: 0
B225: ='WK8 - Long Term Financial Plan'!C96 -> Operating result from continuing operations | H225: ='WK8 - Long Term Financial Plan'!F96 -> 2946516.58 | I225: ='WK8 - Long Term Financial Plan'!G96 -> 1765038.694 | J225: ='WK8 - Long Term Financial Plan'!H96 -> 1923968.445 | K225: ='WK8 - Long Term Financial Plan'!I96 -> 2089881.144 | L225: ='WK8 - Long Term Financial Plan'!J96 -> 2274452.35 | M225: ='WK8 - Long Term Financial Plan'!K96 -> 2454018.14 | N225: ='WK8 - Long Term Financial Plan'!L96 -> 2672803.936 | O225: ='WK8 - Long Term Financial Plan'!M96 -> 2892291.606 | P225: ='WK8 - Long Term Financial Plan'!N96 -> 3124426.178 | Q225: ='WK8 - Long Term Financial Plan'!O96 -> 3327669.164 | R225: ='WK8 - Long Term Financial Plan'!P96 -> 3572488.891 | S225: ='WK8 - Long Term Financial Plan'!Q96 -> 26097038.55 | U225: ='WK8 - Long Term Financial Plan'!S96 -> 625972.3108 | V225: ='WK8 - Long Term Financial Plan'!T96 -> 0.2124448629 | W225: 0
B226: ='WK8 - Long Term Financial Plan'!C97 -> Net operating result before capital grants and contributions | H226: ='WK8 - Long Term Financial Plan'!F97 -> -3081323.42 | I226: ='WK8 - Long Term Financial Plan'!G97 -> -2505099.906 | J226: ='WK8 - Long Term Financial Plan'!H97 -> -2388871.541 | K226: ='WK8 - Long Term Financial Plan'!I97 -> -2287651.442 | L226: ='WK8 - Long Term Financial Plan'!J97 -> -2168743.225 | M226: ='WK8 - Long Term Financial Plan'!K97 -> -2055825.368 | N226: ='WK8 - Long Term Financial Plan'!L97 -> -1927236.442 | O226: ='WK8 - Long Term Financial Plan'!M97 -> -1799749.58 | P226: ='WK8 - Long Term Financial Plan'!N97 -> -1661455.831 | Q226: ='WK8 - Long Term Financial Plan'!O97 -> -1553930.486 | R226: ='WK8 - Long Term Financial Plan'!P97 -> -1406742.752 | S226: ='WK8 - Long Term Financial Plan'!Q97 -> -19755306.57 | U226: ='WK8 - Long Term Financial Plan'!S97 -> 1674580.668 | V226: ='WK8 - Long Term Financial Plan'!T97 -> -0.5434615066 | W226: 0
B227: check = 0 | H227: =H223-H224-H226 -> 0 | I227: =I223-I224-I226 -> 0 | J227: =J223-J224-J226 -> 0 | K227: =K223-K224-K226 -> 0 | L227: =L223-L224-L226 -> 0 | M227: =M223-M224-M226 -> 0 | N227: =N223-N224-N226 -> 0 | O227: =O223-O224-O226 -> 0 | P227: =P223-P224-P226 -> 0 | Q227: =Q223-Q224-Q226 -> 0 | R227: =R223-R224-R226 -> 0 | S227: =S223-S224-S226 -> 0 | U227: =R226-H226-U226 -> 0 | V227: =R226/H226-1-V226 -> 0
B229: ='WK8 - Long Term Financial Plan'!C106 -> SCENARIO 3: Hybrid case - SV expenditure but no SV income
B230: ='WK8 - Long Term Financial Plan'!C122 -> Total Income Continuing Operations | H230: ='WK8 - Long Term Financial Plan'!F122 -> 21675452.98 | I230: ='WK8 - Long Term Financial Plan'!G122 -> 20268039.51 | J230: ='WK8 - Long Term Financial Plan'!H122 -> 20774608.38 | K230: ='WK8 - Long Term Financial Plan'!I122 -> 21323986.61 | L230: ='WK8 - Long Term Financial Plan'!J122 -> 21914396.2 | M230: ='WK8 - Long Term Financial Plan'!K122 -> 22494556.8 | N230: ='WK8 - Long Term Financial Plan'!L122 -> 23144960.16 | O230: ='WK8 - Long Term Financial Plan'!M122 -> 23803658.44 | P230: ='WK8 - Long Term Financial Plan'!N122 -> 24498571.65 | Q230: ='WK8 - Long Term Financial Plan'!O122 -> 25174115.07 | R230: ='WK8 - Long Term Financial Plan'!P122 -> 25903671.85 | S230: ='WK8 - Long Term Financial Plan'!Q122 -> 229300564.7 | U230: ='WK8 - Long Term Financial Plan'!S122 -> 4228218.872 | V230: ='WK8 - Long Term Financial Plan'!T122 -> 0.1950694583 | W230: =R230-H230-U230 -> 0
B231: ='WK8 - Long Term Financial Plan'!C124 -> Income excluding capital grants and contributions | H231: ='WK8 - Long Term Financial Plan'!F124 -> 15647612.98 | I231: ='WK8 - Long Term Financial Plan'!G124 -> 15997900.91 | J231: ='WK8 - Long Term Financial Plan'!H124 -> 16461768.39 | K231: ='WK8 - Long Term Financial Plan'!I124 -> 16946454.02 | L231: ='WK8 - Long Term Financial Plan'!J124 -> 17471200.63 | M231: ='WK8 - Long Term Financial Plan'!K124 -> 17984713.29 | N231: ='WK8 - Long Term Financial Plan'!L124 -> 18544919.78 | O231: ='WK8 - Long Term Financial Plan'!M124 -> 19111617.25 | P231: ='WK8 - Long Term Financial Plan'!N124 -> 19712689.65 | Q231: ='WK8 - Long Term Financial Plan'!O124 -> 20292515.42 | R231: ='WK8 - Long Term Financial Plan'!P124 -> 20924440.21 | S231: ='WK8 - Long Term Financial Plan'!Q124 -> 183448219.6 | U231: ='WK8 - Long Term Financial Plan'!S124 -> 5276827.229 | V231: ='WK8 - Long Term Financial Plan'!T124 -> 0.3372288947 | W231: 0
B232: ='WK8 - Long Term Financial Plan'!C137 -> Total expenses continuing operations | H232: ='WK8 - Long Term Financial Plan'!F137 -> 18728936.4 | I232: ='WK8 - Long Term Financial Plan'!G137 -> 19102031.46 | J232: ='WK8 - Long Term Financial Plan'!H137 -> 19528305.96 | K232: ='WK8 - Long Term Financial Plan'!I137 -> 19950901.58 | L232: ='WK8 - Long Term Financial Plan'!J137 -> 20396924.74 | M232: ='WK8 - Long Term Financial Plan'!K137 -> 20842953.35 | N232: ='WK8 - Long Term Financial Plan'!L137 -> 21319984.16 | O232: ='WK8 - Long Term Financial Plan'!M137 -> 21810176.44 | P232: ='WK8 - Long Term Financial Plan'!N137 -> 22322558.73 | Q232: ='WK8 - Long Term Financial Plan'!O137 -> 22825632.44 | R232: ='WK8 - Long Term Financial Plan'!P137 -> 23285867.74 | S232: ='WK8 - Long Term Financial Plan'!Q137 -> 211385336.6 | U232: ='WK8 - Long Term Financial Plan'!S137 -> 4556931.343 | V232: ='WK8 - Long Term Financial Plan'!T137 -> 0.2433096705 | W232: 0
B233: ='WK8 - Long Term Financial Plan'!C141 -> Operating result from continuing operations | H233: ='WK8 - Long Term Financial Plan'!F141 -> 2946516.58 | I233: ='WK8 - Long Term Financial Plan'!G141 -> 1166008.049 | J233: ='WK8 - Long Term Financial Plan'!H141 -> 1246302.416 | K233: ='WK8 - Long Term Financial Plan'!I141 -> 1373085.025 | L233: ='WK8 - Long Term Financial Plan'!J141 -> 1517471.463 | M233: ='WK8 - Long Term Financial Plan'!K141 -> 1651603.449 | N233: ='WK8 - Long Term Financial Plan'!L141 -> 1824975.997 | O233: ='WK8 - Long Term Financial Plan'!M141 -> 1993481.997 | P233: ='WK8 - Long Term Financial Plan'!N141 -> 2176012.925 | Q233: ='WK8 - Long Term Financial Plan'!O141 -> 2348482.63 | R233: ='WK8 - Long Term Financial Plan'!P141 -> 2617804.109 | S233: ='WK8 - Long Term Financial Plan'!Q141 -> 17915228.06 | U233: ='WK8 - Long Term Financial Plan'!S141 -> -328712.4714 | V233: ='WK8 - Long Term Financial Plan'!T141 -> -0.1115596883 | W233: 0
B234: ='WK8 - Long Term Financial Plan'!C142 -> Net operating result before capital grants and contributions | H234: ='WK8 - Long Term Financial Plan'!F142 -> -3081323.42 | I234: ='WK8 - Long Term Financial Plan'!G142 -> -3104130.551 | J234: ='WK8 - Long Term Financial Plan'!H142 -> -3066537.57 | K234: ='WK8 - Long Term Financial Plan'!I142 -> -3004447.561 | L234: ='WK8 - Long Term Financial Plan'!J142 -> -2925724.111 | M234: ='WK8 - Long Term Financial Plan'!K142 -> -2858240.059 | N234: ='WK8 - Long Term Financial Plan'!L142 -> -2775064.381 | O234: ='WK8 - Long Term Financial Plan'!M142 -> -2698559.189 | P234: ='WK8 - Long Term Financial Plan'!N142 -> -2609869.085 | Q234: ='WK8 - Long Term Financial Plan'!O142 -> -2533117.02 | R234: ='WK8 - Long Term Financial Plan'!P142 -> -2361427.534 | S234: ='WK8 - Long Term Financial Plan'!Q142 -> -27937117.06 | U234: ='WK8 - Long Term Financial Plan'!S142 -> 719895.8858 | V234: ='WK8 - Long Term Financial Plan'!T142 -> -0.233632043 | W234: 0
B235: check = 0 | H235: =H231-H232-H234 -> 0 | I235: =I231-I232-I234 -> 0 | J235: =J231-J232-J234 -> 0 | K235: =K231-K232-K234 -> 0 | L235: =L231-L232-L234 -> 0 | M235: =M231-M232-M234 -> 0 | N235: =N231-N232-N234 -> 0 | O235: =O231-O232-O234 -> 0 | P235: =P231-P232-P234 -> 0 | Q235: =Q231-Q232-Q234 -> 0 | R235: =R231-R232-R234 -> 0 | S235: =S231-S232-S234 -> -4.842877388e-08 | U235: =R234-H234-U234 -> 0 | V235: =R234/H234-1-V234 -> 0
B237: ='WK8 - Long Term Financial Plan'!C151 -> Difference between Scenario 1 (with proposed SV income and expenditure) and Scenario 2 (base case - no SV income or expenditure)
B238: ='WK8 - Long Term Financial Plan'!C167 -> Total Income Continuing Operations | H238: ='WK8 - Long Term Financial Plan'!F167 -> 0 | I238: ='WK8 - Long Term Financial Plan'!G167 -> 2639953.334 | J238: ='WK8 - Long Term Financial Plan'!H167 -> 1714259.169 | K238: ='WK8 - Long Term Financial Plan'!I167 -> 2315923.682 | L238: ='WK8 - Long Term Financial Plan'!J167 -> 3022624.922 | M238: ='WK8 - Long Term Financial Plan'!K167 -> 3791956.607 | N238: ='WK8 - Long Term Financial Plan'!L167 -> 4267068.436 | O238: ='WK8 - Long Term Financial Plan'!M167 -> 4729149.411 | P238: ='WK8 - Long Term Financial Plan'!N167 -> 4810405.185 | Q238: ='WK8 - Long Term Financial Plan'!O167 -> 4908374.974 | R238: ='WK8 - Long Term Financial Plan'!P167 -> 5060999.86 | S238: ='WK8 - Long Term Financial Plan'!Q167 -> 37260715.58
B239: ='WK8 - Long Term Financial Plan'!C169 -> Income excluding capital grants and contributions | H239: ='WK8 - Long Term Financial Plan'!F169 -> 0 | I239: ='WK8 - Long Term Financial Plan'!G169 -> 821973.5341 | J239: ='WK8 - Long Term Financial Plan'!H169 -> 1704535.091 | K239: ='WK8 - Long Term Financial Plan'!I169 -> 2306053.743 | L239: ='WK8 - Long Term Financial Plan'!J169 -> 3012606.934 | M239: ='WK8 - Long Term Financial Plan'!K169 -> 3781788.349 | N239: ='WK8 - Long Term Financial Plan'!L169 -> 4256696.813 | O239: ='WK8 - Long Term Financial Plan'!M169 -> 4718570.356 | P239: ='WK8 - Long Term Financial Plan'!N169 -> 4799614.548 | Q239: ='WK8 - Long Term Financial Plan'!O169 -> 4897368.525 | R239: ='WK8 - Long Term Financial Plan'!P169 -> 5049773.281 | S239: ='WK8 - Long Term Financial Plan'!Q169 -> 35348981.17
B240: ='WK8 - Long Term Financial Plan'!C182 -> Total expenses continuing operations | H240: ='WK8 - Long Term Financial Plan'!F182 -> 0 | I240: ='WK8 - Long Term Financial Plan'!G182 -> 599030.6451 | J240: ='WK8 - Long Term Financial Plan'!H182 -> 677666.0291 | K240: ='WK8 - Long Term Financial Plan'!I182 -> 716796.1188 | L240: ='WK8 - Long Term Financial Plan'!J182 -> 756980.8864 | M240: ='WK8 - Long Term Financial Plan'!K182 -> 802414.6909 | N240: ='WK8 - Long Term Financial Plan'!L182 -> 847827.9389 | O240: ='WK8 - Long Term Financial Plan'!M182 -> 898809.6089 | P240: ='WK8 - Long Term Financial Plan'!N182 -> 948413.2533 | Q240: ='WK8 - Long Term Financial Plan'!O182 -> 979186.5336 | R240: ='WK8 - Long Term Financial Plan'!P182 -> 954684.7822 | S240: ='WK8 - Long Term Financial Plan'!Q182 -> 8181810.487
B241: ='WK8 - Long Term Financial Plan'!C186 -> Operating result from continuing operations | H241: ='WK8 - Long Term Financial Plan'!F186 -> 0 | I241: ='WK8 - Long Term Financial Plan'!G186 -> 2040922.689 | J241: ='WK8 - Long Term Financial Plan'!H186 -> 1036593.14 | K241: ='WK8 - Long Term Financial Plan'!I186 -> 1599127.563 | L241: ='WK8 - Long Term Financial Plan'!J186 -> 2265644.036 | M241: ='WK8 - Long Term Financial Plan'!K186 -> 2989541.916 | N241: ='WK8 - Long Term Financial Plan'!L186 -> 3419240.497 | O241: ='WK8 - Long Term Financial Plan'!M186 -> 3830339.802 | P241: ='WK8 - Long Term Financial Plan'!N186 -> 3861991.932 | Q241: ='WK8 - Long Term Financial Plan'!O186 -> 3929188.441 | R241: ='WK8 - Long Term Financial Plan'!P186 -> 4106315.077 | S241: ='WK8 - Long Term Financial Plan'!Q186 -> 29078905.09
B242: ='WK8 - Long Term Financial Plan'!C187 -> Net operating result before capital grants and contributions | H242: ='WK8 - Long Term Financial Plan'!F187 -> 0 | I242: ='WK8 - Long Term Financial Plan'!G187 -> 222942.889 | J242: ='WK8 - Long Term Financial Plan'!H187 -> 1026869.062 | K242: ='WK8 - Long Term Financial Plan'!I187 -> 1589257.624 | L242: ='WK8 - Long Term Financial Plan'!J187 -> 2255626.047 | M242: ='WK8 - Long Term Financial Plan'!K187 -> 2979373.658 | N242: ='WK8 - Long Term Financial Plan'!L187 -> 3408868.874 | O242: ='WK8 - Long Term Financial Plan'!M187 -> 3819760.747 | P242: ='WK8 - Long Term Financial Plan'!N187 -> 3851201.295 | Q242: ='WK8 - Long Term Financial Plan'!O187 -> 3918181.991 | R242: ='WK8 - Long Term Financial Plan'!P187 -> 4095088.499 | S242: ='WK8 - Long Term Financial Plan'!Q187 -> 27167170.69
B243: check = 0 | H243: =H239-H240-H242 -> 0 | I243: =I239-I240-I242 -> 0 | J243: =J239-J240-J242 -> 0 | K243: =K239-K240-K242 -> 0 | L243: =L239-L240-L242 -> 0 | M243: =M239-M240-M242 -> 0 | N243: =N239-N240-N242 -> 0 | O243: =O239-O240-O242 -> 0 | P243: =P239-P240-P242 -> 0 | Q243: =Q239-Q240-Q242 -> 0 | R243: =R239-R240-R242 -> 0 | S243: =S239-S240-S242 -> 4.470348358e-08
B244: check = 0 | H244: =H218-H226-H242 -> 0 | I244: 0 | J244: 0 | K244: 0 | L244: 0 | M244: 0 | N244: 0 | O244: 0 | P244: 0 | Q244: 0 | R244: 0 | S244: 0
B247: ='WK8 - Long Term Financial Plan'!C196 -> Key assumptions | C247: ='WK8 - Long Term Financial Plan'!D201 -> % pa
B249: ='WK8 - Long Term Financial Plan'!C200 -> Growth in labour costs
B250: ='WK8 - Long Term Financial Plan'!C201 -> Scenario 1: Proposed (with SV) | I250: ='WK8 - Long Term Financial Plan'!G201 -> 0.025 | J250: ='WK8 - Long Term Financial Plan'!H201 -> 0.0275 | K250: ='WK8 - Long Term Financial Plan'!I201 -> 0.03 | L250: ='WK8 - Long Term Financial Plan'!J201 -> 0.03 | M250: ='WK8 - Long Term Financial Plan'!K201 -> 0.03 | N250: ='WK8 - Long Term Financial Plan'!L201 -> 0.03 | O250: ='WK8 - Long Term Financial Plan'!M201 -> 0.03 | P250: ='WK8 - Long Term Financial Plan'!N201 -> 0.03 | Q250: ='WK8 - Long Term Financial Plan'!O201 -> 0.03 | R250: ='WK8 - Long Term Financial Plan'!P201 -> 0.03
B251: ='WK8 - Long Term Financial Plan'!C202 -> Scenario 2 - Base case (no SV) | I251: ='WK8 - Long Term Financial Plan'!G202 -> 0.025 | J251: ='WK8 - Long Term Financial Plan'!H202 -> 0.0275 | K251: ='WK8 - Long Term Financial Plan'!I202 -> 0.03 | L251: ='WK8 - Long Term Financial Plan'!J202 -> 0.03 | M251: ='WK8 - Long Term Financial Plan'!K202 -> 0.03 | N251: ='WK8 - Long Term Financial Plan'!L202 -> 0.03 | O251: ='WK8 - Long Term Financial Plan'!M202 -> 0.03 | P251: ='WK8 - Long Term Financial Plan'!N202 -> 0.03 | Q251: ='WK8 - Long Term Financial Plan'!O202 -> 0.03 | R251: ='WK8 - Long Term Financial Plan'!P202 -> 0.03
B252: ='WK8 - Long Term Financial Plan'!C203 -> Growth in employee numbers
B253: ='WK8 - Long Term Financial Plan'!C204 -> Scenario 1: Proposed (with SV) | I253: ='WK8 - Long Term Financial Plan'!G204 -> 0 | J253: ='WK8 - Long Term Financial Plan'!H204 -> 0 | K253: ='WK8 - Long Term Financial Plan'!I204 -> 0 | L253: ='WK8 - Long Term Financial Plan'!J204 -> 0 | M253: ='WK8 - Long Term Financial Plan'!K204 -> 0 | N253: ='WK8 - Long Term Financial Plan'!L204 -> 0 | O253: ='WK8 - Long Term Financial Plan'!M204 -> 0 | P253: ='WK8 - Long Term Financial Plan'!N204 -> 0 | Q253: ='WK8 - Long Term Financial Plan'!O204 -> 0 | R253: ='WK8 - Long Term Financial Plan'!P204 -> 0
B254: ='WK8 - Long Term Financial Plan'!C205 -> Scenario 2 - Base case (no SV) | I254: ='WK8 - Long Term Financial Plan'!G205 -> 0 | J254: ='WK8 - Long Term Financial Plan'!H205 -> 0 | K254: ='WK8 - Long Term Financial Plan'!I205 -> 0 | L254: ='WK8 - Long Term Financial Plan'!J205 -> 0 | M254: ='WK8 - Long Term Financial Plan'!K205 -> 0 | N254: ='WK8 - Long Term Financial Plan'!L205 -> 0 | O254: ='WK8 - Long Term Financial Plan'!M205 -> 0 | P254: ='WK8 - Long Term Financial Plan'!N205 -> 0 | Q254: ='WK8 - Long Term Financial Plan'!O205 -> 0 | R254: ='WK8 - Long Term Financial Plan'!P205 -> 0
B255: ='WK8 - Long Term Financial Plan'!C206 -> Growth in assessment numbers
B256: ='WK8 - Long Term Financial Plan'!C207 -> Scenario 1: Proposed (with SV) | I256: ='WK8 - Long Term Financial Plan'!G207 -> 0.002275336388 | J256: ='WK8 - Long Term Financial Plan'!H207 -> 0.002275336388 | K256: ='WK8 - Long Term Financial Plan'!I207 -> 0.002249741533 | L256: ='WK8 - Long Term Financial Plan'!J207 -> 0.002249741533 | M256: ='WK8 - Long Term Financial Plan'!K207 -> 0.002249741533 | N256: ='WK8 - Long Term Financial Plan'!L207 -> 0.002249741533 | O256: ='WK8 - Long Term Financial Plan'!M207 -> 0.002249741533 | P256: ='WK8 - Long Term Financial Plan'!N207 -> 0.001114829971 | Q256: ='WK8 - Long Term Financial Plan'!O207 -> 0.001114829971 | R256: ='WK8 - Long Term Financial Plan'!P207 -> 0.001114829971
B257: ='WK8 - Long Term Financial Plan'!C208 -> Scenario 2 - Base case (no SV) | I257: ='WK8 - Long Term Financial Plan'!G208 -> 0 | J257: ='WK8 - Long Term Financial Plan'!H208 -> 0 | K257: ='WK8 - Long Term Financial Plan'!I208 -> 0 | L257: ='WK8 - Long Term Financial Plan'!J208 -> 0 | M257: ='WK8 - Long Term Financial Plan'!K208 -> 0 | N257: ='WK8 - Long Term Financial Plan'!L208 -> 0 | O257: ='WK8 - Long Term Financial Plan'!M208 -> 0 | P257: ='WK8 - Long Term Financial Plan'!N208 -> 0 | Q257: ='WK8 - Long Term Financial Plan'!O208 -> 0 | R257: ='WK8 - Long Term Financial Plan'!P208 -> 0
B258: ='WK8 - Long Term Financial Plan'!C209 -> Inflation rate applied to Materials & Contracts
B259: ='WK8 - Long Term Financial Plan'!C210 -> Scenario 1: Proposed (with SV) | I259: ='WK8 - Long Term Financial Plan'!G210 -> 0.018 | J259: ='WK8 - Long Term Financial Plan'!H210 -> 0.02 | K259: ='WK8 - Long Term Financial Plan'!I210 -> 0.022 | L259: ='WK8 - Long Term Financial Plan'!J210 -> 0.022 | M259: ='WK8 - Long Term Financial Plan'!K210 -> 0.022 | N259: ='WK8 - Long Term Financial Plan'!L210 -> 0.022 | O259: ='WK8 - Long Term Financial Plan'!M210 -> 0.022 | P259: ='WK8 - Long Term Financial Plan'!N210 -> 0.022 | Q259: ='WK8 - Long Term Financial Plan'!O210 -> 0.022 | R259: ='WK8 - Long Term Financial Plan'!P210 -> 0.022
B260: ='WK8 - Long Term Financial Plan'!C211 -> Scenario 2 - Base case (no SV) | I260: ='WK8 - Long Term Financial Plan'!G211 -> 0.018 | J260: ='WK8 - Long Term Financial Plan'!H211 -> 0.02 | K260: ='WK8 - Long Term Financial Plan'!I211 -> 0.022 | L260: ='WK8 - Long Term Financial Plan'!J211 -> 0.022 | M260: ='WK8 - Long Term Financial Plan'!K211 -> 0.022 | N260: ='WK8 - Long Term Financial Plan'!L211 -> 0.022 | O260: ='WK8 - Long Term Financial Plan'!M211 -> 0.022 | P260: ='WK8 - Long Term Financial Plan'!N211 -> 0.022 | Q260: ='WK8 - Long Term Financial Plan'!O211 -> 0.022 | R260: ='WK8 - Long Term Financial Plan'!P211 -> 0.022
... 37 more rows

Sheet WK1 - Identification
E3: APPLICATION FOR SPECIAL VARIATION TO GENERAL INCOME | M3: ='WK0 - Input data'!$D$45 -> 2019-20
F5: WORKSHEET 1
D7: Step 1: Fill out council details
D8: Step 2: Fill out any existing variation information
D9: Step 3: Fill out crown land adjustments, catch up & excess, valuation objections
D10: Step 4: Fill out proposed special variation amounts
C11: All dollars in nominal terms
C13: Council Name: | E13: Dungog Shire Council | I13: ="If your councils' name is not in the list, please enter it in cell E"&ROW(C14) -> If your councils' name is not in the list, please enter it in cell E14
C14: Council Name if not listed:
C16: Contact Details:
C17: Name: | E17: Shaun Chandler
C18: Position: | E18: Executive Manager Corporate Service
C19: Telephone:
C20: Email:
C23: A. Existing special variations (SVs) | R23: DO NOT DELETE
C24: ="1. Does the council have any existing SV(s) that means it has an increase above the rate peg for any year from "&G57&" ("&G56&") onwards?" -> 1. Does the council have any existing SV(s) that means it has an increase above the rate peg for any year from 2019-20 (Year 1) onwards? | K24: no | R24: =IF(K24='WK0 - Input data'!B247,1,2) -> 2
C26: B. Proposed special variations (SVs)
C28: 2. Is the council applying for a one-year increase (s508(2)) or a multi-year increase (s508A)? | J28: select option | K28: s508A | R28: =IF(K28="",0,MATCH(K28,'WK0 - Input data'!B228:B229,0)) -> 2
C29: 3. For s508A applications: for how many years is the council requesting % increases as part of this application? | J29: select option | K29: 7 years | R29: =IF(K29="",0,MATCH(K29,'WK0 - Input data'!E234:E240,0)) -> 7
C30: 4. For s508A & s508(2) applications: is the special variation permanent or temporary? | J30: select option | K30: Permanent
C31: If temporary, enter the number of years before the special variation is due to expire. | J31: enter years | R31: =IF(R28+R29=0,0,IF(R28=1,1,R29)) -> 7
C32: =CHOOSE($R$24,"5. Enter the percentage above the existing full SV (ie, incl rate peg) the council is applying for in the first year ","5. Enter the percentage above the rate peg the council is applying for in the first year") -> 5. Enter the percentage above the rate peg the council is applying for in the first year | J32: enter % | K32: 0.123
C34: C. Expiring special variations (SVs)
C35: 6. Does the council have an expiring variation? If yes, please specify when. | I35: 1st Expiring SV | J35: select option | K35: na
I36: 2nd Expiring SV | J36: select option | K36: na
C38: 7. If the council has an expiring variation, enter the % of the original approval in full | H38: Full SV % | I38: =I35 -> 1st Expiring SV | J38: =J32 -> enter %
C39: (i.e. including rate peg) as well as the % which is due to expire (i.e. excluding | H39: (ie, incl rate peg) | I39: =I36 -> 2nd Expiring SV | J39: =J32 -> enter %
C40: the rate peg). | H40: Expiring % | I40: =I38 -> 1st Expiring SV | J40: =J32 -> enter %
H41: (ie, excl rate peg) | I41: =I39 -> 2nd Expiring SV | J41: =J32 -> enter %
C42: ="8. If the council has an expiring variation, enter the $ amount expiring in row "&ROW(C70)&" below." -> 8. If the council has an expiring variation, enter the $ amount expiring in row 70 below.
C44: D. Crown Land adjustments, catch ups, valuation objections | K44: $ | L44: % Y 0 income
C45: 9. Enter the amount of any Crown Land adjustments required | J45: enter $ | L45: =IF('WK2 - Notional General Income'!$M$161-$F$71=0,0,K45/('WK2 - Notional General Income'!$M$161-$F$71)) -> 0
C46: 10. Enter the amount for any catch ups or excess adjustments required | J46: =J45 -> enter $ | K46: -613 | L46: =IF('WK2 - Notional General Income'!$M$161-$F$71=0,0,K46/('WK2 - Notional General Income'!$M$161-$F$71)) -> -0.0001076538551
C47: 11. Enter any valuation objections required (input as a positive whole number) | J47: =J46 -> enter $ | L47: =IF('WK2 - Notional General Income'!$M$161-$F$71=0,0,K47/('WK2 - Notional General Income'!$M$161-$F$71)) -> 0
C50: E. Requested annual percentage increases and expiring SV amounts
C51: A special variation is the total % increase permitted in a council's general income, Including the rate peg and Crown land adjustments, before adjustments are made for
C52: catch ups/excesses and valuation objections.
C53: Note: Approved SV% increases do not change if the actual rate peg turns out to be different from that assumed for a particular year.
C55: Table 1 | D55: Requested annual percentage increases and expiring SV amounts
F56: ='WK0 - Input data'!F$55 -> Year 0 | G56: ='WK0 - Input data'!G$55 -> Year 1 | H56: ='WK0 - Input data'!H$55 -> Year 2 | I56: ='WK0 - Input data'!I$55 -> Year 3 | J56: ='WK0 - Input data'!J$55 -> Year 4 | K56: ='WK0 - Input data'!K$55 -> Year 5 | L56: ='WK0 - Input data'!L$55 -> Year 6 | M56: ='WK0 - Input data'!M$55 -> Year 7
C57: ='WK0 - Input data'!B$58 -> Financial year | F57: ='WK0 - Input data'!F$58 -> 2018-19 | G57: ='WK0 - Input data'!G$58 -> 2019-20 | H57: ='WK0 - Input data'!H$58 -> 2020-21 | I57: ='WK0 - Input data'!I$58 -> 2021-22 | J57: ='WK0 - Input data'!J$58 -> 2022-23 | K57: ='WK0 - Input data'!K$58 -> 2023-24 | L57: ='WK0 - Input data'!L$58 -> 2024-25 | M57: ='WK0 - Input data'!M$58 -> 2025-26
C58: 1= included in SV period | F58: =IF(VALUE(RIGHT(F56,1))>$R$31,0,1) -> 1 | G58: 1 | H58: 1 | I58: 1 | J58: 1 | K58: 1 | L58: 1 | M58: 1
C59: Annual % increases
C60: =CHOOSE($R$24," Enter existing full SV (ie, incl the rate peg) in the years in which it applies","na - leave blank") -> na - leave blank
C61: =CHOOSE($R$24," Existing full SV followed by rate peg only","Rate peg only") -> Rate peg only | G61: =IF($K$24='WK0 - Input data'!$B$248,'WK0 - Input data'!G60,MAX(G60,'WK0 - Input data'!G60)) -> 0.027 | H61: =IF($K$24='WK0 - Input data'!$B$248,'WK0 - Input data'!H60,MAX(H60,'WK0 - Input data'!H60)) -> 0.025 | I61: =IF($K$24='WK0 - Input data'!$B$248,'WK0 - Input data'!I60,MAX(I60,'WK0 - Input data'!I60)) -> 0.025 | J61: =IF($K$24='WK0 - Input data'!$B$248,'WK0 - Input data'!J60,MAX(J60,'WK0 - Input data'!J60)) -> 0.025 | K61: =IF($K$24='WK0 - Input data'!$B$248,'WK0 - Input data'!K60,MAX(K60,'WK0 - Input data'!K60)) -> 0.025 | L61: =IF($K$24='WK0 - Input data'!$B$248,'WK0 - Input data'!L60,MAX(L60,'WK0 - Input data'!L60)) -> 0.025 | M61: =IF($K$24='WK0 - Input data'!$B$248,'WK0 - Input data'!M60,MAX(M60,'WK0 - Input data'!M60)) -> 0.025
C62: plus | D62: =CHOOSE($R$24,"percentage above the rate peg/existing SV","percentage above the rate peg") -> percentage above the rate peg | G62: =K32 -> 0.123 | H62: =IF(H58=0,".",MAX(0,H64-H61)) -> 0.125 | I62: =IF(I58=0,".",MAX(0,I64-I61)) -> 0.075 | J62: 0.075 | K62: 0.075 | L62: 0.035 | M62: 0.035
C63: =$C$62 -> plus | D63: Crown Land adjustment | G63: =L45 -> 0 | H63: =IF(H58=0,".",0) -> 0 | I63: =IF(I58=0,".",0) -> 0 | J63: 0 | K63: 0 | L63: 0 | M63: 0
C64: =CHOOSE($R$24," Proposed SV (total proposed and existing SV)"," Proposed SV ") -> Proposed SV | F64: na | G64: =SUM(G61:G63) -> 0.15 | H64: 0.15 | I64: 0.1 | J64: 0.1 | K64: 0.1 | L64: 0.06 | M64: 0.06
C65: Cumulative % increase
C66: =C61 -> Rate peg only | F66: na | G66: =G61 -> 0.027 | H66: =(1+G66)*(1+H61)-1 -> 0.052675 | I66: 0.078991875 | J66: 0.1059666719 | K66: 0.1336158387 | L66: 0.1619562346 | M66: 0.1910051405
C67: =CHOOSE($R$24," Percentage above the rate peg/existing SV"," Percentage above the rate peg") -> Percentage above the rate peg | G67: =IF(G62=0,".",G62) -> 0.123 | H67: =IF(H58=0,".",MAX(0,H68-H66)) -> 0.269825 | I67: =IF(I58=0,".",MAX(0,I68-I66)) -> 0.375758125 | J67: 0.4942583281 | K67: 0.6266316613 | L67: 0.7039061154 | M67: 0.7868089505
C68: =C64 -> Proposed SV | F68: na | G68: =IF(G64=0,".",G64) -> 0.15 | H68: =IF(H58=0,".",IF(H64="",(1+G68)*(1+H61)-1,(1+G68)*(1+H64)-1)) -> 0.3225 | I68: =IF(I58=0,".",IF(I64="",(1+H68)*(1+I61)-1,(1+H68)*(1+I64)-1)) -> 0.45475 | J68: 0.600225 | K68: 0.7602475 | L68: 0.86586235 | M68: 0.977814091
C70: Expiring special variations
C71: $ value of expiring special | E71: $ (nominal)
C72: variations (ESV) | E72: % value of ESV | F72: =IF(OR(F58=0,'WK4 - PGI summary'!F52=0),".",F71/'WK4 - PGI summary'!F52) -> 0 | G72: =IF(OR(G58=0,'WK4 - PGI summary'!G52=0),".",G71/'WK4 - PGI summary'!G52) -> 0 | H72: =IF(OR(H58=0,'WK4 - PGI summary'!H52=0),".",H71/'WK4 - PGI summary'!H52) -> 0 | I72: =IF(OR(I58=0,'WK4 - PGI summary'!I52=0),".",I71/'WK4 - PGI summary'!I52) -> 0 | J72: =IF(OR(J58=0,'WK4 - PGI summary'!J52=0),".",J71/'WK4 - PGI summary'!J52) -> 0 | K72: =IF(OR(K58=0,'WK4 - PGI summary'!K52=0),".",K71/'WK4 - PGI summary'!K52) -> 0 | L72: =IF(OR(L58=0,'WK4 - PGI summary'!L52=0),".",L71/'WK4 - PGI summary'!L52) -> 0 | M72: =IF(OR(M58=0,'WK4 - PGI summary'!M52=0),".",M71/'WK4 - PGI summary'!M52) -> 0

Sheet WK2 - Notional General Income
C3: =IF(ISBLANK('WK1 - Identification'!$E$13),'WK1 - Identification'!$E$14,'WK1 - Identification'!$E$13) -> Dungog Shire Council
H5: WORKSHEET 2
H7: ="CALCULATION OF NOTIONAL GENERAL INCOME "&'WK0 - Input data'!$F$58 -> CALCULATION OF NOTIONAL GENERAL INCOME 2018-19
H8: Applicable to the first year of the application
H10: All dollars in nominal terms
H11: This worksheet must reflect the rating structure levied in the previous year
E12: ="NOTE: Valuations used here are to be taken from Council's valuation list on 1 July "&'WK0 - Input data'!$F$57&" and are to include:" -> NOTE: Valuations used here are to be taken from Council's valuation list on 1 July 2018 and are to include:
E13: (i) supplementaries having the same base date and furnished to Council during that year, and
E14: (ii) estimates of increases in valuations provided to the Council under section 513.
H16: Calculation of Notional General Income - Ordinary Rates
C18: Rating Category (s514-518) | D18: Name of sub-category | E18: Number of Assessments | F18: Ad Valorem Rate (cents) | G18: Base Amount $ | H18: Base Amount % | I18: Minimum Amount $ | J18: Number on Minimum | K18: Land Value (see note above) $ | L18: Land Value of Land on Minimum | M18: Notional General Income
C19: Residential | E19: 1995 | F19: 0.2674 | G19: 339.3 | H19: =IF(G19="",".",E19*G19/M19) -> 0.3161001269 | K19: 547687980 | M19: =IF(E19="",".",IF(G19<>"",G19*E19+K19*(F19/100),(K19-L19)*(F19/100)+I19*J19)) -> 2141421.159
C20: Residential | D20: Clarence Town | E20: 341 | F20: 0.3529 | G20: 265.7 | H20: =IF(G20="",".",E20*G20/M20) -> 0.3754286667 | K20: 42711900 | M20: 241333.9951
C21: Residential | D21: Dungog | E21: 944 | F21: 0.5456 | G21: 158.3 | H21: 0.2185079303 | K21: 97957100 | M21: 683889.1376
C22: Residential | D22: Village | E22: 351 | F22: 0.2636 | G22: 265.9 | H22: 0.4464822594 | K22: 43894225 | M22: 209036.0771
C23: Residential | H23: . | M23: .
C24: Residential | H24: . | M24: .
C25: Residential | H25: . | M25: .
C26: Residential | H26: . | M26: .
C27: Residential | H27: . | M27: .
C28: Residential | H28: . | M28: .
C29: Residential | H29: . | M29: .
C30: Residential | H30: . | M30: .
C31: Residential | H31: . | M31: .
C32: Residential | H32: . | M32: .
C33: Residential | H33: . | M33: .
C34: Residential | H34: . | M34: .
C35: Residential | H35: . | M35: .
C36: Residential | H36: . | M36: .
C37: Residential | H37: . | M37: .
C38: Residential | H38: . | M38: .
D39: Total Residential | E39: =SUM(E19:E38) -> 3631 | J39: =SUM(J19:J38) -> 0 | K39: =SUM(K19:K38) -> 732251205 | L39: =SUM(L19:L38) -> 0 | M39: =SUM(M19:M38) -> 3275680.368
C40: Business | E40: 178 | F40: 0.435 | G40: 459.9 | H40: 0.4853445533 | K40: 19955406 | M40: =IF(E40="",".",IF(G40<>"",G40*E40+K40*(F40/100),(K40-L40)*(F40/100)+I40*J40)) -> 168668.2161
C41: Business | D41: Clarence Town | E41: 24 | F41: 0.423 | G41: 388.55 | H41: 0.491082812 | K41: 2284600 | M41: 18989.058
C42: Business | D42: Dungog | E42: 113 | F42: 0.5042 | G42: 382.4 | H42: 0.4101198521 | K42: 12326690 | M42: 105362.371
C43: Business | D43: Village | E43: 46 | F43: 0.3461 | G43: 339.45 | H43: 0.4740477755 | K43: 5005601 | M43: 32939.08506
C44: Business | H44: . | M44: .
C45: Business | H45: . | M45: .
C46: Business | H46: . | M46: .
C47: Business | H47: . | M47: .
C48: Business | H48: . | M48: .
C49: Business | H49: . | M49: .
C50: Business | H50: . | M50: .
C51: Business | H51: . | M51: .
C52: Business | H52: . | M52: .
C53: Business | H53: . | M53: .
C54: Business | H54: . | M54: .
C55: Business | H55: . | M55: .
C56: Business | H56: . | M56: .
C57: Business | H57: . | M57: .
C58: Business | H58: . | M58: .
C59: Business | H59: . | M59: .
C60: Business | H60: . | M60: .
C61: Business | H61: . | M61: .
C62: Business | H62: . | M62: .
C63: Business | H63: . | M63: .
C64: Business | H64: . | M64: .
D65: Total Business | E65: =SUM(E40:E64) -> 361 | J65: =SUM(J40:J64) -> 0 | K65: =SUM(K40:K64) -> 39572297 | L65: =SUM(L40:L64) -> 0 | M65: =SUM(M40:M64) -> 325958.7301
C66: Farmland | E66: 939 | F66: 0.3172 | G66: 332.8 | H66: 0.149339874 | K66: 561172043 | M66: =IF(E66="",".",IF(G66<>"",G66*E66+K66*(F66/100),(K66-L66)*(F66/100)+I66*J66)) -> 2092536.92
C67: Farmland | H67: . | M67: .
C68: Farmland | H68: . | M68: .
C69: Farmland | H69: . | M69: .
C70: Farmland | H70: . | M70: .
C71: Farmland | H71: . | M71: .
C72: Farmland | H72: . | M72: .
C73: Farmland | H73: . | M73: .
C74: Farmland | H74: . | M74: .
C75: Farmland | H75: . | M75: =IF(E75="",".",IF(G75<>"",G75*E75+K75*(F75/100),(K75-L75)*(F75/100)+I75*J75)) -> .
D76: Total Farmland | E76: =SUM(E66:E75) -> 939 | J76: =SUM(J66:J75) -> 0 | K76: =SUM(K66:K75) -> 561172043 | L76: =SUM(L66:L75) -> 0 | M76: =SUM(M66:M75) -> 2092536.92
C77: Mining | E77: 0 | F77: 0 | G77: 0 | M77: =IF(E77="",".",IF(G77<>"",G77*E77+K77*(F77/100),(K77-L77)*(F77/100)+I77*J77)) -> 0
C78: Mining | H78: . | M78: .
C79: Mining | H79: . | M79: .
C80: Mining | H80: . | M80: .
C81: Mining | H81: . | M81: .
C82: Mining | H82: . | M82: .
C83: Mining | H83: . | M83: .
C84: Mining | H84: =IF(G84="",".",E84*G84/M84) -> . | M84: .
C85: Mining | H85: . | M85: .
C86: Mining | H86: . | M86: =IF(E86="",".",IF(G86<>"",G86*E86+K86*(F86/100),(K86-L86)*(F86/100)+I86*J86)) -> .
D87: Total Mining | E87: =SUM(E77:E86) -> 0 | H87: . | J87: =SUM(J77:J86) -> 0 | K87: =SUM(K77:K86) -> 0 | L87: =SUM(L77:L86) -> 0 | M87: =SUM(M77:M86) -> 0
C88: Total Assessments: | E88: =E39+E65+E76+E87 -> 4931 | H88: Total Rateable Land Value: | K88: =K39+K65+K76+K87 -> 1332995545 | L88: Sub-Total: | M88: =M39+M65+M76+M87 -> 5694176.019
H91: Calculation of Notional General Income - Special Rates
C93: Rating Category (s514-518) | D93: Name of special rate | E93: Number of Assessments | F93: Ad Valorem Rate | G93: Base Amount $ | H93: Base Amount % | I93: Minimum Amount $ | J93: Number on Minimum | K93: Land Value (see note above) | L93: Land Value of Land on Minimum | M93: Notional Income
C94: Residential | H94: =IF(G94="",".",E94*G94/M94) -> . | M94: =IF(E94="",".",IF(G94<>"",G94*E94+K94*(F94/100),(K94-L94)*(F94/100)+I94*J94)) -> .
C95: Residential | H95: . | M95: .
C96: Residential | H96: . | M96: .
C97: Residential | H97: . | M97: .
C98: Residential | H98: . | M98: .
C99: Residential | H99: . | M99: .
C100: Residential | H100: . | M100: .
C101: Residential | H101: . | M101: .
C102: Residential | H102: . | M102: .
C103: Residential | H103: . | M103: .
C104: Business | H104: . | M104: .
C105: Business | H105: . | M105: .
C106: Business | H106: . | M106: .
C107: Business | H107: . | M107: .
C108: Business | H108: . | M108: .
C109: Business | H109: . | M109: .
C110: Business | H110: . | M110: .
C111: Business | H111: . | M111: .
C112: Business | H112: . | M112: .
C113: Business | H113: . | M113: .
C114: Business | H114: . | M114: .
C115: Business | H115: . | M115: .
C116: Business | H116: . | M116: .
C117: Business | H117: . | M117: .
C118: Business | H118: . | M118: .
C119: Business | H119: . | M119: .
C120: Business | H120: . | M120: .
C121: Business | H121: . | M121: .
C122: Business | H122: . | M122: .
C123: Business | H123: . | M123: .
C124: Farmland | H124: . | M124: .
C125: Farmland | H125: . | M125: .
C126: Farmland | H126: =IF(G126="",".",E126*G126/M126) -> . | M126: .
C127: Farmland | H127: . | M127: .
C128: Farmland | H128: . | M128: .
C129: Farmland | H129: . | M129: .
C130: Farmland | H130: . | M130: .
C131: Farmland | H131: . | M131: .
C132: Farmland | H132: . | M132: .
C133: Farmland | H133: . | M133: .
C134: Mining | H134: . | M134: .
C135: Mining | H135: . | M135: .
C136: Mining | H136: . | M136: .
C137: Mining | H137: . | M137: .
C138: Mining | H138: . | M138: .
C139: Mining | H139: . | M139: .
C140: Mining | H140: . | M140: .
C141: Mining | H141: . | M141: .
C142: Mining | H142: . | M142: .
C143: Mining | H143: . | M143: =IF(E143="",".",IF(G143<>"",G143*E143+K143*(F143/100),(K143-L143)*(F143/100)+I143*J143)) -> .
L144: Sub-Total: | M144: =SUM(M94:M143) -> 0
H147: Calculation of Notional General Income - Annual Charges
C149: Annual Charges (excluding water supply, sewerage and domestic and non-domestic waste management services) | K149: Number of Assessments | L149: Amount of Charge $ | M149: Notional Income
M150: =IF(C150="",".",K150*L150) -> .
M151: =IF(C151="",".",K151*L151) -> .
M152: .
M153: .
M154: .
M155: .
M156: .
M157: .
L158: Sub-Total: | M158: =SUM(M150:M157) -> 0
K161: Total Notional General Income: | M161: =M88+M144+M158 -> 5694176.019
C163: Note: Section 505(a) of the Act provides for those rates and charges that are to be included in general income, including certain section 501 annual charges.

Sheet WK3 - Notional GI Yr1 YIELD
C3: ='WK2 - Notional General Income'!$C$3 -> Dungog Shire Council
H5: WORKSHEET 3
H7: ="CALCULATION OF NOTIONAL GENERAL INCOME "&'WK0 - Input data'!$G$58 -> CALCULATION OF NOTIONAL GENERAL INCOME 2019-20
H9: All dollars in nominal terms
H11: This worksheet must contain the rating structure proposed for the first year of the special variation application.
H12: Note: A rating structure that does not comply with the legislation may not be approved. It is Council's responsibility to check its rating structure with OLG before submission to IPART.
H14: Calculation of Notional General Income - Ordinary Rates
C18: Rating Category (s514-518) | D18: Name of sub-category | E18: Number of Assessments | F18: Ad valorem rate (cents) | G18: Base Amount $ | H18: Base Amount % | I18: Minimum Amount $ | J18: Number on Minimum | K18: Land Value as at start of year $ | L18: Land Value of Land on Minimum $ | M18: Notional General Income
C19: Residential | E19: 1995 | F19: 0.3075 | G19: 390.2 | H19: =IF(G19="",".",E19*G19/M19) -> 0.3161099273 | K19: 547687980 | M19: =IF(E19="",".",IF(G19<>"",G19*E19+K19*(F19/100),(K19-L19)*(F19/100)+I19*J19)) -> 2462589.538
C20: Residential | D20: Clarence Town | E20: 341 | F20: 0.4058 | G20: 305.6 | H20: =IF(G20="",".",E20*G20/M20) -> 0.3754834216 | K20: 42711900 | M20: 277534.4902
C21: Residential | D21: Dungog | E21: 944 | F21: 0.6274 | G21: 182.1 | H21: 0.2185704068 | K21: 97957100 | M21: 786485.2454
C22: Residential | D22: Village | E22: 351 | F22: 0.3032 | G22: 305.8 | H22: 0.4464454721 | K22: 43894225 | M22: 240423.0902
C23: Residential | H23: . | M23: .
C24: Residential | H24: . | M24: .
C25: Residential | H25: . | M25: .
C26: Residential | H26: . | M26: .
C27: Residential | H27: . | M27: .
C28: Residential | H28: . | M28: .
C29: Residential | H29: . | M29: .
C30: Residential | H30: . | M30: .
C31: Residential | H31: . | M31: .
C32: Residential | H32: . | M32: .
C33: Residential | H33: . | M33: .
C34: Residential | H34: . | M34: .
C35: Residential | H35: . | M35: .
C36: Residential | H36: . | M36: .
C37: Residential | H37: . | M37: .
C38: Residential | H38: . | M38: .
D39: Total Residential | E39: =SUM(E19:E38) -> 3631 | J39: =SUM(J19:J38) -> 0 | K39: =SUM(K19:K38) -> 732251205 | L39: =SUM(L19:L38) -> 0 | M39: =SUM(M19:M38) -> 3767032.364
C40: Business | E40: 178 | F40: 0.5003 | G40: 528.85 | H40: 0.485303058 | K40: 19955406 | M40: =IF(E40="",".",IF(G40<>"",G40*E40+K40*(F40/100),(K40-L40)*(F40/100)+I40*J40)) -> 193972.1962
C41: Business | D41: Clarence Town | E41: 24 | F41: 0.4865 | G41: 446.85 | H41: 0.491066913 | K41: 2284600 | M41: 21838.979
C42: Business | D42: Dungog | E42: 113 | F42: 0.5798 | G42: 439.75 | H42: 0.410126868 | K42: 12326690 | M42: 121161.8986
C43: Business | D43: Village | E43: 46 | F43: 0.398 | G43: 390.35 | H43: 0.4740459946 | K43: 5005601 | M43: 37878.39198
C44: Business | H44: . | M44: .
C45: Business | H45: . | M45: .
C46: Business | H46: . | M46: .
C47: Business | H47: . | M47: .
C48: Business | H48: . | M48: .
C49: Business | H49: . | M49: .
C50: Business | H50: . | M50: .
C51: Business | H51: . | M51: .
C52: Business | H52: . | M52: .
C53: Business | H53: . | M53: .
C54: Business | H54: . | M54: .
C55: Business | H55: . | M55: .
C56: Business | H56: . | M56: .
C57: Business | H57: . | M57: .
C58: Business | H58: . | M58: .
C59: Business | H59: . | M59: .
C60: Business | H60: . | M60: .
C61: Business | H61: . | M61: .
C62: Business | H62: . | M62: .
C63: Business | H63: . | M63: .
C64: Business | H64: . | M64: .
D65: Total Business | E65: =SUM(E40:E64) -> 361 | J65: =SUM(J40:J64) -> 0 | K65: =SUM(K40:K64) -> 39572297 | L65: =SUM(L40:L64) -> 0 | M65: =SUM(M40:M64) -> 374851.4658
C66: Farmland | E66: 939 | F66: 0.3648 | G66: 382.7 | H66: =IF(G66="",".",E66*G66/M66) -> 0.1493262707 | K66: 561172043 | M66: =IF(E66="",".",IF(G66<>"",G66*E66+K66*(F66/100),(K66-L66)*(F66/100)+I66*J66)) -> 2406510.913
C67: Farmland | H67: . | M67: .
C68: Farmland | H68: . | M68: .
C69: Farmland | H69: . | M69: .
C70: Farmland | H70: . | M70: .
C71: Farmland | H71: . | M71: .
C72: Farmland | H72: . | M72: .
C73: Farmland | H73: . | M73: .
C74: Farmland | H74: . | M74: .
C75: Farmland | H75: . | M75: .
D76: Total Farmland | E76: =SUM(E66:E75) -> 939 | J76: =SUM(J66:J75) -> 0 | K76: =SUM(K66:K75) -> 561172043 | L76: =SUM(L66:L75) -> 0 | M76: =SUM(M66:M75) -> 2406510.913
C77: Mining | H77: =IF(G77="",".",E77*G77/M77) -> . | M77: =IF(E77="",".",IF(G77<>"",G77*E77+K77*(F77/100),(K77-L77)*(F77/100)+I77*J77)) -> .
C78: Mining | H78: . | M78: .
C79: Mining | H79: . | M79: .
C80: Mining | H80: . | M80: .
C81: Mining | H81: . | M81: .
C82: Mining | H82: . | M82: .
C83: Mining | H83: . | M83: .
C84: Mining | H84: . | M84: .
C85: Mining | H85: . | M85: .
C86: Mining | H86: . | M86: .
D87: Total Mining | E87: =SUM(E77:E86) -> 0 | J87: =SUM(J77:J86) -> 0 | K87: =SUM(K77:K86) -> 0 | L87: =SUM(L77:L86) -> 0 | M87: =SUM(M77:M86) -> 0
C88: Total Assessments: | E88: =E39+E65+E76+E87 -> 4931 | H88: Total Rateable Land Value: | K88: =K39+K65+K76+K87 -> 1332995545 | L88: Sub-Total: | M88: =M39+M65+M76+M87 -> 6548394.743
H91: Calculation of Notional General Income - Special Rates
C93: Rating Category (s514-518) | D93: Name of special rate | E93: Number of Assessments | F93: Ad Valorem Rate | G93: Base Amount $ | H93: Base Amount % | I93: Minimum Amount $ | J93: Number on Minimum | K93: Land Value as at start of year | L93: Land Value of Land on Minimum | M93: Notional Income
C94: Residential | H94: =IF(G94="",".",E94*G94/M94) -> . | M94: =IF(E94="",".",IF(G94<>"",G94*E94+K94*(F94/100),(K94-L94)*(F94/100)+I94*J94)) -> .
C95: Residential | H95: . | M95: .
C96: Residential | H96: . | M96: .
C97: Residential | H97: . | M97: .
C98: Residential | H98: . | M98: .
C99: Residential | H99: . | M99: .
C100: Residential | H100: . | M100: .
C101: Residential | H101: . | M101: .
C102: Residential | H102: . | M102: .
C103: Residential | H103: . | M103: .
C104: Business | H104: . | M104: .
C105: Business | H105: . | M105: .
C106: Business | H106: . | M106: .
C107: Business | H107: . | M107: .
C108: Business | H108: . | M108: .
C109: Business | H109: . | M109: .
C110: Business | H110: . | M110: .
C111: Business | H111: . | M111: .
C112: Business | H112: . | M112: .
C113: Business | H113: . | M113: .
C114: Business | H114: . | M114: .
C115: Business | H115: . | M115: .
C116: Business | H116: . | M116: .
C117: Business | H117: . | M117: .
C118: Business | H118: . | M118: .
C119: Business | H119: . | M119: .
C120: Business | H120: . | M120: .
C121: Business | H121: . | M121: .
C122: Business | H122: . | M122: .
C123: Business | H123: . | M123: .
C124: Farmland | H124: . | M124: .
C125: Farmland | H125: . | M125: .
C126: Farmland | H126: =IF(G126="",".",E126*G126/M126) -> . | M126: =IF(E126="",".",IF(G126<>"",G126*E126+K126*(F126/100),(K126-L126)*(F126/100)+I126*J126)) -> .
C127: Farmland | H127: . | M127: .
C128: Farmland | H128: . | M128: .
C129: Farmland | H129: . | M129: .
C130: Farmland | H130: . | M130: .
C131: Farmland | H131: . | M131: .
C132: Farmland | H132: . | M132: .
C133: Farmland | H133: . | M133: .
C134: Mining | H134: . | M134: .
C135: Mining | H135: . | M135: .
C136: Mining | H136: . | M136: .
C137: Mining | H137: . | M137: .
C138: Mining | H138: . | M138: .
C139: Mining | H139: . | M139: .
C140: Mining | H140: . | M140: .
C141: Mining | H141: . | M141: .
C142: Mining | H142: . | M142: .
C143: Mining | H143: . | M143: .
L144: Sub-Total: | M144: =SUM(M94:M143) -> 0
H147: Calculation of Notional General Income - Annual Charges
C149: Annual Charges (excluding water supply, sewerage and domestic and non-domestic waste management services) | K149: Number of Assessments | L149: Amount of Charge $ | M149: Notional Income
M150: =IF(C150="",".",K150*L150) -> .
M151: .
M152: .
M153: .
M154: .
M155: .
M156: .
M157: .
L158: Sub-Total: | M158: =SUM(M150:M157) -> 0
G161: Total Notional General Income | M161: =M88+M144+M158 -> 6548394.743
G163: LESS: Valuation Objection Income | M163: =-'WK1 - Identification'!K47 -> 0
G165: NET Notional General Income | M165: =M161+M163 -> 6548394.743
C168: Note: Section 505(a) of the Act provides for those rates and charges that are to be included in general income, including certain section 501 annual charges.

Sheet WK4 - PGI summary
C3: ='WK2 - Notional General Income'!$C$3 -> Dungog Shire Council
E5: WORKSHEET 4
E7: ="PERMISSIBLE GENERAL INCOME SUMMARY FOR "&'WK0 - Input data'!$D$45 -> PERMISSIBLE GENERAL INCOME SUMMARY FOR 2019-20
E8: All dollars in nominal terms
E9: Please check all income adjustments and expiring variation amounts with OLG
E10: before submitting the application. | J10: check = 0
C11: Prior year Notional General Income | H11: ='WK2 - Notional General Income'!M161 -> 5694176.019 | J11: =IF(H11=0,0,H11-G41) -> 0
C12: Less: | D12: Expiry of a prior special variation | H12: ='WK1 - Identification'!F71 -> 0 | J12: =IF(H12=0,0,H12-G42) -> 0
C14: Adjusted first year Notional General Income | G14: $ | H14: =H11-H12 -> 5694176.019
C16: Plus: | D16: =CHOOSE('WK1 - Identification'!$R$24,"Existing SV increase - first year","Rate peg increase - first year") -> Rate peg increase - first year | F16: ='WK1 - Identification'!G61 -> 0.027 | H16: =H14*F16 -> 153742.7525 | J16: =IF(H16=0,0,H16-G45) -> 0
C17: Plus: | D17: Additional increase - first year | F17: ='WK1 - Identification'!K32 -> 0.123 | H17: =H14*F17 -> 700383.6503 | J17: =IF(H17=0,0,H17-G46) -> 0
C18: Plus: | D18: Crown Land adjustment - first year | F18: =IF(H14=0,0,H18/H14) -> 0 | H18: ='WK1 - Identification'!K45 -> 0 | J18: =IF(H18=0,0,H18-G47) -> 0
D20: Total special variation - first year | F20: =(F16+F17+F18) -> 0.15 | G20: $ | H20: =H14*F20 -> 854126.4028 | J20: =IF(H20=0,0,H20-G48) -> -1.164153218e-10
C22: Other First Year Adjustments:
C23: Plus/Minus: | D23: Prior year Catch-up/(Excess) | H23: ='WK1 - Identification'!K46 -> -613
C24: Minus: | D24: Valuation Objections claimed in prior year | H24: =-'WK1 - Identification'!K47 -> 0
F27: Total Adjustments | H27: =H23+H24 -> -613 | J27: =H27-G51 -> 0
D29: First year Permissible General Income | G29: $ | H29: =H14+H20+H27 -> 6547689.422 | J29: =IF(H29=0,0,H29-G52) -> 0
B36: ="PERMISSABLE GENERAL INCOME (PGI) OVER PROPOSED SV PERIOD ("&E41&")" -> PERMISSABLE GENERAL INCOME (PGI) OVER PROPOSED SV PERIOD ($ nominal)
F37: =IF('WK1 - Identification'!F$58=0,".",'WK0 - Input data'!F$55) -> Year 0 | G37: =IF('WK1 - Identification'!G$58=0,".",'WK0 - Input data'!G$55) -> Year 1 | H37: =IF('WK1 - Identification'!H$58=0,".",'WK0 - Input data'!H$55) -> Year 2 | I37: =IF('WK1 - Identification'!I$58=0,".",'WK0 - Input data'!I$55) -> Year 3 | J37: =IF('WK1 - Identification'!J$58=0,".",'WK0 - Input data'!J$55) -> Year 4 | K37: =IF('WK1 - Identification'!K$58=0,".",'WK0 - Input data'!K$55) -> Year 5 | L37: =IF('WK1 - Identification'!L$58=0,".",'WK0 - Input data'!L$55) -> Year 6 | M37: =IF('WK1 - Identification'!M$58=0,".",'WK0 - Input data'!M$55) -> Year 7 | N37: Total | O37: increase
C38: ='WK0 - Input data'!B$58 -> Financial year | E38: units | F38: =IF('WK1 - Identification'!F$58=0,".",'WK0 - Input data'!F$58) -> 2018-19 | G38: =IF('WK1 - Identification'!G$58=0,".",'WK0 - Input data'!G$58) -> 2019-20 | H38: =IF('WK1 - Identification'!H$58=0,".",'WK0 - Input data'!H$58) -> 2020-21 | I38: =IF('WK1 - Identification'!I$58=0,".",'WK0 - Input data'!I$58) -> 2021-22 | J38: =IF('WK1 - Identification'!J$58=0,".",'WK0 - Input data'!J$58) -> 2022-23 | K38: =IF('WK1 - Identification'!K$58=0,".",'WK0 - Input data'!K$58) -> 2023-24 | L38: =IF('WK1 - Identification'!L$58=0,".",'WK0 - Input data'!L$58) -> 2024-25 | M38: =IF('WK1 - Identification'!M$58=0,".",'WK0 - Input data'!M$58) -> 2025-26 | N38: =E41 -> $ nominal | O38: %
C40: Permissible General Income (PGI) with proposed SV
C41: Prior year Notional General Income (NGI) | E41: ='WK0 - Input data'!$C$62 -> $ nominal | G41: =IF('WK1 - Identification'!G$58=0,".",F52) -> 5694176.019 | H41: =IF('WK1 - Identification'!H$58=0,".",G52) -> 6547689.422 | I41: =IF('WK1 - Identification'!I$58=0,".",H52) -> 7529842.835 | J41: =IF('WK1 - Identification'!J$58=0,".",I52) -> 8282827.118 | K41: =IF('WK1 - Identification'!K$58=0,".",J52) -> 9111109.83 | L41: =IF('WK1 - Identification'!L$58=0,".",K52) -> 10022220.81 | M41: =IF('WK1 - Identification'!M$58=0,".",L52) -> 10623554.06
C42: less | D42: expiry of a prior special variation | E42: =E41 -> $ nominal | G42: =IF(G41=".",".",'WK1 - Identification'!F71) -> 0 | H42: =IF(H41=".",".",'WK1 - Identification'!G71) -> 0 | I42: =IF(I41=".",".",'WK1 - Identification'!H71) -> 0 | J42: =IF(J41=".",".",'WK1 - Identification'!I71) -> 0 | K42: =IF(K41=".",".",'WK1 - Identification'!J71) -> 0 | L42: =IF(L41=".",".",'WK1 - Identification'!K71) -> 0 | M42: =IF(M41=".",".",'WK1 - Identification'!L71) -> 0
C43: Adjusted Notional General income | E43: =E42 -> $ nominal | G43: =IF(G41=".",".",G41-G42) -> 5694176.019 | H43: 6547689.422 | I43: 7529842.835 | J43: 8282827.118 | K43: 9111109.83 | L43: 10022220.81 | M43: 10623554.06
C45: plus | D45: =CHOOSE('WK1 - Identification'!$R$24,"existing SV/rate peg increase","rate peg increase") -> rate peg increase | E45: =$E$41 -> $ nominal | G45: =IF('WK1 - Identification'!G$58=0,".",G$43*'WK1 - Identification'!G61) -> 153742.7525 | H45: =IF('WK1 - Identification'!H$58=0,".",H$43*'WK1 - Identification'!H61) -> 163692.2355 | I45: =IF('WK1 - Identification'!I$58=0,".",I$43*'WK1 - Identification'!I61) -> 188246.0709 | J45: =IF('WK1 - Identification'!J$58=0,".",J$43*'WK1 - Identification'!J61) -> 207070.678 | K45: =IF('WK1 - Identification'!K$58=0,".",K$43*'WK1 - Identification'!K61) -> 227777.7458 | L45: =IF('WK1 - Identification'!L$58=0,".",L$43*'WK1 - Identification'!L61) -> 250555.5203 | M45: =IF('WK1 - Identification'!M$58=0,".",M$43*'WK1 - Identification'!M61) -> 265588.8516
C46: =C45 -> plus | D46: additional increase | E46: =E45 -> $ nominal | G46: =IF('WK1 - Identification'!G$58=0,".",G$43*'WK1 - Identification'!G62) -> 700383.6503 | H46: =IF('WK1 - Identification'!H$58=0,".",H$43*'WK1 - Identification'!H62) -> 818461.1777 | I46: =IF('WK1 - Identification'!I$58=0,".",I$43*'WK1 - Identification'!I62) -> 564738.2126 | J46: =IF('WK1 - Identification'!J$58=0,".",J$43*'WK1 - Identification'!J62) -> 621212.0339 | K46: =IF('WK1 - Identification'!K$58=0,".",K$43*'WK1 - Identification'!K62) -> 683333.2373 | L46: =IF('WK1 - Identification'!L$58=0,".",L$43*'WK1 - Identification'!L62) -> 350777.7285 | M46: =IF('WK1 - Identification'!M$58=0,".",M$43*'WK1 - Identification'!M62) -> 371824.3922
C47: =C46 -> plus | D47: Crown Land adjustment | E47: =E46 -> $ nominal | G47: =IF('WK1 - Identification'!G$58=0,".",G$43*'WK1 - Identification'!G63) -> 0 | H47: =IF('WK1 - Identification'!H$58=0,".",H$43*'WK1 - Identification'!H63) -> 0 | I47: =IF('WK1 - Identification'!I$58=0,".",0) -> 0 | J47: =IF('WK1 - Identification'!J$58=0,".",0) -> 0 | K47: =IF('WK1 - Identification'!K$58=0,".",0) -> 0 | L47: =IF('WK1 - Identification'!L$58=0,".",0) -> 0 | M47: =IF('WK1 - Identification'!M$58=0,".",0) -> 0
C48: Total proposed SV | E48: $ nominal | G48: =IF('WK1 - Identification'!G$58=0,".",SUM(G45:G47)) -> 854126.4028 | H48: =IF('WK1 - Identification'!H$58=0,".",SUM(H45:H47)) -> 982153.4133 | I48: =IF('WK1 - Identification'!I$58=0,".",SUM(I45:I47)) -> 752984.2835 | J48: =IF('WK1 - Identification'!J$58=0,".",SUM(J45:J47)) -> 828282.7118 | K48: =IF('WK1 - Identification'!K$58=0,".",SUM(K45:K47)) -> 911110.983 | L48: =IF('WK1 - Identification'!L$58=0,".",SUM(L45:L47)) -> 601333.2488 | M48: =IF('WK1 - Identification'!M$58=0,".",SUM(M45:M47)) -> 637413.2437
C50: Notional General Income after SV applied | E50: =$E$41 -> $ nominal | G50: =IF('WK1 - Identification'!G$58=0,".",G43+G48) -> 6548302.422 | H50: =IF('WK1 - Identification'!H$58=0,".",H43+H48) -> 7529842.835 | I50: =IF('WK1 - Identification'!I$58=0,".",I43+I48) -> 8282827.118 | J50: =IF('WK1 - Identification'!J$58=0,".",J43+J48) -> 9111109.83 | K50: =IF('WK1 - Identification'!K$58=0,".",K43+K48) -> 10022220.81 | L50: =IF('WK1 - Identification'!L$58=0,".",L43+L48) -> 10623554.06 | M50: =IF('WK1 - Identification'!M$58=0,".",M43+M48) -> 11260967.31
C51: =C45 -> plus | D51: other 1st-year adjustments | E51: =E50 -> $ nominal | G51: ='WK1 - Identification'!K46-'WK1 - Identification'!K47 -> -613 | H51: =IF(ISNUMBER(H50),0,".") -> 0 | I51: 0 | J51: 0 | K51: 0 | L51: 0 | M51: 0
C52: PGI with proposed SV | E52: =E51 -> $ nominal | F52: ='WK2 - Notional General Income'!M161 -> 5694176.019 | G52: =IF('WK1 - Identification'!G$58=0,".",G50+G51) -> 6547689.422 | H52: =IF('WK1 - Identification'!H$58=0,".",H50+H51) -> 7529842.835 | I52: =IF('WK1 - Identification'!I$58=0,".",I50+I51) -> 8282827.118 | J52: =IF('WK1 - Identification'!J$58=0,".",J50+J51) -> 9111109.83 | K52: =IF('WK1 - Identification'!K$58=0,".",K50+K51) -> 10022220.81 | L52: =IF('WK1 - Identification'!L$58=0,".",L50+L51) -> 10623554.06 | M52: =IF('WK1 - Identification'!M$58=0,".",M50+M51) -> 11260967.31 | N52: =INDEX(F52:M52,'WK1 - Identification'!$R$31+1)-F52 -> 5566791.287 | O52: =IF(F52=0,0,N52/F52) -> 0.9776289438
C54: =CHOOSE('WK1 - Identification'!$R$24,"Permissible General Income if only the existing SV/rate peg applied","Permissible General Income if only the rate peg applied") -> Permissible General Income if only the rate peg applied
C55: =C41 -> Prior year Notional General Income (NGI) | E55: =$E$41 -> $ nominal | G55: =IF('WK1 - Identification'!G$58=0,".",F61) -> 5694176.019 | H55: =IF('WK1 - Identification'!H$58=0,".",G61) -> 5847305.771 | I55: =IF('WK1 - Identification'!I$58=0,".",H61) -> 5993488.416 | J55: =IF('WK1 - Identification'!J$58=0,".",I61) -> 6143325.626 | K55: =IF('WK1 - Identification'!K$58=0,".",J61) -> 6296908.767 | L55: =IF('WK1 - Identification'!L$58=0,".",K61) -> 6454331.486 | M55: =IF('WK1 - Identification'!M$58=0,".",L61) -> 6615689.773
C56: =C42 -> less | D56: =D42 -> expiry of a prior special variation | E56: =E55 -> $ nominal | G56: =G42 -> 0 | H56: 0 | I56: 0 | J56: 0 | K56: 0 | L56: 0 | M56: 0
C57: =C43 -> Adjusted Notional General income | E57: =E56 -> $ nominal | G57: =IF('WK1 - Identification'!G$58=0,".",G55-G56) -> 5694176.019 | H57: =IF('WK1 - Identification'!H$58=0,".",H55-H56) -> 5847305.771 | I57: =IF('WK1 - Identification'!I$58=0,".",I55-I56) -> 5993488.416 | J57: =IF('WK1 - Identification'!J$58=0,".",J55-J56) -> 6143325.626 | K57: =IF('WK1 - Identification'!K$58=0,".",K55-K56) -> 6296908.767 | L57: =IF('WK1 - Identification'!L$58=0,".",L55-L56) -> 6454331.486 | M57: =IF('WK1 - Identification'!M$58=0,".",M55-M56) -> 6615689.773
C59: =C45 -> plus | D59: =D45 -> rate peg increase | E59: =$E$41 -> $ nominal | F59: =IF('WK1 - Identification'!F$58=0,".",'WK1 - Identification'!F61*F57) -> 0 | G59: =IF('WK1 - Identification'!G$58=0,".",'WK1 - Identification'!G61*G57) -> 153742.7525 | H59: =IF('WK1 - Identification'!H$58=0,".",'WK1 - Identification'!H61*H57) -> 146182.6443 | I59: =IF('WK1 - Identification'!I$58=0,".",'WK1 - Identification'!I61*I57) -> 149837.2104 | J59: =IF('WK1 - Identification'!J$58=0,".",'WK1 - Identification'!J61*J57) -> 153583.1407 | K59: =IF('WK1 - Identification'!K$58=0,".",'WK1 - Identification'!K61*K57) -> 157422.7192 | L59: =IF('WK1 - Identification'!L$58=0,".",'WK1 - Identification'!L61*L57) -> 161358.2871 | M59: =IF('WK1 - Identification'!M$58=0,".",'WK1 - Identification'!M61*M57) -> 165392.2443
C60: =C51 -> plus | D60: =D51 -> other 1st-year adjustments | E60: =E59 -> $ nominal | G60: =G51 -> -613 | H60: 0 | I60: 0 | J60: 0 | K60: 0 | L60: 0 | M60: 0
C61: =CHOOSE('WK1 - Identification'!$R$24,"PGI if only the existing SV/rate peg applied","PGI if only the rate peg applied") -> PGI if only the rate peg applied | E61: =E60 -> $ nominal | F61: =F52 -> 5694176.019 | G61: =IF('WK1 - Identification'!G$58=0,".",SUM(G57:G60)) -> 5847305.771 | H61: =IF('WK1 - Identification'!H$58=0,".",SUM(H57:H60)) -> 5993488.416 | I61: =IF('WK1 - Identification'!I$58=0,".",SUM(I57:I60)) -> 6143325.626 | J61: =IF('WK1 - Identification'!J$58=0,".",SUM(J57:J60)) -> 6296908.767 | K61: =IF('WK1 - Identification'!K$58=0,".",SUM(K57:K60)) -> 6454331.486 | L61: =IF('WK1 - Identification'!L$58=0,".",SUM(L57:L60)) -> 6615689.773 | M61: =IF('WK1 - Identification'!M$58=0,".",SUM(M57:M60)) -> 6781082.017 | N61: =INDEX(F61:M61,'WK1 - Identification'!$R$31+1)-F61 -> 1086905.998 | O61: =IF(F61=0,0,N61/F61) -> 0.190880295
C63: =CHOOSE('WK1 - Identification'!$R$24,"PGI if expiring SV renewed and existing SV/rate peg applied","PGI if expiring SV renewed and rate peg applied") -> PGI if expiring SV renewed and rate peg applied
C64: =C55 -> Prior year Notional General Income (NGI) | E64: =$E$41 -> $ nominal | G64: =IF('WK1 - Identification'!G$58=0,".",F67) -> 5694176.019 | H64: =IF('WK1 - Identification'!H$58=0,".",G67) -> 5847305.771 | I64: =IF('WK1 - Identification'!I$58=0,".",H67) -> 5993488.416 | J64: =IF('WK1 - Identification'!J$58=0,".",I67) -> 6143325.626 | K64: =IF('WK1 - Identification'!K$58=0,".",J67) -> 6296908.767 | L64: =IF('WK1 - Identification'!L$58=0,".",K67) -> 6454331.486 | M64: =IF('WK1 - Identification'!M$58=0,".",L67) -> 6615689.773
C65: =C59 -> plus | D65: =D59 -> rate peg increase | E65: =E64 -> $ nominal | G65: =IF('WK1 - Identification'!G$58=0,".",G64*'WK1 - Identification'!G61) -> 153742.7525 | H65: =IF('WK1 - Identification'!H$58=0,".",H64*'WK1 - Identification'!H61) -> 146182.6443 | I65: =IF('WK1 - Identification'!I$58=0,".",I64*'WK1 - Identification'!I61) -> 149837.2104 | J65: =IF('WK1 - Identification'!J$58=0,".",J64*'WK1 - Identification'!J61) -> 153583.1407 | K65: =IF('WK1 - Identification'!K$58=0,".",K64*'WK1 - Identification'!K61) -> 157422.7192 | L65: =IF('WK1 - Identification'!L$58=0,".",L64*'WK1 - Identification'!L61) -> 161358.2871 | M65: =IF('WK1 - Identification'!M$58=0,".",M64*'WK1 - Identification'!M61) -> 165392.2443
C66: =C60 -> plus | D66: =D60 -> other 1st-year adjustments | E66: =E65 -> $ nominal | G66: =G51 -> -613 | H66: 0 | I66: 0 | J66: 0 | K66: 0 | L66: 0 | M66: 0
C67: =C63 -> PGI if expiring SV renewed and rate peg applied | E67: $ nominal | F67: =F52 -> 5694176.019 | G67: =IF('WK1 - Identification'!G$58=0,".",SUM(G64:G66)) -> 5847305.771 | H67: =IF('WK1 - Identification'!H$58=0,".",SUM(H64:H66)) -> 5993488.416 | I67: =IF('WK1 - Identification'!I$58=0,".",SUM(I64:I66)) -> 6143325.626 | J67: =IF('WK1 - Identification'!J$58=0,".",SUM(J64:J66)) -> 6296908.767 | K67: =IF('WK1 - Identification'!K$58=0,".",SUM(K64:K66)) -> 6454331.486 | L67: =IF('WK1 - Identification'!L$58=0,".",SUM(L64:L66)) -> 6615689.773 | M67: =IF('WK1 - Identification'!M$58=0,".",SUM(M64:M66)) -> 6781082.017 | N67: =INDEX(F67:M67,'WK1 - Identification'!$R$31+1)-F67 -> 1086905.998 | O67: =IF(F67=0,0,N67/F67) -> 0.190880295
B72: INCREASES IN PERMISSABLE GENERAL INCOME (PGI) OVER PROPOSED SV PERIOD (nominal)
F73: =F$37 -> Year 0 | G73: Year 1 | H73: Year 2 | I73: Year 3 | J73: Year 4 | K73: Year 5 | L73: Year 6 | M73: Year 7 | N73: Total | O73: increase | Q73: check = 0
C74: =C$38 -> Financial year | F74: =F$38 -> 2018-19 | G74: 2019-20 | H74: 2020-21 | I74: 2021-22 | J74: 2022-23 | K74: 2023-24 | L74: 2024-25 | M74: 2025-26 | N74: =E82 -> $ nominal | O74: %
C76: Annual % increase in PGI
C77: =$C$52 -> PGI with proposed SV | E77: % | G77: =IF('WK1 - Identification'!G$58=0,".",G82/F$52) -> 0.1498923461 | H77: =IF('WK1 - Identification'!H$58=0,".",H82/G$52) -> 0.15 | I77: =IF('WK1 - Identification'!I$58=0,".",I82/H$52) -> 0.1 | J77: =IF('WK1 - Identification'!J$58=0,".",J82/I$52) -> 0.1 | K77: =IF('WK1 - Identification'!K$58=0,".",K82/J$52) -> 0.1 | L77: =IF('WK1 - Identification'!L$58=0,".",L82/K$52) -> 0.06 | M77: =IF('WK1 - Identification'!M$58=0,".",M82/L$52) -> 0.06 | O77: =O52 -> 0.9776289438
C78: =$C$61 -> PGI if only the rate peg applied | E78: =E77 -> % | G78: =IF('WK1 - Identification'!G$58=0,".",G83/F$61) -> 0.02689234614 | H78: =IF('WK1 - Identification'!H$58=0,".",H83/G61) -> 0.025 | I78: =IF('WK1 - Identification'!I$58=0,".",I83/H61) -> 0.025 | J78: =IF('WK1 - Identification'!J$58=0,".",J83/I61) -> 0.025 | K78: =IF('WK1 - Identification'!K$58=0,".",K83/J61) -> 0.025 | L78: =IF('WK1 - Identification'!L$58=0,".",L83/K61) -> 0.025 | M78: =IF('WK1 - Identification'!M$58=0,".",M83/L61) -> 0.025 | O78: =O61 -> 0.190880295
C79: =C67 -> PGI if expiring SV renewed and rate peg applied | E79: =E78 -> % | G79: =IF('WK1 - Identification'!G$58=0,".",G84/F$61) -> 0.02689234614 | H79: =IF('WK1 - Identification'!H$58=0,".",H84/G$61) -> 0.025 | I79: =IF('WK1 - Identification'!I$58=0,".",I84/H$61) -> 0.025 | J79: =IF('WK1 - Identification'!J$58=0,".",J84/I$61) -> 0.025 | K79: =IF('WK1 - Identification'!K$58=0,".",K84/J$61) -> 0.025 | L79: =IF('WK1 - Identification'!L$58=0,".",L84/K$61) -> 0.025 | M79: =IF('WK1 - Identification'!M$58=0,".",M84/L$61) -> 0.025 | O79: =O67 -> 0.190880295
C81: Annual and cumulative $ increase in PGI
C82: =C77 -> PGI with proposed SV | E82: =$E$41 -> $ nominal | G82: =IF('WK1 - Identification'!G$58=0,".",(G52-F52)) -> 853513.4028 | H82: =IF('WK1 - Identification'!H$58=0,".",(H52-G52)) -> 982153.4133 | I82: =IF('WK1 - Identification'!I$58=0,".",(I52-H52)) -> 752984.2835 | J82: =IF('WK1 - Identification'!J$58=0,".",(J52-I52)) -> 828282.7118 | K82: =IF('WK1 - Identification'!K$58=0,".",(K52-J52)) -> 911110.983 | L82: =IF('WK1 - Identification'!L$58=0,".",(L52-K52)) -> 601333.2488 | M82: =IF('WK1 - Identification'!M$58=0,".",(M52-L52)) -> 637413.2437 | N82: =SUM(G82:M82) -> 5566791.287 | O82: =IF($F$52=0,0,N82/$F$52) -> 0.9776289438 | Q82: =N82-N52 -> 0
C83: =C78 -> PGI if only the rate peg applied | E83: =E82 -> $ nominal | G83: =IF(G41=".",".",G61-F61) -> 153129.7525 | H83: 146182.6443 | I83: 149837.2104 | J83: 153583.1407 | K83: 157422.7192 | L83: 161358.2871 | M83: 165392.2443 | N83: =SUM(G83:M83) -> 1086905.998 | O83: =IF($F$52=0,0,N83/$F$52) -> 0.190880295 | Q83: =N83-N61 -> 0
C84: =C79 -> PGI if expiring SV renewed and rate peg applied | E84: =E83 -> $ nominal | G84: =IF('WK1 - Identification'!G$58=0,".",G67-F67) -> 153129.7525 | H84: =IF('WK1 - Identification'!H$58=0,".",H67-G67) -> 146182.6443 | I84: =IF('WK1 - Identification'!I$58=0,".",I67-H67) -> 149837.2104 | J84: =IF('WK1 - Identification'!J$58=0,".",J67-I67) -> 153583.1407 | K84: =IF('WK1 - Identification'!K$58=0,".",K67-J67) -> 157422.7192 | L84: =IF('WK1 - Identification'!L$58=0,".",L67-K67) -> 161358.2871 | M84: =IF('WK1 - Identification'!M$58=0,".",M67-L67) -> 165392.2443 | N84: =SUM(G84:M84) -> 1086905.998 | O84: 0.190880295 | Q84: =N84-N67 -> 0
C86: Annual $ increase in PGI with proposed SV more than
C87: =C78 -> PGI if only the rate peg applied | E87: =$E$41 -> $ nominal | G87: =IF('WK1 - Identification'!G$58=0,".",G82-G83) -> 700383.6503 | H87: =IF('WK1 - Identification'!H$58=0,".",H82-H83) -> 835970.769 | I87: =IF('WK1 - Identification'!I$58=0,".",I82-I83) -> 603147.0731 | J87: =IF('WK1 - Identification'!J$58=0,".",J82-J83) -> 674699.5712 | K87: =IF('WK1 - Identification'!K$58=0,".",K82-K83) -> 753688.2639 | L87: =IF('WK1 - Identification'!L$58=0,".",L82-L83) -> 439974.9617 | M87: =IF('WK1 - Identification'!M$58=0,".",M82-M83) -> 472020.9994 | N87: =SUM(G87:M87) -> 4479885.288 | O87: =O82-O83 -> 0.7867486487 | Q87: =IF(F61=0,0,(N52-N61)/F61-O87) -> 0
C88: =C79 -> PGI if expiring SV renewed and rate peg applied | E88: =E87 -> $ nominal | G88: =IF('WK1 - Identification'!G$58=0,".",G82-G84) -> 700383.6503 | H88: =IF('WK1 - Identification'!H$58=0,".",H82-H84) -> 835970.769 | I88: =IF('WK1 - Identification'!I$58=0,".",I82-I84) -> 603147.0731 | J88: =IF('WK1 - Identification'!J$58=0,".",J82-J84) -> 674699.5712 | K88: =IF('WK1 - Identification'!K$58=0,".",K82-K84) -> 753688.2639 | L88: =IF('WK1 - Identification'!L$58=0,".",L82-L84) -> 439974.9617 | M88: =IF('WK1 - Identification'!M$58=0,".",M82-M84) -> 472020.9994 | N88: =SUM(G88:M88) -> 4479885.288 | O88: =O82-O84 -> 0.7867486487 | Q88: =IF(F67=0,0,(N52-N67)/F67-O88) -> 0
Q89: =N83-N82+N87 -> 0
C90: Cumulative PGI | Q90: =N84-N82+N88 -> 0
C91: =$C$52 -> PGI with proposed SV | E91: =E88 -> $ nominal | G91: =IF('WK1 - Identification'!G$58=0,".",SUM($G52:G52)) -> 6547689.422 | H91: =IF('WK1 - Identification'!H$58=0,".",SUM($G52:H52)) -> 14077532.26 | I91: =IF('WK1 - Identification'!I$58=0,".",SUM($G52:I52)) -> 22360359.38 | J91: =IF('WK1 - Identification'!J$58=0,".",SUM($G52:J52)) -> 31471469.21 | K91: =IF('WK1 - Identification'!K$58=0,".",SUM($G52:K52)) -> 41493690.02 | L91: =IF('WK1 - Identification'!L$58=0,".",SUM($G52:L52)) -> 52117244.08 | M91: =IF('WK1 - Identification'!M$58=0,".",SUM($G52:M52)) -> 63378211.39 | N91: =INDEX(F91:M91,'WK1 - Identification'!$R$31+1)-F91 -> 63378211.39
C92: =$C$61 -> PGI if only the rate peg applied | E92: =E91 -> $ nominal | G92: =IF('WK1 - Identification'!G$58=0,".",SUM($G61:G61)) -> 5847305.771 | H92: =IF('WK1 - Identification'!H$58=0,".",SUM($G61:H61)) -> 11840794.19 | I92: =IF('WK1 - Identification'!I$58=0,".",SUM($G61:I61)) -> 17984119.81 | J92: =IF('WK1 - Identification'!J$58=0,".",SUM($G61:J61)) -> 24281028.58 | K92: =IF('WK1 - Identification'!K$58=0,".",SUM($G61:K61)) -> 30735360.07 | L92: =IF('WK1 - Identification'!L$58=0,".",SUM($G61:L61)) -> 37351049.84 | M92: =IF('WK1 - Identification'!M$58=0,".",SUM($G61:M61)) -> 44132131.86 | N92: =INDEX(F92:M92,'WK1 - Identification'!$R$31+1)-F92 -> 44132131.86
C93: =C84 -> PGI if expiring SV renewed and rate peg applied | E93: =E92 -> $ nominal | G93: =IF('WK1 - Identification'!G$58=0,".",SUM($G67:G67)) -> 5847305.771 | H93: =IF('WK1 - Identification'!H$58=0,".",SUM($G67:H67)) -> 11840794.19 | I93: =IF('WK1 - Identification'!I$58=0,".",SUM($G67:I67)) -> 17984119.81 | J93: =IF('WK1 - Identification'!J$58=0,".",SUM($G67:J67)) -> 24281028.58 | K93: =IF('WK1 - Identification'!K$58=0,".",SUM($G67:K67)) -> 30735360.07 | L93: =IF('WK1 - Identification'!L$58=0,".",SUM($G67:L67)) -> 37351049.84 | M93: =IF('WK1 - Identification'!M$58=0,".",SUM($G67:M67)) -> 44132131.86 | N93: =INDEX(F93:M93,'WK1 - Identification'!$R$31+1)-F93 -> 44132131.86
C95: Increase in cumulative PGI with proposed SV that exceeds the increase in the PGI under
C96: =C78 -> PGI if only the rate peg applied | E96: =$E$41 -> $ nominal | G96: =IF('WK1 - Identification'!G$58=0,".",G91-G92) -> 700383.6503 | H96: =IF('WK1 - Identification'!H$58=0,".",H91-H92) -> 2236738.07 | I96: =IF('WK1 - Identification'!I$58=0,".",I91-I92) -> 4376239.562 | J96: =IF('WK1 - Identification'!J$58=0,".",J91-J92) -> 7190440.626 | K96: =IF('WK1 - Identification'!K$58=0,".",K91-K92) -> 10758329.95 | L96: =IF('WK1 - Identification'!L$58=0,".",L91-L92) -> 14766194.24 | M96: =IF('WK1 - Identification'!M$58=0,".",M91-M92) -> 19246079.53 | N96: =INDEX(F96:M96,'WK1 - Identification'!$R$31+1)-F96 -> 19246079.53 | O96: =IF(N92=0,0,N96/N92) -> 0.4361012877 | Q96: =N91-N92-N96 -> 0
C97: =C79 -> PGI if expiring SV renewed and rate peg applied | E97: =E96 -> $ nominal | G97: =IF('WK1 - Identification'!G$58=0,".",G91-G93) -> 700383.6503 | H97: =IF('WK1 - Identification'!H$58=0,".",H91-H93) -> 2236738.07 | I97: =IF('WK1 - Identification'!I$58=0,".",I91-I93) -> 4376239.562 | J97: =IF('WK1 - Identification'!J$58=0,".",J91-J93) -> 7190440.626 | K97: =IF('WK1 - Identification'!K$58=0,".",K91-K93) -> 10758329.95 | L97: =IF('WK1 - Identification'!L$58=0,".",L91-L93) -> 14766194.24 | M97: =IF('WK1 - Identification'!M$58=0,".",M91-M93) -> 19246079.53 | N97: =INDEX(F97:M97,'WK1 - Identification'!$R$31+1)-F97 -> 19246079.53 | O97: =IF(N93=0,0,N97/N93) -> 0.4361012877 | Q97: =N91-N93-N97 -> 0

Sheet WK5a - Impact on Rates
C3: ='WK2 - Notional General Income'!$C$3 -> Dungog Shire Council
F5: WORKSHEET 5a
F7: IMPACT ON MINIMUM RATES, AVERAGE RATES AND OTHER CHARGES
F8: All dollars in nominal terms
D10: The aim of this sheet is to show the minimum rate increase (if applicable), the average rate increase per sub-category
D11: (inclusive of all relevant rates) and the proposed annual charges in each year of the proposed special variation.
D12: It also aims to compare average rates with and without the proposed special variation.
D13: All ordinary rates and special rates need to be included.
D14: Note: rate estimates should reflect expected minimum or average rates, inclusive of any expiring variations.
F16: Minimum Rates - with proposed special variation
D17: If the council levies minimum rates for any category or sub-category, these rates should be detailed below.
D18: A separate minimum rates application is not necessary if the council is applying for a special variation
D19: that will have the effect of causing a minimum rate to exceed the statutory limit. | S19: Annual and cumulative increases
C21: Minimum Rates - with proposed special variation | H21: $ per year | O21: Number of assessments | S21: Annual increases (nominal $ per year) | AA21: Annual increases (%) | AI21: Cumulative increases (nominal $ per year) | AQ21: Cumulative increases (%)
C22: Category | D22: Sub-category or Special Rate name | E22: Current Minimum Rate | F22: Minimum Rate Year 1 | G22: Minimum Rate Year 2 | H22: Minimum Rate Year 3 | I22: Minimum Rate Year 4 | J22: Minimum Rate Year 5 | K22: Minimum Rate Year 6 | L22: Minimum Rate Year 7 | O22: (used to calculate average | S22: =C21 -> Minimum Rates - with proposed special variation | AA22: =$S22 -> Minimum Rates - with proposed special variation | AI22: =$S22 -> Minimum Rates - with proposed special variation | AQ22: =$S22 -> Minimum Rates - with proposed special variation
E23: ='WK1 - Identification'!F$57 -> 2018-19 | F23: ='WK1 - Identification'!G$57 -> 2019-20 | G23: ='WK1 - Identification'!H$57 -> 2020-21 | H23: ='WK1 - Identification'!I$57 -> 2021-22 | I23: ='WK1 - Identification'!J$57 -> 2022-23 | J23: ='WK1 - Identification'!K$57 -> 2023-24 | K23: ='WK1 - Identification'!L$57 -> 2024-25 | L23: ='WK1 - Identification'!M$57 -> 2025-26 | O23: rates) | S23: ='WK0 - Input data'!G55 -> Year 1 | T23: ='WK0 - Input data'!H55 -> Year 2 | U23: ='WK0 - Input data'!I55 -> Year 3 | V23: ='WK0 - Input data'!J55 -> Year 4 | W23: ='WK0 - Input data'!K55 -> Year 5 | X23: ='WK0 - Input data'!L55 -> Year 6 | Y23: ='WK0 - Input data'!M55 -> Year 7 | AA23: =AI23 -> Year 1 | AB23: Year 2 | AC23: Year 3 | AD23: Year 4 | AE23: Year 5 | AF23: Year 6 | AG23: Year 7 | AI23: =S23 -> Year 1 | AJ23: =T23 -> Year 2 | AK23: Year 3 | AL23: Year 4 | AM23: Year 5 | AN23: =X23 -> Year 6 | AO23: =Y23 -> Year 7 | AQ23: =AA23 -> Year 1 | AR23: Year 2 | AS23: Year 3 | AT23: Year 4 | AU23: Year 5 | AV23: Year 6 | AW23: Year 7
S24: =IF(F24=0,".",F24-E24) -> . | T24: =IF(G24="",".",G24-F24) -> . | U24: =IF(H24="",".",H24-G24) -> . | V24: =IF(I24="",".",I24-H24) -> . | W24: =IF(J24="",".",J24-I24) -> . | X24: =IF(K24="",".",K24-J24) -> . | Y24: =IF(L24="",".",L24-K24) -> . | AA24: =IF(ISNUMBER(E24),F24/E24-1,".") -> . | AB24: =IF(ISNUMBER(F24),G24/F24-1,".") -> . | AC24: =IF(ISNUMBER(G24),H24/G24-1,".") -> . | AD24: =IF(ISNUMBER(H24),I24/H24-1,".") -> . | AE24: =IF(ISNUMBER(I24),J24/I24-1,".") -> . | AF24: =IF(ISNUMBER(J24),K24/J24-1,".") -> . | AG24: =IF(ISNUMBER(K24),L24/K24-1,".") -> . | AI24: =IF(S24=".",".",SUM($S24:S24)) -> . | AJ24: =IF(T24=".",".",SUM($S24:T24)) -> . | AK24: =IF(U24=".",".",SUM($S24:U24)) -> . | AL24: =IF(V24=".",".",SUM($S24:V24)) -> . | AM24: =IF(W24=".",".",SUM($S24:W24)) -> . | AN24: =IF(X24=".",".",SUM($S24:X24)) -> . | AO24: =IF(Y24=".",".",SUM($S24:Y24)) -> . | AQ24: =IF(ISNUMBER($E24),F24/$E24-1,".") -> . | AR24: =IF(ISNUMBER($E24),G24/$E24-1,".") -> . | AS24: =IF(ISNUMBER($E24),H24/$E24-1,".") -> . | AT24: =IF(ISNUMBER($E24),I24/$E24-1,".") -> . | AU24: =IF(ISNUMBER($E24),J24/$E24-1,".") -> . | AV24: =IF(ISNUMBER($E24),K24/$E24-1,".") -> . | AW24: =IF(ISNUMBER($E24),L24/$E24-1,".") -> .
S25: =IF(F25="",".",F25-E25) -> . | T25: . | U25: . | V25: . | W25: . | X25: . | Y25: . | AA25: . | AB25: . | AC25: . | AD25: . | AE25: . | AF25: . | AG25: . | AI25: =IF(S25=".",".",SUM($S25:S25)) -> . | AJ25: =IF(T25=".",".",SUM($S25:T25)) -> . | AK25: =IF(U25=".",".",SUM($S25:U25)) -> . | AL25: =IF(V25=".",".",SUM($S25:V25)) -> . | AM25: =IF(W25=".",".",SUM($S25:W25)) -> . | AN25: =IF(X25=".",".",SUM($S25:X25)) -> . | AO25: =IF(Y25=".",".",SUM($S25:Y25)) -> . | AQ25: . | AR25: . | AS25: . | AT25: . | AU25: . | AV25: . | AW25: .
S26: =IF(F26="",".",F26-E26) -> . | T26: . | U26: . | V26: . | W26: . | X26: . | Y26: . | AA26: . | AB26: . | AC26: . | AD26: . | AE26: . | AF26: . | AG26: . | AI26: =IF(S26=".",".",SUM($S26:S26)) -> . | AJ26: =IF(T26=".",".",SUM($S26:T26)) -> . | AK26: =IF(U26=".",".",SUM($S26:U26)) -> . | AL26: =IF(V26=".",".",SUM($S26:V26)) -> . | AM26: =IF(W26=".",".",SUM($S26:W26)) -> . | AN26: =IF(X26=".",".",SUM($S26:X26)) -> . | AO26: =IF(Y26=".",".",SUM($S26:Y26)) -> . | AQ26: . | AR26: . | AS26: . | AT26: . | AU26: . | AV26: . | AW26: .
S27: . | T27: . | U27: . | V27: . | W27: . | X27: . | Y27: . | AA27: . | AB27: . | AC27: . | AD27: . | AE27: . | AF27: . | AG27: . | AI27: =IF(S27=".",".",SUM($S27:S27)) -> . | AJ27: =IF(T27=".",".",SUM($S27:T27)) -> . | AK27: =IF(U27=".",".",SUM($S27:U27)) -> . | AL27: =IF(V27=".",".",SUM($S27:V27)) -> . | AM27: =IF(W27=".",".",SUM($S27:W27)) -> . | AN27: =IF(X27=".",".",SUM($S27:X27)) -> . | AO27: =IF(Y27=".",".",SUM($S27:Y27)) -> . | AQ27: . | AR27: . | AS27: . | AT27: . | AU27: . | AV27: . | AW27: .
S28: . | T28: . | U28: . | V28: . | W28: . | X28: . | Y28: . | AA28: . | AB28: . | AC28: . | AD28: . | AE28: . | AF28: . | AG28: . | AI28: =IF(S28=".",".",SUM($S28:S28)) -> . | AJ28: =IF(T28=".",".",SUM($S28:T28)) -> . | AK28: =IF(U28=".",".",SUM($S28:U28)) -> . | AL28: =IF(V28=".",".",SUM($S28:V28)) -> . | AM28: =IF(W28=".",".",SUM($S28:W28)) -> . | AN28: =IF(X28=".",".",SUM($S28:X28)) -> . | AO28: =IF(Y28=".",".",SUM($S28:Y28)) -> . | AQ28: . | AR28: . | AS28: . | AT28: . | AU28: . | AV28: . | AW28: .
S29: . | T29: . | U29: . | V29: . | W29: . | X29: . | Y29: . | AA29: . | AB29: . | AC29: . | AD29: . | AE29: . | AF29: . | AG29: . | AI29: =IF(S29=".",".",SUM($S29:S29)) -> . | AJ29: =IF(T29=".",".",SUM($S29:T29)) -> . | AK29: =IF(U29=".",".",SUM($S29:U29)) -> . | AL29: =IF(V29=".",".",SUM($S29:V29)) -> . | AM29: =IF(W29=".",".",SUM($S29:W29)) -> . | AN29: =IF(X29=".",".",SUM($S29:X29)) -> . | AO29: =IF(Y29=".",".",SUM($S29:Y29)) -> . | AQ29: . | AR29: . | AS29: . | AT29: . | AU29: . | AV29: . | AW29: .
S30: . | T30: . | U30: . | V30: . | W30: . | X30: . | Y30: . | AA30: . | AB30: . | AC30: . | AD30: . | AE30: . | AF30: . | AG30: . | AI30: =IF(S30=".",".",SUM($S30:S30)) -> . | AJ30: =IF(T30=".",".",SUM($S30:T30)) -> . | AK30: =IF(U30=".",".",SUM($S30:U30)) -> . | AL30: =IF(V30=".",".",SUM($S30:V30)) -> . | AM30: =IF(W30=".",".",SUM($S30:W30)) -> . | AN30: =IF(X30=".",".",SUM($S30:X30)) -> . | AO30: =IF(Y30=".",".",SUM($S30:Y30)) -> . | AQ30: . | AR30: . | AS30: . | AT30: . | AU30: . | AV30: . | AW30: .
S31: . | T31: . | U31: . | V31: . | W31: . | X31: . | Y31: . | AA31: . | AB31: . | AC31: . | AD31: . | AE31: . | AF31: . | AG31: . | AI31: =IF(S31=".",".",SUM($S31:S31)) -> . | AJ31: =IF(T31=".",".",SUM($S31:T31)) -> . | AK31: =IF(U31=".",".",SUM($S31:U31)) -> . | AL31: =IF(V31=".",".",SUM($S31:V31)) -> . | AM31: =IF(W31=".",".",SUM($S31:W31)) -> . | AN31: =IF(X31=".",".",SUM($S31:X31)) -> . | AO31: =IF(Y31=".",".",SUM($S31:Y31)) -> . | AQ31: . | AR31: . | AS31: . | AT31: . | AU31: . | AV31: . | AW31: .
S32: . | T32: . | U32: . | V32: . | W32: . | X32: . | Y32: . | AA32: . | AB32: . | AC32: . | AD32: . | AE32: . | AF32: . | AG32: . | AI32: =IF(S32=".",".",SUM($S32:S32)) -> . | AJ32: =IF(T32=".",".",SUM($S32:T32)) -> . | AK32: =IF(U32=".",".",SUM($S32:U32)) -> . | AL32: =IF(V32=".",".",SUM($S32:V32)) -> . | AM32: =IF(W32=".",".",SUM($S32:W32)) -> . | AN32: =IF(X32=".",".",SUM($S32:X32)) -> . | AO32: =IF(Y32=".",".",SUM($S32:Y32)) -> . | AQ32: . | AR32: . | AS32: . | AT32: . | AU32: . | AV32: . | AW32: .
S33: . | T33: . | U33: . | V33: . | W33: . | X33: . | Y33: . | AA33: . | AB33: . | AC33: . | AD33: . | AE33: . | AF33: . | AG33: . | AI33: =IF(S33=".",".",SUM($S33:S33)) -> . | AJ33: =IF(T33=".",".",SUM($S33:T33)) -> . | AK33: =IF(U33=".",".",SUM($S33:U33)) -> . | AL33: =IF(V33=".",".",SUM($S33:V33)) -> . | AM33: =IF(W33=".",".",SUM($S33:W33)) -> . | AN33: =IF(X33=".",".",SUM($S33:X33)) -> . | AO33: =IF(Y33=".",".",SUM($S33:Y33)) -> . | AQ33: . | AR33: . | AS33: . | AT33: . | AU33: . | AV33: . | AW33: .
S34: . | T34: . | U34: . | V34: . | W34: . | X34: . | Y34: . | AA34: . | AB34: . | AC34: . | AD34: . | AE34: . | AF34: . | AG34: . | AI34: =IF(S34=".",".",SUM($S34:S34)) -> . | AJ34: =IF(T34=".",".",SUM($S34:T34)) -> . | AK34: =IF(U34=".",".",SUM($S34:U34)) -> . | AL34: =IF(V34=".",".",SUM($S34:V34)) -> . | AM34: =IF(W34=".",".",SUM($S34:W34)) -> . | AN34: =IF(X34=".",".",SUM($S34:X34)) -> . | AO34: =IF(Y34=".",".",SUM($S34:Y34)) -> . | AQ34: . | AR34: . | AS34: . | AT34: . | AU34: . | AV34: . | AW34: .
S35: . | T35: . | U35: . | V35: . | W35: . | X35: . | Y35: . | AA35: . | AB35: . | AC35: . | AD35: . | AE35: . | AF35: . | AG35: . | AI35: =IF(S35=".",".",SUM($S35:S35)) -> . | AJ35: =IF(T35=".",".",SUM($S35:T35)) -> . | AK35: =IF(U35=".",".",SUM($S35:U35)) -> . | AL35: =IF(V35=".",".",SUM($S35:V35)) -> . | AM35: =IF(W35=".",".",SUM($S35:W35)) -> . | AN35: =IF(X35=".",".",SUM($S35:X35)) -> . | AO35: =IF(Y35=".",".",SUM($S35:Y35)) -> . | AQ35: . | AR35: . | AS35: . | AT35: . | AU35: . | AV35: . | AW35: .
S36: . | T36: . | U36: . | V36: . | W36: . | X36: . | Y36: . | AA36: . | AB36: . | AC36: . | AD36: . | AE36: . | AF36: . | AG36: . | AI36: =IF(S36=".",".",SUM($S36:S36)) -> . | AJ36: =IF(T36=".",".",SUM($S36:T36)) -> . | AK36: =IF(U36=".",".",SUM($S36:U36)) -> . | AL36: =IF(V36=".",".",SUM($S36:V36)) -> . | AM36: =IF(W36=".",".",SUM($S36:W36)) -> . | AN36: =IF(X36=".",".",SUM($S36:X36)) -> . | AO36: =IF(Y36=".",".",SUM($S36:Y36)) -> . | AQ36: . | AR36: . | AS36: . | AT36: . | AU36: . | AV36: . | AW36: .
S37: . | T37: . | U37: . | V37: . | W37: . | X37: . | Y37: . | AA37: . | AB37: . | AC37: . | AD37: . | AE37: . | AF37: . | AG37: . | AI37: =IF(S37=".",".",SUM($S37:S37)) -> . | AJ37: =IF(T37=".",".",SUM($S37:T37)) -> . | AK37: =IF(U37=".",".",SUM($S37:U37)) -> . | AL37: =IF(V37=".",".",SUM($S37:V37)) -> . | AM37: =IF(W37=".",".",SUM($S37:W37)) -> . | AN37: =IF(X37=".",".",SUM($S37:X37)) -> . | AO37: =IF(Y37=".",".",SUM($S37:Y37)) -> . | AQ37: . | AR37: . | AS37: . | AT37: . | AU37: . | AV37: . | AW37: .
S38: . | T38: . | U38: . | V38: . | W38: . | X38: . | Y38: . | AA38: . | AB38: . | AC38: . | AD38: . | AE38: . | AF38: . | AG38: . | AI38: =IF(S38=".",".",SUM($S38:S38)) -> . | AJ38: =IF(T38=".",".",SUM($S38:T38)) -> . | AK38: =IF(U38=".",".",SUM($S38:U38)) -> . | AL38: =IF(V38=".",".",SUM($S38:V38)) -> . | AM38: =IF(W38=".",".",SUM($S38:W38)) -> . | AN38: =IF(X38=".",".",SUM($S38:X38)) -> . | AO38: =IF(Y38=".",".",SUM($S38:Y38)) -> . | AQ38: . | AR38: . | AS38: . | AT38: . | AU38: . | AV38: . | AW38: .
S39: . | T39: . | U39: . | V39: . | W39: . | X39: . | Y39: . | AA39: . | AB39: . | AC39: . | AD39: . | AE39: . | AF39: . | AG39: . | AI39: =IF(S39=".",".",SUM($S39:S39)) -> . | AJ39: =IF(T39=".",".",SUM($S39:T39)) -> . | AK39: =IF(U39=".",".",SUM($S39:U39)) -> . | AL39: =IF(V39=".",".",SUM($S39:V39)) -> . | AM39: =IF(W39=".",".",SUM($S39:W39)) -> . | AN39: =IF(X39=".",".",SUM($S39:X39)) -> . | AO39: =IF(Y39=".",".",SUM($S39:Y39)) -> . | AQ39: . | AR39: . | AS39: . | AT39: . | AU39: . | AV39: . | AW39: .
S40: . | T40: . | U40: . | V40: . | W40: . | X40: . | Y40: . | AA40: . | AB40: . | AC40: . | AD40: . | AE40: . | AF40: . | AG40: . | AI40: =IF(S40=".",".",SUM($S40:S40)) -> . | AJ40: =IF(T40=".",".",SUM($S40:T40)) -> . | AK40: =IF(U40=".",".",SUM($S40:U40)) -> . | AL40: =IF(V40=".",".",SUM($S40:V40)) -> . | AM40: =IF(W40=".",".",SUM($S40:W40)) -> . | AN40: =IF(X40=".",".",SUM($S40:X40)) -> . | AO40: =IF(Y40=".",".",SUM($S40:Y40)) -> . | AQ40: . | AR40: . | AS40: . | AT40: . | AU40: . | AV40: . | AW40: .
S41: . | T41: . | U41: . | V41: . | W41: . | X41: . | Y41: . | AA41: . | AB41: . | AC41: . | AD41: . | AE41: . | AF41: . | AG41: . | AI41: =IF(S41=".",".",SUM($S41:S41)) -> . | AJ41: =IF(T41=".",".",SUM($S41:T41)) -> . | AK41: =IF(U41=".",".",SUM($S41:U41)) -> . | AL41: =IF(V41=".",".",SUM($S41:V41)) -> . | AM41: =IF(W41=".",".",SUM($S41:W41)) -> . | AN41: =IF(X41=".",".",SUM($S41:X41)) -> . | AO41: =IF(Y41=".",".",SUM($S41:Y41)) -> . | AQ41: . | AR41: . | AS41: . | AT41: . | AU41: . | AV41: . | AW41: .
S42: . | T42: . | U42: . | V42: . | W42: . | X42: . | Y42: . | AA42: . | AB42: . | AC42: . | AD42: . | AE42: . | AF42: . | AG42: . | AI42: =IF(S42=".",".",SUM($S42:S42)) -> . | AJ42: =IF(T42=".",".",SUM($S42:T42)) -> . | AK42: =IF(U42=".",".",SUM($S42:U42)) -> . | AL42: =IF(V42=".",".",SUM($S42:V42)) -> . | AM42: =IF(W42=".",".",SUM($S42:W42)) -> . | AN42: =IF(X42=".",".",SUM($S42:X42)) -> . | AO42: =IF(Y42=".",".",SUM($S42:Y42)) -> . | AQ42: . | AR42: . | AS42: . | AT42: . | AU42: . | AV42: . | AW42: .
S43: . | T43: . | U43: . | V43: . | W43: . | X43: . | Y43: . | AA43: . | AB43: . | AC43: . | AD43: . | AE43: . | AF43: . | AG43: . | AI43: =IF(S43=".",".",SUM($S43:S43)) -> . | AJ43: =IF(T43=".",".",SUM($S43:T43)) -> . | AK43: =IF(U43=".",".",SUM($S43:U43)) -> . | AL43: =IF(V43=".",".",SUM($S43:V43)) -> . | AM43: =IF(W43=".",".",SUM($S43:W43)) -> . | AN43: =IF(X43=".",".",SUM($S43:X43)) -> . | AO43: =IF(Y43=".",".",SUM($S43:Y43)) -> . | AQ43: . | AR43: . | AS43: . | AT43: . | AU43: . | AV43: . | AW43: .
S44: . | T44: . | U44: . | V44: . | W44: . | X44: . | Y44: . | AA44: . | AB44: . | AC44: . | AD44: . | AE44: . | AF44: . | AG44: . | AI44: =IF(S44=".",".",SUM($S44:S44)) -> . | AJ44: =IF(T44=".",".",SUM($S44:T44)) -> . | AK44: =IF(U44=".",".",SUM($S44:U44)) -> . | AL44: =IF(V44=".",".",SUM($S44:V44)) -> . | AM44: =IF(W44=".",".",SUM($S44:W44)) -> . | AN44: =IF(X44=".",".",SUM($S44:X44)) -> . | AO44: =IF(Y44=".",".",SUM($S44:Y44)) -> . | AQ44: . | AR44: . | AS44: . | AT44: . | AU44: . | AV44: . | AW44: .
S45: . | T45: . | U45: . | V45: . | W45: . | X45: . | Y45: . | AA45: . | AB45: . | AC45: . | AD45: . | AE45: . | AF45: . | AG45: . | AI45: =IF(S45=".",".",SUM($S45:S45)) -> . | AJ45: =IF(T45=".",".",SUM($S45:T45)) -> . | AK45: =IF(U45=".",".",SUM($S45:U45)) -> . | AL45: =IF(V45=".",".",SUM($S45:V45)) -> . | AM45: =IF(W45=".",".",SUM($S45:W45)) -> . | AN45: =IF(X45=".",".",SUM($S45:X45)) -> . | AO45: =IF(Y45=".",".",SUM($S45:Y45)) -> . | AQ45: . | AR45: . | AS45: . | AT45: . | AU45: . | AV45: . | AW45: .
S46: . | T46: . | U46: . | V46: . | W46: . | X46: . | Y46: . | AA46: . | AB46: . | AC46: . | AD46: . | AE46: . | AF46: . | AG46: . | AI46: =IF(S46=".",".",SUM($S46:S46)) -> . | AJ46: =IF(T46=".",".",SUM($S46:T46)) -> . | AK46: =IF(U46=".",".",SUM($S46:U46)) -> . | AL46: =IF(V46=".",".",SUM($S46:V46)) -> . | AM46: =IF(W46=".",".",SUM($S46:W46)) -> . | AN46: =IF(X46=".",".",SUM($S46:X46)) -> . | AO46: =IF(Y46=".",".",SUM($S46:Y46)) -> . | AQ46: . | AR46: . | AS46: . | AT46: . | AU46: . | AV46: . | AW46: .
S47: . | T47: . | U47: . | V47: . | W47: . | X47: . | Y47: . | AA47: . | AB47: . | AC47: . | AD47: . | AE47: . | AF47: . | AG47: . | AI47: =IF(S47=".",".",SUM($S47:S47)) -> . | AJ47: =IF(T47=".",".",SUM($S47:T47)) -> . | AK47: =IF(U47=".",".",SUM($S47:U47)) -> . | AL47: =IF(V47=".",".",SUM($S47:V47)) -> . | AM47: =IF(W47=".",".",SUM($S47:W47)) -> . | AN47: =IF(X47=".",".",SUM($S47:X47)) -> . | AO47: =IF(Y47=".",".",SUM($S47:Y47)) -> . | AQ47: . | AR47: . | AS47: . | AT47: . | AU47: . | AV47: . | AW47: .
S48: . | T48: . | U48: . | V48: . | W48: . | X48: . | Y48: . | AA48: . | AB48: . | AC48: . | AD48: . | AE48: . | AF48: . | AG48: . | AI48: =IF(S48=".",".",SUM($S48:S48)) -> . | AJ48: =IF(T48=".",".",SUM($S48:T48)) -> . | AK48: =IF(U48=".",".",SUM($S48:U48)) -> . | AL48: =IF(V48=".",".",SUM($S48:V48)) -> . | AM48: =IF(W48=".",".",SUM($S48:W48)) -> . | AN48: =IF(X48=".",".",SUM($S48:X48)) -> . | AO48: =IF(Y48=".",".",SUM($S48:Y48)) -> . | AQ48: . | AR48: . | AS48: . | AT48: . | AU48: . | AV48: . | AW48: .
S49: . | T49: . | U49: . | V49: . | W49: . | X49: . | Y49: . | AA49: . | AB49: . | AC49: . | AD49: . | AE49: . | AF49: . | AG49: . | AI49: =IF(S49=".",".",SUM($S49:S49)) -> . | AJ49: =IF(T49=".",".",SUM($S49:T49)) -> . | AK49: =IF(U49=".",".",SUM($S49:U49)) -> . | AL49: =IF(V49=".",".",SUM($S49:V49)) -> . | AM49: =IF(W49=".",".",SUM($S49:W49)) -> . | AN49: =IF(X49=".",".",SUM($S49:X49)) -> . | AO49: =IF(Y49=".",".",SUM($S49:Y49)) -> . | AQ49: . | AR49: . | AS49: . | AT49: . | AU49: . | AV49: . | AW49: .
S50: . | T50: . | U50: . | V50: . | W50: . | X50: . | Y50: . | AA50: . | AB50: . | AC50: . | AD50: . | AE50: . | AF50: . | AG50: . | AI50: =IF(S50=".",".",SUM($S50:S50)) -> . | AJ50: =IF(T50=".",".",SUM($S50:T50)) -> . | AK50: =IF(U50=".",".",SUM($S50:U50)) -> . | AL50: =IF(V50=".",".",SUM($S50:V50)) -> . | AM50: =IF(W50=".",".",SUM($S50:W50)) -> . | AN50: =IF(X50=".",".",SUM($S50:X50)) -> . | AO50: =IF(Y50=".",".",SUM($S50:Y50)) -> . | AQ50: . | AR50: . | AS50: . | AT50: . | AU50: . | AV50: . | AW50: .
S51: . | T51: . | U51: . | V51: . | W51: . | X51: . | Y51: . | AA51: . | AB51: . | AC51: . | AD51: . | AE51: . | AF51: . | AG51: . | AI51: =IF(S51=".",".",SUM($S51:S51)) -> . | AJ51: =IF(T51=".",".",SUM($S51:T51)) -> . | AK51: =IF(U51=".",".",SUM($S51:U51)) -> . | AL51: =IF(V51=".",".",SUM($S51:V51)) -> . | AM51: =IF(W51=".",".",SUM($S51:W51)) -> . | AN51: =IF(X51=".",".",SUM($S51:X51)) -> . | AO51: =IF(Y51=".",".",SUM($S51:Y51)) -> . | AQ51: . | AR51: . | AS51: . | AT51: . | AU51: . | AV51: . | AW51: .
S52: . | T52: . | U52: . | V52: . | W52: . | X52: . | Y52: . | AA52: . | AB52: . | AC52: . | AD52: . | AE52: . | AF52: . | AG52: . | AI52: =IF(S52=".",".",SUM($S52:S52)) -> . | AJ52: =IF(T52=".",".",SUM($S52:T52)) -> . | AK52: =IF(U52=".",".",SUM($S52:U52)) -> . | AL52: =IF(V52=".",".",SUM($S52:V52)) -> . | AM52: =IF(W52=".",".",SUM($S52:W52)) -> . | AN52: =IF(X52=".",".",SUM($S52:X52)) -> . | AO52: =IF(Y52=".",".",SUM($S52:Y52)) -> . | AQ52: . | AR52: . | AS52: . | AT52: . | AU52: . | AV52: . | AW52: .
S53: . | T53: . | U53: . | V53: . | W53: . | X53: . | Y53: . | AA53: . | AB53: . | AC53: . | AD53: . | AE53: . | AF53: . | AG53: . | AI53: =IF(S53=".",".",SUM($S53:S53)) -> . | AJ53: =IF(T53=".",".",SUM($S53:T53)) -> . | AK53: =IF(U53=".",".",SUM($S53:U53)) -> . | AL53: =IF(V53=".",".",SUM($S53:V53)) -> . | AM53: =IF(W53=".",".",SUM($S53:W53)) -> . | AN53: =IF(X53=".",".",SUM($S53:X53)) -> . | AO53: =IF(Y53=".",".",SUM($S53:Y53)) -> . | AQ53: . | AR53: . | AS53: . | AT53: . | AU53: . | AV53: . | AW53: .
C57: Average Ordinary and Special Rates - with proposed special variation | I57: =$H$21 -> $ per year | S57: =S$21 -> Annual increases (nominal $ per year) | AA57: =AA$21 -> Annual increases (%) | AI57: =AI$21 -> Cumulative increases (nominal $ per year) | AQ57: =AQ$21 -> Cumulative increases (%)
C58: Category | D58: Sub-category or Special Rate name | E58: Current Average Rate | F58: Average Rate Year 1 | G58: Average Rate Year 2 | H58: Average Rate Year 3 | I58: Average Rate Year 4 | J58: Average Rate Year 5 | K58: Average Rate Year 6 | L58: Average Rate Year 7 | O58: ='WK2 - Notional General Income'!$E18 -> Number of Assessments | S58: Average Rates - with proposed special variation | AA58: =$S58 -> Average Rates - with proposed special variation | AI58: =$S58 -> Average Rates - with proposed special variation | AQ58: =$S58 -> Average Rates - with proposed special variation
E59: =E23 -> 2018-19 | F59: =F23 -> 2019-20 | G59: 2020-21 | H59: 2021-22 | I59: 2022-23 | J59: 2023-24 | K59: 2024-25 | L59: 2025-26 | O59: =E59 -> 2018-19 | P59: =F59 -> 2019-20 | S59: =S$23 -> Year 1 | T59: =T$23 -> Year 2 | U59: Year 3 | V59: Year 4 | W59: Year 5 | X59: Year 6 | Y59: Year 7 | AA59: =AA$23 -> Year 1 | AB59: Year 2 | AC59: Year 3 | AD59: Year 4 | AE59: Year 5 | AF59: Year 6 | AG59: Year 7 | AI59: =AI$23 -> Year 1 | AJ59: =AJ$23 -> Year 2 | AK59: Year 3 | AL59: Year 4 | AM59: Year 5 | AN59: Year 6 | AO59: Year 7 | AQ59: =AQ$23 -> Year 1 | AR59: =AR$23 -> Year 2 | AS59: Year 3 | AT59: Year 4 | AU59: Year 5 | AV59: Year 6 | AW59: Year 7
C60: Residential | D60: =IF('WK2 - Notional General Income'!D19="","",'WK2 - Notional General Income'!D19) ->  | E60: =IF('WK2 - Notional General Income'!M19=".",".",'WK2 - Notional General Income'!M19/'WK2 - Notional General Income'!E19) -> 1073.394064 | F60: =IF('WK3 - Notional GI Yr1 YIELD'!M19=".",".",'WK3 - Notional GI Yr1 YIELD'!M19/'WK3 - Notional GI Yr1 YIELD'!E19) -> 1234.380721 | G60: =F60*15/100+F60 -> 1419.537829 | H60: =G60*10/100+G60 -> 1561.491612 | I60: =H60*10/100+H60 -> 1717.640773 | J60: =I60*10/100+I60 -> 1889.404851 | K60: =J60*6/100+J60 -> 2002.769142 | L60: =K60*6/100+K60 -> 2122.93529 | O60: ='WK2 - Notional General Income'!$E19 -> 1995 | P60: ='WK3 - Notional GI Yr1 YIELD'!$E19 -> 1995 | S60: =IF(F60=".",".",F60-E60) -> 160.9866566 | T60: =IF(G60="",".",G60-F60) -> 185.1571082 | U60: =IF(H60="",".",H60-G60) -> 141.9537829 | V60: =IF(I60="",".",I60-H60) -> 156.1491612 | W60: =IF(J60="",".",J60-I60) -> 171.7640773 | X60: =IF(K60="",".",K60-J60) -> 113.364291 | Y60: =IF(L60="",".",L60-K60) -> 120.1661485 | AA60: =IF(ISNUMBER(E60),F60/E60-1,".") -> 0.1499790822 | AB60: =IF(ISNUMBER(F60),G60/F60-1,".") -> 0.15 | AC60: =IF(ISNUMBER(G60),H60/G60-1,".") -> 0.1 | AD60: =IF(ISNUMBER(H60),I60/H60-1,".") -> 0.1 | AE60: =IF(ISNUMBER(I60),J60/I60-1,".") -> 0.1 | AF60: =IF(ISNUMBER(J60),K60/J60-1,".") -> 0.06 | AG60: =IF(ISNUMBER(K60),L60/K60-1,".") -> 0.06 | AI60: =IF(S60=".",".",SUM($S60:S60)) -> 160.9866566 | AJ60: =IF(T60=".",".",SUM($S60:T60)) -> 346.1437648 | AK60: =IF(U60=".",".",SUM($S60:U60)) -> 488.0975477 | AL60: =IF(V60=".",".",SUM($S60:V60)) -> 644.2467089 | AM60: =IF(W60=".",".",SUM($S60:W60)) -> 816.0107863 | AN60: =IF(X60=".",".",SUM($S60:X60)) -> 929.3750773 | AO60: =IF(Y60=".",".",SUM($S60:Y60)) -> 1049.541226 | AQ60: =IF(ISNUMBER($E60),F60/$E60-1,".") -> 0.1499790822 | AR60: =IF(ISNUMBER($E60),G60/$E60-1,".") -> 0.3224759445 | AS60: =IF(ISNUMBER($E60),H60/$E60-1,".") -> 0.454723539 | AT60: =IF(ISNUMBER($E60),I60/$E60-1,".") -> 0.6001958929 | AU60: =IF(ISNUMBER($E60),J60/$E60-1,".") -> 0.7602154822 | AV60: =IF(ISNUMBER($E60),K60/$E60-1,".") -> 0.8658284111 | AW60: =IF(ISNUMBER($E60),L60/$E60-1,".") -> 0.9777781158
C61: Residential | D61: =IF('WK2 - Notional General Income'!D20="","",'WK2 - Notional General Income'!D20) -> Clarence Town | E61: =IF('WK2 - Notional General Income'!M20=".",".",'WK2 - Notional General Income'!M20/'WK2 - Notional General Income'!E20) -> 707.7243258 | F61: =IF('WK3 - Notional GI Yr1 YIELD'!M20=".",".",'WK3 - Notional GI Yr1 YIELD'!M20/'WK3 - Notional GI Yr1 YIELD'!E20) -> 813.8841355 | G61: =F61*15/100+F61 -> 935.9667558 | H61: =G61*10/100+G61 -> 1029.563431 | I61: 1132.519775 | J61: 1245.771752 | K61: =J61*6/100+J61 -> 1320.518057 | L61: 1399.749141 | O61: ='WK2 - Notional General Income'!$E20 -> 341 | P61: ='WK3 - Notional GI Yr1 YIELD'!$E20 -> 341 | S61: =IF(F61=".",".",F61-E61) -> 106.1598097 | T61: 122.0826203 | U61: 93.59667558 | V61: 102.9563431 | W61: 113.2519775 | X61: 74.74630512 | Y61: 79.23108343 | AA61: 0.1500016402 | AB61: 0.15 | AC61: 0.1 | AD61: 0.1 | AE61: 0.1 | AF61: 0.06 | AG61: 0.06 | AI61: =IF(S61=".",".",SUM($S61:S61)) -> 106.1598097 | AJ61: =IF(T61=".",".",SUM($S61:T61)) -> 228.24243 | AK61: =IF(U61=".",".",SUM($S61:U61)) -> 321.8391056 | AL61: =IF(V61=".",".",SUM($S61:V61)) -> 424.7954487 | AM61: =IF(W61=".",".",SUM($S61:W61)) -> 538.0474262 | AN61: =IF(X61=".",".",SUM($S61:X61)) -> 612.7937313 | AO61: =IF(Y61=".",".",SUM($S61:Y61)) -> 692.0248147 | AQ61: 0.1500016402 | AR61: 0.3225018862 | AS61: 0.4547520748 | AT61: 0.6002272823 | AU61: 0.7602500106 | AV61: 0.8658650112 | AW61: 0.9778169119
C62: Residential | D62: =IF('WK2 - Notional General Income'!D21="","",'WK2 - Notional General Income'!D21) -> Dungog | E62: =IF('WK2 - Notional General Income'!M21=".",".",'WK2 - Notional General Income'!M21/'WK2 - Notional General Income'!E21) -> 724.4588322 | F62: =IF('WK3 - Notional GI Yr1 YIELD'!M21=".",".",'WK3 - Notional GI Yr1 YIELD'!M21/'WK3 - Notional GI Yr1 YIELD'!E21) -> 833.1411498 | G62: 958.1123223 | H62: =G62*10/100+G62 -> 1053.923554 | I62: 1159.31591 | J62: 1275.247501 | K62: =J62*6/100+J62 -> 1351.762351 | L62: 1432.868092 | O62: ='WK2 - Notional General Income'!$E21 -> 944 | P62: ='WK3 - Notional GI Yr1 YIELD'!$E21 -> 944 | S62: 108.6823176 | T62: 124.9711725 | U62: 95.81123223 | V62: 105.3923554 | W62: 115.931591 | X62: 76.51485006 | Y62: 81.10574106 | AA62: 0.1500186246 | AB62: 0.15 | AC62: 0.1 | AD62: 0.1 | AE62: 0.1 | AF62: 0.06 | AG62: 0.06 | AI62: =IF(S62=".",".",SUM($S62:S62)) -> 108.6823176 | AJ62: =IF(T62=".",".",SUM($S62:T62)) -> 233.6534901 | AK62: =IF(U62=".",".",SUM($S62:U62)) -> 329.4647223 | AL62: =IF(V62=".",".",SUM($S62:V62)) -> 434.8570777 | AM62: =IF(W62=".",".",SUM($S62:W62)) -> 550.7886687 | AN62: =IF(X62=".",".",SUM($S62:X62)) -> 627.3035188 | AO62: =IF(Y62=".",".",SUM($S62:Y62)) -> 708.4092598 | AQ62: 0.1500186246 | AR62: 0.3225214183 | AS62: 0.4547735601 | AT62: 0.6002509161 | AU62: 0.7602760077 | AV62: 0.8658925682 | AW62: 0.9778461223
C63: Residential | D63: =IF('WK2 - Notional General Income'!D22="","",'WK2 - Notional General Income'!D22) -> Village | E63: =IF('WK2 - Notional General Income'!M22=".",".",'WK2 - Notional General Income'!M22/'WK2 - Notional General Income'!E22) -> 595.5443792 | F63: =IF('WK3 - Notional GI Yr1 YIELD'!M22=".",".",'WK3 - Notional GI Yr1 YIELD'!M22/'WK3 - Notional GI Yr1 YIELD'!E22) -> 684.9660689 | G63: 787.7109793 | H63: =G63*10/100+G63 -> 866.4820772 | I63: 953.1302849 | J63: 1048.443313 | K63: =J63*6/100+J63 -> 1111.349912 | L63: 1178.030907 | O63: ='WK2 - Notional General Income'!$E22 -> 351 | P63: ='WK3 - Notional GI Yr1 YIELD'!$E22 -> 351 | S63: 89.42168974 | T63: 102.7449103 | U63: 78.77109793 | V63: 86.64820772 | W63: 95.31302849 | X63: 62.90659881 | Y63: 66.68099473 | AA63: 0.1501511774 | AB63: 0.15 | AC63: 0.1 | AD63: 0.1 | AE63: 0.1 | AF63: 0.06 | AG63: 0.06 | AI63: =IF(S63=".",".",SUM($S63:S63)) -> 89.42168974 | AJ63: =IF(T63=".",".",SUM($S63:T63)) -> 192.1666001 | AK63: =IF(U63=".",".",SUM($S63:U63)) -> 270.937698 | AL63: =IF(V63=".",".",SUM($S63:V63)) -> 357.5859057 | AM63: =IF(W63=".",".",SUM($S63:W63)) -> 452.8989342 | AN63: =IF(X63=".",".",SUM($S63:X63)) -> 515.805533 | AO63: =IF(Y63=".",".",SUM($S63:Y63)) -> 582.4865278 | AQ63: 0.1501511774 | AR63: 0.322673854 | AS63: 0.4549412394 | AT63: 0.6004353634 | AU63: 0.7604788997 | AV63: 0.8661076337 | AW63: 0.9780740917
C64: Residential | D64: =IF('WK2 - Notional General Income'!D23="","",'WK2 - Notional General Income'!D23) ->  | E64: =IF('WK2 - Notional General Income'!M23=".",".",'WK2 - Notional General Income'!M23/'WK2 - Notional General Income'!E23) -> . | F64: =IF('WK3 - Notional GI Yr1 YIELD'!M23=".",".",'WK3 - Notional GI Yr1 YIELD'!M23/'WK3 - Notional GI Yr1 YIELD'!E23) -> . | O64: ='WK2 - Notional General Income'!$E23 -> 0 | P64: ='WK3 - Notional GI Yr1 YIELD'!$E23 -> 0 | S64: . | T64: . | U64: . | V64: . | W64: . | X64: . | Y64: . | AA64: . | AB64: . | AC64: . | AD64: . | AE64: . | AF64: . | AG64: . | AI64: =IF(S64=".",".",SUM($S64:S64)) -> . | AJ64: =IF(T64=".",".",SUM($S64:T64)) -> . | AK64: =IF(U64=".",".",SUM($S64:U64)) -> . | AL64: =IF(V64=".",".",SUM($S64:V64)) -> . | AM64: =IF(W64=".",".",SUM($S64:W64)) -> . | AN64: =IF(X64=".",".",SUM($S64:X64)) -> . | AO64: =IF(Y64=".",".",SUM($S64:Y64)) -> . | AQ64: . | AR64: . | AS64: . | AT64: . | AU64: . | AV64: . | AW64: .
C65: Residential | D65: =IF('WK2 - Notional General Income'!D24="","",'WK2 - Notional General Income'!D24) ->  | E65: =IF('WK2 - Notional General Income'!M24=".",".",'WK2 - Notional General Income'!M24/'WK2 - Notional General Income'!E24) -> . | F65: =IF('WK3 - Notional GI Yr1 YIELD'!M24=".",".",'WK3 - Notional GI Yr1 YIELD'!M24/'WK3 - Notional GI Yr1 YIELD'!E24) -> . | O65: ='WK2 - Notional General Income'!$E24 -> 0 | P65: ='WK3 - Notional GI Yr1 YIELD'!$E24 -> 0 | S65: . | T65: . | U65: . | V65: . | W65: . | X65: . | Y65: . | AA65: . | AB65: . | AC65: . | AD65: . | AE65: . | AF65: . | AG65: . | AI65: =IF(S65=".",".",SUM($S65:S65)) -> . | AJ65: =IF(T65=".",".",SUM($S65:T65)) -> . | AK65: =IF(U65=".",".",SUM($S65:U65)) -> . | AL65: =IF(V65=".",".",SUM($S65:V65)) -> . | AM65: =IF(W65=".",".",SUM($S65:W65)) -> . | AN65: =IF(X65=".",".",SUM($S65:X65)) -> . | AO65: =IF(Y65=".",".",SUM($S65:Y65)) -> . | AQ65: . | AR65: . | AS65: . | AT65: . | AU65: . | AV65: . | AW65: .
C66: Residential | D66: =IF('WK2 - Notional General Income'!D25="","",'WK2 - Notional General Income'!D25) ->  | E66: =IF('WK2 - Notional General Income'!M25=".",".",'WK2 - Notional General Income'!M25/'WK2 - Notional General Income'!E25) -> . | F66: =IF('WK3 - Notional GI Yr1 YIELD'!M25=".",".",'WK3 - Notional GI Yr1 YIELD'!M25/'WK3 - Notional GI Yr1 YIELD'!E25) -> . | O66: ='WK2 - Notional General Income'!$E25 -> 0 | P66: ='WK3 - Notional GI Yr1 YIELD'!$E25 -> 0 | S66: . | T66: . | U66: . | V66: . | W66: . | X66: . | Y66: . | AA66: . | AB66: . | AC66: . | AD66: . | AE66: . | AF66: . | AG66: . | AI66: =IF(S66=".",".",SUM($S66:S66)) -> . | AJ66: =IF(T66=".",".",SUM($S66:T66)) -> . | AK66: =IF(U66=".",".",SUM($S66:U66)) -> . | AL66: =IF(V66=".",".",SUM($S66:V66)) -> . | AM66: =IF(W66=".",".",SUM($S66:W66)) -> . | AN66: =IF(X66=".",".",SUM($S66:X66)) -> . | AO66: =IF(Y66=".",".",SUM($S66:Y66)) -> . | AQ66: . | AR66: . | AS66: . | AT66: . | AU66: . | AV66: . | AW66: .
C67: Residential | D67: =IF('WK2 - Notional General Income'!D26="","",'WK2 - Notional General Income'!D26) ->  | E67: =IF('WK2 - Notional General Income'!M26=".",".",'WK2 - Notional General Income'!M26/'WK2 - Notional General Income'!E26) -> . | F67: =IF('WK3 - Notional GI Yr1 YIELD'!M26=".",".",'WK3 - Notional GI Yr1 YIELD'!M26/'WK3 - Notional GI Yr1 YIELD'!E26) -> . | O67: ='WK2 - Notional General Income'!$E26 -> 0 | P67: ='WK3 - Notional GI Yr1 YIELD'!$E26 -> 0 | S67: . | T67: . | U67: . | V67: . | W67: . | X67: . | Y67: . | AA67: . | AB67: . | AC67: . | AD67: . | AE67: . | AF67: . | AG67: . | AI67: =IF(S67=".",".",SUM($S67:S67)) -> . | AJ67: =IF(T67=".",".",SUM($S67:T67)) -> . | AK67: =IF(U67=".",".",SUM($S67:U67)) -> . | AL67: =IF(V67=".",".",SUM($S67:V67)) -> . | AM67: =IF(W67=".",".",SUM($S67:W67)) -> . | AN67: =IF(X67=".",".",SUM($S67:X67)) -> . | AO67: =IF(Y67=".",".",SUM($S67:Y67)) -> . | AQ67: . | AR67: . | AS67: . | AT67: . | AU67: . | AV67: . | AW67: .
C68: Residential | D68: =IF('WK2 - Notional General Income'!D27="","",'WK2 - Notional General Income'!D27) ->  | E68: =IF('WK2 - Notional General Income'!M27=".",".",'WK2 - Notional General Income'!M27/'WK2 - Notional General Income'!E27) -> . | F68: =IF('WK3 - Notional GI Yr1 YIELD'!M27=".",".",'WK3 - Notional GI Yr1 YIELD'!M27/'WK3 - Notional GI Yr1 YIELD'!E27) -> . | O68: ='WK2 - Notional General Income'!$E27 -> 0 | P68: ='WK3 - Notional GI Yr1 YIELD'!$E27 -> 0 | S68: . | T68: . | U68: . | V68: . | W68: . | X68: . | Y68: . | AA68: . | AB68: . | AC68: . | AD68: . | AE68: . | AF68: . | AG68: . | AI68: =IF(S68=".",".",SUM($S68:S68)) -> . | AJ68: =IF(T68=".",".",SUM($S68:T68)) -> . | AK68: =IF(U68=".",".",SUM($S68:U68)) -> . | AL68: =IF(V68=".",".",SUM($S68:V68)) -> . | AM68: =IF(W68=".",".",SUM($S68:W68)) -> . | AN68: =IF(X68=".",".",SUM($S68:X68)) -> . | AO68: =IF(Y68=".",".",SUM($S68:Y68)) -> . | AQ68: . | AR68: . | AS68: . | AT68: . | AU68: . | AV68: . | AW68: .
C69: Residential | D69: =IF('WK2 - Notional General Income'!D28="","",'WK2 - Notional General Income'!D28) ->  | E69: =IF('WK2 - Notional General Income'!M28=".",".",'WK2 - Notional General Income'!M28/'WK2 - Notional General Income'!E28) -> . | F69: =IF('WK3 - Notional GI Yr1 YIELD'!M28=".",".",'WK3 - Notional GI Yr1 YIELD'!M28/'WK3 - Notional GI Yr1 YIELD'!E28) -> . | O69: ='WK2 - Notional General Income'!$E28 -> 0 | P69: ='WK3 - Notional GI Yr1 YIELD'!$E28 -> 0 | S69: . | T69: . | U69: . | V69: . | W69: . | X69: . | Y69: . | AA69: . | AB69: . | AC69: . | AD69: . | AE69: . | AF69: . | AG69: . | AI69: =IF(S69=".",".",SUM($S69:S69)) -> . | AJ69: =IF(T69=".",".",SUM($S69:T69)) -> . | AK69: =IF(U69=".",".",SUM($S69:U69)) -> . | AL69: =IF(V69=".",".",SUM($S69:V69)) -> . | AM69: =IF(W69=".",".",SUM($S69:W69)) -> . | AN69: =IF(X69=".",".",SUM($S69:X69)) -> . | AO69: =IF(Y69=".",".",SUM($S69:Y69)) -> . | AQ69: . | AR69: . | AS69: . | AT69: . | AU69: . | AV69: . | AW69: .
C70: Residential | D70: =IF('WK2 - Notional General Income'!D29="","",'WK2 - Notional General Income'!D29) ->  | E70: =IF('WK2 - Notional General Income'!M29=".",".",'WK2 - Notional General Income'!M29/'WK2 - Notional General Income'!E29) -> . | F70: =IF('WK3 - Notional GI Yr1 YIELD'!M29=".",".",'WK3 - Notional GI Yr1 YIELD'!M29/'WK3 - Notional GI Yr1 YIELD'!E29) -> . | O70: ='WK2 - Notional General Income'!$E29 -> 0 | P70: ='WK3 - Notional GI Yr1 YIELD'!$E29 -> 0 | S70: . | T70: . | U70: . | V70: . | W70: . | X70: . | Y70: . | AA70: . | AB70: . | AC70: . | AD70: . | AE70: . | AF70: . | AG70: . | AI70: =IF(S70=".",".",SUM($S70:S70)) -> . | AJ70: =IF(T70=".",".",SUM($S70:T70)) -> . | AK70: =IF(U70=".",".",SUM($S70:U70)) -> . | AL70: =IF(V70=".",".",SUM($S70:V70)) -> . | AM70: =IF(W70=".",".",SUM($S70:W70)) -> . | AN70: =IF(X70=".",".",SUM($S70:X70)) -> . | AO70: =IF(Y70=".",".",SUM($S70:Y70)) -> . | AQ70: . | AR70: . | AS70: . | AT70: . | AU70: . | AV70: . | AW70: .
C71: Residential | D71: =IF('WK2 - Notional General Income'!D30="","",'WK2 - Notional General Income'!D30) ->  | E71: =IF('WK2 - Notional General Income'!M30=".",".",'WK2 - Notional General Income'!M30/'WK2 - Notional General Income'!E30) -> . | F71: =IF('WK3 - Notional GI Yr1 YIELD'!M30=".",".",'WK3 - Notional GI Yr1 YIELD'!M30/'WK3 - Notional GI Yr1 YIELD'!E30) -> . | O71: ='WK2 - Notional General Income'!$E30 -> 0 | P71: ='WK3 - Notional GI Yr1 YIELD'!$E30 -> 0 | S71: . | T71: . | U71: . | V71: . | W71: . | X71: . | Y71: . | AA71: . | AB71: . | AC71: . | AD71: . | AE71: . | AF71: . | AG71: . | AI71: =IF(S71=".",".",SUM($S71:S71)) -> . | AJ71: =IF(T71=".",".",SUM($S71:T71)) -> . | AK71: =IF(U71=".",".",SUM($S71:U71)) -> . | AL71: =IF(V71=".",".",SUM($S71:V71)) -> . | AM71: =IF(W71=".",".",SUM($S71:W71)) -> . | AN71: =IF(X71=".",".",SUM($S71:X71)) -> . | AO71: =IF(Y71=".",".",SUM($S71:Y71)) -> . | AQ71: . | AR71: . | AS71: . | AT71: . | AU71: . | AV71: . | AW71: .
C72: Residential | D72: =IF('WK2 - Notional General Income'!D31="","",'WK2 - Notional General Income'!D31) ->  | E72: =IF('WK2 - Notional General Income'!M31=".",".",'WK2 - Notional General Income'!M31/'WK2 - Notional General Income'!E31) -> . | F72: =IF('WK3 - Notional GI Yr1 YIELD'!M31=".",".",'WK3 - Notional GI Yr1 YIELD'!M31/'WK3 - Notional GI Yr1 YIELD'!E31) -> . | O72: ='WK2 - Notional General Income'!$E31 -> 0 | P72: ='WK3 - Notional GI Yr1 YIELD'!$E31 -> 0 | S72: . | T72: . | U72: . | V72: . | W72: . | X72: . | Y72: . | AA72: . | AB72: . | AC72: . | AD72: . | AE72: . | AF72: . | AG72: . | AI72: =IF(S72=".",".",SUM($S72:S72)) -> . | AJ72: =IF(T72=".",".",SUM($S72:T72)) -> . | AK72: =IF(U72=".",".",SUM($S72:U72)) -> . | AL72: =IF(V72=".",".",SUM($S72:V72)) -> . | AM72: =IF(W72=".",".",SUM($S72:W72)) -> . | AN72: =IF(X72=".",".",SUM($S72:X72)) -> . | AO72: =IF(Y72=".",".",SUM($S72:Y72)) -> . | AQ72: . | AR72: . | AS72: . | AT72: . | AU72: . | AV72: . | AW72: .
C73: Residential | D73: =IF('WK2 - Notional General Income'!D32="","",'WK2 - Notional General Income'!D32) ->  | E73: =IF('WK2 - Notional General Income'!M32=".",".",'WK2 - Notional General Income'!M32/'WK2 - Notional General Income'!E32) -> . | F73: =IF('WK3 - Notional GI Yr1 YIELD'!M32=".",".",'WK3 - Notional GI Yr1 YIELD'!M32/'WK3 - Notional GI Yr1 YIELD'!E32) -> . | O73: ='WK2 - Notional General Income'!$E32 -> 0 | P73: ='WK3 - Notional GI Yr1 YIELD'!$E32 -> 0 | S73: . | T73: . | U73: . | V73: . | W73: . | X73: . | Y73: . | AA73: . | AB73: . | AC73: . | AD73: . | AE73: . | AF73: . | AG73: . | AI73: =IF(S73=".",".",SUM($S73:S73)) -> . | AJ73: =IF(T73=".",".",SUM($S73:T73)) -> . | AK73: =IF(U73=".",".",SUM($S73:U73)) -> . | AL73: =IF(V73=".",".",SUM($S73:V73)) -> . | AM73: =IF(W73=".",".",SUM($S73:W73)) -> . | AN73: =IF(X73=".",".",SUM($S73:X73)) -> . | AO73: =IF(Y73=".",".",SUM($S73:Y73)) -> . | AQ73: . | AR73: . | AS73: . | AT73: . | AU73: . | AV73: . | AW73: .
C74: Residential | D74: =IF('WK2 - Notional General Income'!D33="","",'WK2 - Notional General Income'!D33) ->  | E74: =IF('WK2 - Notional General Income'!M33=".",".",'WK2 - Notional General Income'!M33/'WK2 - Notional General Income'!E33) -> . | F74: =IF('WK3 - Notional GI Yr1 YIELD'!M33=".",".",'WK3 - Notional GI Yr1 YIELD'!M33/'WK3 - Notional GI Yr1 YIELD'!E33) -> . | O74: ='WK2 - Notional General Income'!$E33 -> 0 | P74: ='WK3 - Notional GI Yr1 YIELD'!$E33 -> 0 | S74: . | T74: . | U74: . | V74: . | W74: . | X74: . | Y74: . | AA74: . | AB74: . | AC74: . | AD74: . | AE74: . | AF74: . | AG74: . | AI74: =IF(S74=".",".",SUM($S74:S74)) -> . | AJ74: =IF(T74=".",".",SUM($S74:T74)) -> . | AK74: =IF(U74=".",".",SUM($S74:U74)) -> . | AL74: =IF(V74=".",".",SUM($S74:V74)) -> . | AM74: =IF(W74=".",".",SUM($S74:W74)) -> . | AN74: =IF(X74=".",".",SUM($S74:X74)) -> . | AO74: =IF(Y74=".",".",SUM($S74:Y74)) -> . | AQ74: . | AR74: . | AS74: . | AT74: . | AU74: . | AV74: . | AW74: .
C75: Residential | D75: =IF('WK2 - Notional General Income'!D34="","",'WK2 - Notional General Income'!D34) ->  | E75: =IF('WK2 - Notional General Income'!M34=".",".",'WK2 - Notional General Income'!M34/'WK2 - Notional General Income'!E34) -> . | F75: =IF('WK3 - Notional GI Yr1 YIELD'!M34=".",".",'WK3 - Notional GI Yr1 YIELD'!M34/'WK3 - Notional GI Yr1 YIELD'!E34) -> . | O75: ='WK2 - Notional General Income'!$E34 -> 0 | P75: ='WK3 - Notional GI Yr1 YIELD'!$E34 -> 0 | S75: . | T75: . | U75: . | V75: . | W75: . | X75: . | Y75: . | AA75: . | AB75: . | AC75: . | AD75: . | AE75: . | AF75: . | AG75: . | AI75: =IF(S75=".",".",SUM($S75:S75)) -> . | AJ75: =IF(T75=".",".",SUM($S75:T75)) -> . | AK75: =IF(U75=".",".",SUM($S75:U75)) -> . | AL75: =IF(V75=".",".",SUM($S75:V75)) -> . | AM75: =IF(W75=".",".",SUM($S75:W75)) -> . | AN75: =IF(X75=".",".",SUM($S75:X75)) -> . | AO75: =IF(Y75=".",".",SUM($S75:Y75)) -> . | AQ75: . | AR75: . | AS75: . | AT75: . | AU75: . | AV75: . | AW75: .
C76: Residential | D76: =IF('WK2 - Notional General Income'!D35="","",'WK2 - Notional General Income'!D35) ->  | E76: =IF('WK2 - Notional General Income'!M35=".",".",'WK2 - Notional General Income'!M35/'WK2 - Notional General Income'!E35) -> . | F76: =IF('WK3 - Notional GI Yr1 YIELD'!M35=".",".",'WK3 - Notional GI Yr1 YIELD'!M35/'WK3 - Notional GI Yr1 YIELD'!E35) -> . | O76: ='WK2 - Notional General Income'!$E35 -> 0 | P76: ='WK3 - Notional GI Yr1 YIELD'!$E35 -> 0 | S76: . | T76: . | U76: . | V76: . | W76: . | X76: . | Y76: . | AA76: . | AB76: . | AC76: . | AD76: . | AE76: . | AF76: . | AG76: . | AI76: =IF(S76=".",".",SUM($S76:S76)) -> . | AJ76: =IF(T76=".",".",SUM($S76:T76)) -> . | AK76: =IF(U76=".",".",SUM($S76:U76)) -> . | AL76: =IF(V76=".",".",SUM($S76:V76)) -> . | AM76: =IF(W76=".",".",SUM($S76:W76)) -> . | AN76: =IF(X76=".",".",SUM($S76:X76)) -> . | AO76: =IF(Y76=".",".",SUM($S76:Y76)) -> . | AQ76: . | AR76: . | AS76: . | AT76: . | AU76: . | AV76: . | AW76: .
C77: Residential | D77: =IF('WK2 - Notional General Income'!D36="","",'WK2 - Notional General Income'!D36) ->  | E77: =IF('WK2 - Notional General Income'!M36=".",".",'WK2 - Notional General Income'!M36/'WK2 - Notional General Income'!E36) -> . | F77: =IF('WK3 - Notional GI Yr1 YIELD'!M36=".",".",'WK3 - Notional GI Yr1 YIELD'!M36/'WK3 - Notional GI Yr1 YIELD'!E36) -> . | O77: ='WK2 - Notional General Income'!$E36 -> 0 | P77: ='WK3 - Notional GI Yr1 YIELD'!$E36 -> 0 | S77: . | T77: . | U77: . | V77: . | W77: . | X77: . | Y77: . | AA77: . | AB77: . | AC77: . | AD77: . | AE77: . | AF77: . | AG77: . | AI77: =IF(S77=".",".",SUM($S77:S77)) -> . | AJ77: =IF(T77=".",".",SUM($S77:T77)) -> . | AK77: =IF(U77=".",".",SUM($S77:U77)) -> . | AL77: =IF(V77=".",".",SUM($S77:V77)) -> . | AM77: =IF(W77=".",".",SUM($S77:W77)) -> . | AN77: =IF(X77=".",".",SUM($S77:X77)) -> . | AO77: =IF(Y77=".",".",SUM($S77:Y77)) -> . | AQ77: . | AR77: . | AS77: . | AT77: . | AU77: . | AV77: . | AW77: .
C78: Residential | D78: =IF('WK2 - Notional General Income'!D37="","",'WK2 - Notional General Income'!D37) ->  | E78: =IF('WK2 - Notional General Income'!M37=".",".",'WK2 - Notional General Income'!M37/'WK2 - Notional General Income'!E37) -> . | F78: =IF('WK3 - Notional GI Yr1 YIELD'!M37=".",".",'WK3 - Notional GI Yr1 YIELD'!M37/'WK3 - Notional GI Yr1 YIELD'!E37) -> . | O78: ='WK2 - Notional General Income'!$E37 -> 0 | P78: ='WK3 - Notional GI Yr1 YIELD'!$E37 -> 0 | S78: . | T78: . | U78: . | V78: . | W78: . | X78: . | Y78: . | AA78: . | AB78: . | AC78: . | AD78: . | AE78: . | AF78: . | AG78: . | AI78: =IF(S78=".",".",SUM($S78:S78)) -> . | AJ78: =IF(T78=".",".",SUM($S78:T78)) -> . | AK78: =IF(U78=".",".",SUM($S78:U78)) -> . | AL78: =IF(V78=".",".",SUM($S78:V78)) -> . | AM78: =IF(W78=".",".",SUM($S78:W78)) -> . | AN78: =IF(X78=".",".",SUM($S78:X78)) -> . | AO78: =IF(Y78=".",".",SUM($S78:Y78)) -> . | AQ78: . | AR78: . | AS78: . | AT78: . | AU78: . | AV78: . | AW78: .
C79: Residential | D79: =IF('WK2 - Notional General Income'!D38="","",'WK2 - Notional General Income'!D38) ->  | E79: =IF('WK2 - Notional General Income'!M38=".",".",'WK2 - Notional General Income'!M38/'WK2 - Notional General Income'!E38) -> . | F79: =IF('WK3 - Notional GI Yr1 YIELD'!M38=".",".",'WK3 - Notional GI Yr1 YIELD'!M38/'WK3 - Notional GI Yr1 YIELD'!E38) -> . | O79: ='WK2 - Notional General Income'!$E38 -> 0 | P79: ='WK3 - Notional GI Yr1 YIELD'!$E38 -> 0 | S79: . | T79: . | U79: . | V79: . | W79: . | X79: . | Y79: . | AA79: . | AB79: . | AC79: . | AD79: . | AE79: . | AF79: . | AG79: . | AI79: =IF(S79=".",".",SUM($S79:S79)) -> . | AJ79: =IF(T79=".",".",SUM($S79:T79)) -> . | AK79: =IF(U79=".",".",SUM($S79:U79)) -> . | AL79: =IF(V79=".",".",SUM($S79:V79)) -> . | AM79: =IF(W79=".",".",SUM($S79:W79)) -> . | AN79: =IF(X79=".",".",SUM($S79:X79)) -> . | AO79: =IF(Y79=".",".",SUM($S79:Y79)) -> . | AQ79: . | AR79: . | AS79: . | AT79: . | AU79: . | AV79: . | AW79: .
C80: Special rate | D80: =IF('WK2 - Notional General Income'!D94="","",'WK2 - Notional General Income'!D94) ->  | E80: =IF('WK2 - Notional General Income'!M94=".",".",'WK2 - Notional General Income'!M94/'WK2 - Notional General Income'!E94) -> . | F80: =IF('WK3 - Notional GI Yr1 YIELD'!M94=".",".",'WK3 - Notional GI Yr1 YIELD'!M94/'WK3 - Notional GI Yr1 YIELD'!E94) -> . | O80: ='WK2 - Notional General Income'!$E94 -> 0 | P80: ='WK3 - Notional GI Yr1 YIELD'!$E94 -> 0 | S80: . | T80: . | U80: . | V80: . | W80: . | X80: . | Y80: . | AA80: . | AB80: . | AC80: . | AD80: . | AE80: . | AF80: . | AG80: . | AI80: =IF(S80=".",".",SUM($S80:S80)) -> . | AJ80: =IF(T80=".",".",SUM($S80:T80)) -> . | AK80: =IF(U80=".",".",SUM($S80:U80)) -> . | AL80: =IF(V80=".",".",SUM($S80:V80)) -> . | AM80: =IF(W80=".",".",SUM($S80:W80)) -> . | AN80: =IF(X80=".",".",SUM($S80:X80)) -> . | AO80: =IF(Y80=".",".",SUM($S80:Y80)) -> . | AQ80: . | AR80: . | AS80: . | AT80: . | AU80: . | AV80: . | AW80: .
C81: Special rate | D81: =IF('WK2 - Notional General Income'!D95="","",'WK2 - Notional General Income'!D95) ->  | E81: =IF('WK2 - Notional General Income'!M95=".",".",'WK2 - Notional General Income'!M95/'WK2 - Notional General Income'!E95) -> . | F81: =IF('WK3 - Notional GI Yr1 YIELD'!M95=".",".",'WK3 - Notional GI Yr1 YIELD'!M95/'WK3 - Notional GI Yr1 YIELD'!E95) -> . | O81: ='WK2 - Notional General Income'!$E95 -> 0 | P81: ='WK3 - Notional GI Yr1 YIELD'!$E95 -> 0 | S81: . | T81: . | U81: . | V81: . | W81: . | X81: . | Y81: . | AA81: . | AB81: . | AC81: . | AD81: . | AE81: . | AF81: . | AG81: . | AI81: =IF(S81=".",".",SUM($S81:S81)) -> . | AJ81: =IF(T81=".",".",SUM($S81:T81)) -> . | AK81: =IF(U81=".",".",SUM($S81:U81)) -> . | AL81: =IF(V81=".",".",SUM($S81:V81)) -> . | AM81: =IF(W81=".",".",SUM($S81:W81)) -> . | AN81: =IF(X81=".",".",SUM($S81:X81)) -> . | AO81: =IF(Y81=".",".",SUM($S81:Y81)) -> . | AQ81: . | AR81: . | AS81: . | AT81: . | AU81: . | AV81: . | AW81: .
C82: Special rate | D82: =IF('WK2 - Notional General Income'!D96="","",'WK2 - Notional General Income'!D96) ->  | E82: =IF('WK2 - Notional General Income'!M96=".",".",'WK2 - Notional General Income'!M96/'WK2 - Notional General Income'!E96) -> . | F82: =IF('WK3 - Notional GI Yr1 YIELD'!M96=".",".",'WK3 - Notional GI Yr1 YIELD'!M96/'WK3 - Notional GI Yr1 YIELD'!E96) -> . | O82: ='WK2 - Notional General Income'!$E96 -> 0 | P82: ='WK3 - Notional GI Yr1 YIELD'!$E96 -> 0 | S82: . | T82: . | U82: . | V82: . | W82: . | X82: . | Y82: . | AA82: . | AB82: . | AC82: . | AD82: . | AE82: . | AF82: . | AG82: . | AI82: =IF(S82=".",".",SUM($S82:S82)) -> . | AJ82: =IF(T82=".",".",SUM($S82:T82)) -> . | AK82: =IF(U82=".",".",SUM($S82:U82)) -> . | AL82: =IF(V82=".",".",SUM($S82:V82)) -> . | AM82: =IF(W82=".",".",SUM($S82:W82)) -> . | AN82: =IF(X82=".",".",SUM($S82:X82)) -> . | AO82: =IF(Y82=".",".",SUM($S82:Y82)) -> . | AQ82: . | AR82: . | AS82: . | AT82: . | AU82: . | AV82: . | AW82: .
C83: Special rate | D83: =IF('WK2 - Notional General Income'!D97="","",'WK2 - Notional General Income'!D97) ->  | E83: =IF('WK2 - Notional General Income'!M97=".",".",'WK2 - Notional General Income'!M97/'WK2 - Notional General Income'!E97) -> . | F83: =IF('WK3 - Notional GI Yr1 YIELD'!M97=".",".",'WK3 - Notional GI Yr1 YIELD'!M97/'WK3 - Notional GI Yr1 YIELD'!E97) -> . | O83: ='WK2 - Notional General Income'!$E97 -> 0 | P83: ='WK3 - Notional GI Yr1 YIELD'!$E97 -> 0 | S83: . | T83: . | U83: . | V83: . | W83: . | X83: . | Y83: . | AA83: . | AB83: . | AC83: . | AD83: . | AE83: . | AF83: . | AG83: . | AI83: =IF(S83=".",".",SUM($S83:S83)) -> . | AJ83: =IF(T83=".",".",SUM($S83:T83)) -> . | AK83: =IF(U83=".",".",SUM($S83:U83)) -> . | AL83: =IF(V83=".",".",SUM($S83:V83)) -> . | AM83: =IF(W83=".",".",SUM($S83:W83)) -> . | AN83: =IF(X83=".",".",SUM($S83:X83)) -> . | AO83: =IF(Y83=".",".",SUM($S83:Y83)) -> . | AQ83: . | AR83: . | AS83: . | AT83: . | AU83: . | AV83: . | AW83: .
C84: Special rate | D84: =IF('WK2 - Notional General Income'!D98="","",'WK2 - Notional General Income'!D98) ->  | E84: =IF('WK2 - Notional General Income'!M98=".",".",'WK2 - Notional General Income'!M98/'WK2 - Notional General Income'!E98) -> . | F84: =IF('WK3 - Notional GI Yr1 YIELD'!M98=".",".",'WK3 - Notional GI Yr1 YIELD'!M98/'WK3 - Notional GI Yr1 YIELD'!E98) -> . | O84: ='WK2 - Notional General Income'!$E98 -> 0 | P84: ='WK3 - Notional GI Yr1 YIELD'!$E98 -> 0 | S84: . | T84: . | U84: . | V84: . | W84: . | X84: . | Y84: . | AA84: . | AB84: . | AC84: . | AD84: . | AE84: . | AF84: . | AG84: . | AI84: =IF(S84=".",".",SUM($S84:S84)) -> . | AJ84: =IF(T84=".",".",SUM($S84:T84)) -> . | AK84: =IF(U84=".",".",SUM($S84:U84)) -> . | AL84: =IF(V84=".",".",SUM($S84:V84)) -> . | AM84: =IF(W84=".",".",SUM($S84:W84)) -> . | AN84: =IF(X84=".",".",SUM($S84:X84)) -> . | AO84: =IF(Y84=".",".",SUM($S84:Y84)) -> . | AQ84: . | AR84: . | AS84: . | AT84: . | AU84: . | AV84: . | AW84: .
C85: Special rate | D85: =IF('WK2 - Notional General Income'!D99="","",'WK2 - Notional General Income'!D99) ->  | E85: =IF('WK2 - Notional General Income'!M99=".",".",'WK2 - Notional General Income'!M99/'WK2 - Notional General Income'!E99) -> . | F85: =IF('WK3 - Notional GI Yr1 YIELD'!M99=".",".",'WK3 - Notional GI Yr1 YIELD'!M99/'WK3 - Notional GI Yr1 YIELD'!E99) -> . | O85: ='WK2 - Notional General Income'!$E99 -> 0 | P85: ='WK3 - Notional GI Yr1 YIELD'!$E99 -> 0 | S85: . | T85: . | U85: . | V85: . | W85: . | X85: . | Y85: . | AA85: . | AB85: . | AC85: . | AD85: . | AE85: . | AF85: . | AG85: . | AI85: =IF(S85=".",".",SUM($S85:S85)) -> . | AJ85: =IF(T85=".",".",SUM($S85:T85)) -> . | AK85: =IF(U85=".",".",SUM($S85:U85)) -> . | AL85: =IF(V85=".",".",SUM($S85:V85)) -> . | AM85: =IF(W85=".",".",SUM($S85:W85)) -> . | AN85: =IF(X85=".",".",SUM($S85:X85)) -> . | AO85: =IF(Y85=".",".",SUM($S85:Y85)) -> . | AQ85: . | AR85: . | AS85: . | AT85: . | AU85: . | AV85: . | AW85: .
C86: Special rate | D86: =IF('WK2 - Notional General Income'!D100="","",'WK2 - Notional General Income'!D100) ->  | E86: =IF('WK2 - Notional General Income'!M100=".",".",'WK2 - Notional General Income'!M100/'WK2 - Notional General Income'!E100) -> . | F86: =IF('WK3 - Notional GI Yr1 YIELD'!M100=".",".",'WK3 - Notional GI Yr1 YIELD'!M100/'WK3 - Notional GI Yr1 YIELD'!E100) -> . | O86: ='WK2 - Notional General Income'!$E100 -> 0 | P86: ='WK3 - Notional GI Yr1 YIELD'!$E100 -> 0 | S86: . | T86: . | U86: . | V86: . | W86: . | X86: . | Y86: . | AA86: . | AB86: . | AC86: . | AD86: . | AE86: . | AF86: . | AG86: . | AI86: =IF(S86=".",".",SUM($S86:S86)) -> . | AJ86: =IF(T86=".",".",SUM($S86:T86)) -> . | AK86: =IF(U86=".",".",SUM($S86:U86)) -> . | AL86: =IF(V86=".",".",SUM($S86:V86)) -> . | AM86: =IF(W86=".",".",SUM($S86:W86)) -> . | AN86: =IF(X86=".",".",SUM($S86:X86)) -> . | AO86: =IF(Y86=".",".",SUM($S86:Y86)) -> . | AQ86: . | AR86: . | AS86: . | AT86: . | AU86: . | AV86: . | AW86: .
C87: Special rate | D87: =IF('WK2 - Notional General Income'!D101="","",'WK2 - Notional General Income'!D101) ->  | E87: =IF('WK2 - Notional General Income'!M101=".",".",'WK2 - Notional General Income'!M101/'WK2 - Notional General Income'!E101) -> . | F87: =IF('WK3 - Notional GI Yr1 YIELD'!M101=".",".",'WK3 - Notional GI Yr1 YIELD'!M101/'WK3 - Notional GI Yr1 YIELD'!E101) -> . | O87: ='WK2 - Notional General Income'!$E101 -> 0 | P87: ='WK3 - Notional GI Yr1 YIELD'!$E101 -> 0 | S87: . | T87: . | U87: . | V87: . | W87: . | X87: . | Y87: . | AA87: . | AB87: . | AC87: . | AD87: . | AE87: . | AF87: . | AG87: . | AI87: =IF(S87=".",".",SUM($S87:S87)) -> . | AJ87: =IF(T87=".",".",SUM($S87:T87)) -> . | AK87: =IF(U87=".",".",SUM($S87:U87)) -> . | AL87: =IF(V87=".",".",SUM($S87:V87)) -> . | AM87: =IF(W87=".",".",SUM($S87:W87)) -> . | AN87: =IF(X87=".",".",SUM($S87:X87)) -> . | AO87: =IF(Y87=".",".",SUM($S87:Y87)) -> . | AQ87: . | AR87: . | AS87: . | AT87: . | AU87: . | AV87: . | AW87: .
C88: Special rate | D88: =IF('WK2 - Notional General Income'!D102="","",'WK2 - Notional General Income'!D102) ->  | E88: =IF('WK2 - Notional General Income'!M102=".",".",'WK2 - Notional General Income'!M102/'WK2 - Notional General Income'!E102) -> . | F88: =IF('WK3 - Notional GI Yr1 YIELD'!M102=".",".",'WK3 - Notional GI Yr1 YIELD'!M102/'WK3 - Notional GI Yr1 YIELD'!E102) -> . | O88: ='WK2 - Notional General Income'!$E102 -> 0 | P88: ='WK3 - Notional GI Yr1 YIELD'!$E102 -> 0 | S88: . | T88: . | U88: . | V88: . | W88: . | X88: . | Y88: . | AA88: . | AB88: . | AC88: . | AD88: . | AE88: . | AF88: . | AG88: . | AI88: =IF(S88=".",".",SUM($S88:S88)) -> . | AJ88: =IF(T88=".",".",SUM($S88:T88)) -> . | AK88: =IF(U88=".",".",SUM($S88:U88)) -> . | AL88: =IF(V88=".",".",SUM($S88:V88)) -> . | AM88: =IF(W88=".",".",SUM($S88:W88)) -> . | AN88: =IF(X88=".",".",SUM($S88:X88)) -> . | AO88: =IF(Y88=".",".",SUM($S88:Y88)) -> . | AQ88: . | AR88: . | AS88: . | AT88: . | AU88: . | AV88: . | AW88: .
C89: Special rate | D89: =IF('WK2 - Notional General Income'!D103="","",'WK2 - Notional General Income'!D103) ->  | E89: =IF('WK2 - Notional General Income'!M103=".",".",'WK2 - Notional General Income'!M103/'WK2 - Notional General Income'!E103) -> . | F89: =IF('WK3 - Notional GI Yr1 YIELD'!M103=".",".",'WK3 - Notional GI Yr1 YIELD'!M103/'WK3 - Notional GI Yr1 YIELD'!E103) -> . | O89: ='WK2 - Notional General Income'!$E103 -> 0 | P89: ='WK3 - Notional GI Yr1 YIELD'!$E103 -> 0 | S89: . | T89: . | U89: . | V89: . | W89: . | X89: . | Y89: . | AA89: . | AB89: . | AC89: . | AD89: . | AE89: . | AF89: . | AG89: . | AI89: =IF(S89=".",".",SUM($S89:S89)) -> . | AJ89: =IF(T89=".",".",SUM($S89:T89)) -> . | AK89: =IF(U89=".",".",SUM($S89:U89)) -> . | AL89: =IF(V89=".",".",SUM($S89:V89)) -> . | AM89: =IF(W89=".",".",SUM($S89:W89)) -> . | AN89: =IF(X89=".",".",SUM($S89:X89)) -> . | AO89: =IF(Y89=".",".",SUM($S89:Y89)) -> . | AQ89: . | AR89: . | AS89: . | AT89: . | AU89: . | AV89: . | AW89: .
D90: TOTAL AVERAGE | E90: =IF(SUM(E60:E89)=0,".",(('WK2 - Notional General Income'!M39+SUM('WK2 - Notional General Income'!M94:M103))/('WK2 - Notional General Income'!E39))) -> 902.1427619 | F90: =IF(SUM(F60:F89)=0,".",('WK3 - Notional GI Yr1 YIELD'!M39+SUM('WK3 - Notional GI Yr1 YIELD'!M94:M103))/'WK3 - Notional GI Yr1 YIELD'!E39) -> 1037.46416 | G90: =IF($P90=0,".",SUMPRODUCT(G60:G89,$P60:$P89)/$P90) -> 1193.083784 | H90: 1312.392162 | I90: 1443.631378 | J90: 1587.994516 | K90: 1683.274187 | L90: 1784.270638 | O90: =SUM(O60:O79) -> 3631 | P90: =SUM(P60:P79) -> 3631 | S90: 135.321398 | T90: =IF(G90=".",".",G90-F90) -> 155.619624 | U90: 119.3083784 | V90: 131.2392162 | W90: 144.3631378 | X90: 95.27967097 | Y90: 100.9964512 | AA90: 0.1499999819 | AB90: 0.15 | AC90: 0.1 | AD90: 0.1 | AE90: 0.1 | AF90: 0.06 | AG90: 0.06 | AI90: =IF(S90=".",".",SUM($S90:S90)) -> 135.321398 | AJ90: =IF(T90=".",".",SUM($S90:T90)) -> 290.9410219 | AK90: =IF(U90=".",".",SUM($S90:U90)) -> 410.2494003 | AL90: =IF(V90=".",".",SUM($S90:V90)) -> 541.4886165 | AM90: =IF(W90=".",".",SUM($S90:W90)) -> 685.8517544 | AN90: =IF(X90=".",".",SUM($S90:X90)) -> 781.1314253 | AO90: =IF(Y90=".",".",SUM($S90:Y90)) -> 882.1278766 | AQ90: 0.1499999819 | AR90: 0.3224999792 | AS90: 0.4547499771 | AT90: 0.6002249748 | AU90: 0.7602474723 | AV90: 0.8658623206 | AW90: 0.9778140599
C91: Business | D91: =IF('WK2 - Notional General Income'!D40="","",'WK2 - Notional General Income'!D40) ->  | E91: =IF('WK2 - Notional General Income'!M40=".",".",'WK2 - Notional General Income'!M40/'WK2 - Notional General Income'!E40) -> 947.5742478 | F91: =IF('WK3 - Notional GI Yr1 YIELD'!M40=".",".",'WK3 - Notional GI Yr1 YIELD'!M40/'WK3 - Notional GI Yr1 YIELD'!E40) -> 1089.731439 | G91: =F91*15/100+F91 -> 1253.191155 | H91: =G91*10/100+G91 -> 1378.510271 | I91: =H91*10/100+H91 -> 1516.361298 | J91: =I91*10/100+I91 -> 1667.997428 | K91: =J91*6/100+J91 -> 1768.077273 | L91: =K91*6/100+K91 -> 1874.16191 | O91: ='WK2 - Notional General Income'!$E40 -> 178 | P91: ='WK3 - Notional GI Yr1 YIELD'!$E40 -> 178 | S91: 142.1571917 | T91: 163.4597159 | U91: 125.3191155 | V91: 137.8510271 | W91: 151.6361298 | X91: 100.0798457 | Y91: 106.0846364 | AA91: 0.1500222194 | AB91: 0.15 | AC91: 0.1 | AD91: 0.1 | AE91: 0.1 | AF91: 0.06 | AG91: 0.06 | AI91: =IF(S91=".",".",SUM($S91:S91)) -> 142.1571917 | AJ91: =IF(T91=".",".",SUM($S91:T91)) -> 305.6169076 | AK91: =IF(U91=".",".",SUM($S91:U91)) -> 430.9360231 | AL91: =IF(V91=".",".",SUM($S91:V91)) -> 568.7870502 | AM91: =IF(W91=".",".",SUM($S91:W91)) -> 720.42318 | AN91: =IF(X91=".",".",SUM($S91:X91)) -> 820.5030257 | AO91: =IF(Y91=".",".",SUM($S91:Y91)) -> 926.5876621 | AQ91: 0.1500222194 | AR91: 0.3225255523 | AS91: 0.4547781075 | AT91: 0.6002559183 | AU91: 0.7602815101 | AV91: 0.8658984007 | AW91: 0.9778523047
C92: Business | D92: =IF('WK2 - Notional General Income'!D41="","",'WK2 - Notional General Income'!D41) -> Clarence Town | E92: =IF('WK2 - Notional General Income'!M41=".",".",'WK2 - Notional General Income'!M41/'WK2 - Notional General Income'!E41) -> 791.21075 | F92: =IF('WK3 - Notional GI Yr1 YIELD'!M41=".",".",'WK3 - Notional GI Yr1 YIELD'!M41/'WK3 - Notional GI Yr1 YIELD'!E41) -> 909.9574583 | G92: =F92*15/100+F92 -> 1046.451077 | H92: =G92*10/100+G92 -> 1151.096185 | I92: 1266.205803 | J92: 1392.826384 | K92: =J92*6/100+J92 -> 1476.395967 | L92: 1564.979725 | O92: ='WK2 - Notional General Income'!$E41 -> 24 | P92: ='WK3 - Notional GI Yr1 YIELD'!$E41 -> 24 | S92: 118.7467083 | T92: =IF(G92="",".",G92-F92) -> 136.4936187 | U92: =IF(H92="",".",H92-G92) -> 104.6451077 | V92: =IF(I92="",".",I92-H92) -> 115.1096185 | W92: =IF(J92="",".",J92-I92) -> 126.6205803 | X92: =IF(K92="",".",K92-J92) -> 83.56958302 | Y92: =IF(L92="",".",L92-K92) -> 88.583758 | AA92: =IF(ISNUMBER(E92),F92/E92-1,".") -> 0.1500822737 | AB92: =IF(ISNUMBER(F92),G92/F92-1,".") -> 0.15 | AC92: =IF(ISNUMBER(G92),H92/G92-1,".") -> 0.1 | AD92: =IF(ISNUMBER(H92),I92/H92-1,".") -> 0.1 | AE92: =IF(ISNUMBER(I92),J92/I92-1,".") -> 0.1 | AF92: =IF(ISNUMBER(J92),K92/J92-1,".") -> 0.06 | AG92: =IF(ISNUMBER(K92),L92/K92-1,".") -> 0.06 | AI92: =IF(S92=".",".",SUM($S92:S92)) -> 118.7467083 | AJ92: =IF(T92=".",".",SUM($S92:T92)) -> 255.2403271 | AK92: =IF(U92=".",".",SUM($S92:U92)) -> 359.8854348 | AL92: =IF(V92=".",".",SUM($S92:V92)) -> 474.9950533 | AM92: =IF(W92=".",".",SUM($S92:W92)) -> 601.6156336 | AN92: =IF(X92=".",".",SUM($S92:X92)) -> 685.1852166 | AO92: =IF(Y92=".",".",SUM($S92:Y92)) -> 773.7689746 | AQ92: =IF(ISNUMBER($E92),F92/$E92-1,".") -> 0.1500822737 | AR92: =IF(ISNUMBER($E92),G92/$E92-1,".") -> 0.3225946148 | AS92: =IF(ISNUMBER($E92),H92/$E92-1,".") -> 0.4548540762 | AT92: =IF(ISNUMBER($E92),I92/$E92-1,".") -> 0.6003394838 | AU92: =IF(ISNUMBER($E92),J92/$E92-1,".") -> 0.7603734322 | AV92: =IF(ISNUMBER($E92),K92/$E92-1,".") -> 0.8659958382 | AW92: =IF(ISNUMBER($E92),L92/$E92-1,".") -> 0.9779555885
C93: Business | D93: =IF('WK2 - Notional General Income'!D42="","",'WK2 - Notional General Income'!D42) -> Dungog | E93: =IF('WK2 - Notional General Income'!M42=".",".",'WK2 - Notional General Income'!M42/'WK2 - Notional General Income'!E42) -> 932.4103627 | F93: =IF('WK3 - Notional GI Yr1 YIELD'!M42=".",".",'WK3 - Notional GI Yr1 YIELD'!M42/'WK3 - Notional GI Yr1 YIELD'!E42) -> 1072.229191 | G93: 1233.06357 | H93: =G93*10/100+G93 -> 1356.369927 | I93: 1492.00692 | J93: 1641.207612 | K93: =J93*6/100+J93 -> 1739.680068 | L93: 1844.060873 | O93: ='WK2 - Notional General Income'!$E42 -> 113 | P93: ='WK3 - Notional GI Yr1 YIELD'!$E42 -> 113 | S93: 139.8188287 | T93: 160.8343787 | U93: 123.306357 | V93: 135.6369927 | W93: 149.200692 | X93: 98.4724567 | Y93: 104.3808041 | AA93: 0.1499541771 | AB93: 0.15 | AC93: 0.1 | AD93: 0.1 | AE93: 0.1 | AF93: 0.06 | AG93: 0.06 | AI93: =IF(S93=".",".",SUM($S93:S93)) -> 139.8188287 | AJ93: =IF(T93=".",".",SUM($S93:T93)) -> 300.6532074 | AK93: =IF(U93=".",".",SUM($S93:U93)) -> 423.9595644 | AL93: =IF(V93=".",".",SUM($S93:V93)) -> 559.5965571 | AM93: =IF(W93=".",".",SUM($S93:W93)) -> 708.7972491 | AN93: =IF(X93=".",".",SUM($S93:X93)) -> 807.2697058 | AO93: =IF(Y93=".",".",SUM($S93:Y93)) -> 911.6505099 | AQ93: 0.1499541771 | AR93: 0.3224473037 | AS93: 0.4546920341 | AT93: 0.6001612375 | AU93: 0.7601773612 | AV93: 0.8657880029 | AW93: 0.9777352831
C94: Business | D94: =IF('WK2 - Notional General Income'!D43="","",'WK2 - Notional General Income'!D43) -> Village | E94: =IF('WK2 - Notional General Income'!M43=".",".",'WK2 - Notional General Income'!M43/'WK2 - Notional General Income'!E43) -> 716.0670665 | F94: =IF('WK3 - Notional GI Yr1 YIELD'!M43=".",".",'WK3 - Notional GI Yr1 YIELD'!M43/'WK3 - Notional GI Yr1 YIELD'!E43) -> 823.4433039 | G94: 946.9597995 | H94: =G94*10/100+G94 -> 1041.655779 | I94: 1145.821357 | J94: 1260.403493 | K94: =J94*6/100+J94 -> 1336.027703 | L94: 1416.189365 | O94: ='WK2 - Notional General Income'!$E43 -> 46 | P94: ='WK3 - Notional GI Yr1 YIELD'!$E43 -> 46 | S94: 107.3762374 | T94: 123.5164956 | U94: 94.69597995 | V94: 104.1655779 | W94: 114.5821357 | X94: 75.62420959 | Y94: 80.16166216 | AA94: 0.1499527661 | AB94: 0.15 | AC94: 0.1 | AD94: 0.1 | AE94: 0.1 | AF94: 0.06 | AG94: 0.06 | AI94: =IF(S94=".",".",SUM($S94:S94)) -> 107.3762374 | AJ94: =IF(T94=".",".",SUM($S94:T94)) -> 230.892733 | AK94: =IF(U94=".",".",SUM($S94:U94)) -> 325.5887129 | AL94: =IF(V94=".",".",SUM($S94:V94)) -> 429.7542909 | AM94: =IF(W94=".",".",SUM($S94:W94)) -> 544.3364266 | AN94: =IF(X94=".",".",SUM($S94:X94)) -> 619.9606362 | AO94: =IF(Y94=".",".",SUM($S94:Y94)) -> 700.1222983 | AQ94: 0.1499527661 | AR94: 0.3224456811 | AS94: 0.4546902492 | AT94: 0.6001592741 | AU94: 0.7601752015 | AV94: 0.8657857136 | AW94: 0.9777328564
C95: Business | D95: =IF('WK2 - Notional General Income'!D44="","",'WK2 - Notional General Income'!D44) ->  | E95: =IF('WK2 - Notional General Income'!M44=".",".",'WK2 - Notional General Income'!M44/'WK2 - Notional General Income'!E44) -> . | F95: =IF('WK3 - Notional GI Yr1 YIELD'!M44=".",".",'WK3 - Notional GI Yr1 YIELD'!M44/'WK3 - Notional GI Yr1 YIELD'!E44) -> . | O95: ='WK2 - Notional General Income'!$E44 -> 0 | P95: ='WK3 - Notional GI Yr1 YIELD'!$E44 -> 0 | S95: . | T95: . | U95: . | V95: . | W95: . | X95: . | Y95: . | AA95: . | AB95: . | AC95: . | AD95: . | AE95: . | AF95: . | AG95: . | AI95: =IF(S95=".",".",SUM($S95:S95)) -> . | AJ95: =IF(T95=".",".",SUM($S95:T95)) -> . | AK95: =IF(U95=".",".",SUM($S95:U95)) -> . | AL95: =IF(V95=".",".",SUM($S95:V95)) -> . | AM95: =IF(W95=".",".",SUM($S95:W95)) -> . | AN95: =IF(X95=".",".",SUM($S95:X95)) -> . | AO95: =IF(Y95=".",".",SUM($S95:Y95)) -> . | AQ95: . | AR95: . | AS95: . | AT95: . | AU95: . | AV95: . | AW95: .
C96: Business | D96: =IF('WK2 - Notional General Income'!D45="","",'WK2 - Notional General Income'!D45) ->  | E96: =IF('WK2 - Notional General Income'!M45=".",".",'WK2 - Notional General Income'!M45/'WK2 - Notional General Income'!E45) -> . | F96: =IF('WK3 - Notional GI Yr1 YIELD'!M45=".",".",'WK3 - Notional GI Yr1 YIELD'!M45/'WK3 - Notional GI Yr1 YIELD'!E45) -> . | O96: ='WK2 - Notional General Income'!$E45 -> 0 | P96: ='WK3 - Notional GI Yr1 YIELD'!$E45 -> 0 | S96: . | T96: . | U96: . | V96: . | W96: . | X96: . | Y96: . | AA96: . | AB96: . | AC96: . | AD96: . | AE96: . | AF96: . | AG96: . | AI96: =IF(S96=".",".",SUM($S96:S96)) -> . | AJ96: =IF(T96=".",".",SUM($S96:T96)) -> . | AK96: =IF(U96=".",".",SUM($S96:U96)) -> . | AL96: =IF(V96=".",".",SUM($S96:V96)) -> . | AM96: =IF(W96=".",".",SUM($S96:W96)) -> . | AN96: =IF(X96=".",".",SUM($S96:X96)) -> . | AO96: =IF(Y96=".",".",SUM($S96:Y96)) -> . | AQ96: . | AR96: . | AS96: . | AT96: . | AU96: . | AV96: . | AW96: .
C97: Business | D97: =IF('WK2 - Notional General Income'!D46="","",'WK2 - Notional General Income'!D46) ->  | E97: =IF('WK2 - Notional General Income'!M46=".",".",'WK2 - Notional General Income'!M46/'WK2 - Notional General Income'!E46) -> . | F97: =IF('WK3 - Notional GI Yr1 YIELD'!M46=".",".",'WK3 - Notional GI Yr1 YIELD'!M46/'WK3 - Notional GI Yr1 YIELD'!E46) -> . | O97: ='WK2 - Notional General Income'!$E46 -> 0 | P97: ='WK3 - Notional GI Yr1 YIELD'!$E46 -> 0 | S97: . | T97: . | U97: . | V97: . | W97: . | X97: . | Y97: . | AA97: . | AB97: . | AC97: . | AD97: . | AE97: . | AF97: . | AG97: . | AI97: =IF(S97=".",".",SUM($S97:S97)) -> . | AJ97: =IF(T97=".",".",SUM($S97:T97)) -> . | AK97: =IF(U97=".",".",SUM($S97:U97)) -> . | AL97: =IF(V97=".",".",SUM($S97:V97)) -> . | AM97: =IF(W97=".",".",SUM($S97:W97)) -> . | AN97: =IF(X97=".",".",SUM($S97:X97)) -> . | AO97: =IF(Y97=".",".",SUM($S97:Y97)) -> . | AQ97: . | AR97: . | AS97: . | AT97: . | AU97: . | AV97: . | AW97: .
C98: Business | D98: =IF('WK2 - Notional General Income'!D47="","",'WK2 - Notional General Income'!D47) ->  | E98: =IF('WK2 - Notional General Income'!M47=".",".",'WK2 - Notional General Income'!M47/'WK2 - Notional General Income'!E47) -> . | F98: =IF('WK3 - Notional GI Yr1 YIELD'!M47=".",".",'WK3 - Notional GI Yr1 YIELD'!M47/'WK3 - Notional GI Yr1 YIELD'!E47) -> . | O98: ='WK2 - Notional General Income'!$E47 -> 0 | P98: ='WK3 - Notional GI Yr1 YIELD'!$E47 -> 0 | S98: . | T98: . | U98: . | V98: . | W98: . | X98: . | Y98: . | AA98: . | AB98: . | AC98: . | AD98: . | AE98: . | AF98: . | AG98: . | AI98: =IF(S98=".",".",SUM($S98:S98)) -> . | AJ98: =IF(T98=".",".",SUM($S98:T98)) -> . | AK98: =IF(U98=".",".",SUM($S98:U98)) -> . | AL98: =IF(V98=".",".",SUM($S98:V98)) -> . | AM98: =IF(W98=".",".",SUM($S98:W98)) -> . | AN98: =IF(X98=".",".",SUM($S98:X98)) -> . | AO98: =IF(Y98=".",".",SUM($S98:Y98)) -> . | AQ98: . | AR98: . | AS98: . | AT98: . | AU98: . | AV98: . | AW98: .
C99: Business | D99: =IF('WK2 - Notional General Income'!D48="","",'WK2 - Notional General Income'!D48) ->  | E99: =IF('WK2 - Notional General Income'!M48=".",".",'WK2 - Notional General Income'!M48/'WK2 - Notional General Income'!E48) -> . | F99: =IF('WK3 - Notional GI Yr1 YIELD'!M48=".",".",'WK3 - Notional GI Yr1 YIELD'!M48/'WK3 - Notional GI Yr1 YIELD'!E48) -> . | O99: ='WK2 - Notional General Income'!$E48 -> 0 | P99: ='WK3 - Notional GI Yr1 YIELD'!$E48 -> 0 | S99: . | T99: . | U99: . | V99: . | W99: . | X99: . | Y99: . | AA99: . | AB99: . | AC99: . | AD99: . | AE99: . | AF99: . | AG99: . | AI99: =IF(S99=".",".",SUM($S99:S99)) -> . | AJ99: =IF(T99=".",".",SUM($S99:T99)) -> . | AK99: =IF(U99=".",".",SUM($S99:U99)) -> . | AL99: =IF(V99=".",".",SUM($S99:V99)) -> . | AM99: =IF(W99=".",".",SUM($S99:W99)) -> . | AN99: =IF(X99=".",".",SUM($S99:X99)) -> . | AO99: =IF(Y99=".",".",SUM($S99:Y99)) -> . | AQ99: . | AR99: . | AS99: . | AT99: . | AU99: . | AV99: . | AW99: .
C100: Business | D100: =IF('WK2 - Notional General Income'!D49="","",'WK2 - Notional General Income'!D49) ->  | E100: =IF('WK2 - Notional General Income'!M49=".",".",'WK2 - Notional General Income'!M49/'WK2 - Notional General Income'!E49) -> . | F100: =IF('WK3 - Notional GI Yr1 YIELD'!M49=".",".",'WK3 - Notional GI Yr1 YIELD'!M49/'WK3 - Notional GI Yr1 YIELD'!E49) -> . | O100: ='WK2 - Notional General Income'!$E49 -> 0 | P100: ='WK3 - Notional GI Yr1 YIELD'!$E49 -> 0 | S100: . | T100: . | U100: . | V100: . | W100: . | X100: . | Y100: . | AA100: . | AB100: . | AC100: . | AD100: . | AE100: . | AF100: . | AG100: . | AI100: =IF(S100=".",".",SUM($S100:S100)) -> . | AJ100: =IF(T100=".",".",SUM($S100:T100)) -> . | AK100: =IF(U100=".",".",SUM($S100:U100)) -> . | AL100: =IF(V100=".",".",SUM($S100:V100)) -> . | AM100: =IF(W100=".",".",SUM($S100:W100)) -> . | AN100: =IF(X100=".",".",SUM($S100:X100)) -> . | AO100: =IF(Y100=".",".",SUM($S100:Y100)) -> . | AQ100: . | AR100: . | AS100: . | AT100: . | AU100: . | AV100: . | AW100: .
C101: Business | D101: =IF('WK2 - Notional General Income'!D50="","",'WK2 - Notional General Income'!D50) ->  | E101: =IF('WK2 - Notional General Income'!M50=".",".",'WK2 - Notional General Income'!M50/'WK2 - Notional General Income'!E50) -> . | F101: =IF('WK3 - Notional GI Yr1 YIELD'!M50=".",".",'WK3 - Notional GI Yr1 YIELD'!M50/'WK3 - Notional GI Yr1 YIELD'!E50) -> . | O101: ='WK2 - Notional General Income'!$E50 -> 0 | P101: ='WK3 - Notional GI Yr1 YIELD'!$E50 -> 0 | S101: . | T101: . | U101: . | V101: . | W101: . | X101: . | Y101: . | AA101: . | AB101: . | AC101: . | AD101: . | AE101: . | AF101: . | AG101: . | AI101: =IF(S101=".",".",SUM($S101:S101)) -> . | AJ101: =IF(T101=".",".",SUM($S101:T101)) -> . | AK101: =IF(U101=".",".",SUM($S101:U101)) -> . | AL101: =IF(V101=".",".",SUM($S101:V101)) -> . | AM101: =IF(W101=".",".",SUM($S101:W101)) -> . | AN101: =IF(X101=".",".",SUM($S101:X101)) -> . | AO101: =IF(Y101=".",".",SUM($S101:Y101)) -> . | AQ101: . | AR101: . | AS101: . | AT101: . | AU101: . | AV101: . | AW101: .
C102: Business | D102: =IF('WK2 - Notional General Income'!D51="","",'WK2 - Notional General Income'!D51) ->  | E102: =IF('WK2 - Notional General Income'!M51=".",".",'WK2 - Notional General Income'!M51/'WK2 - Notional General Income'!E51) -> . | F102: =IF('WK3 - Notional GI Yr1 YIELD'!M51=".",".",'WK3 - Notional GI Yr1 YIELD'!M51/'WK3 - Notional GI Yr1 YIELD'!E51) -> . | O102: ='WK2 - Notional General Income'!$E51 -> 0 | P102: ='WK3 - Notional GI Yr1 YIELD'!$E51 -> 0 | S102: . | T102: . | U102: . | V102: . | W102: . | X102: . | Y102: . | AA102: . | AB102: . | AC102: . | AD102: . | AE102: . | AF102: . | AG102: . | AI102: =IF(S102=".",".",SUM($S102:S102)) -> . | AJ102: =IF(T102=".",".",SUM($S102:T102)) -> . | AK102: =IF(U102=".",".",SUM($S102:U102)) -> . | AL102: =IF(V102=".",".",SUM($S102:V102)) -> . | AM102: =IF(W102=".",".",SUM($S102:W102)) -> . | AN102: =IF(X102=".",".",SUM($S102:X102)) -> . | AO102: =IF(Y102=".",".",SUM($S102:Y102)) -> . | AQ102: . | AR102: . | AS102: . | AT102: . | AU102: . | AV102: . | AW102: .
C103: Business | D103: =IF('WK2 - Notional General Income'!D52="","",'WK2 - Notional General Income'!D52) ->  | E103: =IF('WK2 - Notional General Income'!M52=".",".",'WK2 - Notional General Income'!M52/'WK2 - Notional General Income'!E52) -> . | F103: =IF('WK3 - Notional GI Yr1 YIELD'!M52=".",".",'WK3 - Notional GI Yr1 YIELD'!M52/'WK3 - Notional GI Yr1 YIELD'!E52) -> . | O103: ='WK2 - Notional General Income'!$E52 -> 0 | P103: ='WK3 - Notional GI Yr1 YIELD'!$E52 -> 0 | S103: . | T103: . | U103: . | V103: . | W103: . | X103: . | Y103: . | AA103: . | AB103: . | AC103: . | AD103: . | AE103: . | AF103: . | AG103: . | AI103: =IF(S103=".",".",SUM($S103:S103)) -> . | AJ103: =IF(T103=".",".",SUM($S103:T103)) -> . | AK103: =IF(U103=".",".",SUM($S103:U103)) -> . | AL103: =IF(V103=".",".",SUM($S103:V103)) -> . | AM103: =IF(W103=".",".",SUM($S103:W103)) -> . | AN103: =IF(X103=".",".",SUM($S103:X103)) -> . | AO103: =IF(Y103=".",".",SUM($S103:Y103)) -> . | AQ103: . | AR103: . | AS103: . | AT103: . | AU103: . | AV103: . | AW103: .
C104: Business | D104: =IF('WK2 - Notional General Income'!D53="","",'WK2 - Notional General Income'!D53) ->  | E104: =IF('WK2 - Notional General Income'!M53=".",".",'WK2 - Notional General Income'!M53/'WK2 - Notional General Income'!E53) -> . | F104: =IF('WK3 - Notional GI Yr1 YIELD'!M53=".",".",'WK3 - Notional GI Yr1 YIELD'!M53/'WK3 - Notional GI Yr1 YIELD'!E53) -> . | O104: ='WK2 - Notional General Income'!$E53 -> 0 | P104: ='WK3 - Notional GI Yr1 YIELD'!$E53 -> 0 | S104: . | T104: . | U104: . | V104: . | W104: . | X104: . | Y104: . | AA104: . | AB104: . | AC104: . | AD104: . | AE104: . | AF104: . | AG104: . | AI104: =IF(S104=".",".",SUM($S104:S104)) -> . | AJ104: =IF(T104=".",".",SUM($S104:T104)) -> . | AK104: =IF(U104=".",".",SUM($S104:U104)) -> . | AL104: =IF(V104=".",".",SUM($S104:V104)) -> . | AM104: =IF(W104=".",".",SUM($S104:W104)) -> . | AN104: =IF(X104=".",".",SUM($S104:X104)) -> . | AO104: =IF(Y104=".",".",SUM($S104:Y104)) -> . | AQ104: . | AR104: . | AS104: . | AT104: . | AU104: . | AV104: . | AW104: .
C105: Business | D105: =IF('WK2 - Notional General Income'!D54="","",'WK2 - Notional General Income'!D54) ->  | E105: =IF('WK2 - Notional General Income'!M54=".",".",'WK2 - Notional General Income'!M54/'WK2 - Notional General Income'!E54) -> . | F105: =IF('WK3 - Notional GI Yr1 YIELD'!M54=".",".",'WK3 - Notional GI Yr1 YIELD'!M54/'WK3 - Notional GI Yr1 YIELD'!E54) -> . | O105: ='WK2 - Notional General Income'!$E54 -> 0 | P105: ='WK3 - Notional GI Yr1 YIELD'!$E54 -> 0 | S105: . | T105: . | U105: . | V105: . | W105: . | X105: . | Y105: . | AA105: . | AB105: . | AC105: . | AD105: . | AE105: . | AF105: . | AG105: . | AI105: =IF(S105=".",".",SUM($S105:S105)) -> . | AJ105: =IF(T105=".",".",SUM($S105:T105)) -> . | AK105: =IF(U105=".",".",SUM($S105:U105)) -> . | AL105: =IF(V105=".",".",SUM($S105:V105)) -> . | AM105: =IF(W105=".",".",SUM($S105:W105)) -> . | AN105: =IF(X105=".",".",SUM($S105:X105)) -> . | AO105: =IF(Y105=".",".",SUM($S105:Y105)) -> . | AQ105: . | AR105: . | AS105: . | AT105: . | AU105: . | AV105: . | AW105: .
C106: Business | D106: =IF('WK2 - Notional General Income'!D55="","",'WK2 - Notional General Income'!D55) ->  | E106: =IF('WK2 - Notional General Income'!M55=".",".",'WK2 - Notional General Income'!M55/'WK2 - Notional General Income'!E55) -> . | F106: =IF('WK3 - Notional GI Yr1 YIELD'!M55=".",".",'WK3 - Notional GI Yr1 YIELD'!M55/'WK3 - Notional GI Yr1 YIELD'!E55) -> . | O106: ='WK2 - Notional General Income'!$E55 -> 0 | P106: ='WK3 - Notional GI Yr1 YIELD'!$E55 -> 0 | S106: . | T106: . | U106: . | V106: . | W106: . | X106: . | Y106: . | AA106: . | AB106: . | AC106: . | AD106: . | AE106: . | AF106: . | AG106: . | AI106: =IF(S106=".",".",SUM($S106:S106)) -> . | AJ106: =IF(T106=".",".",SUM($S106:T106)) -> . | AK106: =IF(U106=".",".",SUM($S106:U106)) -> . | AL106: =IF(V106=".",".",SUM($S106:V106)) -> . | AM106: =IF(W106=".",".",SUM($S106:W106)) -> . | AN106: =IF(X106=".",".",SUM($S106:X106)) -> . | AO106: =IF(Y106=".",".",SUM($S106:Y106)) -> . | AQ106: . | AR106: . | AS106: . | AT106: . | AU106: . | AV106: . | AW106: .
C107: Business | D107: =IF('WK2 - Notional General Income'!D56="","",'WK2 - Notional General Income'!D56) ->  | E107: =IF('WK2 - Notional General Income'!M56=".",".",'WK2 - Notional General Income'!M56/'WK2 - Notional General Income'!E56) -> . | F107: =IF('WK3 - Notional GI Yr1 YIELD'!M56=".",".",'WK3 - Notional GI Yr1 YIELD'!M56/'WK3 - Notional GI Yr1 YIELD'!E56) -> . | O107: ='WK2 - Notional General Income'!$E56 -> 0 | P107: ='WK3 - Notional GI Yr1 YIELD'!$E56 -> 0 | S107: . | T107: . | U107: . | V107: . | W107: . | X107: . | Y107: . | AA107: . | AB107: . | AC107: . | AD107: . | AE107: . | AF107: . | AG107: . | AI107: =IF(S107=".",".",SUM($S107:S107)) -> . | AJ107: =IF(T107=".",".",SUM($S107:T107)) -> . | AK107: =IF(U107=".",".",SUM($S107:U107)) -> . | AL107: =IF(V107=".",".",SUM($S107:V107)) -> . | AM107: =IF(W107=".",".",SUM($S107:W107)) -> . | AN107: =IF(X107=".",".",SUM($S107:X107)) -> . | AO107: =IF(Y107=".",".",SUM($S107:Y107)) -> . | AQ107: . | AR107: . | AS107: . | AT107: . | AU107: . | AV107: . | AW107: .
C108: Business | D108: =IF('WK2 - Notional General Income'!D57="","",'WK2 - Notional General Income'!D57) ->  | E108: =IF('WK2 - Notional General Income'!M57=".",".",'WK2 - Notional General Income'!M57/'WK2 - Notional General Income'!E57) -> . | F108: =IF('WK3 - Notional GI Yr1 YIELD'!M57=".",".",'WK3 - Notional GI Yr1 YIELD'!M57/'WK3 - Notional GI Yr1 YIELD'!E57) -> . | O108: ='WK2 - Notional General Income'!$E57 -> 0 | P108: ='WK3 - Notional GI Yr1 YIELD'!$E57 -> 0 | S108: . | T108: . | U108: . | V108: . | W108: . | X108: . | Y108: . | AA108: . | AB108: . | AC108: . | AD108: . | AE108: . | AF108: . | AG108: . | AI108: =IF(S108=".",".",SUM($S108:S108)) -> . | AJ108: =IF(T108=".",".",SUM($S108:T108)) -> . | AK108: =IF(U108=".",".",SUM($S108:U108)) -> . | AL108: =IF(V108=".",".",SUM($S108:V108)) -> . | AM108: =IF(W108=".",".",SUM($S108:W108)) -> . | AN108: =IF(X108=".",".",SUM($S108:X108)) -> . | AO108: =IF(Y108=".",".",SUM($S108:Y108)) -> . | AQ108: . | AR108: . | AS108: . | AT108: . | AU108: . | AV108: . | AW108: .
C109: Business | D109: =IF('WK2 - Notional General Income'!D58="","",'WK2 - Notional General Income'!D58) ->  | E109: =IF('WK2 - Notional General Income'!M58=".",".",'WK2 - Notional General Income'!M58/'WK2 - Notional General Income'!E58) -> . | F109: =IF('WK3 - Notional GI Yr1 YIELD'!M58=".",".",'WK3 - Notional GI Yr1 YIELD'!M58/'WK3 - Notional GI Yr1 YIELD'!E58) -> . | O109: ='WK2 - Notional General Income'!$E58 -> 0 | P109: ='WK3 - Notional GI Yr1 YIELD'!$E58 -> 0 | S109: . | T109: . | U109: . | V109: . | W109: . | X109: . | Y109: . | AA109: . | AB109: . | AC109: . | AD109: . | AE109: . | AF109: . | AG109: . | AI109: =IF(S109=".",".",SUM($S109:S109)) -> . | AJ109: =IF(T109=".",".",SUM($S109:T109)) -> . | AK109: =IF(U109=".",".",SUM($S109:U109)) -> . | AL109: =IF(V109=".",".",SUM($S109:V109)) -> . | AM109: =IF(W109=".",".",SUM($S109:W109)) -> . | AN109: =IF(X109=".",".",SUM($S109:X109)) -> . | AO109: =IF(Y109=".",".",SUM($S109:Y109)) -> . | AQ109: . | AR109: . | AS109: . | AT109: . | AU109: . | AV109: . | AW109: .
C110: Business | D110: =IF('WK2 - Notional General Income'!D59="","",'WK2 - Notional General Income'!D59) ->  | E110: =IF('WK2 - Notional General Income'!M59=".",".",'WK2 - Notional General Income'!M59/'WK2 - Notional General Income'!E59) -> . | F110: =IF('WK3 - Notional GI Yr1 YIELD'!M59=".",".",'WK3 - Notional GI Yr1 YIELD'!M59/'WK3 - Notional GI Yr1 YIELD'!E59) -> . | O110: ='WK2 - Notional General Income'!$E59 -> 0 | P110: ='WK3 - Notional GI Yr1 YIELD'!$E59 -> 0 | S110: . | T110: . | U110: . | V110: . | W110: . | X110: . | Y110: . | AA110: . | AB110: . | AC110: . | AD110: . | AE110: . | AF110: . | AG110: . | AI110: =IF(S110=".",".",SUM($S110:S110)) -> . | AJ110: =IF(T110=".",".",SUM($S110:T110)) -> . | AK110: =IF(U110=".",".",SUM($S110:U110)) -> . | AL110: =IF(V110=".",".",SUM($S110:V110)) -> . | AM110: =IF(W110=".",".",SUM($S110:W110)) -> . | AN110: =IF(X110=".",".",SUM($S110:X110)) -> . | AO110: =IF(Y110=".",".",SUM($S110:Y110)) -> . | AQ110: . | AR110: . | AS110: . | AT110: . | AU110: . | AV110: . | AW110: .
C111: Business | D111: =IF('WK2 - Notional General Income'!D60="","",'WK2 - Notional General Income'!D60) ->  | E111: =IF('WK2 - Notional General Income'!M60=".",".",'WK2 - Notional General Income'!M60/'WK2 - Notional General Income'!E60) -> . | F111: =IF('WK3 - Notional GI Yr1 YIELD'!M60=".",".",'WK3 - Notional GI Yr1 YIELD'!M60/'WK3 - Notional GI Yr1 YIELD'!E60) -> . | O111: ='WK2 - Notional General Income'!$E60 -> 0 | P111: ='WK3 - Notional GI Yr1 YIELD'!$E60 -> 0 | S111: . | T111: . | U111: . | V111: . | W111: . | X111: . | Y111: . | AA111: . | AB111: . | AC111: . | AD111: . | AE111: . | AF111: . | AG111: . | AI111: =IF(S111=".",".",SUM($S111:S111)) -> . | AJ111: =IF(T111=".",".",SUM($S111:T111)) -> . | AK111: =IF(U111=".",".",SUM($S111:U111)) -> . | AL111: =IF(V111=".",".",SUM($S111:V111)) -> . | AM111: =IF(W111=".",".",SUM($S111:W111)) -> . | AN111: =IF(X111=".",".",SUM($S111:X111)) -> . | AO111: =IF(Y111=".",".",SUM($S111:Y111)) -> . | AQ111: . | AR111: . | AS111: . | AT111: . | AU111: . | AV111: . | AW111: .
C112: Business | D112: =IF('WK2 - Notional General Income'!D61="","",'WK2 - Notional General Income'!D61) ->  | E112: =IF('WK2 - Notional General Income'!M61=".",".",'WK2 - Notional General Income'!M61/'WK2 - Notional General Income'!E61) -> . | F112: =IF('WK3 - Notional GI Yr1 YIELD'!M61=".",".",'WK3 - Notional GI Yr1 YIELD'!M61/'WK3 - Notional GI Yr1 YIELD'!E61) -> . | O112: ='WK2 - Notional General Income'!$E61 -> 0 | P112: ='WK3 - Notional GI Yr1 YIELD'!$E61 -> 0 | S112: . | T112: . | U112: . | V112: . | W112: . | X112: . | Y112: . | AA112: . | AB112: . | AC112: . | AD112: . | AE112: . | AF112: . | AG112: . | AI112: =IF(S112=".",".",SUM($S112:S112)) -> . | AJ112: =IF(T112=".",".",SUM($S112:T112)) -> . | AK112: =IF(U112=".",".",SUM($S112:U112)) -> . | AL112: =IF(V112=".",".",SUM($S112:V112)) -> . | AM112: =IF(W112=".",".",SUM($S112:W112)) -> . | AN112: =IF(X112=".",".",SUM($S112:X112)) -> . | AO112: =IF(Y112=".",".",SUM($S112:Y112)) -> . | AQ112: . | AR112: . | AS112: . | AT112: . | AU112: . | AV112: . | AW112: .
C113: Business | D113: =IF('WK2 - Notional General Income'!D62="","",'WK2 - Notional General Income'!D62) ->  | E113: =IF('WK2 - Notional General Income'!M62=".",".",'WK2 - Notional General Income'!M62/'WK2 - Notional General Income'!E62) -> . | F113: =IF('WK3 - Notional GI Yr1 YIELD'!M62=".",".",'WK3 - Notional GI Yr1 YIELD'!M62/'WK3 - Notional GI Yr1 YIELD'!E62) -> . | O113: ='WK2 - Notional General Income'!$E62 -> 0 | P113: ='WK3 - Notional GI Yr1 YIELD'!$E62 -> 0 | S113: . | T113: . | U113: . | V113: . | W113: . | X113: . | Y113: . | AA113: . | AB113: . | AC113: . | AD113: . | AE113: . | AF113: . | AG113: . | AI113: =IF(S113=".",".",SUM($S113:S113)) -> . | AJ113: =IF(T113=".",".",SUM($S113:T113)) -> . | AK113: =IF(U113=".",".",SUM($S113:U113)) -> . | AL113: =IF(V113=".",".",SUM($S113:V113)) -> . | AM113: =IF(W113=".",".",SUM($S113:W113)) -> . | AN113: =IF(X113=".",".",SUM($S113:X113)) -> . | AO113: =IF(Y113=".",".",SUM($S113:Y113)) -> . | AQ113: . | AR113: . | AS113: . | AT113: . | AU113: . | AV113: . | AW113: .
C114: Business | D114: =IF('WK2 - Notional General Income'!D63="","",'WK2 - Notional General Income'!D63) ->  | E114: =IF('WK2 - Notional General Income'!M63=".",".",'WK2 - Notional General Income'!M63/'WK2 - Notional General Income'!E63) -> . | F114: =IF('WK3 - Notional GI Yr1 YIELD'!M63=".",".",'WK3 - Notional GI Yr1 YIELD'!M63/'WK3 - Notional GI Yr1 YIELD'!E63) -> . | O114: ='WK2 - Notional General Income'!$E63 -> 0 | P114: ='WK3 - Notional GI Yr1 YIELD'!$E63 -> 0 | S114: . | T114: . | U114: . | V114: . | W114: . | X114: . | Y114: . | AA114: . | AB114: . | AC114: . | AD114: . | AE114: . | AF114: . | AG114: . | AI114: =IF(S114=".",".",SUM($S114:S114)) -> . | AJ114: =IF(T114=".",".",SUM($S114:T114)) -> . | AK114: =IF(U114=".",".",SUM($S114:U114)) -> . | AL114: =IF(V114=".",".",SUM($S114:V114)) -> . | AM114: =IF(W114=".",".",SUM($S114:W114)) -> . | AN114: =IF(X114=".",".",SUM($S114:X114)) -> . | AO114: =IF(Y114=".",".",SUM($S114:Y114)) -> . | AQ114: . | AR114: . | AS114: . | AT114: . | AU114: . | AV114: . | AW114: .
C115: Business | D115: =IF('WK2 - Notional General Income'!D64="","",'WK2 - Notional General Income'!D64) ->  | E115: =IF('WK2 - Notional General Income'!M64=".",".",'WK2 - Notional General Income'!M64/'WK2 - Notional General Income'!E64) -> . | F115: =IF('WK3 - Notional GI Yr1 YIELD'!M64=".",".",'WK3 - Notional GI Yr1 YIELD'!M64/'WK3 - Notional GI Yr1 YIELD'!E64) -> . | O115: ='WK2 - Notional General Income'!$E64 -> 0 | P115: ='WK3 - Notional GI Yr1 YIELD'!$E64 -> 0 | S115: . | T115: . | U115: . | V115: . | W115: . | X115: . | Y115: . | AA115: . | AB115: . | AC115: . | AD115: . | AE115: . | AF115: . | AG115: . | AI115: =IF(S115=".",".",SUM($S115:S115)) -> . | AJ115: =IF(T115=".",".",SUM($S115:T115)) -> . | AK115: =IF(U115=".",".",SUM($S115:U115)) -> . | AL115: =IF(V115=".",".",SUM($S115:V115)) -> . | AM115: =IF(W115=".",".",SUM($S115:W115)) -> . | AN115: =IF(X115=".",".",SUM($S115:X115)) -> . | AO115: =IF(Y115=".",".",SUM($S115:Y115)) -> . | AQ115: . | AR115: . | AS115: . | AT115: . | AU115: . | AV115: . | AW115: .
C116: Special rate | D116: =IF('WK2 - Notional General Income'!D104="","",'WK2 - Notional General Income'!D104) ->  | E116: =IF('WK2 - Notional General Income'!M104=".",".",'WK2 - Notional General Income'!M104/'WK2 - Notional General Income'!E104) -> . | F116: =IF('WK3 - Notional GI Yr1 YIELD'!M104=".",".",'WK3 - Notional GI Yr1 YIELD'!M104/'WK3 - Notional GI Yr1 YIELD'!E104) -> . | O116: ='WK2 - Notional General Income'!$E104 -> 0 | P116: ='WK3 - Notional GI Yr1 YIELD'!$E104 -> 0 | S116: . | T116: . | U116: . | V116: . | W116: . | X116: . | Y116: . | AA116: . | AB116: . | AC116: . | AD116: . | AE116: . | AF116: . | AG116: . | AI116: =IF(S116=".",".",SUM($S116:S116)) -> . | AJ116: =IF(T116=".",".",SUM($S116:T116)) -> . | AK116: =IF(U116=".",".",SUM($S116:U116)) -> . | AL116: =IF(V116=".",".",SUM($S116:V116)) -> . | AM116: =IF(W116=".",".",SUM($S116:W116)) -> . | AN116: =IF(X116=".",".",SUM($S116:X116)) -> . | AO116: =IF(Y116=".",".",SUM($S116:Y116)) -> . | AQ116: . | AR116: . | AS116: . | AT116: . | AU116: . | AV116: . | AW116: .
C117: Special rate | D117: =IF('WK2 - Notional General Income'!D105="","",'WK2 - Notional General Income'!D105) ->  | E117: =IF('WK2 - Notional General Income'!M105=".",".",'WK2 - Notional General Income'!M105/'WK2 - Notional General Income'!E105) -> . | F117: =IF('WK3 - Notional GI Yr1 YIELD'!M105=".",".",'WK3 - Notional GI Yr1 YIELD'!M105/'WK3 - Notional GI Yr1 YIELD'!E105) -> . | O117: ='WK2 - Notional General Income'!$E105 -> 0 | P117: ='WK3 - Notional GI Yr1 YIELD'!$E105 -> 0 | S117: . | T117: . | U117: . | V117: . | W117: . | X117: . | Y117: . | AA117: . | AB117: . | AC117: . | AD117: . | AE117: . | AF117: . | AG117: . | AI117: =IF(S117=".",".",SUM($S117:S117)) -> . | AJ117: =IF(T117=".",".",SUM($S117:T117)) -> . | AK117: =IF(U117=".",".",SUM($S117:U117)) -> . | AL117: =IF(V117=".",".",SUM($S117:V117)) -> . | AM117: =IF(W117=".",".",SUM($S117:W117)) -> . | AN117: =IF(X117=".",".",SUM($S117:X117)) -> . | AO117: =IF(Y117=".",".",SUM($S117:Y117)) -> . | AQ117: . | AR117: . | AS117: . | AT117: . | AU117: . | AV117: . | AW117: .
C118: Special rate | D118: =IF('WK2 - Notional General Income'!D106="","",'WK2 - Notional General Income'!D106) ->  | E118: =IF('WK2 - Notional General Income'!M106=".",".",'WK2 - Notional General Income'!M106/'WK2 - Notional General Income'!E106) -> . | F118: =IF('WK3 - Notional GI Yr1 YIELD'!M106=".",".",'WK3 - Notional GI Yr1 YIELD'!M106/'WK3 - Notional GI Yr1 YIELD'!E106) -> . | O118: ='WK2 - Notional General Income'!$E106 -> 0 | P118: ='WK3 - Notional GI Yr1 YIELD'!$E106 -> 0 | S118: . | T118: . | U118: . | V118: . | W118: . | X118: . | Y118: . | AA118: . | AB118: . | AC118: . | AD118: . | AE118: . | AF118: . | AG118: . | AI118: =IF(S118=".",".",SUM($S118:S118)) -> . | AJ118: =IF(T118=".",".",SUM($S118:T118)) -> . | AK118: =IF(U118=".",".",SUM($S118:U118)) -> . | AL118: =IF(V118=".",".",SUM($S118:V118)) -> . | AM118: =IF(W118=".",".",SUM($S118:W118)) -> . | AN118: =IF(X118=".",".",SUM($S118:X118)) -> . | AO118: =IF(Y118=".",".",SUM($S118:Y118)) -> . | AQ118: . | AR118: . | AS118: . | AT118: . | AU118: . | AV118: . | AW118: .
C119: Special rate | D119: =IF('WK2 - Notional General Income'!D107="","",'WK2 - Notional General Income'!D107) ->  | E119: =IF('WK2 - Notional General Income'!M107=".",".",'WK2 - Notional General Income'!M107/'WK2 - Notional General Income'!E107) -> . | F119: =IF('WK3 - Notional GI Yr1 YIELD'!M107=".",".",'WK3 - Notional GI Yr1 YIELD'!M107/'WK3 - Notional GI Yr1 YIELD'!E107) -> . | O119: ='WK2 - Notional General Income'!$E107 -> 0 | P119: ='WK3 - Notional GI Yr1 YIELD'!$E107 -> 0 | S119: . | T119: . | U119: . | V119: . | W119: . | X119: . | Y119: . | AA119: . | AB119: . | AC119: . | AD119: . | AE119: . | AF119: . | AG119: . | AI119: =IF(S119=".",".",SUM($S119:S119)) -> . | AJ119: =IF(T119=".",".",SUM($S119:T119)) -> . | AK119: =IF(U119=".",".",SUM($S119:U119)) -> . | AL119: =IF(V119=".",".",SUM($S119:V119)) -> . | AM119: =IF(W119=".",".",SUM($S119:W119)) -> . | AN119: =IF(X119=".",".",SUM($S119:X119)) -> . | AO119: =IF(Y119=".",".",SUM($S119:Y119)) -> . | AQ119: . | AR119: . | AS119: . | AT119: . | AU119: . | AV119: . | AW119: .
C120: Special rate | D120: =IF('WK2 - Notional General Income'!D108="","",'WK2 - Notional General Income'!D108) ->  | E120: =IF('WK2 - Notional General Income'!M108=".",".",'WK2 - Notional General Income'!M108/'WK2 - Notional General Income'!E108) -> . | F120: =IF('WK3 - Notional GI Yr1 YIELD'!M108=".",".",'WK3 - Notional GI Yr1 YIELD'!M108/'WK3 - Notional GI Yr1 YIELD'!E108) -> . | O120: ='WK2 - Notional General Income'!$E108 -> 0 | P120: ='WK3 - Notional GI Yr1 YIELD'!$E108 -> 0 | S120: . | T120: . | U120: . | V120: . | W120: . | X120: . | Y120: . | AA120: . | AB120: . | AC120: . | AD120: . | AE120: . | AF120: . | AG120: . | AI120: =IF(S120=".",".",SUM($S120:S120)) -> . | AJ120: =IF(T120=".",".",SUM($S120:T120)) -> . | AK120: =IF(U120=".",".",SUM($S120:U120)) -> . | AL120: =IF(V120=".",".",SUM($S120:V120)) -> . | AM120: =IF(W120=".",".",SUM($S120:W120)) -> . | AN120: =IF(X120=".",".",SUM($S120:X120)) -> . | AO120: =IF(Y120=".",".",SUM($S120:Y120)) -> . | AQ120: . | AR120: . | AS120: . | AT120: . | AU120: . | AV120: . | AW120: .
C121: Special rate | D121: =IF('WK2 - Notional General Income'!D109="","",'WK2 - Notional General Income'!D109) ->  | E121: =IF('WK2 - Notional General Income'!M109=".",".",'WK2 - Notional General Income'!M109/'WK2 - Notional General Income'!E109) -> . | F121: =IF('WK3 - Notional GI Yr1 YIELD'!M109=".",".",'WK3 - Notional GI Yr1 YIELD'!M109/'WK3 - Notional GI Yr1 YIELD'!E109) -> . | O121: ='WK2 - Notional General Income'!$E109 -> 0 | P121: ='WK3 - Notional GI Yr1 YIELD'!$E109 -> 0 | S121: . | T121: . | U121: . | V121: . | W121: . | X121: . | Y121: . | AA121: . | AB121: . | AC121: . | AD121: . | AE121: . | AF121: . | AG121: . | AI121: =IF(S121=".",".",SUM($S121:S121)) -> . | AJ121: =IF(T121=".",".",SUM($S121:T121)) -> . | AK121: =IF(U121=".",".",SUM($S121:U121)) -> . | AL121: =IF(V121=".",".",SUM($S121:V121)) -> . | AM121: =IF(W121=".",".",SUM($S121:W121)) -> . | AN121: =IF(X121=".",".",SUM($S121:X121)) -> . | AO121: =IF(Y121=".",".",SUM($S121:Y121)) -> . | AQ121: . | AR121: . | AS121: . | AT121: . | AU121: . | AV121: . | AW121: .
C122: Special rate | D122: =IF('WK2 - Notional General Income'!D110="","",'WK2 - Notional General Income'!D110) ->  | E122: =IF('WK2 - Notional General Income'!M110=".",".",'WK2 - Notional General Income'!M110/'WK2 - Notional General Income'!E110) -> . | F122: =IF('WK3 - Notional GI Yr1 YIELD'!M110=".",".",'WK3 - Notional GI Yr1 YIELD'!M110/'WK3 - Notional GI Yr1 YIELD'!E110) -> . | O122: ='WK2 - Notional General Income'!$E110 -> 0 | P122: ='WK3 - Notional GI Yr1 YIELD'!$E110 -> 0 | S122: . | T122: . | U122: . | V122: . | W122: . | X122: . | Y122: . | AA122: . | AB122: . | AC122: . | AD122: . | AE122: . | AF122: . | AG122: . | AI122: =IF(S122=".",".",SUM($S122:S122)) -> . | AJ122: =IF(T122=".",".",SUM($S122:T122)) -> . | AK122: =IF(U122=".",".",SUM($S122:U122)) -> . | AL122: =IF(V122=".",".",SUM($S122:V122)) -> . | AM122: =IF(W122=".",".",SUM($S122:W122)) -> . | AN122: =IF(X122=".",".",SUM($S122:X122)) -> . | AO122: =IF(Y122=".",".",SUM($S122:Y122)) -> . | AQ122: . | AR122: . | AS122: . | AT122: . | AU122: . | AV122: . | AW122: .
C123: Special rate | D123: =IF('WK2 - Notional General Income'!D111="","",'WK2 - Notional General Income'!D111) ->  | E123: =IF('WK2 - Notional General Income'!M111=".",".",'WK2 - Notional General Income'!M111/'WK2 - Notional General Income'!E111) -> . | F123: =IF('WK3 - Notional GI Yr1 YIELD'!M111=".",".",'WK3 - Notional GI Yr1 YIELD'!M111/'WK3 - Notional GI Yr1 YIELD'!E111) -> . | O123: ='WK2 - Notional General Income'!$E111 -> 0 | P123: ='WK3 - Notional GI Yr1 YIELD'!$E111 -> 0 | S123: . | T123: . | U123: . | V123: . | W123: . | X123: . | Y123: . | AA123: . | AB123: . | AC123: . | AD123: . | AE123: . | AF123: . | AG123: . | AI123: =IF(S123=".",".",SUM($S123:S123)) -> . | AJ123: =IF(T123=".",".",SUM($S123:T123)) -> . | AK123: =IF(U123=".",".",SUM($S123:U123)) -> . | AL123: =IF(V123=".",".",SUM($S123:V123)) -> . | AM123: =IF(W123=".",".",SUM($S123:W123)) -> . | AN123: =IF(X123=".",".",SUM($S123:X123)) -> . | AO123: =IF(Y123=".",".",SUM($S123:Y123)) -> . | AQ123: . | AR123: . | AS123: . | AT123: . | AU123: . | AV123: . | AW123: .
C124: Special rate | D124: =IF('WK2 - Notional General Income'!D112="","",'WK2 - Notional General Income'!D112) ->  | E124: =IF('WK2 - Notional General Income'!M112=".",".",'WK2 - Notional General Income'!M112/'WK2 - Notional General Income'!E112) -> . | F124: =IF('WK3 - Notional GI Yr1 YIELD'!M112=".",".",'WK3 - Notional GI Yr1 YIELD'!M112/'WK3 - Notional GI Yr1 YIELD'!E112) -> . | O124: ='WK2 - Notional General Income'!$E112 -> 0 | P124: ='WK3 - Notional GI Yr1 YIELD'!$E112 -> 0 | S124: . | T124: =IF(G124="",".",G124-F124) -> . | U124: =IF(H124="",".",H124-G124) -> . | V124: =IF(I124="",".",I124-H124) -> . | W124: =IF(J124="",".",J124-I124) -> . | X124: =IF(K124="",".",K124-J124) -> . | Y124: =IF(L124="",".",L124-K124) -> . | AA124: =IF(ISNUMBER(E124),F124/E124-1,".") -> . | AB124: =IF(ISNUMBER(F124),G124/F124-1,".") -> . | AC124: =IF(ISNUMBER(G124),H124/G124-1,".") -> . | AD124: =IF(ISNUMBER(H124),I124/H124-1,".") -> . | AE124: =IF(ISNUMBER(I124),J124/I124-1,".") -> . | AF124: =IF(ISNUMBER(J124),K124/J124-1,".") -> . | AG124: =IF(ISNUMBER(K124),L124/K124-1,".") -> . | AI124: =IF(S124=".",".",SUM($S124:S124)) -> . | AJ124: =IF(T124=".",".",SUM($S124:T124)) -> . | AK124: =IF(U124=".",".",SUM($S124:U124)) -> . | AL124: =IF(V124=".",".",SUM($S124:V124)) -> . | AM124: =IF(W124=".",".",SUM($S124:W124)) -> . | AN124: =IF(X124=".",".",SUM($S124:X124)) -> . | AO124: =IF(Y124=".",".",SUM($S124:Y124)) -> . | AQ124: =IF(ISNUMBER($E124),F124/$E124-1,".") -> . | AR124: =IF(ISNUMBER($E124),G124/$E124-1,".") -> . | AS124: =IF(ISNUMBER($E124),H124/$E124-1,".") -> . | AT124: =IF(ISNUMBER($E124),I124/$E124-1,".") -> . | AU124: =IF(ISNUMBER($E124),J124/$E124-1,".") -> . | AV124: =IF(ISNUMBER($E124),K124/$E124-1,".") -> . | AW124: =IF(ISNUMBER($E124),L124/$E124-1,".") -> .
C125: Special rate | D125: =IF('WK2 - Notional General Income'!D113="","",'WK2 - Notional General Income'!D113) ->  | E125: =IF('WK2 - Notional General Income'!M113=".",".",'WK2 - Notional General Income'!M113/'WK2 - Notional General Income'!E113) -> . | F125: =IF('WK3 - Notional GI Yr1 YIELD'!M113=".",".",'WK3 - Notional GI Yr1 YIELD'!M113/'WK3 - Notional GI Yr1 YIELD'!E113) -> . | O125: ='WK2 - Notional General Income'!$E113 -> 0 | P125: ='WK3 - Notional GI Yr1 YIELD'!$E113 -> 0 | S125: =IF(F125=".",".",F125-E125) -> . | T125: . | U125: . | V125: . | W125: . | X125: . | Y125: . | AA125: . | AB125: . | AC125: . | AD125: . | AE125: . | AF125: . | AG125: . | AI125: =IF(S125=".",".",SUM($S125:S125)) -> . | AJ125: =IF(T125=".",".",SUM($S125:T125)) -> . | AK125: =IF(U125=".",".",SUM($S125:U125)) -> . | AL125: =IF(V125=".",".",SUM($S125:V125)) -> . | AM125: =IF(W125=".",".",SUM($S125:W125)) -> . | AN125: =IF(X125=".",".",SUM($S125:X125)) -> . | AO125: =IF(Y125=".",".",SUM($S125:Y125)) -> . | AQ125: . | AR125: . | AS125: . | AT125: . | AU125: . | AV125: . | AW125: .
C126: Special rate | D126: =IF('WK2 - Notional General Income'!D114="","",'WK2 - Notional General Income'!D114) ->  | E126: =IF('WK2 - Notional General Income'!M114=".",".",'WK2 - Notional General Income'!M114/'WK2 - Notional General Income'!E114) -> . | F126: =IF('WK3 - Notional GI Yr1 YIELD'!M114=".",".",'WK3 - Notional GI Yr1 YIELD'!M114/'WK3 - Notional GI Yr1 YIELD'!E114) -> . | O126: ='WK2 - Notional General Income'!$E114 -> 0 | P126: ='WK3 - Notional GI Yr1 YIELD'!$E114 -> 0 | S126: . | T126: . | U126: . | V126: . | W126: . | X126: . | Y126: . | AA126: . | AB126: . | AC126: . | AD126: . | AE126: . | AF126: . | AG126: . | AI126: =IF(S126=".",".",SUM($S126:S126)) -> . | AJ126: =IF(T126=".",".",SUM($S126:T126)) -> . | AK126: =IF(U126=".",".",SUM($S126:U126)) -> . | AL126: =IF(V126=".",".",SUM($S126:V126)) -> . | AM126: =IF(W126=".",".",SUM($S126:W126)) -> . | AN126: =IF(X126=".",".",SUM($S126:X126)) -> . | AO126: =IF(Y126=".",".",SUM($S126:Y126)) -> . | AQ126: . | AR126: . | AS126: . | AT126: . | AU126: . | AV126: . | AW126: .
C127: Special rate | D127: =IF('WK2 - Notional General Income'!D115="","",'WK2 - Notional General Income'!D115) ->  | E127: =IF('WK2 - Notional General Income'!M115=".",".",'WK2 - Notional General Income'!M115/'WK2 - Notional General Income'!E115) -> . | F127: =IF('WK3 - Notional GI Yr1 YIELD'!M115=".",".",'WK3 - Notional GI Yr1 YIELD'!M115/'WK3 - Notional GI Yr1 YIELD'!E115) -> . | O127: ='WK2 - Notional General Income'!$E115 -> 0 | P127: ='WK3 - Notional GI Yr1 YIELD'!$E115 -> 0 | S127: . | T127: . | U127: . | V127: . | W127: . | X127: . | Y127: . | AA127: . | AB127: . | AC127: . | AD127: . | AE127: . | AF127: . | AG127: . | AI127: =IF(S127=".",".",SUM($S127:S127)) -> . | AJ127: =IF(T127=".",".",SUM($S127:T127)) -> . | AK127: =IF(U127=".",".",SUM($S127:U127)) -> . | AL127: =IF(V127=".",".",SUM($S127:V127)) -> . | AM127: =IF(W127=".",".",SUM($S127:W127)) -> . | AN127: =IF(X127=".",".",SUM($S127:X127)) -> . | AO127: =IF(Y127=".",".",SUM($S127:Y127)) -> . | AQ127: . | AR127: . | AS127: . | AT127: . | AU127: . | AV127: . | AW127: .
C128: Special rate | D128: =IF('WK2 - Notional General Income'!D116="","",'WK2 - Notional General Income'!D116) ->  | E128: =IF('WK2 - Notional General Income'!M116=".",".",'WK2 - Notional General Income'!M116/'WK2 - Notional General Income'!E116) -> . | F128: =IF('WK3 - Notional GI Yr1 YIELD'!M116=".",".",'WK3 - Notional GI Yr1 YIELD'!M116/'WK3 - Notional GI Yr1 YIELD'!E116) -> . | O128: ='WK2 - Notional General Income'!$E116 -> 0 | P128: ='WK3 - Notional GI Yr1 YIELD'!$E116 -> 0 | S128: . | T128: . | U128: . | V128: . | W128: . | X128: . | Y128: . | AA128: . | AB128: . | AC128: . | AD128: . | AE128: . | AF128: . | AG128: . | AI128: =IF(S128=".",".",SUM($S128:S128)) -> . | AJ128: =IF(T128=".",".",SUM($S128:T128)) -> . | AK128: =IF(U128=".",".",SUM($S128:U128)) -> . | AL128: =IF(V128=".",".",SUM($S128:V128)) -> . | AM128: =IF(W128=".",".",SUM($S128:W128)) -> . | AN128: =IF(X128=".",".",SUM($S128:X128)) -> . | AO128: =IF(Y128=".",".",SUM($S128:Y128)) -> . | AQ128: . | AR128: . | AS128: . | AT128: . | AU128: . | AV128: . | AW128: .
C129: Special rate | D129: =IF('WK2 - Notional General Income'!D117="","",'WK2 - Notional General Income'!D117) ->  | E129: =IF('WK2 - Notional General Income'!M117=".",".",'WK2 - Notional General Income'!M117/'WK2 - Notional General Income'!E117) -> . | F129: =IF('WK3 - Notional GI Yr1 YIELD'!M117=".",".",'WK3 - Notional GI Yr1 YIELD'!M117/'WK3 - Notional GI Yr1 YIELD'!E117) -> . | O129: ='WK2 - Notional General Income'!$E117 -> 0 | P129: ='WK3 - Notional GI Yr1 YIELD'!$E117 -> 0 | S129: . | T129: . | U129: . | V129: . | W129: . | X129: . | Y129: . | AA129: . | AB129: . | AC129: . | AD129: . | AE129: . | AF129: . | AG129: . | AI129: =IF(S129=".",".",SUM($S129:S129)) -> . | AJ129: =IF(T129=".",".",SUM($S129:T129)) -> . | AK129: =IF(U129=".",".",SUM($S129:U129)) -> . | AL129: =IF(V129=".",".",SUM($S129:V129)) -> . | AM129: =IF(W129=".",".",SUM($S129:W129)) -> . | AN129: =IF(X129=".",".",SUM($S129:X129)) -> . | AO129: =IF(Y129=".",".",SUM($S129:Y129)) -> . | AQ129: . | AR129: . | AS129: . | AT129: . | AU129: . | AV129: . | AW129: .
C130: Special rate | D130: =IF('WK2 - Notional General Income'!D118="","",'WK2 - Notional General Income'!D118) ->  | E130: =IF('WK2 - Notional General Income'!M118=".",".",'WK2 - Notional General Income'!M118/'WK2 - Notional General Income'!E118) -> . | F130: =IF('WK3 - Notional GI Yr1 YIELD'!M118=".",".",'WK3 - Notional GI Yr1 YIELD'!M118/'WK3 - Notional GI Yr1 YIELD'!E118) -> . | O130: ='WK2 - Notional General Income'!$E118 -> 0 | P130: ='WK3 - Notional GI Yr1 YIELD'!$E118 -> 0 | S130: . | T130: . | U130: . | V130: . | W130: . | X130: . | Y130: . | AA130: . | AB130: . | AC130: . | AD130: . | AE130: . | AF130: . | AG130: . | AI130: =IF(S130=".",".",SUM($S130:S130)) -> . | AJ130: =IF(T130=".",".",SUM($S130:T130)) -> . | AK130: =IF(U130=".",".",SUM($S130:U130)) -> . | AL130: =IF(V130=".",".",SUM($S130:V130)) -> . | AM130: =IF(W130=".",".",SUM($S130:W130)) -> . | AN130: =IF(X130=".",".",SUM($S130:X130)) -> . | AO130: =IF(Y130=".",".",SUM($S130:Y130)) -> . | AQ130: . | AR130: . | AS130: . | AT130: . | AU130: . | AV130: . | AW130: .
C131: Special rate | D131: =IF('WK2 - Notional General Income'!D119="","",'WK2 - Notional General Income'!D119) ->  | E131: =IF('WK2 - Notional General Income'!M119=".",".",'WK2 - Notional General Income'!M119/'WK2 - Notional General Income'!E119) -> . | F131: =IF('WK3 - Notional GI Yr1 YIELD'!M119=".",".",'WK3 - Notional GI Yr1 YIELD'!M119/'WK3 - Notional GI Yr1 YIELD'!E119) -> . | O131: ='WK2 - Notional General Income'!$E119 -> 0 | P131: ='WK3 - Notional GI Yr1 YIELD'!$E119 -> 0 | S131: . | T131: . | U131: . | V131: . | W131: . | X131: . | Y131: . | AA131: . | AB131: . | AC131: . | AD131: . | AE131: . | AF131: . | AG131: . | AI131: =IF(S131=".",".",SUM($S131:S131)) -> . | AJ131: =IF(T131=".",".",SUM($S131:T131)) -> . | AK131: =IF(U131=".",".",SUM($S131:U131)) -> . | AL131: =IF(V131=".",".",SUM($S131:V131)) -> . | AM131: =IF(W131=".",".",SUM($S131:W131)) -> . | AN131: =IF(X131=".",".",SUM($S131:X131)) -> . | AO131: =IF(Y131=".",".",SUM($S131:Y131)) -> . | AQ131: . | AR131: . | AS131: . | AT131: . | AU131: . | AV131: . | AW131: .
C132: Special rate | D132: =IF('WK2 - Notional General Income'!D120="","",'WK2 - Notional General Income'!D120) ->  | E132: =IF('WK2 - Notional General Income'!M120=".",".",'WK2 - Notional General Income'!M120/'WK2 - Notional General Income'!E120) -> . | F132: =IF('WK3 - Notional GI Yr1 YIELD'!M120=".",".",'WK3 - Notional GI Yr1 YIELD'!M120/'WK3 - Notional GI Yr1 YIELD'!E120) -> . | O132: ='WK2 - Notional General Income'!$E120 -> 0 | P132: ='WK3 - Notional GI Yr1 YIELD'!$E120 -> 0 | S132: . | T132: . | U132: . | V132: . | W132: . | X132: . | Y132: . | AA132: . | AB132: . | AC132: . | AD132: . | AE132: . | AF132: . | AG132: . | AI132: =IF(S132=".",".",SUM($S132:S132)) -> . | AJ132: =IF(T132=".",".",SUM($S132:T132)) -> . | AK132: =IF(U132=".",".",SUM($S132:U132)) -> . | AL132: =IF(V132=".",".",SUM($S132:V132)) -> . | AM132: =IF(W132=".",".",SUM($S132:W132)) -> . | AN132: =IF(X132=".",".",SUM($S132:X132)) -> . | AO132: =IF(Y132=".",".",SUM($S132:Y132)) -> . | AQ132: . | AR132: . | AS132: . | AT132: . | AU132: . | AV132: . | AW132: .
C133: Special rate | D133: =IF('WK2 - Notional General Income'!D121="","",'WK2 - Notional General Income'!D121) ->  | E133: =IF('WK2 - Notional General Income'!M121=".",".",'WK2 - Notional General Income'!M121/'WK2 - Notional General Income'!E121) -> . | F133: =IF('WK3 - Notional GI Yr1 YIELD'!M121=".",".",'WK3 - Notional GI Yr1 YIELD'!M121/'WK3 - Notional GI Yr1 YIELD'!E121) -> . | O133: ='WK2 - Notional General Income'!$E121 -> 0 | P133: ='WK3 - Notional GI Yr1 YIELD'!$E121 -> 0 | S133: . | T133: . | U133: . | V133: . | W133: . | X133: . | Y133: . | AA133: . | AB133: . | AC133: . | AD133: . | AE133: . | AF133: . | AG133: . | AI133: =IF(S133=".",".",SUM($S133:S133)) -> . | AJ133: =IF(T133=".",".",SUM($S133:T133)) -> . | AK133: =IF(U133=".",".",SUM($S133:U133)) -> . | AL133: =IF(V133=".",".",SUM($S133:V133)) -> . | AM133: =IF(W133=".",".",SUM($S133:W133)) -> . | AN133: =IF(X133=".",".",SUM($S133:X133)) -> . | AO133: =IF(Y133=".",".",SUM($S133:Y133)) -> . | AQ133: . | AR133: . | AS133: . | AT133: . | AU133: . | AV133: . | AW133: .
C134: Special rate | D134: =IF('WK2 - Notional General Income'!D122="","",'WK2 - Notional General Income'!D122) ->  | E134: =IF('WK2 - Notional General Income'!M122=".",".",'WK2 - Notional General Income'!M122/'WK2 - Notional General Income'!E122) -> . | F134: =IF('WK3 - Notional GI Yr1 YIELD'!M122=".",".",'WK3 - Notional GI Yr1 YIELD'!M122/'WK3 - Notional GI Yr1 YIELD'!E122) -> . | O134: ='WK2 - Notional General Income'!$E122 -> 0 | P134: ='WK3 - Notional GI Yr1 YIELD'!$E122 -> 0 | S134: . | T134: . | U134: . | V134: . | W134: . | X134: . | Y134: . | AA134: . | AB134: . | AC134: . | AD134: . | AE134: . | AF134: . | AG134: . | AI134: =IF(S134=".",".",SUM($S134:S134)) -> . | AJ134: =IF(T134=".",".",SUM($S134:T134)) -> . | AK134: =IF(U134=".",".",SUM($S134:U134)) -> . | AL134: =IF(V134=".",".",SUM($S134:V134)) -> . | AM134: =IF(W134=".",".",SUM($S134:W134)) -> . | AN134: =IF(X134=".",".",SUM($S134:X134)) -> . | AO134: =IF(Y134=".",".",SUM($S134:Y134)) -> . | AQ134: . | AR134: . | AS134: . | AT134: . | AU134: . | AV134: . | AW134: .
C135: Special rate | D135: =IF('WK2 - Notional General Income'!D123="","",'WK2 - Notional General Income'!D123) ->  | E135: =IF('WK2 - Notional General Income'!M123=".",".",'WK2 - Notional General Income'!M123/'WK2 - Notional General Income'!E123) -> . | F135: =IF('WK3 - Notional GI Yr1 YIELD'!M123=".",".",'WK3 - Notional GI Yr1 YIELD'!M123/'WK3 - Notional GI Yr1 YIELD'!E123) -> . | O135: ='WK2 - Notional General Income'!$E123 -> 0 | P135: ='WK3 - Notional GI Yr1 YIELD'!$E123 -> 0 | S135: . | T135: . | U135: . | V135: . | W135: . | X135: . | Y135: . | AA135: . | AB135: . | AC135: . | AD135: . | AE135: . | AF135: . | AG135: . | AI135: =IF(S135=".",".",SUM($S135:S135)) -> . | AJ135: =IF(T135=".",".",SUM($S135:T135)) -> . | AK135: =IF(U135=".",".",SUM($S135:U135)) -> . | AL135: =IF(V135=".",".",SUM($S135:V135)) -> . | AM135: =IF(W135=".",".",SUM($S135:W135)) -> . | AN135: =IF(X135=".",".",SUM($S135:X135)) -> . | AO135: =IF(Y135=".",".",SUM($S135:Y135)) -> . | AQ135: . | AR135: . | AS135: . | AT135: . | AU135: . | AV135: . | AW135: .
D136: TOTAL AVERAGE | E136: =IF(SUM(E91:E135)=0,".",('WK2 - Notional General Income'!M65+SUM('WK2 - Notional General Income'!M104:M123))/'WK2 - Notional General Income'!E65) -> 902.9327705 | F136: =IF(SUM(F91:F135)=0,".",('WK3 - Notional GI Yr1 YIELD'!M65+SUM('WK3 - Notional GI Yr1 YIELD'!M104:M123))/'WK3 - Notional GI Yr1 YIELD'!E65) -> 1038.369711 | G136: =IF($P136=0,".",SUMPRODUCT(G91:G135,$P91:$P135)/$P136) -> 1194.125168 | H136: 1313.537685 | I136: 1444.891453 | J136: 1589.380599 | K136: 1684.743435 | L136: 1785.828041 | O136: =SUM(O91:O115) -> 361 | P136: =SUM(P91:P115) -> 361 | S136: 135.4369409 | T136: =IF(G136=".",".",G136-F136) -> 155.7554567 | U136: 119.4125168 | V136: 131.3537685 | W136: 144.4891453 | X136: 95.36283593 | Y136: 101.0846061 | AA136: 0.1499967056 | AB136: 0.15 | AC136: 0.1 | AD136: 0.1 | AE136: 0.1 | AF136: 0.06 | AG136: 0.06 | AI136: =IF(S136=".",".",SUM($S136:S136)) -> 135.4369409 | AJ136: =IF(T136=".",".",SUM($S136:T136)) -> 291.1923976 | AK136: =IF(U136=".",".",SUM($S136:U136)) -> 410.6049145 | AL136: =IF(V136=".",".",SUM($S136:V136)) -> 541.9586829 | AM136: =IF(W136=".",".",SUM($S136:W136)) -> 686.4478283 | AN136: =IF(X136=".",".",SUM($S136:X136)) -> 781.8106642 | AO136: =IF(Y136=".",".",SUM($S136:Y136)) -> 882.8952703 | AQ136: 0.1499967056 | AR136: 0.3224962114 | AS136: 0.4547458326 | AT136: 0.6002204158 | AU136: 0.7602424574 | AV136: 0.8658570048 | AW136: 0.9778084251
C137: Farmland | D137: =IF('WK2 - Notional General Income'!D66="","",'WK2 - Notional General Income'!D66) ->  | E137: =IF('WK2 - Notional General Income'!M66=".",".",'WK2 - Notional General Income'!M66/'WK2 - Notional General Income'!E66) -> 2228.473824 | F137: =IF('WK3 - Notional GI Yr1 YIELD'!M66=".",".",'WK3 - Notional GI Yr1 YIELD'!M66/'WK3 - Notional GI Yr1 YIELD'!E66) -> 2562.844423 | G137: =F137*15/100+F137 -> 2947.271086 | H137: =G137*10/100+G137 -> 3241.998195 | I137: =H137*10/100+H137 -> 3566.198014 | J137: =I137*10/100+I137 -> 3922.817816 | K137: =J137*6/100+J137 -> 4158.186884 | L137: =K137*6/100+K137 -> 4407.678098 | O137: ='WK2 - Notional General Income'!$E66 -> 939 | P137: ='WK3 - Notional GI Yr1 YIELD'!$E66 -> 939 | S137: 334.370599 | T137: 384.4266634 | U137: 294.7271086 | V137: 324.1998195 | W137: 356.6198014 | X137: 235.3690689 | Y137: 249.4912131 | AA137: 0.1500446608 | AB137: 0.15 | AC137: 0.1 | AD137: 0.1 | AE137: 0.1 | AF137: 0.06 | AG137: 0.06 | AI137: =IF(S137=".",".",SUM($S137:S137)) -> 334.370599 | AJ137: =IF(T137=".",".",SUM($S137:T137)) -> 718.7972624 | AK137: =IF(U137=".",".",SUM($S137:U137)) -> 1013.524371 | AL137: =IF(V137=".",".",SUM($S137:V137)) -> 1337.72419 | AM137: =IF(W137=".",".",SUM($S137:W137)) -> 1694.343992 | AN137: =IF(X137=".",".",SUM($S137:X137)) -> 1929.713061 | AO137: =IF(Y137=".",".",SUM($S137:Y137)) -> 2179.204274 | AQ137: 0.1500446608 | AR137: 0.3225513599 | AS137: 0.4548064959 | AT137: 0.6002871455 | AU137: 0.7603158601 | AV137: 0.8659348117 | AW137: 0.9778909004
C138: Farmland | D138: =IF('WK2 - Notional General Income'!D67="","",'WK2 - Notional General Income'!D67) ->  | E138: =IF('WK2 - Notional General Income'!M67=".",".",'WK2 - Notional General Income'!M67/'WK2 - Notional General Income'!E67) -> . | F138: =IF('WK3 - Notional GI Yr1 YIELD'!M67=".",".",'WK3 - Notional GI Yr1 YIELD'!M67/'WK3 - Notional GI Yr1 YIELD'!E67) -> . | O138: ='WK2 - Notional General Income'!$E67 -> 0 | P138: ='WK3 - Notional GI Yr1 YIELD'!$E67 -> 0 | S138: . | T138: . | U138: . | V138: . | W138: . | X138: . | Y138: . | AA138: . | AB138: . | AC138: . | AD138: . | AE138: . | AF138: . | AG138: . | AI138: =IF(S138=".",".",SUM($S138:S138)) -> . | AJ138: =IF(T138=".",".",SUM($S138:T138)) -> . | AK138: =IF(U138=".",".",SUM($S138:U138)) -> . | AL138: =IF(V138=".",".",SUM($S138:V138)) -> . | AM138: =IF(W138=".",".",SUM($S138:W138)) -> . | AN138: =IF(X138=".",".",SUM($S138:X138)) -> . | AO138: =IF(Y138=".",".",SUM($S138:Y138)) -> . | AQ138: . | AR138: . | AS138: . | AT138: . | AU138: . | AV138: . | AW138: .
C139: Farmland | D139: =IF('WK2 - Notional General Income'!D68="","",'WK2 - Notional General Income'!D68) ->  | E139: =IF('WK2 - Notional General Income'!M68=".",".",'WK2 - Notional General Income'!M68/'WK2 - Notional General Income'!E68) -> . | F139: =IF('WK3 - Notional GI Yr1 YIELD'!M68=".",".",'WK3 - Notional GI Yr1 YIELD'!M68/'WK3 - Notional GI Yr1 YIELD'!E68) -> . | O139: ='WK2 - Notional General Income'!$E68 -> 0 | P139: ='WK3 - Notional GI Yr1 YIELD'!$E68 -> 0 | S139: . | T139: . | U139: . | V139: . | W139: . | X139: . | Y139: . | AA139: . | AB139: . | AC139: . | AD139: . | AE139: . | AF139: . | AG139: . | AI139: =IF(S139=".",".",SUM($S139:S139)) -> . | AJ139: =IF(T139=".",".",SUM($S139:T139)) -> . | AK139: =IF(U139=".",".",SUM($S139:U139)) -> . | AL139: =IF(V139=".",".",SUM($S139:V139)) -> . | AM139: =IF(W139=".",".",SUM($S139:W139)) -> . | AN139: =IF(X139=".",".",SUM($S139:X139)) -> . | AO139: =IF(Y139=".",".",SUM($S139:Y139)) -> . | AQ139: . | AR139: . | AS139: . | AT139: . | AU139: . | AV139: . | AW139: .
C140: Farmland | D140: =IF('WK2 - Notional General Income'!D69="","",'WK2 - Notional General Income'!D69) ->  | E140: =IF('WK2 - Notional General Income'!M69=".",".",'WK2 - Notional General Income'!M69/'WK2 - Notional General Income'!E69) -> . | F140: =IF('WK3 - Notional GI Yr1 YIELD'!M69=".",".",'WK3 - Notional GI Yr1 YIELD'!M69/'WK3 - Notional GI Yr1 YIELD'!E69) -> . | O140: ='WK2 - Notional General Income'!$E69 -> 0 | P140: ='WK3 - Notional GI Yr1 YIELD'!$E69 -> 0 | S140: . | T140: . | U140: . | V140: . | W140: . | X140: . | Y140: . | AA140: . | AB140: . | AC140: . | AD140: . | AE140: . | AF140: . | AG140: . | AI140: =IF(S140=".",".",SUM($S140:S140)) -> . | AJ140: =IF(T140=".",".",SUM($S140:T140)) -> . | AK140: =IF(U140=".",".",SUM($S140:U140)) -> . | AL140: =IF(V140=".",".",SUM($S140:V140)) -> . | AM140: =IF(W140=".",".",SUM($S140:W140)) -> . | AN140: =IF(X140=".",".",SUM($S140:X140)) -> . | AO140: =IF(Y140=".",".",SUM($S140:Y140)) -> . | AQ140: . | AR140: . | AS140: . | AT140: . | AU140: . | AV140: . | AW140: .
C141: Farmland | D141: =IF('WK2 - Notional General Income'!D70="","",'WK2 - Notional General Income'!D70) ->  | E141: =IF('WK2 - Notional General Income'!M70=".",".",'WK2 - Notional General Income'!M70/'WK2 - Notional General Income'!E70) -> . | F141: =IF('WK3 - Notional GI Yr1 YIELD'!M70=".",".",'WK3 - Notional GI Yr1 YIELD'!M70/'WK3 - Notional GI Yr1 YIELD'!E70) -> . | O141: ='WK2 - Notional General Income'!$E70 -> 0 | P141: ='WK3 - Notional GI Yr1 YIELD'!$E70 -> 0 | S141: . | T141: . | U141: . | V141: . | W141: . | X141: . | Y141: . | AA141: . | AB141: . | AC141: . | AD141: . | AE141: . | AF141: . | AG141: . | AI141: =IF(S141=".",".",SUM($S141:S141)) -> . | AJ141: =IF(T141=".",".",SUM($S141:T141)) -> . | AK141: =IF(U141=".",".",SUM($S141:U141)) -> . | AL141: =IF(V141=".",".",SUM($S141:V141)) -> . | AM141: =IF(W141=".",".",SUM($S141:W141)) -> . | AN141: =IF(X141=".",".",SUM($S141:X141)) -> . | AO141: =IF(Y141=".",".",SUM($S141:Y141)) -> . | AQ141: . | AR141: . | AS141: . | AT141: . | AU141: . | AV141: . | AW141: .
C142: Farmland | D142: =IF('WK2 - Notional General Income'!D71="","",'WK2 - Notional General Income'!D71) ->  | E142: =IF('WK2 - Notional General Income'!M71=".",".",'WK2 - Notional General Income'!M71/'WK2 - Notional General Income'!E71) -> . | F142: =IF('WK3 - Notional GI Yr1 YIELD'!M71=".",".",'WK3 - Notional GI Yr1 YIELD'!M71/'WK3 - Notional GI Yr1 YIELD'!E71) -> . | O142: ='WK2 - Notional General Income'!$E71 -> 0 | P142: ='WK3 - Notional GI Yr1 YIELD'!$E71 -> 0 | S142: . | T142: . | U142: . | V142: . | W142: . | X142: . | Y142: . | AA142: . | AB142: . | AC142: . | AD142: . | AE142: . | AF142: . | AG142: . | AI142: =IF(S142=".",".",SUM($S142:S142)) -> . | AJ142: =IF(T142=".",".",SUM($S142:T142)) -> . | AK142: =IF(U142=".",".",SUM($S142:U142)) -> . | AL142: =IF(V142=".",".",SUM($S142:V142)) -> . | AM142: =IF(W142=".",".",SUM($S142:W142)) -> . | AN142: =IF(X142=".",".",SUM($S142:X142)) -> . | AO142: =IF(Y142=".",".",SUM($S142:Y142)) -> . | AQ142: . | AR142: . | AS142: . | AT142: . | AU142: . | AV142: . | AW142: .
C143: Farmland | D143: =IF('WK2 - Notional General Income'!D72="","",'WK2 - Notional General Income'!D72) ->  | E143: =IF('WK2 - Notional General Income'!M72=".",".",'WK2 - Notional General Income'!M72/'WK2 - Notional General Income'!E72) -> . | F143: =IF('WK3 - Notional GI Yr1 YIELD'!M72=".",".",'WK3 - Notional GI Yr1 YIELD'!M72/'WK3 - Notional GI Yr1 YIELD'!E72) -> . | O143: ='WK2 - Notional General Income'!$E72 -> 0 | P143: ='WK3 - Notional GI Yr1 YIELD'!$E72 -> 0 | S143: . | T143: . | U143: . | V143: . | W143: . | X143: . | Y143: . | AA143: . | AB143: . | AC143: . | AD143: . | AE143: . | AF143: . | AG143: . | AI143: =IF(S143=".",".",SUM($S143:S143)) -> . | AJ143: =IF(T143=".",".",SUM($S143:T143)) -> . | AK143: =IF(U143=".",".",SUM($S143:U143)) -> . | AL143: =IF(V143=".",".",SUM($S143:V143)) -> . | AM143: =IF(W143=".",".",SUM($S143:W143)) -> . | AN143: =IF(X143=".",".",SUM($S143:X143)) -> . | AO143: =IF(Y143=".",".",SUM($S143:Y143)) -> . | AQ143: . | AR143: . | AS143: . | AT143: . | AU143: . | AV143: . | AW143: .
C144: Farmland | D144: =IF('WK2 - Notional General Income'!D73="","",'WK2 - Notional General Income'!D73) ->  | E144: =IF('WK2 - Notional General Income'!M73=".",".",'WK2 - Notional General Income'!M73/'WK2 - Notional General Income'!E73) -> . | F144: =IF('WK3 - Notional GI Yr1 YIELD'!M73=".",".",'WK3 - Notional GI Yr1 YIELD'!M73/'WK3 - Notional GI Yr1 YIELD'!E73) -> . | O144: ='WK2 - Notional General Income'!$E73 -> 0 | P144: ='WK3 - Notional GI Yr1 YIELD'!$E73 -> 0 | S144: . | T144: . | U144: . | V144: . | W144: . | X144: . | Y144: . | AA144: . | AB144: . | AC144: . | AD144: . | AE144: . | AF144: . | AG144: . | AI144: =IF(S144=".",".",SUM($S144:S144)) -> . | AJ144: =IF(T144=".",".",SUM($S144:T144)) -> . | AK144: =IF(U144=".",".",SUM($S144:U144)) -> . | AL144: =IF(V144=".",".",SUM($S144:V144)) -> . | AM144: =IF(W144=".",".",SUM($S144:W144)) -> . | AN144: =IF(X144=".",".",SUM($S144:X144)) -> . | AO144: =IF(Y144=".",".",SUM($S144:Y144)) -> . | AQ144: . | AR144: . | AS144: . | AT144: . | AU144: . | AV144: . | AW144: .
C145: Farmland | D145: =IF('WK2 - Notional General Income'!D74="","",'WK2 - Notional General Income'!D74) ->  | E145: =IF('WK2 - Notional General Income'!M74=".",".",'WK2 - Notional General Income'!M74/'WK2 - Notional General Income'!E74) -> . | F145: =IF('WK3 - Notional GI Yr1 YIELD'!M74=".",".",'WK3 - Notional GI Yr1 YIELD'!M74/'WK3 - Notional GI Yr1 YIELD'!E74) -> . | O145: ='WK2 - Notional General Income'!$E74 -> 0 | P145: ='WK3 - Notional GI Yr1 YIELD'!$E74 -> 0 | S145: . | T145: . | U145: . | V145: . | W145: . | X145: . | Y145: . | AA145: . | AB145: . | AC145: . | AD145: . | AE145: . | AF145: . | AG145: . | AI145: =IF(S145=".",".",SUM($S145:S145)) -> . | AJ145: =IF(T145=".",".",SUM($S145:T145)) -> . | AK145: =IF(U145=".",".",SUM($S145:U145)) -> . | AL145: =IF(V145=".",".",SUM($S145:V145)) -> . | AM145: =IF(W145=".",".",SUM($S145:W145)) -> . | AN145: =IF(X145=".",".",SUM($S145:X145)) -> . | AO145: =IF(Y145=".",".",SUM($S145:Y145)) -> . | AQ145: . | AR145: . | AS145: . | AT145: . | AU145: . | AV145: . | AW145: .
C146: Farmland | D146: =IF('WK2 - Notional General Income'!D75="","",'WK2 - Notional General Income'!D75) ->  | E146: =IF('WK2 - Notional General Income'!M75=".",".",'WK2 - Notional General Income'!M75/'WK2 - Notional General Income'!E75) -> . | F146: =IF('WK3 - Notional GI Yr1 YIELD'!M75=".",".",'WK3 - Notional GI Yr1 YIELD'!M75/'WK3 - Notional GI Yr1 YIELD'!E75) -> . | O146: ='WK2 - Notional General Income'!$E75 -> 0 | P146: ='WK3 - Notional GI Yr1 YIELD'!$E75 -> 0 | S146: . | T146: . | U146: . | V146: . | W146: . | X146: . | Y146: . | AA146: . | AB146: . | AC146: . | AD146: . | AE146: . | AF146: . | AG146: . | AI146: =IF(S146=".",".",SUM($S146:S146)) -> . | AJ146: =IF(T146=".",".",SUM($S146:T146)) -> . | AK146: =IF(U146=".",".",SUM($S146:U146)) -> . | AL146: =IF(V146=".",".",SUM($S146:V146)) -> . | AM146: =IF(W146=".",".",SUM($S146:W146)) -> . | AN146: =IF(X146=".",".",SUM($S146:X146)) -> . | AO146: =IF(Y146=".",".",SUM($S146:Y146)) -> . | AQ146: . | AR146: . | AS146: . | AT146: . | AU146: . | AV146: . | AW146: .
C147: Special rate | D147: =IF('WK2 - Notional General Income'!D124="","",'WK2 - Notional General Income'!D124) ->  | E147: =IF('WK2 - Notional General Income'!M124=".",".",'WK2 - Notional General Income'!M124/'WK2 - Notional General Income'!E124) -> . | F147: =IF('WK3 - Notional GI Yr1 YIELD'!M124=".",".",'WK3 - Notional GI Yr1 YIELD'!M124/'WK3 - Notional GI Yr1 YIELD'!E124) -> . | O147: ='WK2 - Notional General Income'!$E124 -> 0 | P147: ='WK3 - Notional GI Yr1 YIELD'!$E124 -> 0 | S147: . | T147: . | U147: . | V147: . | W147: . | X147: . | Y147: . | AA147: . | AB147: . | AC147: . | AD147: . | AE147: . | AF147: . | AG147: . | AI147: =IF(S147=".",".",SUM($S147:S147)) -> . | AJ147: =IF(T147=".",".",SUM($S147:T147)) -> . | AK147: =IF(U147=".",".",SUM($S147:U147)) -> . | AL147: =IF(V147=".",".",SUM($S147:V147)) -> . | AM147: =IF(W147=".",".",SUM($S147:W147)) -> . | AN147: =IF(X147=".",".",SUM($S147:X147)) -> . | AO147: =IF(Y147=".",".",SUM($S147:Y147)) -> . | AQ147: . | AR147: . | AS147: . | AT147: . | AU147: . | AV147: . | AW147: .
C148: Special rate | D148: =IF('WK2 - Notional General Income'!D125="","",'WK2 - Notional General Income'!D125) ->  | E148: =IF('WK2 - Notional General Income'!M125=".",".",'WK2 - Notional General Income'!M125/'WK2 - Notional General Income'!E125) -> . | F148: =IF('WK3 - Notional GI Yr1 YIELD'!M125=".",".",'WK3 - Notional GI Yr1 YIELD'!M125/'WK3 - Notional GI Yr1 YIELD'!E125) -> . | O148: ='WK2 - Notional General Income'!$E125 -> 0 | P148: ='WK3 - Notional GI Yr1 YIELD'!$E125 -> 0 | S148: . | T148: . | U148: . | V148: . | W148: . | X148: . | Y148: . | AA148: . | AB148: . | AC148: . | AD148: . | AE148: . | AF148: . | AG148: . | AI148: =IF(S148=".",".",SUM($S148:S148)) -> . | AJ148: =IF(T148=".",".",SUM($S148:T148)) -> . | AK148: =IF(U148=".",".",SUM($S148:U148)) -> . | AL148: =IF(V148=".",".",SUM($S148:V148)) -> . | AM148: =IF(W148=".",".",SUM($S148:W148)) -> . | AN148: =IF(X148=".",".",SUM($S148:X148)) -> . | AO148: =IF(Y148=".",".",SUM($S148:Y148)) -> . | AQ148: . | AR148: . | AS148: . | AT148: . | AU148: . | AV148: . | AW148: .
C149: Special rate | D149: =IF('WK2 - Notional General Income'!D126="","",'WK2 - Notional General Income'!D126) ->  | E149: =IF('WK2 - Notional General Income'!M126=".",".",'WK2 - Notional General Income'!M126/'WK2 - Notional General Income'!E126) -> . | F149: =IF('WK3 - Notional GI Yr1 YIELD'!M126=".",".",'WK3 - Notional GI Yr1 YIELD'!M126/'WK3 - Notional GI Yr1 YIELD'!E126) -> . | O149: ='WK2 - Notional General Income'!$E126 -> 0 | P149: ='WK3 - Notional GI Yr1 YIELD'!$E126 -> 0 | S149: . | T149: . | U149: . | V149: . | W149: . | X149: . | Y149: . | AA149: . | AB149: . | AC149: . | AD149: . | AE149: . | AF149: . | AG149: . | AI149: =IF(S149=".",".",SUM($S149:S149)) -> . | AJ149: =IF(T149=".",".",SUM($S149:T149)) -> . | AK149: =IF(U149=".",".",SUM($S149:U149)) -> . | AL149: =IF(V149=".",".",SUM($S149:V149)) -> . | AM149: =IF(W149=".",".",SUM($S149:W149)) -> . | AN149: =IF(X149=".",".",SUM($S149:X149)) -> . | AO149: =IF(Y149=".",".",SUM($S149:Y149)) -> . | AQ149: . | AR149: . | AS149: . | AT149: . | AU149: . | AV149: . | AW149: .
C150: Special rate | D150: =IF('WK2 - Notional General Income'!D127="","",'WK2 - Notional General Income'!D127) ->  | E150: =IF('WK2 - Notional General Income'!M127=".",".",'WK2 - Notional General Income'!M127/'WK2 - Notional General Income'!E127) -> . | F150: =IF('WK3 - Notional GI Yr1 YIELD'!M127=".",".",'WK3 - Notional GI Yr1 YIELD'!M127/'WK3 - Notional GI Yr1 YIELD'!E127) -> . | O150: ='WK2 - Notional General Income'!$E127 -> 0 | P150: ='WK3 - Notional GI Yr1 YIELD'!$E127 -> 0 | S150: . | T150: . | U150: . | V150: . | W150: . | X150: . | Y150: . | AA150: . | AB150: . | AC150: . | AD150: . | AE150: . | AF150: . | AG150: . | AI150: =IF(S150=".",".",SUM($S150:S150)) -> . | AJ150: =IF(T150=".",".",SUM($S150:T150)) -> . | AK150: =IF(U150=".",".",SUM($S150:U150)) -> . | AL150: =IF(V150=".",".",SUM($S150:V150)) -> . | AM150: =IF(W150=".",".",SUM($S150:W150)) -> . | AN150: =IF(X150=".",".",SUM($S150:X150)) -> . | AO150: =IF(Y150=".",".",SUM($S150:Y150)) -> . | AQ150: . | AR150: . | AS150: . | AT150: . | AU150: . | AV150: . | AW150: .
C151: Special rate | D151: =IF('WK2 - Notional General Income'!D128="","",'WK2 - Notional General Income'!D128) ->  | E151: =IF('WK2 - Notional General Income'!M128=".",".",'WK2 - Notional General Income'!M128/'WK2 - Notional General Income'!E128) -> . | F151: =IF('WK3 - Notional GI Yr1 YIELD'!M128=".",".",'WK3 - Notional GI Yr1 YIELD'!M128/'WK3 - Notional GI Yr1 YIELD'!E128) -> . | O151: ='WK2 - Notional General Income'!$E128 -> 0 | P151: ='WK3 - Notional GI Yr1 YIELD'!$E128 -> 0 | S151: . | T151: . | U151: . | V151: . | W151: . | X151: . | Y151: . | AA151: . | AB151: . | AC151: . | AD151: . | AE151: . | AF151: . | AG151: . | AI151: =IF(S151=".",".",SUM($S151:S151)) -> . | AJ151: =IF(T151=".",".",SUM($S151:T151)) -> . | AK151: =IF(U151=".",".",SUM($S151:U151)) -> . | AL151: =IF(V151=".",".",SUM($S151:V151)) -> . | AM151: =IF(W151=".",".",SUM($S151:W151)) -> . | AN151: =IF(X151=".",".",SUM($S151:X151)) -> . | AO151: =IF(Y151=".",".",SUM($S151:Y151)) -> . | AQ151: . | AR151: . | AS151: . | AT151: . | AU151: . | AV151: . | AW151: .
C152: Special rate | D152: =IF('WK2 - Notional General Income'!D129="","",'WK2 - Notional General Income'!D129) ->  | E152: =IF('WK2 - Notional General Income'!M129=".",".",'WK2 - Notional General Income'!M129/'WK2 - Notional General Income'!E129) -> . | F152: =IF('WK3 - Notional GI Yr1 YIELD'!M129=".",".",'WK3 - Notional GI Yr1 YIELD'!M129/'WK3 - Notional GI Yr1 YIELD'!E129) -> . | O152: ='WK2 - Notional General Income'!$E129 -> 0 | P152: ='WK3 - Notional GI Yr1 YIELD'!$E129 -> 0 | S152: . | T152: . | U152: . | V152: . | W152: . | X152: . | Y152: . | AA152: . | AB152: . | AC152: . | AD152: . | AE152: . | AF152: . | AG152: . | AI152: =IF(S152=".",".",SUM($S152:S152)) -> . | AJ152: =IF(T152=".",".",SUM($S152:T152)) -> . | AK152: =IF(U152=".",".",SUM($S152:U152)) -> . | AL152: =IF(V152=".",".",SUM($S152:V152)) -> . | AM152: =IF(W152=".",".",SUM($S152:W152)) -> . | AN152: =IF(X152=".",".",SUM($S152:X152)) -> . | AO152: =IF(Y152=".",".",SUM($S152:Y152)) -> . | AQ152: . | AR152: . | AS152: . | AT152: . | AU152: . | AV152: . | AW152: .
C153: Special rate | D153: =IF('WK2 - Notional General Income'!D130="","",'WK2 - Notional General Income'!D130) ->  | E153: =IF('WK2 - Notional General Income'!M130=".",".",'WK2 - Notional General Income'!M130/'WK2 - Notional General Income'!E130) -> . | F153: =IF('WK3 - Notional GI Yr1 YIELD'!M130=".",".",'WK3 - Notional GI Yr1 YIELD'!M130/'WK3 - Notional GI Yr1 YIELD'!E130) -> . | O153: ='WK2 - Notional General Income'!$E130 -> 0 | P153: ='WK3 - Notional GI Yr1 YIELD'!$E130 -> 0 | S153: . | T153: . | U153: . | V153: . | W153: . | X153: . | Y153: . | AA153: . | AB153: . | AC153: . | AD153: . | AE153: . | AF153: . | AG153: . | AI153: =IF(S153=".",".",SUM($S153:S153)) -> . | AJ153: =IF(T153=".",".",SUM($S153:T153)) -> . | AK153: =IF(U153=".",".",SUM($S153:U153)) -> . | AL153: =IF(V153=".",".",SUM($S153:V153)) -> . | AM153: =IF(W153=".",".",SUM($S153:W153)) -> . | AN153: =IF(X153=".",".",SUM($S153:X153)) -> . | AO153: =IF(Y153=".",".",SUM($S153:Y153)) -> . | AQ153: . | AR153: . | AS153: . | AT153: . | AU153: . | AV153: . | AW153: .
C154: Special rate | D154: =IF('WK2 - Notional General Income'!D131="","",'WK2 - Notional General Income'!D131) ->  | E154: =IF('WK2 - Notional General Income'!M131=".",".",'WK2 - Notional General Income'!M131/'WK2 - Notional General Income'!E131) -> . | F154: =IF('WK3 - Notional GI Yr1 YIELD'!M131=".",".",'WK3 - Notional GI Yr1 YIELD'!M131/'WK3 - Notional GI Yr1 YIELD'!E131) -> . | O154: ='WK2 - Notional General Income'!$E131 -> 0 | P154: ='WK3 - Notional GI Yr1 YIELD'!$E131 -> 0 | S154: . | T154: . | U154: . | V154: . | W154: . | X154: . | Y154: . | AA154: . | AB154: . | AC154: . | AD154: . | AE154: . | AF154: . | AG154: . | AI154: =IF(S154=".",".",SUM($S154:S154)) -> . | AJ154: =IF(T154=".",".",SUM($S154:T154)) -> . | AK154: =IF(U154=".",".",SUM($S154:U154)) -> . | AL154: =IF(V154=".",".",SUM($S154:V154)) -> . | AM154: =IF(W154=".",".",SUM($S154:W154)) -> . | AN154: =IF(X154=".",".",SUM($S154:X154)) -> . | AO154: =IF(Y154=".",".",SUM($S154:Y154)) -> . | AQ154: . | AR154: . | AS154: . | AT154: . | AU154: . | AV154: . | AW154: .
C155: Special rate | D155: =IF('WK2 - Notional General Income'!D132="","",'WK2 - Notional General Income'!D132) ->  | E155: =IF('WK2 - Notional General Income'!M132=".",".",'WK2 - Notional General Income'!M132/'WK2 - Notional General Income'!E132) -> . | F155: =IF('WK3 - Notional GI Yr1 YIELD'!M132=".",".",'WK3 - Notional GI Yr1 YIELD'!M132/'WK3 - Notional GI Yr1 YIELD'!E132) -> . | O155: ='WK2 - Notional General Income'!$E132 -> 0 | P155: ='WK3 - Notional GI Yr1 YIELD'!$E132 -> 0 | S155: . | T155: . | U155: . | V155: . | W155: . | X155: . | Y155: . | AA155: . | AB155: . | AC155: . | AD155: . | AE155: . | AF155: . | AG155: . | AI155: =IF(S155=".",".",SUM($S155:S155)) -> . | AJ155: =IF(T155=".",".",SUM($S155:T155)) -> . | AK155: =IF(U155=".",".",SUM($S155:U155)) -> . | AL155: =IF(V155=".",".",SUM($S155:V155)) -> . | AM155: =IF(W155=".",".",SUM($S155:W155)) -> . | AN155: =IF(X155=".",".",SUM($S155:X155)) -> . | AO155: =IF(Y155=".",".",SUM($S155:Y155)) -> . | AQ155: . | AR155: . | AS155: . | AT155: . | AU155: . | AV155: . | AW155: .
C156: Special rate | D156: =IF('WK2 - Notional General Income'!D133="","",'WK2 - Notional General Income'!D133) ->  | E156: =IF('WK2 - Notional General Income'!M133=".",".",'WK2 - Notional General Income'!M133/'WK2 - Notional General Income'!E133) -> . | F156: =IF('WK3 - Notional GI Yr1 YIELD'!M133=".",".",'WK3 - Notional GI Yr1 YIELD'!M133/'WK3 - Notional GI Yr1 YIELD'!E133) -> . | O156: ='WK2 - Notional General Income'!$E133 -> 0 | P156: ='WK3 - Notional GI Yr1 YIELD'!$E133 -> 0 | S156: . | T156: =IF(G156="",".",G156-F156) -> . | U156: =IF(H156="",".",H156-G156) -> . | V156: =IF(I156="",".",I156-H156) -> . | W156: =IF(J156="",".",J156-I156) -> . | X156: =IF(K156="",".",K156-J156) -> . | Y156: =IF(L156="",".",L156-K156) -> . | AA156: =IF(ISNUMBER(E156),F156/E156-1,".") -> . | AB156: =IF(ISNUMBER(F156),G156/F156-1,".") -> . | AC156: =IF(ISNUMBER(G156),H156/G156-1,".") -> . | AD156: =IF(ISNUMBER(H156),I156/H156-1,".") -> . | AE156: =IF(ISNUMBER(I156),J156/I156-1,".") -> . | AF156: =IF(ISNUMBER(J156),K156/J156-1,".") -> . | AG156: =IF(ISNUMBER(K156),L156/K156-1,".") -> . | AI156: =IF(S156=".",".",SUM($S156:S156)) -> . | AJ156: =IF(T156=".",".",SUM($S156:T156)) -> . | AK156: =IF(U156=".",".",SUM($S156:U156)) -> . | AL156: =IF(V156=".",".",SUM($S156:V156)) -> . | AM156: =IF(W156=".",".",SUM($S156:W156)) -> . | AN156: =IF(X156=".",".",SUM($S156:X156)) -> . | AO156: =IF(Y156=".",".",SUM($S156:Y156)) -> . | AQ156: =IF(ISNUMBER($E156),F156/$E156-1,".") -> . | AR156: =IF(ISNUMBER($E156),G156/$E156-1,".") -> . | AS156: =IF(ISNUMBER($E156),H156/$E156-1,".") -> . | AT156: =IF(ISNUMBER($E156),I156/$E156-1,".") -> . | AU156: =IF(ISNUMBER($E156),J156/$E156-1,".") -> . | AV156: =IF(ISNUMBER($E156),K156/$E156-1,".") -> . | AW156: =IF(ISNUMBER($E156),L156/$E156-1,".") -> .
D157: TOTAL AVERAGE | E157: =IF(SUM(E137:E156)=0,".",('WK2 - Notional General Income'!M76+SUM('WK2 - Notional General Income'!M124:M127))/'WK2 - Notional General Income'!E76) -> 2228.473824 | F157: =IF(SUM(F137:F156)=0,".",('WK3 - Notional GI Yr1 YIELD'!M76+SUM('WK3 - Notional GI Yr1 YIELD'!M124:M133))/'WK3 - Notional GI Yr1 YIELD'!E76) -> 2562.844423 | G157: =IF($P157=0,".",SUMPRODUCT(G137:G156,$P137:$P156)/$P157) -> 2947.271086 | H157: 3241.998195 | I157: 3566.198014 | J157: 3922.817816 | K157: 4158.186884 | L157: 4407.678098 | O157: =SUM(O137:O146) -> 939 | P157: =SUM(P137:P146) -> 939 | S157: 334.370599 | T157: =IF(G157=".",".",G157-F157) -> 384.4266634 | U157: 294.7271086 | V157: 324.1998195 | W157: 356.6198014 | X157: 235.3690689 | Y157: 249.4912131 | AA157: 0.1500446608 | AB157: 0.15 | AC157: 0.1 | AD157: 0.1 | AE157: 0.1 | AF157: 0.06 | AG157: 0.06 | AI157: =IF(S157=".",".",SUM($S157:S157)) -> 334.370599 | AJ157: =IF(T157=".",".",SUM($S157:T157)) -> 718.7972624 | AK157: =IF(U157=".",".",SUM($S157:U157)) -> 1013.524371 | AL157: =IF(V157=".",".",SUM($S157:V157)) -> 1337.72419 | AM157: =IF(W157=".",".",SUM($S157:W157)) -> 1694.343992 | AN157: =IF(X157=".",".",SUM($S157:X157)) -> 1929.713061 | AO157: =IF(Y157=".",".",SUM($S157:Y157)) -> 2179.204274 | AQ157: 0.1500446608 | AR157: 0.3225513599 | AS157: 0.4548064959 | AT157: 0.6002871455 | AU157: 0.7603158601 | AV157: 0.8659348117 | AW157: 0.9778909004
C158: Mining | D158: =IF('WK2 - Notional General Income'!D77="","",'WK2 - Notional General Income'!D77) ->  | E158: =IF('WK2 - Notional General Income'!M77=".",".",'WK2 - Notional General Income'!M77/'WK2 - Notional General Income'!E77) ->  | F158: =IF('WK3 - Notional GI Yr1 YIELD'!M77=".",".",'WK3 - Notional GI Yr1 YIELD'!M77/'WK3 - Notional GI Yr1 YIELD'!E77) -> . | O158: ='WK2 - Notional General Income'!$E77 -> 0 | P158: ='WK3 - Notional GI Yr1 YIELD'!$E77 -> 0 | S158: . | T158: . | U158: . | V158: . | W158: . | X158: . | Y158: . | AA158: . | AB158: . | AC158: . | AD158: . | AE158: . | AF158: . | AG158: . | AI158: =IF(S158=".",".",SUM($S158:S158)) -> . | AJ158: =IF(T158=".",".",SUM($S158:T158)) -> . | AK158: =IF(U158=".",".",SUM($S158:U158)) -> . | AL158: =IF(V158=".",".",SUM($S158:V158)) -> . | AM158: =IF(W158=".",".",SUM($S158:W158)) -> . | AN158: =IF(X158=".",".",SUM($S158:X158)) -> . | AO158: =IF(Y158=".",".",SUM($S158:Y158)) -> . | AQ158: . | AR158: . | AS158: . | AT158: . | AU158: . | AV158: . | AW158: .
C159: Mining | D159: =IF('WK2 - Notional General Income'!D78="","",'WK2 - Notional General Income'!D78) ->  | E159: =IF('WK2 - Notional General Income'!M78=".",".",'WK2 - Notional General Income'!M78/'WK2 - Notional General Income'!E78) -> . | F159: =IF('WK3 - Notional GI Yr1 YIELD'!M78=".",".",'WK3 - Notional GI Yr1 YIELD'!M78/'WK3 - Notional GI Yr1 YIELD'!E78) -> . | O159: ='WK2 - Notional General Income'!$E78 -> 0 | P159: ='WK3 - Notional GI Yr1 YIELD'!$E78 -> 0 | S159: . | T159: . | U159: . | V159: . | W159: . | X159: . | Y159: . | AA159: . | AB159: . | AC159: . | AD159: . | AE159: . | AF159: . | AG159: . | AI159: =IF(S159=".",".",SUM($S159:S159)) -> . | AJ159: =IF(T159=".",".",SUM($S159:T159)) -> . | AK159: =IF(U159=".",".",SUM($S159:U159)) -> . | AL159: =IF(V159=".",".",SUM($S159:V159)) -> . | AM159: =IF(W159=".",".",SUM($S159:W159)) -> . | AN159: =IF(X159=".",".",SUM($S159:X159)) -> . | AO159: =IF(Y159=".",".",SUM($S159:Y159)) -> . | AQ159: . | AR159: . | AS159: . | AT159: . | AU159: . | AV159: . | AW159: .
C160: Mining | D160: =IF('WK2 - Notional General Income'!D79="","",'WK2 - Notional General Income'!D79) ->  | E160: =IF('WK2 - Notional General Income'!M79=".",".",'WK2 - Notional General Income'!M79/'WK2 - Notional General Income'!E79) -> . | F160: =IF('WK3 - Notional GI Yr1 YIELD'!M79=".",".",'WK3 - Notional GI Yr1 YIELD'!M79/'WK3 - Notional GI Yr1 YIELD'!E79) -> . | O160: ='WK2 - Notional General Income'!$E79 -> 0 | P160: ='WK3 - Notional GI Yr1 YIELD'!$E79 -> 0 | S160: . | T160: . | U160: . | V160: . | W160: . | X160: . | Y160: . | AA160: . | AB160: . | AC160: . | AD160: . | AE160: . | AF160: . | AG160: . | AI160: =IF(S160=".",".",SUM($S160:S160)) -> . | AJ160: =IF(T160=".",".",SUM($S160:T160)) -> . | AK160: =IF(U160=".",".",SUM($S160:U160)) -> . | AL160: =IF(V160=".",".",SUM($S160:V160)) -> . | AM160: =IF(W160=".",".",SUM($S160:W160)) -> . | AN160: =IF(X160=".",".",SUM($S160:X160)) -> . | AO160: =IF(Y160=".",".",SUM($S160:Y160)) -> . | AQ160: . | AR160: . | AS160: . | AT160: . | AU160: . | AV160: . | AW160: .
C161: Mining | D161: =IF('WK2 - Notional General Income'!D80="","",'WK2 - Notional General Income'!D80) ->  | E161: =IF('WK2 - Notional General Income'!M80=".",".",'WK2 - Notional General Income'!M80/'WK2 - Notional General Income'!E80) -> . | F161: =IF('WK3 - Notional GI Yr1 YIELD'!M80=".",".",'WK3 - Notional GI Yr1 YIELD'!M80/'WK3 - Notional GI Yr1 YIELD'!E80) -> . | O161: ='WK2 - Notional General Income'!$E80 -> 0 | P161: ='WK3 - Notional GI Yr1 YIELD'!$E80 -> 0 | S161: . | T161: . | U161: . | V161: . | W161: . | X161: . | Y161: . | AA161: . | AB161: . | AC161: . | AD161: . | AE161: . | AF161: . | AG161: . | AI161: =IF(S161=".",".",SUM($S161:S161)) -> . | AJ161: =IF(T161=".",".",SUM($S161:T161)) -> . | AK161: =IF(U161=".",".",SUM($S161:U161)) -> . | AL161: =IF(V161=".",".",SUM($S161:V161)) -> . | AM161: =IF(W161=".",".",SUM($S161:W161)) -> . | AN161: =IF(X161=".",".",SUM($S161:X161)) -> . | AO161: =IF(Y161=".",".",SUM($S161:Y161)) -> . | AQ161: . | AR161: . | AS161: . | AT161: . | AU161: . | AV161: . | AW161: .
C162: Mining | D162: =IF('WK2 - Notional General Income'!D81="","",'WK2 - Notional General Income'!D81) ->  | E162: =IF('WK2 - Notional General Income'!M81=".",".",'WK2 - Notional General Income'!M81/'WK2 - Notional General Income'!E81) -> . | F162: =IF('WK3 - Notional GI Yr1 YIELD'!M81=".",".",'WK3 - Notional GI Yr1 YIELD'!M81/'WK3 - Notional GI Yr1 YIELD'!E81) -> . | O162: ='WK2 - Notional General Income'!$E81 -> 0 | P162: ='WK3 - Notional GI Yr1 YIELD'!$E81 -> 0 | S162: . | T162: . | U162: . | V162: . | W162: . | X162: . | Y162: . | AA162: . | AB162: . | AC162: . | AD162: . | AE162: . | AF162: . | AG162: . | AI162: =IF(S162=".",".",SUM($S162:S162)) -> . | AJ162: =IF(T162=".",".",SUM($S162:T162)) -> . | AK162: =IF(U162=".",".",SUM($S162:U162)) -> . | AL162: =IF(V162=".",".",SUM($S162:V162)) -> . | AM162: =IF(W162=".",".",SUM($S162:W162)) -> . | AN162: =IF(X162=".",".",SUM($S162:X162)) -> . | AO162: =IF(Y162=".",".",SUM($S162:Y162)) -> . | AQ162: . | AR162: . | AS162: . | AT162: . | AU162: . | AV162: . | AW162: .
C163: Mining | D163: =IF('WK2 - Notional General Income'!D82="","",'WK2 - Notional General Income'!D82) ->  | E163: =IF('WK2 - Notional General Income'!M82=".",".",'WK2 - Notional General Income'!M82/'WK2 - Notional General Income'!E82) -> . | F163: =IF('WK3 - Notional GI Yr1 YIELD'!M82=".",".",'WK3 - Notional GI Yr1 YIELD'!M82/'WK3 - Notional GI Yr1 YIELD'!E82) -> . | O163: ='WK2 - Notional General Income'!$E82 -> 0 | P163: ='WK3 - Notional GI Yr1 YIELD'!$E82 -> 0 | S163: . | T163: . | U163: . | V163: . | W163: . | X163: . | Y163: . | AA163: . | AB163: . | AC163: . | AD163: . | AE163: . | AF163: . | AG163: . | AI163: =IF(S163=".",".",SUM($S163:S163)) -> . | AJ163: =IF(T163=".",".",SUM($S163:T163)) -> . | AK163: =IF(U163=".",".",SUM($S163:U163)) -> . | AL163: =IF(V163=".",".",SUM($S163:V163)) -> . | AM163: =IF(W163=".",".",SUM($S163:W163)) -> . | AN163: =IF(X163=".",".",SUM($S163:X163)) -> . | AO163: =IF(Y163=".",".",SUM($S163:Y163)) -> . | AQ163: . | AR163: . | AS163: . | AT163: . | AU163: . | AV163: . | AW163: .
C164: Mining | D164: =IF('WK2 - Notional General Income'!D83="","",'WK2 - Notional General Income'!D83) ->  | E164: =IF('WK2 - Notional General Income'!M83=".",".",'WK2 - Notional General Income'!M83/'WK2 - Notional General Income'!E83) -> . | F164: =IF('WK3 - Notional GI Yr1 YIELD'!M83=".",".",'WK3 - Notional GI Yr1 YIELD'!M83/'WK3 - Notional GI Yr1 YIELD'!E83) -> . | O164: ='WK2 - Notional General Income'!$E83 -> 0 | P164: ='WK3 - Notional GI Yr1 YIELD'!$E83 -> 0 | S164: . | T164: . | U164: . | V164: . | W164: . | X164: . | Y164: . | AA164: . | AB164: . | AC164: . | AD164: . | AE164: . | AF164: . | AG164: . | AI164: =IF(S164=".",".",SUM($S164:S164)) -> . | AJ164: =IF(T164=".",".",SUM($S164:T164)) -> . | AK164: =IF(U164=".",".",SUM($S164:U164)) -> . | AL164: =IF(V164=".",".",SUM($S164:V164)) -> . | AM164: =IF(W164=".",".",SUM($S164:W164)) -> . | AN164: =IF(X164=".",".",SUM($S164:X164)) -> . | AO164: =IF(Y164=".",".",SUM($S164:Y164)) -> . | AQ164: . | AR164: . | AS164: . | AT164: . | AU164: . | AV164: . | AW164: .
C165: Mining | D165: =IF('WK2 - Notional General Income'!D84="","",'WK2 - Notional General Income'!D84) ->  | E165: =IF('WK2 - Notional General Income'!M84=".",".",'WK2 - Notional General Income'!M84/'WK2 - Notional General Income'!E84) -> . | F165: =IF('WK3 - Notional GI Yr1 YIELD'!M84=".",".",'WK3 - Notional GI Yr1 YIELD'!M84/'WK3 - Notional GI Yr1 YIELD'!E84) -> . | O165: ='WK2 - Notional General Income'!$E84 -> 0 | P165: ='WK3 - Notional GI Yr1 YIELD'!$E84 -> 0 | S165: . | T165: . | U165: . | V165: . | W165: . | X165: . | Y165: . | AA165: . | AB165: . | AC165: . | AD165: . | AE165: . | AF165: . | AG165: . | AI165: =IF(S165=".",".",SUM($S165:S165)) -> . | AJ165: =IF(T165=".",".",SUM($S165:T165)) -> . | AK165: =IF(U165=".",".",SUM($S165:U165)) -> . | AL165: =IF(V165=".",".",SUM($S165:V165)) -> . | AM165: =IF(W165=".",".",SUM($S165:W165)) -> . | AN165: =IF(X165=".",".",SUM($S165:X165)) -> . | AO165: =IF(Y165=".",".",SUM($S165:Y165)) -> . | AQ165: . | AR165: . | AS165: . | AT165: . | AU165: . | AV165: . | AW165: .
C166: Mining | D166: =IF('WK2 - Notional General Income'!D85="","",'WK2 - Notional General Income'!D85) ->  | E166: =IF('WK2 - Notional General Income'!M85=".",".",'WK2 - Notional General Income'!M85/'WK2 - Notional General Income'!E85) -> . | F166: =IF('WK3 - Notional GI Yr1 YIELD'!M85=".",".",'WK3 - Notional GI Yr1 YIELD'!M85/'WK3 - Notional GI Yr1 YIELD'!E85) -> . | O166: ='WK2 - Notional General Income'!$E85 -> 0 | P166: ='WK3 - Notional GI Yr1 YIELD'!$E85 -> 0 | S166: . | T166: . | U166: . | V166: . | W166: . | X166: . | Y166: . | AA166: . | AB166: . | AC166: . | AD166: . | AE166: . | AF166: . | AG166: . | AI166: =IF(S166=".",".",SUM($S166:S166)) -> . | AJ166: =IF(T166=".",".",SUM($S166:T166)) -> . | AK166: =IF(U166=".",".",SUM($S166:U166)) -> . | AL166: =IF(V166=".",".",SUM($S166:V166)) -> . | AM166: =IF(W166=".",".",SUM($S166:W166)) -> . | AN166: =IF(X166=".",".",SUM($S166:X166)) -> . | AO166: =IF(Y166=".",".",SUM($S166:Y166)) -> . | AQ166: . | AR166: . | AS166: . | AT166: . | AU166: . | AV166: . | AW166: .
C167: Mining | D167: =IF('WK2 - Notional General Income'!D86="","",'WK2 - Notional General Income'!D86) ->  | E167: =IF('WK2 - Notional General Income'!M86=".",".",'WK2 - Notional General Income'!M86/'WK2 - Notional General Income'!E86) -> . | F167: =IF('WK3 - Notional GI Yr1 YIELD'!M86=".",".",'WK3 - Notional GI Yr1 YIELD'!M86/'WK3 - Notional GI Yr1 YIELD'!E86) -> . | O167: ='WK2 - Notional General Income'!$E86 -> 0 | P167: ='WK3 - Notional GI Yr1 YIELD'!$E86 -> 0 | S167: . | T167: . | U167: . | V167: . | W167: . | X167: . | Y167: . | AA167: . | AB167: . | AC167: . | AD167: . | AE167: . | AF167: . | AG167: . | AI167: =IF(S167=".",".",SUM($S167:S167)) -> . | AJ167: =IF(T167=".",".",SUM($S167:T167)) -> . | AK167: =IF(U167=".",".",SUM($S167:U167)) -> . | AL167: =IF(V167=".",".",SUM($S167:V167)) -> . | AM167: =IF(W167=".",".",SUM($S167:W167)) -> . | AN167: =IF(X167=".",".",SUM($S167:X167)) -> . | AO167: =IF(Y167=".",".",SUM($S167:Y167)) -> . | AQ167: . | AR167: . | AS167: . | AT167: . | AU167: . | AV167: . | AW167: .
C168: Special rate | D168: =IF('WK2 - Notional General Income'!D134="","",'WK2 - Notional General Income'!D134) ->  | E168: =IF('WK2 - Notional General Income'!M134=".",".",'WK2 - Notional General Income'!M134/'WK2 - Notional General Income'!E134) -> . | F168: =IF('WK3 - Notional GI Yr1 YIELD'!M134=".",".",'WK3 - Notional GI Yr1 YIELD'!M134/'WK3 - Notional GI Yr1 YIELD'!E134) -> . | O168: ='WK2 - Notional General Income'!$E134 -> 0 | P168: ='WK3 - Notional GI Yr1 YIELD'!$E134 -> 0 | S168: . | T168: . | U168: . | V168: . | W168: . | X168: . | Y168: . | AA168: . | AB168: . | AC168: . | AD168: . | AE168: . | AF168: . | AG168: . | AI168: =IF(S168=".",".",SUM($S168:S168)) -> . | AJ168: =IF(T168=".",".",SUM($S168:T168)) -> . | AK168: =IF(U168=".",".",SUM($S168:U168)) -> . | AL168: =IF(V168=".",".",SUM($S168:V168)) -> . | AM168: =IF(W168=".",".",SUM($S168:W168)) -> . | AN168: =IF(X168=".",".",SUM($S168:X168)) -> . | AO168: =IF(Y168=".",".",SUM($S168:Y168)) -> . | AQ168: . | AR168: . | AS168: . | AT168: . | AU168: . | AV168: . | AW168: .
C169: Special rate | D169: =IF('WK2 - Notional General Income'!D135="","",'WK2 - Notional General Income'!D135) ->  | E169: =IF('WK2 - Notional General Income'!M135=".",".",'WK2 - Notional General Income'!M135/'WK2 - Notional General Income'!E135) -> . | F169: =IF('WK3 - Notional GI Yr1 YIELD'!M135=".",".",'WK3 - Notional GI Yr1 YIELD'!M135/'WK3 - Notional GI Yr1 YIELD'!E135) -> . | O169: ='WK2 - Notional General Income'!$E135 -> 0 | P169: ='WK3 - Notional GI Yr1 YIELD'!$E135 -> 0 | S169: . | T169: . | U169: . | V169: . | W169: . | X169: . | Y169: . | AA169: . | AB169: . | AC169: . | AD169: . | AE169: . | AF169: . | AG169: . | AI169: =IF(S169=".",".",SUM($S169:S169)) -> . | AJ169: =IF(T169=".",".",SUM($S169:T169)) -> . | AK169: =IF(U169=".",".",SUM($S169:U169)) -> . | AL169: =IF(V169=".",".",SUM($S169:V169)) -> . | AM169: =IF(W169=".",".",SUM($S169:W169)) -> . | AN169: =IF(X169=".",".",SUM($S169:X169)) -> . | AO169: =IF(Y169=".",".",SUM($S169:Y169)) -> . | AQ169: . | AR169: . | AS169: . | AT169: . | AU169: . | AV169: . | AW169: .
C170: Special rate | D170: =IF('WK2 - Notional General Income'!D136="","",'WK2 - Notional General Income'!D136) ->  | E170: =IF('WK2 - Notional General Income'!M136=".",".",'WK2 - Notional General Income'!M136/'WK2 - Notional General Income'!E136) -> . | F170: =IF('WK3 - Notional GI Yr1 YIELD'!M136=".",".",'WK3 - Notional GI Yr1 YIELD'!M136/'WK3 - Notional GI Yr1 YIELD'!E136) -> . | O170: ='WK2 - Notional General Income'!$E136 -> 0 | P170: ='WK3 - Notional GI Yr1 YIELD'!$E136 -> 0 | S170: . | T170: . | U170: . | V170: . | W170: . | X170: . | Y170: . | AA170: . | AB170: . | AC170: . | AD170: . | AE170: . | AF170: . | AG170: . | AI170: =IF(S170=".",".",SUM($S170:S170)) -> . | AJ170: =IF(T170=".",".",SUM($S170:T170)) -> . | AK170: =IF(U170=".",".",SUM($S170:U170)) -> . | AL170: =IF(V170=".",".",SUM($S170:V170)) -> . | AM170: =IF(W170=".",".",SUM($S170:W170)) -> . | AN170: =IF(X170=".",".",SUM($S170:X170)) -> . | AO170: =IF(Y170=".",".",SUM($S170:Y170)) -> . | AQ170: . | AR170: . | AS170: . | AT170: . | AU170: . | AV170: . | AW170: .
C171: Special rate | D171: =IF('WK2 - Notional General Income'!D137="","",'WK2 - Notional General Income'!D137) ->  | E171: =IF('WK2 - Notional General Income'!M137=".",".",'WK2 - Notional General Income'!M137/'WK2 - Notional General Income'!E137) -> . | F171: =IF('WK3 - Notional GI Yr1 YIELD'!M137=".",".",'WK3 - Notional GI Yr1 YIELD'!M137/'WK3 - Notional GI Yr1 YIELD'!E137) -> . | O171: ='WK2 - Notional General Income'!$E137 -> 0 | P171: ='WK3 - Notional GI Yr1 YIELD'!$E137 -> 0 | S171: . | T171: . | U171: . | V171: . | W171: . | X171: . | Y171: . | AA171: . | AB171: . | AC171: . | AD171: . | AE171: . | AF171: . | AG171: . | AI171: =IF(S171=".",".",SUM($S171:S171)) -> . | AJ171: =IF(T171=".",".",SUM($S171:T171)) -> . | AK171: =IF(U171=".",".",SUM($S171:U171)) -> . | AL171: =IF(V171=".",".",SUM($S171:V171)) -> . | AM171: =IF(W171=".",".",SUM($S171:W171)) -> . | AN171: =IF(X171=".",".",SUM($S171:X171)) -> . | AO171: =IF(Y171=".",".",SUM($S171:Y171)) -> . | AQ171: . | AR171: . | AS171: . | AT171: . | AU171: . | AV171: . | AW171: .
C172: Special rate | D172: =IF('WK2 - Notional General Income'!D138="","",'WK2 - Notional General Income'!D138) ->  | E172: =IF('WK2 - Notional General Income'!M138=".",".",'WK2 - Notional General Income'!M138/'WK2 - Notional General Income'!E138) -> . | F172: =IF('WK3 - Notional GI Yr1 YIELD'!M138=".",".",'WK3 - Notional GI Yr1 YIELD'!M138/'WK3 - Notional GI Yr1 YIELD'!E138) -> . | O172: ='WK2 - Notional General Income'!$E138 -> 0 | P172: ='WK3 - Notional GI Yr1 YIELD'!$E138 -> 0 | S172: . | T172: . | U172: . | V172: . | W172: . | X172: . | Y172: . | AA172: . | AB172: . | AC172: . | AD172: . | AE172: . | AF172: . | AG172: . | AI172: =IF(S172=".",".",SUM($S172:S172)) -> . | AJ172: =IF(T172=".",".",SUM($S172:T172)) -> . | AK172: =IF(U172=".",".",SUM($S172:U172)) -> . | AL172: =IF(V172=".",".",SUM($S172:V172)) -> . | AM172: =IF(W172=".",".",SUM($S172:W172)) -> . | AN172: =IF(X172=".",".",SUM($S172:X172)) -> . | AO172: =IF(Y172=".",".",SUM($S172:Y172)) -> . | AQ172: . | AR172: . | AS172: . | AT172: . | AU172: . | AV172: . | AW172: .
C173: Special rate | D173: =IF('WK2 - Notional General Income'!D139="","",'WK2 - Notional General Income'!D139) ->  | E173: =IF('WK2 - Notional General Income'!M139=".",".",'WK2 - Notional General Income'!M139/'WK2 - Notional General Income'!E139) -> . | F173: =IF('WK3 - Notional GI Yr1 YIELD'!M139=".",".",'WK3 - Notional GI Yr1 YIELD'!M139/'WK3 - Notional GI Yr1 YIELD'!E139) -> . | O173: ='WK2 - Notional General Income'!$E139 -> 0 | P173: ='WK3 - Notional GI Yr1 YIELD'!$E139 -> 0 | S173: . | T173: . | U173: . | V173: . | W173: . | X173: . | Y173: . | AA173: . | AB173: . | AC173: . | AD173: . | AE173: . | AF173: . | AG173: . | AI173: =IF(S173=".",".",SUM($S173:S173)) -> . | AJ173: =IF(T173=".",".",SUM($S173:T173)) -> . | AK173: =IF(U173=".",".",SUM($S173:U173)) -> . | AL173: =IF(V173=".",".",SUM($S173:V173)) -> . | AM173: =IF(W173=".",".",SUM($S173:W173)) -> . | AN173: =IF(X173=".",".",SUM($S173:X173)) -> . | AO173: =IF(Y173=".",".",SUM($S173:Y173)) -> . | AQ173: . | AR173: . | AS173: . | AT173: . | AU173: . | AV173: . | AW173: .
C174: Special rate | D174: =IF('WK2 - Notional General Income'!D140="","",'WK2 - Notional General Income'!D140) ->  | E174: =IF('WK2 - Notional General Income'!M140=".",".",'WK2 - Notional General Income'!M140/'WK2 - Notional General Income'!E140) -> . | F174: =IF('WK3 - Notional GI Yr1 YIELD'!M140=".",".",'WK3 - Notional GI Yr1 YIELD'!M140/'WK3 - Notional GI Yr1 YIELD'!E140) -> . | O174: ='WK2 - Notional General Income'!$E140 -> 0 | P174: ='WK3 - Notional GI Yr1 YIELD'!$E140 -> 0 | S174: . | T174: . | U174: . | V174: . | W174: . | X174: . | Y174: . | AA174: . | AB174: . | AC174: . | AD174: . | AE174: . | AF174: . | AG174: . | AI174: =IF(S174=".",".",SUM($S174:S174)) -> . | AJ174: =IF(T174=".",".",SUM($S174:T174)) -> . | AK174: =IF(U174=".",".",SUM($S174:U174)) -> . | AL174: =IF(V174=".",".",SUM($S174:V174)) -> . | AM174: =IF(W174=".",".",SUM($S174:W174)) -> . | AN174: =IF(X174=".",".",SUM($S174:X174)) -> . | AO174: =IF(Y174=".",".",SUM($S174:Y174)) -> . | AQ174: . | AR174: . | AS174: . | AT174: . | AU174: . | AV174: . | AW174: .
C175: Special rate | D175: =IF('WK2 - Notional General Income'!D141="","",'WK2 - Notional General Income'!D141) ->  | E175: =IF('WK2 - Notional General Income'!M141=".",".",'WK2 - Notional General Income'!M141/'WK2 - Notional General Income'!E141) -> . | F175: =IF('WK3 - Notional GI Yr1 YIELD'!M141=".",".",'WK3 - Notional GI Yr1 YIELD'!M141/'WK3 - Notional GI Yr1 YIELD'!E141) -> . | O175: ='WK2 - Notional General Income'!$E141 -> 0 | P175: ='WK3 - Notional GI Yr1 YIELD'!$E141 -> 0 | S175: . | T175: . | U175: . | V175: . | W175: . | X175: . | Y175: . | AA175: . | AB175: . | AC175: . | AD175: . | AE175: . | AF175: . | AG175: . | AI175: =IF(S175=".",".",SUM($S175:S175)) -> . | AJ175: =IF(T175=".",".",SUM($S175:T175)) -> . | AK175: =IF(U175=".",".",SUM($S175:U175)) -> . | AL175: =IF(V175=".",".",SUM($S175:V175)) -> . | AM175: =IF(W175=".",".",SUM($S175:W175)) -> . | AN175: =IF(X175=".",".",SUM($S175:X175)) -> . | AO175: =IF(Y175=".",".",SUM($S175:Y175)) -> . | AQ175: . | AR175: . | AS175: . | AT175: . | AU175: . | AV175: . | AW175: .
C176: Special rate | D176: =IF('WK2 - Notional General Income'!D142="","",'WK2 - Notional General Income'!D142) ->  | E176: =IF('WK2 - Notional General Income'!M142=".",".",'WK2 - Notional General Income'!M142/'WK2 - Notional General Income'!E142) -> . | F176: =IF('WK3 - Notional GI Yr1 YIELD'!M142=".",".",'WK3 - Notional GI Yr1 YIELD'!M142/'WK3 - Notional GI Yr1 YIELD'!E142) -> . | O176: ='WK2 - Notional General Income'!$E142 -> 0 | P176: ='WK3 - Notional GI Yr1 YIELD'!$E142 -> 0 | S176: . | T176: . | U176: . | V176: . | W176: . | X176: . | Y176: . | AA176: . | AB176: . | AC176: . | AD176: . | AE176: . | AF176: . | AG176: . | AI176: =IF(S176=".",".",SUM($S176:S176)) -> . | AJ176: =IF(T176=".",".",SUM($S176:T176)) -> . | AK176: =IF(U176=".",".",SUM($S176:U176)) -> . | AL176: =IF(V176=".",".",SUM($S176:V176)) -> . | AM176: =IF(W176=".",".",SUM($S176:W176)) -> . | AN176: =IF(X176=".",".",SUM($S176:X176)) -> . | AO176: =IF(Y176=".",".",SUM($S176:Y176)) -> . | AQ176: . | AR176: . | AS176: . | AT176: . | AU176: . | AV176: . | AW176: .
C177: Special rate | D177: =IF('WK2 - Notional General Income'!D143="","",'WK2 - Notional General Income'!D143) ->  | E177: =IF('WK2 - Notional General Income'!M143=".",".",'WK2 - Notional General Income'!M143/'WK2 - Notional General Income'!E143) -> . | F177: =IF('WK3 - Notional GI Yr1 YIELD'!M143=".",".",'WK3 - Notional GI Yr1 YIELD'!M143/'WK3 - Notional GI Yr1 YIELD'!E143) -> . | O177: ='WK2 - Notional General Income'!$E143 -> 0 | P177: ='WK3 - Notional GI Yr1 YIELD'!$E143 -> 0 | S177: . | T177: . | U177: . | V177: . | W177: . | X177: . | Y177: . | AA177: . | AB177: . | AC177: . | AD177: . | AE177: . | AF177: . | AG177: . | AI177: =IF(S177=".",".",SUM($S177:S177)) -> . | AJ177: =IF(T177=".",".",SUM($S177:T177)) -> . | AK177: =IF(U177=".",".",SUM($S177:U177)) -> . | AL177: =IF(V177=".",".",SUM($S177:V177)) -> . | AM177: =IF(W177=".",".",SUM($S177:W177)) -> . | AN177: =IF(X177=".",".",SUM($S177:X177)) -> . | AO177: =IF(Y177=".",".",SUM($S177:Y177)) -> . | AQ177: . | AR177: . | AS177: . | AT177: . | AU177: . | AV177: . | AW177: .
